Workbook

Sheet Results
B1: Soil Lab, Geological Survey of Israel
B2: Particle Size Analysis by laser diffraction, Instrument: Mastersizer 2000
B3: project name: samples from Mojave desert
B4: Sample description: sand
B5: Samples ID's: [3746-3767]
A8: Particle | C8: ='raw files'!C1 -> [3746] Amboy 2 bulk - a - Average | J8: Particle | L8: ='raw files'!I1 -> [3747] Amboy 5 bulk - b - Average | S8: Particle | U8: ='raw files'!O1 -> [3747A] Amboy 6 bulk - d - Average | AB8: Particle | AD8: ='raw files'!V1 -> [3748] Amboy 8 bulk - a - Average | AK8: Particle | AM8: ='raw files'!AB1 -> [3749] Amboy 10 bulk - a - Average | AT8: Particle | AV8: ='raw files'!AH1 -> [3750] Amboy 11 bulk - b - Average | BC8: Particle | BE8: ='raw files'!AN1 -> [3751] Amboy 13 bulk - b - Average | BL8: Particle | BN8: ='raw files'!AT1 -> [3752] Amboy source 14 bulk - d - Average | BU8: Particle | BW8: ='raw files'!AZ1 -> [3753] Amboy15 bulk - e - Average | CC8: Particle | CE8: ='raw files'!BF1 -> [3754] BDT 1 bulk - a - Average
A9: Diameter | C9: Differential Volume (%) | J9: Diameter | L9: Differential Volume (%) | S9: Diameter | U9: Differential Volume (%) | AB9: Diameter | AD9: Differential Volume (%) | AK9: Diameter | AM9: Differential Volume (%) | AT9: Diameter | AV9: Differential Volume (%) | BC9: Diameter | BE9: Differential Volume (%) | BL9: Diameter | BN9: Differential Volume (%) | BU9: Diameter | BW9: Differential Volume (%) | CC9: Diameter | CE9: Differential Volume (%)
A10: Range (mm) | B10: Size Class | C10: Rep. 1 | D10: Rep. 2 | E10: Rep. 3 | F10: Average | G10: SE | J10: Range (mm) | K10: Size Class | L10: Rep. 1 | M10: Rep. 2 | N10: Rep. 3 | O10: Average | P10: SE | S10: Range (mm) | T10: Size Class | U10: Rep. 1 | V10: Rep. 2 | W10: Rep. 3 | X10: Average | Y10: SE | AB10: Range (mm) | AC10: Size Class | AD10: Rep. 1 | AE10: Rep. 2 | AF10: Rep. 3 | AG10: Average | AH10: SE | AK10: Range (mm) | AL10: Size Class | AM10: Rep. 1 | AN10: Rep. 2 | AO10: Rep. 3 | AP10: Average | AQ10: SE | AT10: Range (mm) | AU10: Size Class | AV10: Rep. 1 | AW10: Rep. 2 | AX10: Rep. 3 | AY10: Average | AZ10: SE | BC10: Range (mm) | BD10: Size Class | BE10: Rep. 1 | BF10: Rep. 2 | BG10: Rep. 3 | BH10: Average | BI10: SE | BL10: Range (mm) | BM10: Size Class | BN10: Rep. 1 | BO10: Rep. 2 | BP10: Rep. 3 | BQ10: Average | BR10: SE | BT10: Range (mm) | BU10: Size Class | BV10: Rep. 1 | BW10: Rep. 2 | BX10: Rep. 3 | BY10: Average | BZ10: SE | CC10: Range (mm) | CD10: Size Class | CE10: Rep. 1 | CF10: Rep. 2 | CG10: Rep. 3 | CH10: Average | CI10: SE
A11: < 5 | B11: Clay | C11: ='raw files'!C13 -> 6.663 | D11: ='raw files'!D13 -> 6.256 | E11: ='raw files'!E13 -> 7.265 | F11: =AVERAGE(C11:E11) -> 6.728 | G11: =(STDEV(C11:E11))/SQRT(3) -> 0.2930807625 | J11: < 5 | K11: Clay | L11: ='raw files'!I13 -> 1.628 | M11: ='raw files'!J13 -> 2.607 | N11: ='raw files'!K13 -> 2.174 | O11: =AVERAGE(L11,N11) -> 1.901 | P11: =(STDEV(L11:N11))/SQRT(3) -> 0.2832397885 | S11: < 5 | T11: Clay | U11: ='raw files'!O13 -> 3.79 | V11: ='raw files'!P13 -> 3.941 | W11: ='raw files'!Q13 -> 3.696 | X11: =AVERAGE(U11:W11) -> 3.809 | Y11: =(STDEV(U11:W11))/SQRT(3) -> 0.07136058669 | AB11: < 5 | AC11: Clay | AD11: ='raw files'!V13 -> 7.784 | AE11: ='raw files'!W13 -> 8.139 | AF11: ='raw files'!X13 -> 9.131 | AG11: =AVERAGE(AD11:AF11) -> 8.351333333 | AH11: =(STDEV(AD11:AF11))/SQRT(3) -> 0.403078294 | AK11: < 5 | AL11: Clay | AM11: ='raw files'!AB13 -> 2.467 | AN11: ='raw files'!AC13 -> 2.115 | AO11: ='raw files'!AD13 -> 2.119 | AP11: =AVERAGE(AM11:AO11) -> 2.233666667 | AQ11: =(STDEV(AM11:AO11))/SQRT(3) -> 0.1166723808 | AT11: < 5 | AU11: Clay | AV11: ='raw files'!AH13 -> 6.387 | AW11: ='raw files'!AI13 -> 5.66 | AX11: ='raw files'!AJ13 -> 5.902 | AY11: =AVERAGE(AV11:AX11) -> 5.983 | AZ11: =(STDEV(AV11:AX11))/SQRT(3) -> 0.2137389373 | BC11: < 5 | BD11: Clay | BE11: ='raw files'!AN13 -> 2.895 | BF11: ='raw files'!AO13 -> 3.147 | BG11: ='raw files'!AP13 -> 2.764 | BH11: =AVERAGE(BE11:BG11) -> 2.935333333 | BI11: =(STDEV(BE11:BG11))/SQRT(3) -> 0.1123867331 | BL11: < 5 | BM11: Clay | BN11: ='raw files'!AT13 -> 4.825 | BO11: ='raw files'!AU13 -> 4.625 | BP11: ='raw files'!AV13 -> 4.679 | BQ11: =AVERAGE(BN11:BP11) -> 4.709666667 | BR11: =(STDEV(BN11:BP11))/SQRT(3) -> 0.05973645825 | BT11: < 5 | BU11: Clay | BV11: ='raw files'!AZ13 -> 20.693 | BW11: ='raw files'!BA13 -> 24.113 | BX11: ='raw files'!BB13 -> 20.208 | BY11: =AVERAGE(BV11,BX11) -> 20.4505 | BZ11: =(STDEV(BV11,BX11))/SQRT(2) -> 0.2425 | CC11: < 5 | CD11: Clay | CE11: ='raw files'!BF13 -> 3.349 | CF11: ='raw files'!BG13 -> 3.373 | CG11: ='raw files'!BH13 -> 2.909 | CH11: =AVERAGE(CE11:CG11) -> 3.210333333 | CI11: =(STDEV(CE11:CG11))/SQRT(3) -> 0.1508258746
A12: 5 - 63 | B12: Silt | C12: ='raw files'!C14 -> 27.31 | D12: ='raw files'!D14 -> 25.826 | E12: ='raw files'!E14 -> 29.237 | F12: =AVERAGE(C12:E12) -> 27.45766667 | G12: =(STDEV(C12:E12))/SQRT(3) -> 0.9874351174 | J12: 5 - 63 | K12: Silt | L12: ='raw files'!I14 -> 7.43 | M12: ='raw files'!J14 -> 10.579 | N12: ='raw files'!K14 -> 9.242 | O12: =AVERAGE(L12,N12) -> 8.336 | P12: =(STDEV(L12:N12))/SQRT(3) -> 0.9124787364 | S12: 5 - 63 | T12: Silt | U12: ='raw files'!O14 -> 18.534 | V12: ='raw files'!P14 -> 19.028 | W12: ='raw files'!Q14 -> 17.576 | X12: =AVERAGE(U12:W12) -> 18.37933333 | Y12: =(STDEV(U12:W12))/SQRT(3) -> 0.4262305062 | AB12: 5 - 63 | AC12: Silt | AD12: ='raw files'!V14 -> 23.635 | AE12: ='raw files'!W14 -> 24.574 | AF12: ='raw files'!X14 -> 27.423 | AG12: =AVERAGE(AD12:AF12) -> 25.21066667 | AH12: =(STDEV(AD12:AF12))/SQRT(3) -> 1.138894835 | AK12: 5 - 63 | AL12: Silt | AM12: ='raw files'!AB14 -> 11.236 | AN12: ='raw files'!AC14 -> 10.007 | AO12: ='raw files'!AD14 -> 9.912 | AP12: =AVERAGE(AM12:AO12) -> 10.385 | AQ12: =(STDEV(AM12:AO12))/SQRT(3) -> 0.4263828483 | AT12: 5 - 63 | AU12: Silt | AV12: ='raw files'!AH14 -> 27.669 | AW12: ='raw files'!AI14 -> 24.583 | AX12: ='raw files'!AJ14 -> 26.019 | AY12: =AVERAGE(AV12:AX12) -> 26.09033333 | AZ12: =(STDEV(AV12:AX12))/SQRT(3) -> 0.8915651656 | BC12: 5 - 63 | BD12: Silt | BE12: ='raw files'!AN14 -> 13.798 | BF12: ='raw files'!AO14 -> 15.337 | BG12: ='raw files'!AP14 -> 14.108 | BH12: =AVERAGE(BE12:BG12) -> 14.41433333 | BI12: =(STDEV(BE12:BG12))/SQRT(3) -> 0.4699327375 | BL12: 5 - 63 | BM12: Silt | BN12: ='raw files'!AT14 -> 28.109 | BO12: ='raw files'!AU14 -> 27.02 | BP12: ='raw files'!AV14 -> 27.484 | BQ12: =AVERAGE(BN12:BP12) -> 27.53766667 | BR12: =(STDEV(BN12:BP12))/SQRT(3) -> 0.315510345 | BT12: 5 - 63 | BU12: Silt | BV12: ='raw files'!AZ14 -> 33.647 | BW12: ='raw files'!BA14 -> 36.739 | BX12: ='raw files'!BB14 -> 31.501 | BY12: =AVERAGE(BV12,BX12) -> 32.574 | BZ12: =(STDEV(BV12,BX12))/SQRT(2) -> 1.073 | CC12: 5 - 63 | CD12: Silt | CE12: ='raw files'!BF14 -> 13.56 | CF12: ='raw files'!BG14 -> 13.484 | CG12: ='raw files'!BH14 -> 13.54 | CH12: =AVERAGE(CE12:CG12) -> 13.528 | CI12: =(STDEV(CE12:CG12))/SQRT(3) -> 0.02274496281
A13: 63 - 2000 | B13: Sand | C13: ='raw files'!C15 -> 66.027 | D13: ='raw files'!D15 -> 67.918 | E13: ='raw files'!E15 -> 63.498 | F13: 65.81433333 | G13: 1.280367178 | J13: 63 - 2000 | K13: Sand | L13: ='raw files'!I15 -> 90.941 | M13: ='raw files'!J15 -> 86.813 | N13: ='raw files'!K15 -> 88.584 | O13: 89.7625 | P13: =(STDEV(L13:N13))/SQRT(3) -> 1.195646594 | S13: 63 - 2000 | T13: Sand | U13: ='raw files'!O15 -> 77.676 | V13: ='raw files'!P15 -> 77.031 | W13: ='raw files'!Q15 -> 78.728 | X13: 77.81166667 | Y13: =(STDEV(U13:W13))/SQRT(3) -> 0.4945558052 | AB13: 63 - 2000 | AC13: Sand | AD13: ='raw files'!V15 -> 68.581 | AE13: ='raw files'!W15 -> 67.287 | AF13: ='raw files'!X15 -> 63.446 | AG13: 66.438 | AH13: =(STDEV(AD13:AF13))/SQRT(3) -> 1.541931365 | AK13: 63 - 2000 | AL13: Sand | AM13: ='raw files'!AB15 -> 86.296 | AN13: ='raw files'!AC15 -> 87.878 | AO13: ='raw files'!AD15 -> 87.969 | AP13: 87.381 | AQ13: =(STDEV(AM13:AO13))/SQRT(3) -> 0.5431356491 | AT13: 63 - 2000 | AU13: Sand | AV13: ='raw files'!AH15 -> 65.944 | AW13: ='raw files'!AI15 -> 69.757 | AX13: ='raw files'!AJ15 -> 68.079 | AY13: 67.92666667 | AZ13: 1.103350403 | BC13: 63 - 2000 | BD13: Sand | BE13: ='raw files'!AN15 -> 83.308 | BF13: ='raw files'!AO15 -> 81.516 | BG13: ='raw files'!AP15 -> 83.128 | BH13: 82.65066667 | BI13: =(STDEV(BE13:BG13))/SQRT(3) -> 0.5697079174 | BL13: 63 - 2000 | BM13: Sand | BN13: ='raw files'!AT15 -> 67.066 | BO13: ='raw files'!AU15 -> 68.355 | BP13: ='raw files'!AV15 -> 67.837 | BQ13: 67.75266667 | BR13: 0.3744837929 | BT13: 63 - 2000 | BU13: Sand | BV13: ='raw files'!AZ15 -> 45.66 | BW13: ='raw files'!BA15 -> 39.148 | BX13: ='raw files'!BB15 -> 48.29 | BY13: 46.975 | BZ13: 1.315 | CC13: 63 - 2000 | CD13: Sand | CE13: ='raw files'!BF15 -> 83.091 | CF13: ='raw files'!BG15 -> 83.143 | CG13: ='raw files'!BH15 -> 83.551 | CH13: 83.26166667 | CI13: 0.1454433834
A14: 63 - 125 | B14: VF Sand | C14: ='raw files'!C16 -> 22.055 | D14: ='raw files'!D16 -> 21.112 | E14: ='raw files'!E16 -> 23.694 | F14: 22.287 | G14: 0.7543317131 | J14: 63 - 125 | K14: VF Sand | L14: ='raw files'!I16 -> 11.101 | M14: ='raw files'!J16 -> 15.606 | N14: ='raw files'!K16 -> 13.462 | O14: 12.2815 | P14: 1.300984285 | S14: 63 - 125 | T14: VF Sand | U14: ='raw files'!O16 -> 16.827 | V14: ='raw files'!P16 -> 17.275 | W14: ='raw files'!Q16 -> 15.448 | X14: 16.51666667 | Y14: 0.5497612613 | AB14: 63 - 125 | AC14: VF Sand | AD14: ='raw files'!V16 -> 32.201 | AE14: ='raw files'!W16 -> 32.957 | AF14: ='raw files'!X16 -> 33.781 | AG14: 32.97966667 | AH14: 0.4562474962 | AK14: 63 - 125 | AL14: VF Sand | AM14: ='raw files'!AB16 -> 15.631 | AN14: ='raw files'!AC16 -> 14.164 | AO14: ='raw files'!AD16 -> 14.09 | AP14: 14.62833333 | AQ14: 0.5017882466 | AT14: 63 - 125 | AU14: VF Sand | AV14: ='raw files'!AH16 -> 24.081 | AW14: ='raw files'!AI16 -> 21.744 | AX14: ='raw files'!AJ16 -> 22.91 | AY14: 22.91166667 | AZ14: 0.6746343042 | BC14: 63 - 125 | BD14: VF Sand | BE14: ='raw files'!AN16 -> 26.201 | BF14: ='raw files'!AO16 -> 28.891 | BG14: ='raw files'!AP16 -> 28.629 | BH14: =AVERAGE(BE14:BG14) -> 27.907 | BI14: =(STDEV(BE14:BG14))/SQRT(3) -> 0.8563465031 | BL14: 63 - 125 | BM14: VF Sand | BN14: ='raw files'!AT16 -> 29.654 | BO14: ='raw files'!AU16 -> 28.967 | BP14: ='raw files'!AV16 -> 29.398 | BQ14: 29.33966667 | BR14: 0.2004530979 | BT14: 63 - 125 | BU14: VF Sand | BV14: ='raw files'!AZ16 -> 19.666 | BW14: ='raw files'!BA16 -> 21.225 | BX14: ='raw files'!BB16 -> 18.314 | BY14: 18.99 | BZ14: 0.676 | CC14: 63 - 125 | CD14: VF Sand | CE14: ='raw files'!BF16 -> 24.663 | CF14: ='raw files'!BG16 -> 24.91 | CG14: ='raw files'!BH16 -> 25.399 | CH14: 24.99066667 | CI14: 0.2162593607
A15: 125 - 250 | B15: F Sand | C15: ='raw files'!C17 -> 20.079 | D15: ='raw files'!D17 -> 19.678 | E15: ='raw files'!E17 -> 20.061 | F15: 19.93933333 | G15: 0.1307699422 | J15: 125 - 250 | K15: F Sand | L15: ='raw files'!I17 -> 14.334 | M15: ='raw files'!J17 -> 21.887 | N15: ='raw files'!K17 -> 19.635 | O15: 16.9845 | P15: 2.238798214 | S15: 125 - 250 | T15: F Sand | U15: ='raw files'!O17 -> 16.409 | V15: ='raw files'!P17 -> 16.663 | W15: ='raw files'!Q17 -> 14.16 | X15: 15.744 | Y15: 0.7953869079 | AB15: 125 - 250 | AC15: F Sand | AD15: ='raw files'!V17 -> 27.194 | AE15: ='raw files'!W17 -> 26.578 | AF15: ='raw files'!X17 -> 24.587 | AG15: 26.11966667 | AH15: 0.7866944204 | AK15: 125 - 250 | AL15: F Sand | AM15: ='raw files'!AB17 -> 15.93 | AN15: ='raw files'!AC17 -> 12.982 | AO15: ='raw files'!AD17 -> 12.285 | AP15: 13.73233333 | AQ15: 1.11710285 | AT15: 125 - 250 | AU15: F Sand | AV15: ='raw files'!AH17 -> 16.669 | AW15: ='raw files'!AI17 -> 14.714 | AX15: ='raw files'!AJ17 -> 15.89 | AY15: 15.75766667 | AZ15: 0.5682254052 | BC15: 125 - 250 | BD15: F Sand | BE15: ='raw files'!AN17 -> 37.402 | BF15: ='raw files'!AO17 -> 36.467 | BG15: ='raw files'!AP17 -> 37.654 | BH15: =AVERAGE(BE15:BG15) -> 37.17433333 | BI15: =(STDEV(BE15:BG15))/SQRT(3) -> 0.3610707841 | BL15: 125 - 250 | BM15: F Sand | BN15: ='raw files'!AT17 -> 23.051 | BO15: ='raw files'!AU17 -> 22.372 | BP15: ='raw files'!AV17 -> 24.09 | BQ15: 23.171 | BR15: 0.4995601399 | BT15: 125 - 250 | BU15: F Sand | BV15: ='raw files'!AZ17 -> 13.547 | BW15: ='raw files'!BA17 -> 14.55 | BX15: ='raw files'!BB17 -> 13.41 | BY15: 13.4785 | BZ15: 0.0685 | CC15: 125 - 250 | CD15: F Sand | CE15: ='raw files'!BF17 -> 30.845 | CF15: ='raw files'!BG17 -> 30.793 | CG15: ='raw files'!BH17 -> 28.158 | CH15: 29.932 | CI15: 0.8871270108
A16: 250 - 500 | B16: M Sand | C16: ='raw files'!C18 -> 15.084 | D16: ='raw files'!D18 -> 17.075 | E16: ='raw files'!E18 -> 14.653 | F16: 15.604 | G16: 0.7459492834 | J16: 250 - 500 | K16: M Sand | L16: ='raw files'!I18 -> 25.78 | M16: ='raw files'!J18 -> 26.451 | N16: ='raw files'!K18 -> 27.265 | O16: 26.5225 | P16: 0.4293445909 | S16: 250 - 500 | T16: M Sand | U16: ='raw files'!O18 -> 24.974 | V16: ='raw files'!P18 -> 25.777 | W16: ='raw files'!Q18 -> 25.186 | X16: 25.31233333 | Y16: 0.2402584257 | AB16: 250 - 500 | AC16: M Sand | AD16: ='raw files'!V18 -> 8.205 | AE16: ='raw files'!W18 -> 7.345 | AF16: ='raw files'!X18 -> 5.059 | AG16: 6.869666667 | AH16: 0.9387554409 | AK16: 250 - 500 | AL16: M Sand | AM16: ='raw files'!AB18 -> 28.829 | AN16: ='raw files'!AC18 -> 26.115 | AO16: ='raw files'!AD18 -> 29.531 | AP16: 28.15833333 | AQ16: 1.041570822 | AT16: 250 - 500 | AU16: M Sand | AV16: ='raw files'!AH18 -> 16.212 | AW16: ='raw files'!AI18 -> 16.283 | AX16: ='raw files'!AJ18 -> 18.237 | AY16: 16.91066667 | AZ16: 0.6634833164 | BC16: 250 - 500 | BD16: M Sand | BE16: ='raw files'!AN18 -> 19.493 | BF16: ='raw files'!AO18 -> 15.856 | BG16: ='raw files'!AP18 -> 16.799 | BH16: 17.38266667 | BI16: 1.089715916 | BL16: 250 - 500 | BM16: M Sand | BN16: ='raw files'!AT18 -> 10.004 | BO16: ='raw files'!AU18 -> 9.779 | BP16: ='raw files'!AV18 -> 10.81 | BQ16: 10.19766667 | BR16: 0.3129804751 | BT16: 250 - 500 | BU16: M Sand | BV16: ='raw files'!AZ18 -> 9.905 | BW16: ='raw files'!BA18 -> 3.373 | BX16: ='raw files'!BB18 -> 11.769 | BY16: 10.837 | BZ16: 0.932 | CC16: 250 - 500 | CD16: M Sand | CE16: ='raw files'!BF18 -> 21.586 | CF16: ='raw files'!BG18 -> 20.253 | CG16: ='raw files'!BH18 -> 18.315 | CH16: 20.05133333 | CI16: 0.9496248967
A17: 500 - 1000 | B17: C Sand | C17: ='raw files'!C19 -> 7.24 | D17: ='raw files'!D19 -> 8.496 | E17: ='raw files'!E19 -> 5.04 | F17: 6.925333333 | G17: 1.009990979 | J17: 500 - 1000 | K17: C Sand | L17: ='raw files'!I19 -> 29.74 | M17: ='raw files'!J19 -> 18.263 | N17: ='raw files'!K19 -> 20.583 | O17: 25.1615 | P17: 3.503605904 | S17: 500 - 1000 | T17: C Sand | U17: ='raw files'!O19 -> 17.283 | V17: ='raw files'!P19 -> 16.933 | W17: ='raw files'!Q19 -> 21.953 | X17: 18.723 | Y17: 1.618157388 | AB17: 500 - 1000 | AC17: C Sand | AD17: ='raw files'!V19 -> 0.899 | AE17: ='raw files'!W19 -> 0.407 | AF17: ='raw files'!X19 -> 0.019 | AG17: 0.4416666667 | AH17: 0.2546247784 | AK17: 500 - 1000 | AL17: C Sand | AM17: ='raw files'!AB19 -> 23.918 | AN17: ='raw files'!AC19 -> 27.575 | AO17: ='raw files'!AD19 -> 29.482 | AP17: 26.99166667 | AQ17: 1.632455444 | AT17: 500 - 1000 | AU17: C Sand | AV17: ='raw files'!AH19 -> 8.885 | AW17: ='raw files'!AI19 -> 15.292 | AX17: ='raw files'!AJ19 -> 10.969 | AY17: 11.71533333 | AZ17: 1.886811449 | BC17: 500 - 1000 | BD17: C Sand | BE17: ='raw files'!AN19 -> 0.212 | BF17: ='raw files'!AO19 -> 0.301 | BG17: ='raw files'!AP19 -> 0.046 | BH17: 0.1863333333 | BI17: 0.0747224494 | BL17: 500 - 1000 | BM17: C Sand | BN17: ='raw files'!AT19 -> 4.009 | BO17: ='raw files'!AU19 -> 5.744 | BP17: ='raw files'!AV19 -> 3.168 | BQ17: 4.307 | BR17: 0.7584077619 | BT17: 500 - 1000 | BU17: C Sand | BV17: ='raw files'!AZ19 -> 2.542 | BW17: ='raw files'!BA19 -> 0 | BX17: ='raw files'!BB19 -> 4.798 | BY17: 3.67 | BZ17: 1.128 | CC17: 500 - 1000 | CD17: C Sand | CE17: ='raw files'!BF19 -> 5.996 | CF17: ='raw files'!BG19 -> 6.22 | CG17: ='raw files'!BH19 -> 10.303 | CH17: 7.506333333 | CI17: 1.399827648
A18: 1000 - 2000 | B18: VC Sand | C18: ='raw files'!C20 -> 1.569 | D18: ='raw files'!D20 -> 1.557 | E18: ='raw files'!E20 -> 0.05 | F18: 1.058666667 | G18: 0.5043452301 | J18: 1000 - 2000 | K18: VC Sand | L18: ='raw files'!I20 -> 9.987 | M18: ='raw files'!J20 -> 4.606 | N18: ='raw files'!K20 -> 7.64 | O18: 8.8135 | P18: 1.557575145 | S18: 1000 - 2000 | T18: VC Sand | U18: ='raw files'!O20 -> 2.182 | V18: ='raw files'!P20 -> 0.384 | W18: ='raw files'!Q20 -> 1.981 | X18: 1.515666667 | Y18: 0.5688005899 | AB18: 1000 - 2000 | AC18: VC Sand | AD18: ='raw files'!V20 -> 0.083 | AE18: ='raw files'!W20 -> 0 | AF18: ='raw files'!X20 -> 0 | AG18: 0.02766666667 | AH18: 0.02766666667 | AK18: 1000 - 2000 | AL18: VC Sand | AM18: ='raw files'!AB20 -> 1.987 | AN18: ='raw files'!AC20 -> 7.042 | AO18: ='raw files'!AD20 -> 2.58 | AP18: 3.869666667 | AQ18: 1.595377315 | AT18: 1000 - 2000 | AU18: VC Sand | AV18: ='raw files'!AH20 -> 0.097 | AW18: ='raw files'!AI20 -> 1.724 | AX18: ='raw files'!AJ20 -> 0.073 | AY18: 0.6313333333 | AZ18: 0.5463772608 | BC18: 1000 - 2000 | BD18: VC Sand | BE18: ='raw files'!AN20 -> 0 | BF18: ='raw files'!AO20 -> 0 | BG18: ='raw files'!AP20 -> 0 | BH18: 0 | BI18: 0 | BL18: 1000 - 2000 | BM18: VC Sand | BN18: ='raw files'!AT20 -> 0.349 | BO18: ='raw files'!AU20 -> 1.493 | BP18: ='raw files'!AV20 -> 0.371 | BQ18: 0.7376666667 | BR18: 0.377720061 | BT18: 1000 - 2000 | BU18: VC Sand | BV18: ='raw files'!AZ20 -> 0 | BW18: ='raw files'!BA20 -> 0 | BX18: ='raw files'!BB20 -> 0 | BY18: 0 | BZ18: 0 | CC18: 1000 - 2000 | CD18: VC Sand | CE18: ='raw files'!BF20 -> 0 | CF18: ='raw files'!BG20 -> 0.968 | CG18: ='raw files'!BH20 -> 1.376 | CH18: 0.7813333333 | CI18: 0.4080348569
D19: Textural Class: | F19: ='Texture Calculator'!N4 -> SANDY LOAM | M19: Textural Class: | O19: ='Texture Calculator'!N5 -> SAND | V19: Textural Class: | W19: ='Texture Calculator'!N6 -> LOAMY SAND | AE19: Textural Class: | AF19: ='Texture Calculator'!N7 -> SANDY LOAM | AM19: Textural Class: | AO19: ='Texture Calculator'!N8 -> SAND | AV19: Textural Class: | AX19: ='Texture Calculator'!N9 -> SANDY LOAM | BE19: Textural Class: | BG19: ='Texture Calculator'!N10 -> LOAMY SAND | BM19: Textural Class: | BO19: ='Texture Calculator'!N11 -> SANDY LOAM | BV19: Textural Class: | BX19: ='Texture Calculator'!N12 -> LOAM | CD19: Textural Class: | CF19: ='Texture Calculator'!N13 -> LOAMY SAND
D20: avg mode: | F20: =AVERAGE('raw files'!C6:E6) -> 100.8076667 | M20: avg mode: | O20: =AVERAGE('raw files'!I6:K6) -> 443.0396667 | V20: avg mode: | X20: =AVERAGE('raw files'!O6:Q6) -> 442.7033333 | AE20: avg mode: | AG20: =AVERAGE('raw files'!V6:W6) -> 109.4715 | AM20: avg mode: | AO20: =AVERAGE('raw files'!AB6:AD6) -> 500.6623333 | AV20: avg mode: | AX20: =AVERAGE('raw files'!AH6:AJ6) -> 84.70633333 | BE20: avg mode: | BG20: =AVERAGE('raw files'!AN6:AP6) -> 156.784 | BM20: avg mode: | BO20: =AVERAGE('raw files'!AT6:AV6) -> 101.8446667 | BV20: avg mode: | BX20: =AVERAGE('raw files'!AZ6:BB6) -> 84.24533333 | CE20: avg mode: | CG20: =AVERAGE('raw files'!BF6:BH6) -> 141.288
A24: Particle | C24: ='raw files'!BL1 -> [3755] BDT 23 bulk - c - Average | J24: Particle | L24: ='raw files'!BR1 -> [3756] source 6 bulk - c - Average | S24: Particle | U24: ='raw files'!BX1 -> [3757] SB 1 bulk - b - Average | AB24: Particle | AD24: ='raw files'!CD1 -> [3758] SB 3 bulk - a - Average | AK24: Particle | AM24: ='raw files'!CJ1 -> [3759] SB 5 bulk - a - Average | AT24: Particle | AV24: ='raw files'!CP1 -> [3760] SB 6 bulk - a - Average | BC24: Particle | BE24: ='raw files'!CV1 -> [3761] SB 8 bulk - a - Average | BL24: Particle | BN24: ='raw files'!DB1 -> [3762] SB 10 bulk - a - Average | BU24: Particle | BW24: ='raw files'!DH1 -> [3763] SB 11 bulk - a - Average | CD24: Particle | CF24: ='raw files'!DN1 -> [3764] SB 13 bulk - c - Average
A25: Diameter | C25: Differential Volume (%) | J25: Diameter | L25: Differential Volume (%) | S25: Diameter | U25: Differential Volume (%) | AB25: Diameter | AD25: Differential Volume (%) | AK25: Diameter | AM25: Differential Volume (%) | AT25: Diameter | AV25: Differential Volume (%) | BC25: Diameter | BE25: Differential Volume (%) | BL25: Diameter | BN25: Differential Volume (%) | BU25: Diameter | BW25: Differential Volume (%) | CD25: Diameter | CF25: Differential Volume (%)
A26: Range (mm) | B26: Size Class | C26: Rep. 1 | D26: Rep. 2 | E26: Rep. 3 | F26: Average | G26: SE | J26: Range (mm) | K26: Size Class | L26: Rep. 1 | M26: Rep. 2 | N26: Rep. 3 | O26: Average | P26: SE | S26: Range (mm) | T26: Size Class | U26: Rep. 1 | V26: Rep. 2 | W26: Rep. 3 | X26: Average | Y26: SE | AB26: Range (mm) | AC26: Size Class | AD26: Rep. 1 | AE26: Rep. 2 | AF26: Rep. 3 | AG26: Average | AH26: SE | AK26: Range (mm) | AL26: Size Class | AM26: Rep. 1 | AN26: Rep. 2 | AO26: Rep. 3 | AP26: Average | AQ26: SE | AT26: Range (mm) | AU26: Size Class | AV26: Rep. 1 | AW26: Rep. 2 | AX26: Rep. 3 | AY26: Average | AZ26: SE | BC26: Range (mm) | BD26: Size Class | BE26: Rep. 1 | BF26: Rep. 2 | BG26: Rep. 3 | BH26: Average | BI26: SE | BL26: Range (mm) | BM26: Size Class | BN26: Rep. 1 | BO26: Rep. 2 | BP26: Rep. 3 | BQ26: Average | BR26: SE | BU26: Range (mm) | BV26: Size Class | BW26: Rep. 1 | BX26: Rep. 2 | BY26: Rep. 3 | BZ26: Average | CA26: SE | CD26: Range (mm) | CE26: Size Class | CF26: Rep. 1 | CG26: Rep. 2 | CH26: Rep. 3 | CI26: Average | CJ26: SE
A27: < 5 | B27: Clay | C27: ='raw files'!BL13 -> 23.255 | D27: ='raw files'!BM13 -> 29.697 | E27: ='raw files'!BN13 -> 28.641 | F27: =AVERAGE(D27:E27) -> 29.169 | G27: =(STDEV(D27:E27))/SQRT(2) -> 0.528 | J27: < 5 | K27: Clay | L27: ='raw files'!BR13 -> 2.589 | M27: ='raw files'!BS13 -> 2.47 | N27: ='raw files'!BT13 -> 2.64 | O27: =AVERAGE(L27:N27) -> 2.566333333 | P27: =(STDEV(L27:N27))/SQRT(3) -> 0.05036643503 | S27: < 5 | T27: Clay | U27: ='raw files'!BX13 -> 3.058 | V27: ='raw files'!BY13 -> 1.632 | W27: ='raw files'!BZ13 -> 1.427 | X27: =AVERAGE(V27:W27) -> 1.5295 | Y27: =(STDEV(V27:W27))/SQRT(2) -> 0.1025 | AB27: < 5 | AC27: Clay | AD27: ='raw files'!CD13 -> 4.256 | AE27: ='raw files'!CE13 -> 4.098 | AF27: ='raw files'!CF13 -> 4.105 | AG27: =AVERAGE(AD27:AF27) -> 4.153 | AH27: =(STDEV(AD27:AF27))/SQRT(3) -> 0.05153962877 | AK27: < 5 | AL27: Clay | AM27: ='raw files'!CJ13 -> 4.783 | AN27: ='raw files'!CK13 -> 4.62 | AO27: ='raw files'!CL13 -> 4.269 | AP27: =AVERAGE(AM27:AO27) -> 4.557333333 | AQ27: =(STDEV(AM27:AO27))/SQRT(3) -> 0.1516512813 | AT27: < 5 | AU27: Clay | AV27: ='raw files'!CP13 -> 4.229 | AW27: ='raw files'!CQ13 -> 3.882 | AX27: ='raw files'!CR13 -> 4.832 | AY27: =AVERAGE(AV27:AX27) -> 4.314333333 | AZ27: =(STDEV(AV27:AX27))/SQRT(3) -> 0.2775405876 | BC27: < 5 | BD27: Clay | BE27: ='raw files'!CV13 -> 4.327 | BF27: ='raw files'!CW13 -> 4.112 | BG27: ='raw files'!CX13 -> 5.208 | BH27: =AVERAGE(BE27:BF27) -> 4.2195 | BI27: =(STDEV(BE27:BF27))/SQRT(2) -> 0.1075 | BL27: < 5 | BM27: Clay | BN27: ='raw files'!DB13 -> 6.496 | BO27: ='raw files'!DC13 -> 6.143 | BP27: ='raw files'!DD13 -> 5.427 | BQ27: =AVERAGE(BN27:BO27) -> 6.3195 | BR27: =(STDEV(BN27:BO27))/SQRT(2) -> 0.1765 | BU27: < 5 | BV27: Clay | BW27: ='raw files'!DH13 -> 3.581 | BX27: ='raw files'!DI13 -> 4.023 | BY27: ='raw files'!DJ13 -> 3.969 | BZ27: =AVERAGE(BW27:BY27) -> 3.857666667 | CA27: =(STDEV(BW27:BY27))/SQRT(3) -> 0.1392088758 | CD27: < 5 | CE27: Clay | CF27: ='raw files'!DN13 -> 5.751 | CG27: ='raw files'!DO13 -> 5.586 | CH27: ='raw files'!DP13 -> 4.848 | CI27: =AVERAGE(CF27:CH27) -> 5.395 | CJ27: =(STDEV(CF27:CH27))/SQRT(3) -> 0.2776166422
A28: 5 - 63 | B28: Silt | C28: ='raw files'!BL14 -> 34.726 | D28: ='raw files'!BM14 -> 40.221 | E28: ='raw files'!BN14 -> 39.469 | F28: =AVERAGE(D28:E28) -> 39.845 | G28: 0.376 | J28: 5 - 63 | K28: Silt | L28: ='raw files'!BR14 -> 18.454 | M28: ='raw files'!BS14 -> 17.737 | N28: ='raw files'!BT14 -> 17.274 | O28: =AVERAGE(L28:N28) -> 17.82166667 | P28: =(STDEV(L28:N28))/SQRT(3) -> 0.3432571113 | S28: 5 - 63 | T28: Silt | U28: ='raw files'!BX14 -> 9.266 | V28: ='raw files'!BY14 -> 5.969 | W28: ='raw files'!BZ14 -> 5.462 | X28: =AVERAGE(V28:W28) -> 5.7155 | Y28: 0.2535 | AB28: 5 - 63 | AC28: Silt | AD28: ='raw files'!CD14 -> 13.479 | AE28: ='raw files'!CE14 -> 13.049 | AF28: ='raw files'!CF14 -> 13.011 | AG28: =AVERAGE(AD28:AF28) -> 13.17966667 | AH28: =(STDEV(AD28:AF28))/SQRT(3) -> 0.1500681327 | AK28: 5 - 63 | AL28: Silt | AM28: ='raw files'!CJ14 -> 16.121 | AN28: ='raw files'!CK14 -> 15.591 | AO28: ='raw files'!CL14 -> 15.337 | AP28: =AVERAGE(AM28:AO28) -> 15.683 | AQ28: =(STDEV(AM28:AO28))/SQRT(3) -> 0.2309487678 | AT28: 5 - 63 | AU28: Silt | AV28: ='raw files'!CP14 -> 10.652 | AW28: ='raw files'!CQ14 -> 9.758 | AX28: ='raw files'!CR14 -> 11.846 | AY28: =AVERAGE(AV28:AX28) -> 10.752 | AZ28: =(STDEV(AV28:AX28))/SQRT(3) -> 0.6048239413 | BC28: 5 - 63 | BD28: Silt | BE28: ='raw files'!CV14 -> 21.17 | BF28: ='raw files'!CW14 -> 20.066 | BG28: ='raw files'!CX14 -> 24.747 | BH28: =AVERAGE(BE28:BF28) -> 20.618 | BI28: =(STDEV(BE28:BF28))/SQRT(2) -> 0.552 | BL28: 5 - 63 | BM28: Silt | BN28: ='raw files'!DB14 -> 16.71 | BO28: ='raw files'!DC14 -> 16.341 | BP28: ='raw files'!DD14 -> 14.628 | BQ28: =AVERAGE(BN28:BO28) -> 16.5255 | BR28: =(STDEV(BN28:BO28))/SQRT(2) -> 0.1845 | BU28: 5 - 63 | BV28: Silt | BW28: ='raw files'!DH14 -> 8.495 | BX28: ='raw files'!DI14 -> 10.404 | BY28: ='raw files'!DJ14 -> 10.155 | BZ28: =AVERAGE(BW28:BY28) -> 9.684666667 | CA28: =(STDEV(BW28:BY28))/SQRT(3) -> 0.5991606166 | CD28: 5 - 63 | CE28: Silt | CF28: ='raw files'!DN14 -> 18.944 | CG28: ='raw files'!DO14 -> 18.34 | CH28: ='raw files'!DP14 -> 16.639 | CI28: =AVERAGE(CF28:CH28) -> 17.97433333 | CJ28: =(STDEV(CF28:CH28))/SQRT(3) -> 0.6900580491
A29: 63 - 2000 | B29: Sand | C29: ='raw files'!BL15 -> 42.019 | D29: ='raw files'!BM15 -> 30.082 | E29: ='raw files'!BN15 -> 31.889 | F29: 30.9855 | G29: =(STDEV(D29:E29))/SQRT(2) -> 0.9035 | J29: 63 - 2000 | K29: Sand | L29: ='raw files'!BR15 -> 78.957 | M29: ='raw files'!BS15 -> 79.793 | N29: ='raw files'!BT15 -> 80.087 | O29: 79.61233333 | P29: =(STDEV(L29:N29))/SQRT(3) -> 0.3384796071 | S29: 63 - 2000 | T29: Sand | U29: ='raw files'!BX15 -> 87.676 | V29: ='raw files'!BY15 -> 92.399 | W29: ='raw files'!BZ15 -> 93.11 | X29: 92.7545 | Y29: =(STDEV(V29:W29))/SQRT(2) -> 0.3555 | AB29: 63 - 2000 | AC29: Sand | AD29: ='raw files'!CD15 -> 82.265 | AE29: ='raw files'!CE15 -> 82.853 | AF29: ='raw files'!CF15 -> 82.884 | AG29: 82.66733333 | AH29: 0.2013656155 | AK29: 63 - 2000 | AL29: Sand | AM29: ='raw files'!CJ15 -> 79.096 | AN29: ='raw files'!CK15 -> 79.789 | AO29: ='raw files'!CL15 -> 80.394 | AP29: 79.75966667 | AQ29: 0.374987259 | AT29: 63 - 2000 | AU29: Sand | AV29: ='raw files'!CP15 -> 85.119 | AW29: ='raw files'!CQ15 -> 86.36 | AX29: ='raw files'!CR15 -> 83.321 | AY29: 84.93333333 | AZ29: 0.8821818281 | BC29: 63 - 2000 | BD29: Sand | BE29: ='raw files'!CV15 -> 74.503 | BF29: ='raw files'!CW15 -> 75.822 | BG29: ='raw files'!CX15 -> 70.045 | BH29: 75.1625 | BI29: =(STDEV(BE29:BF29))/SQRT(2) -> 0.6595 | BL29: 63 - 2000 | BM29: Sand | BN29: ='raw files'!DB15 -> 76.794 | BO29: ='raw files'!DC15 -> 77.516 | BP29: ='raw files'!DD15 -> 79.945 | BQ29: 77.155 | BR29: 0.361 | BU29: 63 - 2000 | BV29: Sand | BW29: ='raw files'!DH15 -> 87.924 | BX29: ='raw files'!DI15 -> 85.573 | BY29: ='raw files'!DJ15 -> 85.876 | BZ29: 86.45766667 | CA29: =(STDEV(BW29:BY29))/SQRT(3) -> 0.7383658383 | CD29: 63 - 2000 | CE29: Sand | CF29: ='raw files'!DN15 -> 75.306 | CG29: ='raw files'!DO15 -> 76.075 | CH29: ='raw files'!DP15 -> 78.513 | CI29: 76.63133333 | CJ29: 0.9666682184
A30: 63 - 125 | B30: VF Sand | C30: ='raw files'!BL16 -> 15.185 | D30: ='raw files'!BM16 -> 14.077 | E30: ='raw files'!BN16 -> 13.482 | F30: 13.7795 | G30: 0.2975 | J30: 63 - 125 | K30: VF Sand | L30: ='raw files'!BR16 -> 27.745 | M30: ='raw files'!BS16 -> 26.807 | N30: ='raw files'!BT16 -> 28.138 | O30: =AVERAGE(L30:N30) -> 27.56333333 | P30: =(STDEV(L30:N30))/SQRT(3) -> 0.394817398 | S30: 63 - 125 | T30: VF Sand | U30: ='raw files'!BX16 -> 9.967 | V30: ='raw files'!BY16 -> 7.689 | W30: ='raw files'!BZ16 -> 7.131 | X30: 7.41 | Y30: =(STDEV(V30:W30))/SQRT(2) -> 0.279 | AB30: 63 - 125 | AC30: VF Sand | AD30: ='raw files'!CD16 -> 16.255 | AE30: ='raw files'!CE16 -> 15.727 | AF30: ='raw files'!CF16 -> 15.624 | AG30: 15.86866667 | AH30: 0.1954416651 | AK30: 63 - 125 | AL30: VF Sand | AM30: ='raw files'!CJ16 -> 15.089 | AN30: ='raw files'!CK16 -> 14.674 | AO30: ='raw files'!CL16 -> 14.92 | AP30: =AVERAGE(AM30:AO30) -> 14.89433333 | AQ30: 0.1204855916 | AT30: 63 - 125 | AU30: VF Sand | AV30: ='raw files'!CP16 -> 14.437 | AW30: ='raw files'!CQ16 -> 13.571 | AX30: ='raw files'!CR16 -> 15.062 | AY30: =AVERAGE(AV30:AX30) -> 14.35666667 | AZ30: =(STDEV(AV30:AX30))/SQRT(3) -> 0.432284757 | BC30: 63 - 125 | BD30: VF Sand | BE30: ='raw files'!CV16 -> 18.033 | BF30: ='raw files'!CW16 -> 17.692 | BG30: ='raw files'!CX16 -> 20.03 | BH30: 17.8625 | BI30: 0.1705 | BL30: 63 - 125 | BM30: VF Sand | BN30: ='raw files'!DB16 -> 16.284 | BO30: ='raw files'!DC16 -> 16.566 | BP30: ='raw files'!DD16 -> 15.784 | BQ30: 16.425 | BR30: 0.141 | BU30: 63 - 125 | BV30: VF Sand | BW30: ='raw files'!DH16 -> 13.838 | BX30: ='raw files'!DI16 -> 16.373 | BY30: ='raw files'!DJ16 -> 16.061 | BZ30: =AVERAGE(BW30:BY30) -> 15.424 | CA30: 0.7980983649 | CD30: 63 - 125 | CE30: VF Sand | CF30: ='raw files'!DN16 -> 24.825 | CG30: ='raw files'!DO16 -> 24.363 | CH30: ='raw files'!DP16 -> 23.446 | CI30: 24.21133333 | CJ30: 0.4052416289
A31: 125 - 250 | B31: F Sand | C31: ='raw files'!BL17 -> 13.95 | D31: ='raw files'!BM17 -> 10.594 | E31: ='raw files'!BN17 -> 11.346 | F31: 10.97 | G31: 0.376 | J31: 125 - 250 | K31: F Sand | L31: ='raw files'!BR17 -> 25.051 | M31: ='raw files'!BS17 -> 24.639 | N31: ='raw files'!BT17 -> 26.338 | O31: =AVERAGE(L31:N31) -> 25.34266667 | P31: 0.5116809987 | S31: 125 - 250 | T31: F Sand | U31: ='raw files'!BX17 -> 23.893 | V31: ='raw files'!BY17 -> 17.314 | W31: ='raw files'!BZ17 -> 15.955 | X31: 16.6345 | Y31: 0.6795 | AB31: 125 - 250 | AC31: F Sand | AD31: ='raw files'!CD17 -> 21.473 | AE31: ='raw files'!CE17 -> 21.263 | AF31: ='raw files'!CF17 -> 20.697 | AG31: 21.14433333 | AH31: 0.2317364403 | AK31: 125 - 250 | AL31: F Sand | AM31: ='raw files'!CJ17 -> 27.404 | AN31: ='raw files'!CK17 -> 26.442 | AO31: ='raw files'!CL17 -> 26.369 | AP31: =AVERAGE(AM31:AO31) -> 26.73833333 | AQ31: 0.3334997918 | AT31: 125 - 250 | AU31: F Sand | AV31: ='raw files'!CP17 -> 29.239 | AW31: ='raw files'!CQ17 -> 27.955 | AX31: ='raw files'!CR17 -> 27.662 | AY31: =AVERAGE(AV31:AX31) -> 28.28533333 | AZ31: =(STDEV(AV31:AX31))/SQRT(3) -> 0.4842768951 | BC31: 125 - 250 | BD31: F Sand | BE31: ='raw files'!CV17 -> 23.883 | BF31: ='raw files'!CW17 -> 22.303 | BG31: ='raw files'!CX17 -> 23.978 | BH31: 23.093 | BI31: 0.79 | BL31: 125 - 250 | BM31: F Sand | BN31: ='raw files'!DB17 -> 29.236 | BO31: ='raw files'!DC17 -> 27.892 | BP31: ='raw files'!DD17 -> 28.936 | BQ31: 28.564 | BR31: 0.672 | BU31: 125 - 250 | BV31: F Sand | BW31: ='raw files'!DH17 -> 28.956 | BX31: ='raw files'!DI17 -> 28.859 | BY31: ='raw files'!DJ17 -> 28.627 | BZ31: =AVERAGE(BW31:BY31) -> 28.814 | CA31: 0.09760293711 | CD31: 125 - 250 | CE31: F Sand | CF31: ='raw files'!DN17 -> 30.214 | CG31: ='raw files'!DO17 -> 29.587 | CH31: ='raw files'!DP17 -> 31.279 | CI31: 30.36 | CJ31: 0.4938633414
A32: 250 - 500 | B32: M Sand | C32: ='raw files'!BL18 -> 10.811 | D32: ='raw files'!BM18 -> 4.128 | E32: ='raw files'!BN18 -> 6.369 | F32: 5.2485 | G32: 1.1205 | J32: 250 - 500 | K32: M Sand | L32: ='raw files'!BR18 -> 11.053 | M32: ='raw files'!BS18 -> 12.53 | N32: ='raw files'!BT18 -> 13.655 | O32: 12.41266667 | P32: 0.7534202752 | S32: 250 - 500 | T32: M Sand | U32: ='raw files'!BX18 -> 32.697 | V32: ='raw files'!BY18 -> 30.225 | W32: ='raw files'!BZ18 -> 26.306 | X32: 28.2655 | Y32: 1.9595 | AB32: 250 - 500 | AC32: M Sand | AD32: ='raw files'!CD18 -> 18.135 | AE32: ='raw files'!CE18 -> 15.506 | AF32: ='raw files'!CF18 -> 16.577 | AG32: 16.73933333 | AH32: 0.763254945 | AK32: 250 - 500 | AL32: M Sand | AM32: ='raw files'!CJ18 -> 24.626 | AN32: ='raw files'!CK18 -> 21.921 | AO32: ='raw files'!CL18 -> 23.806 | AP32: 23.451 | AQ32: 0.8007860721 | AT32: 250 - 500 | AU32: M Sand | AV32: ='raw files'!CP18 -> 31.434 | AW32: ='raw files'!CQ18 -> 30.919 | AX32: ='raw files'!CR18 -> 28.555 | AY32: 30.30266667 | AZ32: 0.8863897437 | BC32: 250 - 500 | BD32: M Sand | BE32: ='raw files'!CV18 -> 22.041 | BF32: ='raw files'!CW18 -> 20.748 | BG32: ='raw files'!CX18 -> 19.029 | BH32: 21.3945 | BI32: 0.6465 | BL32: 250 - 500 | BM32: M Sand | BN32: ='raw files'!DB18 -> 22.958 | BO32: ='raw files'!DC18 -> 20.087 | BP32: ='raw files'!DD18 -> 24.574 | BQ32: 21.5225 | BR32: 1.4355 | BU32: 250 - 500 | BV32: M Sand | BW32: ='raw files'!DH18 -> 32.363 | BX32: ='raw files'!DI18 -> 30.131 | BY32: ='raw files'!DJ18 -> 29.163 | BZ32: 30.55233333 | CA32: 0.947477587 | CD32: 250 - 500 | CE32: M Sand | CF32: ='raw files'!DN18 -> 14.924 | CG32: ='raw files'!DO18 -> 16.123 | CH32: ='raw files'!DP18 -> 19.354 | CI32: 16.80033333 | CJ32: 1.322914753
A33: 500 - 1000 | B33: C Sand | C33: ='raw files'!BL19 -> 2.072 | D33: ='raw files'!BM19 -> 1.283 | E33: ='raw files'!BN19 -> 0.692 | F33: 0.9875 | G33: 0.2955 | J33: 500 - 1000 | K33: C Sand | L33: ='raw files'!BR19 -> 8.95 | M33: ='raw files'!BS19 -> 9.999 | N33: ='raw files'!BT19 -> 8.918 | O33: 9.289 | P33: 0.3551201675 | S33: 500 - 1000 | T33: C Sand | U33: ='raw files'!BX19 -> 18.855 | V33: ='raw files'!BY19 -> 29.235 | W33: ='raw files'!BZ19 -> 30.731 | X33: 29.983 | Y33: 0.748 | AB33: 500 - 1000 | AC33: C Sand | AD33: ='raw files'!CD19 -> 18.717 | AE33: ='raw files'!CE19 -> 18.676 | AF33: ='raw files'!CF19 -> 18.911 | AG33: 18.768 | AH33: 0.07247298347 | AK33: 500 - 1000 | AL33: C Sand | AM33: ='raw files'!CJ19 -> 10.75 | AN33: ='raw files'!CK19 -> 12.409 | AO33: ='raw files'!CL19 -> 11.576 | AP33: 11.57833333 | AQ33: 0.4789134693 | AT33: 500 - 1000 | AU33: C Sand | AV33: ='raw files'!CP19 -> 10.008 | AW33: ='raw files'!CQ19 -> 13.654 | AX33: ='raw files'!CR19 -> 11.883 | AY33: 11.84833333 | AZ33: 1.052652259 | BC33: 500 - 1000 | BD33: C Sand | BE33: ='raw files'!CV19 -> 9.183 | BF33: ='raw files'!CW19 -> 13.587 | BG33: ='raw files'!CX19 -> 6.852 | BH33: 11.385 | BI33: 2.202 | BL33: 500 - 1000 | BM33: C Sand | BN33: ='raw files'!DB19 -> 7.204 | BO33: ='raw files'!DC19 -> 9.396 | BP33: ='raw files'!DD19 -> 9.615 | BQ33: 8.3 | BR33: 1.096 | BU33: 500 - 1000 | BV33: C Sand | BW33: ='raw files'!DH19 -> 12.642 | BX33: ='raw files'!DI19 -> 10.21 | BY33: ='raw files'!DJ19 -> 11.883 | BZ33: 11.57833333 | CA33: 0.7183945836 | CD33: 500 - 1000 | CE33: C Sand | CF33: ='raw files'!DN19 -> 3.16 | CG33: ='raw files'!DO19 -> 5.177 | CH33: ='raw files'!DP19 -> 4.418 | CI33: 4.251666667 | CJ33: 0.5881673042
A34: 1000 - 2000 | B34: VC Sand | C34: ='raw files'!BL20 -> 0 | D34: ='raw files'!BM20 -> 0 | E34: ='raw files'!BN20 -> 0 | F34: 0 | G34: 0 | J34: 1000 - 2000 | K34: VC Sand | L34: ='raw files'!BR20 -> 6.158 | M34: ='raw files'!BS20 -> 5.818 | N34: ='raw files'!BT20 -> 3.038 | O34: 5.004666667 | P34: 0.9882194988 | S34: 1000 - 2000 | T34: VC Sand | U34: ='raw files'!BX20 -> 2.264 | V34: ='raw files'!BY20 -> 7.935 | W34: ='raw files'!BZ20 -> 12.988 | X34: 10.4615 | Y34: 2.5265 | AB34: 1000 - 2000 | AC34: VC Sand | AD34: ='raw files'!CD20 -> 7.685 | AE34: ='raw files'!CE20 -> 11.682 | AF34: ='raw files'!CF20 -> 11.076 | AG34: 10.14766667 | AH34: 1.243698025 | AK34: 1000 - 2000 | AL34: VC Sand | AM34: ='raw files'!CJ20 -> 1.227 | AN34: ='raw files'!CK20 -> 4.343 | AO34: ='raw files'!CL20 -> 3.723 | AP34: 3.097666667 | AQ34: 0.9523034064 | AT34: 1000 - 2000 | AU34: VC Sand | AV34: ='raw files'!CP20 -> 0 | AW34: ='raw files'!CQ20 -> 0.261 | AX34: ='raw files'!CR20 -> 0.16 | AY34: 0.1403333333 | AZ34: =(STDEV(AV34:AX34))/SQRT(3) -> 0.07598318527 | BC34: 1000 - 2000 | BD34: VC Sand | BE34: ='raw files'!CV20 -> 1.363 | BF34: ='raw files'!CW20 -> 1.492 | BG34: ='raw files'!CX20 -> 0.156 | BH34: 1.4275 | BI34: 0.0645 | BL34: 1000 - 2000 | BM34: VC Sand | BN34: ='raw files'!DB20 -> 1.112 | BO34: ='raw files'!DC20 -> 3.575 | BP34: ='raw files'!DD20 -> 1.035 | BQ34: 2.3435 | BR34: 1.2315 | BU34: 1000 - 2000 | BV34: VC Sand | BW34: ='raw files'!DH20 -> 0.125 | BX34: ='raw files'!DI20 -> 0 | BY34: ='raw files'!DJ20 -> 0.142 | BZ34: 0.089 | CA34: 0.04476978148 | CD34: 1000 - 2000 | CE34: VC Sand | CF34: ='raw files'!DN20 -> 2.183 | CG34: ='raw files'!DO20 -> 0.826 | CH34: ='raw files'!DP20 -> 0.016 | CI34: 1.008333333 | CJ34: 0.6321672599
D35: Textural Class: | F35: ='Texture Calculator'!N14 -> CLAY LOAM | N35: Textural Class: | O35: ='Texture Calculator'!N15 -> LOAMY SAND | W35: Textural Class: | X35: ='Texture Calculator'!N16 -> SAND | AF35: Textural Class: | AG35: ='Texture Calculator'!N17 -> LOAMY SAND | AO35: Textural Class: | AP35: ='Texture Calculator'!N18 -> LOAMY SAND | AX35: Textural Class: | AY35: ='Texture Calculator'!N19 -> LOAMY SAND | BG35: Textural Class: | BH35: ='Texture Calculator'!N20 -> LOAMY SAND | BP35: Textural Class: | BQ35: ='Texture Calculator'!N21 -> LOAMY SAND | BY35: Textural Class: | BZ35: ='Texture Calculator'!N22 -> LOAMY SAND | CH35: Textural Class: | CI35: ='Texture Calculator'!$N$23 -> LOAMY SAND
D36: avg mode: | F36: =AVERAGE('raw files'!BL6:BN6) -> 102.45 | N36: avg mode: | O36: =AVERAGE('raw files'!BR6:BT6) -> 114.82 | W36: avg mode: | X36: =AVERAGE('raw files'!BX6:BY6) -> 425.159 | AF36: avg mode: | AG36: =AVERAGE('raw files'!CE6:CF6) -> 154.928 | AO36: avg mode: | AP36: =AVERAGE('raw files'!CJ6:CL6) -> 218.4956667 | AX36: avg mode: | AY36: =AVERAGE('raw files'!CP6:CR6) -> 275.0423333 | BG36: avg mode: | BH36: =AVERAGE('raw files'!CV6:CW6) -> 202.549 | BP36: avg mode: | BQ36: =AVERAGE('raw files'!DB6:DC6) -> 197.3435 | BY36: avg mode: | BZ36: =AVERAGE('raw files'!DH6:DJ6) -> 279.551 | CH36: avg mode: | CI36: =AVERAGE('raw files'!DO6:DP6) -> 149.706
A40: Particle | C40: ='raw files'!DT1 -> [3765] SB 15 bulk - a - Average | J40: Particle | L40: ='raw files'!DZ1 -> [3766] SB 719 bulk - b - Average | S40: Particle | U40: ='raw files'!EF1 -> [3767] SB 722 bulk - a - Average
A41: Diameter | C41: Differential Volume (%) | J41: Diameter | L41: Differential Volume (%) | S41: Diameter | U41: Differential Volume (%)
A42: Range (mm) | B42: Size Class | C42: Rep. 1 | D42: Rep. 2 | E42: Rep. 3 | F42: Average | G42: SE | J42: Range (mm) | K42: Size Class | L42: Rep. 1 | M42: Rep. 2 | N42: Rep. 3 | O42: Average | P42: SE | S42: Range (mm) | T42: Size Class | U42: Rep. 1 | V42: Rep. 2 | W42: Rep. 3 | X42: Average | Y42: SE
A43: < 5 | B43: Clay | C43: ='raw files'!DT13 -> 2.406 | D43: ='raw files'!DU13 -> 2.26 | E43: ='raw files'!DV13 -> 2.249 | F43: =AVERAGE(C43:E43) -> 2.305 | G43: =(STDEV(C43:E43))/SQRT(3) -> 0.05059973649 | J43: < 5 | K43: Clay | L43: ='raw files'!DZ13 -> 3.28 | M43: ='raw files'!EA13 -> 2.92 | N43: ='raw files'!EB13 -> 2.75 | O43: =AVERAGE(L43:N43) -> 2.983333333 | P43: =(STDEV(L43:N43))/SQRT(3) -> 0.1562405553 | S43: < 5 | T43: Clay | U43: ='raw files'!EF13 -> 1.046 | V43: ='raw files'!EG13 -> 0.942 | W43: ='raw files'!EH13 -> 1.809 | X43: =AVERAGE(U43:W43) -> 1.265666667 | Y43: =(STDEV(U43:W43))/SQRT(3) -> 0.2733205282
A44: 5 - 63 | B44: Silt | C44: ='raw files'!DT14 -> 5.9 | D44: ='raw files'!DU14 -> 5.507 | E44: ='raw files'!DV14 -> 4.831 | F44: =AVERAGE(C44:E44) -> 5.412666667 | G44: =(STDEV(C44:E44))/SQRT(3) -> 0.312177478 | J44: 5 - 63 | K44: Silt | L44: ='raw files'!DZ14 -> 3.497 | M44: ='raw files'!EA14 -> 3.077 | N44: ='raw files'!EB14 -> 2.461 | O44: =AVERAGE(L44:N44) -> 3.011666667 | P44: =(STDEV(L44:N44))/SQRT(3) -> 0.3008462139 | S44: 5 - 63 | T44: Silt | U44: ='raw files'!EF14 -> 0.649 | V44: ='raw files'!EG14 -> 0.575 | W44: ='raw files'!EH14 -> 2.663 | X44: =AVERAGE(U44:W44) -> 1.295666667 | Y44: =(STDEV(U44:W44))/SQRT(3) -> 0.6840003249
A45: 63 - 2000 | B45: Sand | C45: ='raw files'!DT15 -> 91.694 | D45: ='raw files'!DU15 -> 92.233 | E45: ='raw files'!DV15 -> 92.919 | F45: 92.282 | G45: 0.3544747288 | J45: 63 - 2000 | K45: Sand | L45: ='raw files'!DZ15 -> 93.223 | M45: ='raw files'!EA15 -> 94.003 | N45: ='raw files'!EB15 -> 94.789 | O45: 94.005 | P45: =(STDEV(L45:N45))/SQRT(3) -> 0.4520663668 | S45: 63 - 2000 | T45: Sand | U45: ='raw files'!EF15 -> 98.305 | V45: ='raw files'!EG15 -> 98.482 | W45: ='raw files'!EH15 -> 95.528 | X45: 97.43833333 | Y45: 0.9565323367
A46: 63 - 125 | B46: VF Sand | C46: ='raw files'!DT16 -> 11.266 | D46: ='raw files'!DU16 -> 10.662 | E46: ='raw files'!DV16 -> 8.809 | F46: 10.24566667 | G46: 0.7391915253 | J46: 63 - 125 | K46: VF Sand | L46: ='raw files'!DZ16 -> 0.042 | M46: ='raw files'!EA16 -> 0.036 | N46: ='raw files'!EB16 -> 0.043 | O46: 0.04033333333 | P46: 0.002185812841 | S46: 63 - 125 | T46: VF Sand | U46: ='raw files'!EF16 -> 1.901 | V46: ='raw files'!EG16 -> 1.428 | W46: ='raw files'!EH16 -> 1.685 | X46: 1.671333333 | Y46: 0.1367142194
A47: 125 - 250 | B47: F Sand | C47: ='raw files'!DT17 -> 18.478 | D47: ='raw files'!DU17 -> 17.073 | E47: ='raw files'!DV17 -> 17.26 | F47: 17.60366667 | G47: 0.440486978 | J47: 125 - 250 | K47: F Sand | L47: ='raw files'!DZ17 -> 36.803 | M47: ='raw files'!EA17 -> 36.437 | N47: ='raw files'!EB17 -> 36.565 | O47: 36.60166667 | P47: 0.1072339084 | S47: 125 - 250 | T47: F Sand | U47: ='raw files'!EF17 -> 49.058 | V47: ='raw files'!EG17 -> 50.275 | W47: ='raw files'!EH17 -> 51.511 | X47: 50.28133333 | Y47: 0.7081271857
A48: 250 - 500 | B48: M Sand | C48: ='raw files'!DT18 -> 21.201 | D48: ='raw files'!DU18 -> 20.448 | E48: ='raw files'!DV18 -> 24.56 | F48: 22.06966667 | G48: 1.263997934 | J48: 250 - 500 | K48: M Sand | L48: ='raw files'!DZ18 -> 55.913 | M48: ='raw files'!EA18 -> 57.063 | N48: ='raw files'!EB18 -> 57.518 | O48: 56.83133333 | P48: 0.4775836169 | S48: 250 - 500 | T48: M Sand | U48: ='raw files'!EF18 -> 46.468 | V48: ='raw files'!EG18 -> 46.243 | W48: ='raw files'!EH18 -> 42.204 | X48: 44.97166667 | Y48: 1.385356793
A49: 500 - 1000 | B49: C Sand | C49: ='raw files'!DT19 -> 26.487 | D49: ='raw files'!DU19 -> 29.027 | E49: ='raw files'!DV19 -> 30.161 | F49: 28.55833333 | G49: 1.086171462 | J49: 500 - 1000 | K49: C Sand | L49: ='raw files'!DZ19 -> 0.465 | M49: ='raw files'!EA19 -> 0.467 | N49: ='raw files'!EB19 -> 0.663 | O49: 0.5316666667 | P49: 0.06566920469 | S49: 500 - 1000 | T49: C Sand | U49: ='raw files'!EF19 -> 0.878 | V49: ='raw files'!EG19 -> 0.537 | W49: ='raw files'!EH19 -> 0.128 | X49: 0.5143333333 | Y49: 0.2168027778
A50: 1000 - 2000 | B50: VC Sand | C50: ='raw files'!DT20 -> 14.262 | D50: ='raw files'!DU20 -> 15.022 | E50: ='raw files'!DV20 -> 12.129 | F50: 13.80433333 | G50: 0.8659207688 | J50: 1000 - 2000 | K50: VC Sand | L50: ='raw files'!DZ20 -> 0 | M50: ='raw files'!EA20 -> 0 | N50: ='raw files'!EB20 -> 0 | O50: 0 | P50: 0 | S50: 1000 - 2000 | T50: VC Sand | U50: ='raw files'!EF20 -> 0 | V50: ='raw files'!EG20 -> 0 | W50: ='raw files'!EH20 -> 0 | X50: 0 | Y50: 0
D51: Textural Class: | F51: ='Texture Calculator'!$N$24 -> SAND | M51: Textural Class: | O51: ='Texture Calculator'!$N$25 -> SAND | V51: Textural Class: | X51: ='Texture Calculator'!$N$26 -> SAND
D52: avg mode: | F52: =AVERAGE('raw files'!DT6:DV6) -> 690.0256667 | M52: avg mode: | O52: =AVERAGE('raw files'!DZ6:EB6) -> 269.652 | V52: avg mode: | X52: =AVERAGE('raw files'!EF6:EH6) -> 244.7006667
R59: Clay | S59: Silt
Q60: 0 | R60: 5 | S60: 63
Q61: 12 | R61: 5 | S61: 63 | T61: Clay | U61: Silt
S62: 0 | T62: 5 | U62: 63
S63: 125 | T63: 5 | U63: 63
A101: LAB # | B101: total w (gr) | C101: >2mm (gr)
A102: 3747A | B102: 55.73 | C102: 5.104
A103: 3749 | B103: 58.01 | C103: 7.1
A104: 3750 | B104: 21.19 | C104: 1.56
A105: 3751 | B105: 34.28 | C105: 13.99
A106: 3752 | B106: 26.87 | C106: 4.84
A107: 3754 | B107: 49.27 | C107: 11.82
A108: 3756 | B108: 37.26 | C108: 6.51
A109: 3757 | B109: 57.82 | C109: 4.34
A110: 3758 | B110: 48.65 | C110: 9.86
A111: 3761 | B111: 57.47 | C111: 16.27
A112: 3764 | B112: 76.27 | C112: 1.72

Sheet Texture Calculator
B1: Enter your data into the yellow highlighted cells | I1: Password = Texture
B3: Sand | D3: Clay | F3: Silt | H3: USDA Texture
A4: 3746 | B4: % Sand 1 | C4: =Results!$F$13/100 -> 0.6581433333 | D4: %Clay 1 | E4: =Results!$F$11/100 -> 0.06728 | F4: % Silt 1 | G4: =1-C4-E4 -> 0.2745766667 | H4: =GRAIN(C4,E4,G4) -> SANDY LOAM | N4: =H4 -> SANDY LOAM
A5: 3747 | B5: % Sand 2 | C5: =Results!$O$13/100 -> 0.897625 | D5: %Clay 2 | E5: =Results!$O$11/100 -> 0.01901 | F5: % Silt 2 | G5: =1-C5-E5 -> 0.083365 | H5: =GRAIN(C5,E5,G5) -> SAND | N5: =H5 -> SAND
A6: 3748 | B6: % Sand 3 | C6: =Results!$X$13/100 -> 0.7781166667 | D6: %Clay 3 | E6: =Results!X11/100 -> 0.03809 | F6: % Silt 3 | G6: =1-C6-E6 -> 0.1837933333 | H6: LOAMY SAND | N6: =H6 -> LOAMY SAND
A7: 3749 | B7: % Sand 4 | C7: =Results!$AG$13/100 -> 0.66438 | D7: %Clay 4 | E7: =Results!$AG$11/100 -> 0.08351333333 | F7: % Silt 4 | G7: =1-C7-E7 -> 0.2521066667 | H7: =GRAIN(C7,E7,G7) -> SANDY LOAM | N7: =H7 -> SANDY LOAM
A8: 3750 | B8: % Sand 5 | C8: =Results!$AP$13/100 -> 0.87381 | D8: %Clay 5 | E8: =Results!$AP$11/100 -> 0.02233666667 | F8: % Silt 5 | G8: =1-C8-E8 -> 0.1038533333 | H8: =GRAIN(C8,E8,G8) -> SAND | N8: =H8 -> SAND
A9: 3751 | B9: % Sand 6 | C9: =Results!$AY$13/100 -> 0.6792666667 | D9: %Clay 6 | E9: =Results!$AY$11/100 -> 0.05983 | F9: % Silt 6 | G9: =1-C9-E9 -> 0.2609033333 | H9: =GRAIN(C9,E9,G9) -> SANDY LOAM | N9: SANDY LOAM
A10: 3752 | B10: % Sand 7 | C10: =Results!$BH$13/100 -> 0.8265066667 | D10: %Clay 7 | E10: =Results!$BH$11/100 -> 0.02935333333 | F10: % Silt 7 | G10: 0.14414 | H10: LOAMY SAND | N10: LOAMY SAND
A11: 3753 | B11: % Sand 8 | C11: =Results!$BQ$13/100 -> 0.6775266667 | D11: %Clay 8 | E11: =Results!$BQ$11/100 -> 0.04709666667 | F11: % Silt 8 | G11: =1-C11-E11 -> 0.2753766667 | H11: =GRAIN(C11,E11,G11) -> SANDY LOAM | N11: SANDY LOAM
A12: 3754 | B12: % Sand 9 | C12: =Results!$BY$13/100 -> 0.46975 | D12: %Clay 9 | E12: =Results!$BY$11/100 -> 0.204505 | F12: % Silt 9 | G12: 0.325745 | H12: LOAM | N12: LOAM
A13: 3755 | B13: % Sand 11 | C13: =Results!$CH$13/100 -> 0.8326166667 | D13: %Clay 11 | E13: =Results!$CH$11/100 -> 0.03210333333 | F13: % Silt 11 | G13: =1-C13-E13 -> 0.13528 | H13: =GRAIN(C13,E13,G13) -> LOAMY SAND | N13: LOAMY SAND
A14: 3756 | B14: % Sand 12 | C14: =Results!$F$29/100 -> 0.309855 | D14: %Clay 12 | E14: =Results!$F$27/100 -> 0.29169 | F14: % Silt 12 | G14: 0.398455 | H14: CLAY LOAM | N14: CLAY LOAM
A15: 3757 | B15: % Sand 13 | C15: =Results!$O$29/100 -> 0.7961233333 | D15: %Clay 13 | E15: =Results!$O$27/100 -> 0.02566333333 | F15: % Silt 13 | G15: 0.1782133333 | H15: LOAMY SAND | N15: LOAMY SAND
A16: 3758 | B16: % Sand 14 | C16: =Results!$X$29/100 -> 0.927545 | D16: %Clay 14 | E16: =Results!$X$27/100 -> 0.015295 | F16: % Silt 14 | G16: 0.05716 | H16: SAND | N16: SAND
A17: 3759 | B17: % Sand 15 | C17: =Results!$AG$29/100 -> 0.8266733333 | D17: %Clay 15 | E17: =Results!$AG$27/100 -> 0.04153 | F17: % Silt 15 | G17: 0.1317966667 | H17: LOAMY SAND | N17: =H17 -> LOAMY SAND
A18: 3760 | B18: % Sand 16 | C18: =Results!$AP$29/100 -> 0.7975966667 | D18: %Clay 16 | E18: =Results!$AP$27/100 -> 0.04557333333 | F18: % Silt 16 | G18: =1-C18-E18 -> 0.15683 | H18: =GRAIN(C18,E18,G18) -> LOAMY SAND | N18: =H18 -> LOAMY SAND
A19: 3761 | B19: % Sand 17 | C19: =Results!$AY$29/100 -> 0.8493333333 | D19: %Clay 17 | E19: =Results!$AY$27/100 -> 0.04314333333 | F19: % Silt 17 | G19: =1-C19-E19 -> 0.1075233333 | H19: =GRAIN(C19,E19,G19) -> LOAMY SAND | N19: LOAMY SAND
A20: 3762 | B20: % Sand 18 | C20: =Results!$BH$29/100 -> 0.751625 | D20: %Clay 18 | E20: =Results!$BH$27/100 -> 0.042195 | F20: % Silt 18 | G20: =1-C20-E20 -> 0.20618 | H20: =GRAIN(C20,E20,G20) -> LOAMY SAND | N20: LOAMY SAND
A21: 3763 | B21: % Sand 19 | C21: =Results!$BQ$29/100 -> 0.77155 | D21: %Clay 19 | E21: =Results!$BQ$27/100 -> 0.063195 | F21: % Silt 19 | G21: 0.165255 | H21: LOAMY SAND | N21: LOAMY SAND
A22: 3764 | B22: % Sand 20 | C22: =Results!$BZ$29/100 -> 0.8645766667 | D22: %Clay 20 | E22: =Results!$BZ$27/100 -> 0.03857666667 | F22: % Silt 20 | G22: 0.09684666667 | H22: =GRAIN(C22,E22,G22) -> LOAMY SAND | N22: LOAMY SAND
A23: 3765 | B23: % Sand 21 | C23: =Results!$CI$29/100 -> 0.7663133333 | D23: %Clay 21 | E23: =Results!$CI$27/100 -> 0.05395 | F23: % Silt 21 | G23: =1-C23-E23 -> 0.1797366667 | H23: =GRAIN(C23,E23,G23) -> LOAMY SAND | N23: LOAMY SAND
A24: 3766 | B24: % Sand 22 | C24: =Results!F45/100 -> 0.92282 | D24: %Clay 22 | E24: =Results!F43/100 -> 0.02305 | F24: % Silt 22 | G24: 0.05413 | H24: SAND | N24: SAND
A25: 3767 | B25: % Sand 23 | C25: =Results!$O$45/100 -> 0.94005 | D25: %Clay 23 | E25: =Results!$O$43/100 -> 0.02983333333 | F25: % Silt 23 | G25: 0.03011666667 | H25: SAND | N25: SAND
A26: 3768 | B26: % Sand 24 | C26: =Results!$X$45/100 -> 0.9743833333 | D26: %Clay 24 | E26: =Results!$X$43/100 -> 0.01265666667 | F26: % Silt 24 | G26: =1-C26-E26 -> 0.01296 | H26: =GRAIN(C26,E26,G26) -> SAND | N26: SAND
D28: =A4 -> 3746 | E28: =(1.095-(C4*0.0104*100))-((0.52)*(0.0099*E4*100)) -> 0.3758951893 | F28: =0.145+(0.0099*E4*100) -> 0.2116072
D29: 3747 | E29: 0.151683652 | F29: 0.1638199
D30: 3748 | E30: 0.2661499347 | F30: 0.1827091
D31: 3749 | E31: 0.361052136 | F31: 0.2276782
D32: 3750 | E32: 0.174738684 | F32: 0.1671133
D33: 3751 | E33: 0.3577621827 | F33: 0.2042317
D34: 3752 | E34: 0.2203219707 | F34: 0.1740598
D35: 3753 | E35: 0.3661269027 | F35: 0.1916257
D36: =A12 -> 3754 | E36: 0.501180826 | F36: 0.34745995
D37: 3755 | E37: =(1.095-(C13*0.0104*100))-((0.52)*(0.0099*E13*100)) -> 0.2125518707 | F37: =0.145+(0.0099*E13*100) -> 0.1767823
D38: 3756 | E38: 0.622588788 | F38: 0.4337731
D39: 3757 | E39: 0.2538202493 | F39: 0.1704067
D40: 3758 | E40: 0.122479334 | F40: 0.16014205
D41: 3759 | E41: 0.2138800893 | F41: 0.1861147
D42: 3760 | E42: 0.2420383147 | F42: 0.1901176
D43: 3761 | E43: 0.1894831453 | F43: 0.1877119
D44: 3762 | E44: 0.291588014 | F44: 0.18677305
D45: 3763 | E45: 0.260055214 | F45: 0.20756305
D46: 3764 | E46: 0.1759809987 | F46: 0.1831909
D47: 3765 | E47: 0.2702606733 | F47: 0.1984105
D48: 3766 | E48: 0.12340106 | F48: 0.1678195
D49: 3767 | E49: 0.1019898 | F49: 0.174535
D50: 3768 | E50: 0.07512568133 | F50: 0.1575301
E55: 0.525
E56: 1.04

Sheet raw files
A1: Sample Name | C1: [3746] Amboy 2 bulk - a - Average | D1: [3746] Amboy 2 bulk - b - Average | E1: [3746] Amboy 2 bulk - c - Average | G1: Sample Name | I1: [3747] Amboy 5 bulk - b - Average | J1: [3747] Amboy 5 bulk - c - Average | K1: [3747] Amboy 5 bulk - d - Average | M1: Sample Name | O1: [3747A] Amboy 6 bulk - d - Average | P1: [3747A] Amboy 6 bulk - e - Average | Q1: [3747A] Amboy 6 bulk - f - Average | T1: Sample Name | V1: [3748] Amboy 8 bulk - a - Average | W1: [3748] Amboy 8 bulk - b - Average | X1: [3748] Amboy 8 bulk - c - Average | Z1: Sample Name | AB1: [3749] Amboy 10 bulk - a - Average | AC1: [3749] Amboy 10 bulk - b - Average | AD1: [3749] Amboy 10 bulk - c - Average | AF1: Sample Name | AH1: [3750] Amboy 11 bulk - b - Average | AI1: [3750] Amboy 11 bulk - c - Average | AJ1: [3750] Amboy 11 bulk - e - Average | AL1: Sample Name | AN1: [3751] Amboy 13 bulk - b - Average | AO1: [3751] Amboy 13 bulk - c - Average | AP1: [3751] Amboy 13 bulk - d - Average | AR1: Sample Name | AT1: [3752] Amboy source 14 bulk - d - Average | AU1: [3752] Amboy source 14 bulk - e - Average | AV1: [3752] Amboy source 14 bulk - f - Average | AX1: Sample Name | AZ1: [3753] Amboy15 bulk - e - Average | BA1: [3753] Amboy15 bulk - f - Average | BB1: [3753] Amboy15 bulk - h - Average | BD1: Sample Name | BF1: [3754] BDT 1 bulk - a - Average | BG1: [3754] BDT 1 bulk - b - Average | BH1: [3754] BDT 1 bulk - c - Average | BJ1: Sample Name | BL1: [3755] BDT 23 bulk - c - Average | BM1: [3755] BDT 23 bulk - f - Average | BN1: [3755] BDT 23 bulk - g - Average | BP1: Sample Name | BR1: [3756] source 6 bulk - c - Average | BS1: [3756] source 6 bulk - d - Average | BT1: [3756] source 6 bulk - e - Average | BV1: Sample Name | BX1: [3757] SB 1 bulk - b - Average | BY1: [3757] SB 1 bulk - c - Average | BZ1: [3757] SB 1 bulk - d - Average | CB1: Sample Name | CD1: [3758] SB 3 bulk - a - Average | CE1: [3758] SB 3 bulk - b - Average | CF1: [3758] SB 3 bulk - e+ f new Averaged Result | CH1: Sample Name | CJ1: [3759] SB 5 bulk - a - Average | CK1: [3759] SB 5 bulk - b - Average | CL1: [3759] SB 5 bulk - c - Average | CN1: Sample Name | CP1: [3760] SB 6 bulk - a - Average | CQ1: [3760] SB 6 bulk - b - Average | CR1: [3760] SB 6 bulk - c - Average | CT1: Sample Name | CV1: [3761] SB 8 bulk - a - Average | CW1: [3761] SB 8 bulk - b - Average | CX1: [3761] SB 8 bulk - c - Average | CZ1: Sample Name | DB1: [3762] SB 10 bulk - a - Average | DC1: [3762] SB 10 bulk - c - Average | DD1: [3762] SB 10 bulk - d - Average | DF1: Sample Name | DH1: [3763] SB 11 bulk - a - Average | DI1: [3763] SB 11 bulk - c - Average | DJ1: [3763] SB 11 bulk - d - Average | DL1: Sample Name | DN1: [3764] SB 13 bulk - c - Average | DO1: [3764] SB 13 bulk - d - Average | DP1: [3764] SB 13 bulk - e - Average | DR1: Sample Name | DT1: [3765] SB 15 bulk - a - Average | DU1: [3765] SB 15 bulk - b - Average | DV1: [3765] SB 15 bulk - c - Average | DX1: Sample Name | DZ1: [3766] SB 719 bulk - b - Average | EA1: [3766] SB 719 bulk - c - Average | EB1: [3766] SB 719 bulk - d - Average | ED1: Sample Name | EF1: [3767] SB 722 bulk - a - Average | EG1: [3767] SB 722 bulk - b - Average | EH1: [3767] SB 722 bulk - c - Average
A2: Analysis date and time | C2: éåí çîéùé 31 éðåàø 2019 12:16:47 | D2: éåí çîéùé 31 éðåàø 2019 12:19:25 | E2: éåí çîéùé 31 éðåàø 2019 12:24:50 | G2: Analysis date and time | I2: éåí çîéùé 31 éðåàø 2019 12:43:01 | J2: éåí çîéùé 31 éðåàø 2019 12:48:10 | K2: éåí çîéùé 31 éðåàø 2019 12:50:56 | M2: Analysis date and time | O2: éåí çîéùé 31 éðåàø 2019 13:34:59 | P2: éåí çîéùé 31 éðåàø 2019 13:43:52 | Q2: éåí çîéùé 31 éðåàø 2019 13:50:15 | T2: Analysis date and time | V2: éåí çîéùé 31 éðåàø 2019 14:57:57 | W2: éåí çîéùé 31 éðåàø 2019 15:00:56 | X2: éåí çîéùé 31 éðåàø 2019 15:08:14 | Z2: Analysis date and time | AB2: éåí çîéùé 31 éðåàø 2019 15:33:16 | AC2: éåí çîéùé 31 éðåàø 2019 15:38:43 | AD2: éåí çîéùé 31 éðåàø 2019 15:40:53 | AF2: Analysis date and time | AH2: éåí çîéùé 31 éðåàø 2019 16:59:27 | AI2: éåí çîéùé 31 éðåàø 2019 17:02:39 | AJ2: éåí çîéùé 31 éðåàø 2019 17:09:06 | AL2: Analysis date and time | AN2: éåí ùðé 04 ôáøåàø 2019 12:34:34 | AO2: éåí ùðé 04 ôáøåàø 2019 12:39:57 | AP2: éåí ùðé 04 ôáøåàø 2019 12:44:06 | AR2: Analysis date and time | AT2: éåí ùðé 04 ôáøåàø 2019 13:04:40 | AU2: éåí ùðé 04 ôáøåàø 2019 13:07:26 | AV2: éåí ùðé 04 ôáøåàø 2019 13:15:20 | AX2: Analysis date and time | AZ2: éåí ùðé 04 ôáøåàø 2019 14:47:37 | BA2: éåí ùðé 04 ôáøåàø 2019 14:52:59 | BB2: éåí ùðé 04 ôáøåàø 2019 15:04:47 | BD2: Analysis date and time | BF2: éåí ùìéùé 05 ôáøåàø 2019 13:42:56 | BG2: éåí ùìéùé 05 ôáøåàø 2019 13:45:57 | BH2: éåí ùìéùé 05 ôáøåàø 2019 13:52:14 | BJ2: Analysis date and time | BL2: éåí ùìéùé 05 ôáøåàø 2019 14:10:10 | BM2: éåí ùìéùé 05 ôáøåàø 2019 14:27:13 | BN2: éåí ùìéùé 05 ôáøåàø 2019 14:29:21 | BP2: Analysis date and time | BR2: éåí ùìéùé 05 ôáøåàø 2019 14:56:06 | BS2: éåí ùìéùé 05 ôáøåàø 2019 14:58:36 | BT2: éåí ùìéùé 05 ôáøåàø 2019 15:04:35 | BV2: Analysis date and time | BX2: éåí ùìéùé 05 ôáøåàø 2019 15:20:50 | BY2: éåí ùìéùé 05 ôáøåàø 2019 15:31:38 | BZ2: éåí ùìéùé 05 ôáøåàø 2019 15:34:21 | CB2: Analysis date and time | CD2: éåí ùìéùé 05 ôáøåàø 2019 15:42:57 | CE2: éåí ùìéùé 05 ôáøåàø 2019 15:45:19 | CF2: éåí çîéùé 07 ôáøåàø 2019 11:04:27 | CH2: Analysis date and time | CJ2: éåí çîéùé 07 ôáøåàø 2019 11:19:50 | CK2: éåí çîéùé 07 ôáøåàø 2019 11:22:13 | CL2: éåí çîéùé 07 ôáøåàø 2019 11:27:46 | CN2: Analysis date and time | CP2: éåí çîéùé 07 ôáøåàø 2019 11:38:17 | CQ2: éåí çîéùé 07 ôáøåàø 2019 11:40:38 | CR2: éåí çîéùé 07 ôáøåàø 2019 11:46:22 | CT2: Analysis date and time | CV2: éåí çîéùé 07 ôáøåàø 2019 12:48:18 | CW2: éåí çîéùé 07 ôáøåàø 2019 12:50:51 | CX2: éåí çîéùé 07 ôáøåàø 2019 12:57:13 | CZ2: Analysis date and time | DB2: éåí çîéùé 07 ôáøåàø 2019 13:14:45 | DC2: éåí çîéùé 07 ôáøåàø 2019 13:25:32 | DD2: éåí çîéùé 07 ôáøåàø 2019 13:28:34 | DF2: Analysis date and time | DH2: éåí çîéùé 07 ôáøåàø 2019 15:02:59 | DI2: éåí çîéùé 07 ôáøåàø 2019 15:11:50 | DJ2: éåí çîéùé 07 ôáøåàø 2019 15:16:17 | DL2: Analysis date and time | DN2: éåí çîéùé 07 ôáøåàø 2019 15:39:38 | DO2: éåí çîéùé 07 ôáøåàø 2019 15:43:38 | DP2: éåí çîéùé 07 ôáøåàø 2019 15:57:43 | DR2: Analysis date and time | DT2: éåí çîéùé 07 ôáøåàø 2019 16:10:48 | DU2: éåí çîéùé 07 ôáøåàø 2019 16:13:41 | DV2: éåí çîéùé 07 ôáøåàø 2019 16:19:50 | DX2: Analysis date and time | DZ2: éåí ùðé 11 ôáøåàø 2019 14:03:09 | EA2: éåí ùðé 11 ôáøåàø 2019 14:09:19 | EB2: éåí ùðé 11 ôáøåàø 2019 14:14:17 | ED2: Analysis date and time | EF2: éåí ùðé 11 ôáøåàø 2019 14:21:01 | EG2: éåí ùðé 11 ôáøåàø 2019 14:24:24 | EH2: éåí ùðé 11 ôáøåàø 2019 14:30:14
A3: Operator name | C3: Yael | D3: Yael | E3: Yael | G3: Operator name | I3: Yael | J3: Yael | K3: Yael | M3: Operator name | O3: Yael | P3: Yael | Q3: Yael | T3: Operator name | V3: Yael | W3: Yael | X3: Yael | Z3: Operator name | AB3: Yael | AC3: Yael | AD3: Yael | AF3: Operator name | AH3: Yael | AI3: Yael | AJ3: Yael | AL3: Operator name | AN3: Yael | AO3: Yael | AP3: Yael | AR3: Operator name | AT3: Yael | AU3: Yael | AV3: Yael | AX3: Operator name | AZ3: Yael | BA3: Yael | BB3: Yael | BD3: Operator name | BF3: Yael | BG3: Yael | BH3: Yael | BJ3: Operator name | BL3: Yael | BM3: Yael | BN3: Yael | BP3: Operator name | BR3: Yael | BS3: Yael | BT3: Yael | BV3: Operator name | BX3: Yael | BY3: Yael | BZ3: Yael | CB3: Operator name | CD3: Yael | CE3: Yael | CF3: Yael | CH3: Operator name | CJ3: Yael | CK3: Yael | CL3: Yael | CN3: Operator name | CP3: Yael | CQ3: Yael | CR3: Yael | CT3: Operator name | CV3: Yael | CW3: Yael | CX3: Yael | CZ3: Operator name | DB3: Yael | DC3: Yael | DD3: Yael | DF3: Operator name | DH3: Yael | DI3: Yael | DJ3: Yael | DL3: Operator name | DN3: Yael | DO3: Yael | DP3: Yael | DR3: Operator name | DT3: Yael | DU3: Yael | DV3: Yael | DX3: Operator name | DZ3: Yael | EA3: Yael | EB3: Yael | ED3: Operator name | EF3: Yael | EG3: Yael | EH3: Yael
A4: Obscuration | C4: 9.29 | D4: 8.91 | E4: 7.9 | G4: Obscuration | I4: 8.51 | J4: 8.01 | K4: 8.17 | M4: Obscuration | O4: 7.19 | P4: 7.18 | Q4: 7.21 | T4: Obscuration | V4: 11.57 | W4: 11.03 | X4: 10.77 | Z4: Obscuration | AB4: 8.51 | AC4: 8.23 | AD4: 8.25 | AF4: Obscuration | AH4: 12.25 | AI4: 12.16 | AJ4: 12.59 | AL4: Obscuration | AN4: 7.48 | AO4: 9.66 | AP4: 10.34 | AR4: Obscuration | AT4: 11.8 | AU4: 11.06 | AV4: 11.08 | AX4: Obscuration | AZ4: 6.75 | BA4: 8.95 | BB4: 12.41 | BD4: Obscuration | BF4: 7.05 | BG4: 7.03 | BH4: 10.64 | BJ4: Obscuration | BL4: 8.08 | BM4: 12.66 | BN4: 12.65 | BP4: Obscuration | BR4: 10.6 | BS4: 10.13 | BT4: 9.13 | BV4: Obscuration | BX4: 7.72 | BY4: 10.44 | BZ4: 10 | CB4: Obscuration | CD4: 9.84 | CE4: 9.29 | CF4: 12.23 | CH4: Obscuration | CJ4: 8.23 | CK4: 7.9 | CL4: 9.68 | CN4: Obscuration | CP4: 8.42 | CQ4: 8.22 | CR4: 7.92 | CT4: Obscuration | CV4: 13.02 | CW4: 12.44 | CX4: 11.63 | CZ4: Obscuration | DB4: 9.71 | DC4: 11.03 | DD4: 10.34 | DF4: Obscuration | DH4: 7.41 | DI4: 10.34 | DJ4: 9.81 | DL4: Obscuration | DN4: 11.09 | DO4: 10.78 | DP4: 11.75 | DR4: Obscuration | DT4: 8.05 | DU4: 8.04 | DV4: 8.06 | DX4: Obscuration | DZ4: 8.5 | EA4: 8.85 | EB4: 8.94 | ED4: Obscuration | EF4: 11.34 | EG4: 10.86 | EH4: 8.22
A5: Residual | C5: 0.388 | D5: 0.351 | E5: 0.335 | G5: Residual | I5: 0.94 | J5: 0.572 | K5: 0.701 | M5: Residual | O5: 0.518 | P5: 0.502 | Q5: 0.488 | T5: Residual | V5: 0.265 | W5: 0.26 | X5: 0.23 | Z5: Residual | AB5: 0.429 | AC5: 0.552 | AD5: 0.604 | AF5: Residual | AH5: 0.4 | AI5: 0.67 | AJ5: 0.474 | AL5: Residual | AN5: 0.205 | AO5: 0.165 | AP5: 0.151 | AR5: Residual | AT5: 0.175 | AU5: 0.197 | AV5: 0.181 | AX5: Residual | AZ5: 0.638 | BA5: 1.564 | BB5: 0.336 | BD5: Residual | BF5: 0.176 | BG5: 0.182 | BH5: 0.225 | BJ5: Residual | BL5: 0.543 | BM5: 0.537 | BN5: 0.589 | BP5: Residual | BR5: 0.208 | BS5: 0.237 | BT5: 0.281 | BV5: Residual | BX5: 0.293 | BY5: 0.522 | BZ5: 0.635 | CB5: Residual | CD5: 0.403 | CE5: 0.474 | CF5: 0.396 | CH5: Residual | CJ5: 0.309 | CK5: 0.45 | CL5: 0.323 | CN5: Residual | CP5: 0.221 | CQ5: 0.334 | CR5: 0.355 | CT5: Residual | CV5: 0.25 | CW5: 0.402 | CX5: 0.217 | CZ5: Residual | DB5: 0.323 | DC5: 0.449 | DD5: 0.267 | DF5: Residual | DH5: 0.324 | DI5: 0.334 | DJ5: 0.298 | DL5: Residual | DN5: 0.288 | DO5: 0.337 | DP5: 0.15 | DR5: Residual | DT5: 0.498 | DU5: 0.658 | DV5: 0.633 | DX5: Residual | DZ5: 0.555 | EA5: 0.609 | EB5: 0.695 | ED5: Residual | EF5: 0.825 | EG5: 0.769 | EH5: 0.485
A6: Mode | C6: 102.728 | D6: 101.729 | E6: 97.966 | G6: Mode | I6: 562.902 | J6: 366.019 | K6: 400.198 | M6: Mode | O6: 423.237 | P6: 423.139 | Q6: 481.734 | T6: Mode | V6: 110.734 | W6: 108.209 | X6: 103.544 | Z6: Mode | AB6: 468.68 | AC6: 522.581 | AD6: 510.726 | AF6: Mode | AH6: 84.629 | AI6: 85.511 | AJ6: 83.979 | AL6: Mode | AN6: 168.505 | AO6: 148.739 | AP6: 153.108 | AR6: Mode | AT6: 100.635 | AU6: 101.437 | AV6: 103.462 | AX6: Mode | AZ6: 84.324 | BA6: 83.8 | BB6: 84.612 | BD6: Mode | BF6: 148.509 | BG6: 145.452 | BH6: 129.903 | BJ6: Mode | BL6: 101.709 | BM6: 103.2 | BN6: 102.441 | BP6: Mode | BR6: 113.728 | BS6: 114.224 | BT6: 116.508 | BV6: Mode | BX6: 340.999 | BY6: 509.319 | BZ6: 622.307 | CB6: Mode | CD6: 151.899 | CE6: 155.698 | CF6: 154.158 | CH6: Mode | CJ6: 222.985 | CK6: 207.548 | CL6: 224.954 | CN6: Mode | CP6: 277.235 | CQ6: 282.308 | CR6: 265.584 | CT6: Mode | CV6: 236.862 | CW6: 168.236 | CX6: 159.743 | CZ6: Mode | DB6: 205.327 | DC6: 189.36 | DD6: 214.111 | DF6: Mode | DH6: 290.735 | DI6: 281.374 | DJ6: 266.544 | DL6: Mode | DN6: 144.367 | DO6: 143.161 | DP6: 156.251 | DR6: Mode | DT6: 702.282 | DU6: 731.82 | DV6: 635.975 | DX6: Mode | DZ6: 268.58 | EA6: 269.784 | EB6: 270.592 | ED6: Mode | EF6: 247.61 | EG6: 246.018 | EH6: 240.474
A7: Skewness | C7: 2.668 | D7: 2.238 | E7: 1.788 | G7: Skewness | I7: 1.06 | J7: 1.667 | K7: 1.538 | M7: Skewness | O7: 1.515 | P7: 0.985 | Q7: 0.944 | T7: Skewness | V7: 2.612 | W7: 1.497 | X7: 1.23 | Z7: Skewness | AB7: 0.872 | AC7: 1.195 | AD7: 0.622 | AE7: Mode | AF7: Skewness | AH7: 1.612 | AI7: 1.461 | AJ7: 1.377 | AL7: Skewness | AN7: 0.803 | AO7: 0.942 | AP7: 0.856 | AR7: Skewness | AT7: 2.747 | AU7: 3.144 | AV7: 2.859 | AX7: Skewness | AZ7: 2.028 | BA7: 1.476 | BB7: 1.928 | BD7: Skewness | BF7: 1.413 | BG7: 2.675 | BH7: 1.925 | BJ7: Skewness | BL7: 1.941 | BM7: 3.309 | BN7: 2.324 | BP7: Skewness | BR7: 2.358 | BS7: 2.282 | BT7: 2.55 | BV7: Skewness | BX7: 1.159 | BY7: 1.064 | BZ7: 0.979 | CB7: Skewness | CD7: 1.484 | CE7: 1.355 | CF7: 1.378 | CH7: Skewness | CJ7: 1.669 | CK7: 2.049 | CL7: 2.101 | CN7: Skewness | CP7: 0.866 | CQ7: 1.053 | CR7: 1.08 | CT7: Skewness | CV7: 2.215 | CW7: 1.514 | CX7: 1.596 | CZ7: Skewness | DB7: 1.999 | DC7: 2.376 | DD7: 1.672 | DF7: Skewness | DH7: 0.964 | DI7: 0.908 | DJ7: 1.088 | DL7: Skewness | DN7: 3.618 | DO7: 2.55 | DP7: 1.459 | DR7: Skewness | DT7: 1.045 | DU7: 0.93 | DV7: 0.964 | DX7: Skewness | DZ7: -0.595 | EA7: -0.57 | EB7: -0.455 | ED7: Skewness | EF7: 0.378 | EG7: 0.351 | EH7: -0.044
A8: Kurtosis | C8: 9.631 | D8: 6.391 | E8: 3.389 | G8: Kurtosis | I8: 0.909 | J8: 3.33 | K8: 2.406 | M8: Kurtosis | O8: 3.048 | P8: 0.239 | Q8: 0.249 | T8: Kurtosis | V8: 14.277 | W8: 3.271 | X8: 2.048 | Z8: Kurtosis | AB8: 0.249 | AC8: 1.515 | AD8: -0.306 | AF8: Kurtosis | AH8: 2.174 | AI8: 1.534 | AJ8: 1.184 | AL8: Kurtosis | AN8: 0.272 | AO8: 0.753 | AP8: 0.44 | AR8: Kurtosis | AT8: 9.82 | AU8: 12.49 | AV8: 11.888 | AX8: Kurtosis | AZ8: 4.121 | BA8: 1.885 | BB8: 3.498 | BD8: Kurtosis | BF8: 2.079 | BG8: 11.52 | BH8: 4.057 | BJ8: Kurtosis | BL8: 3.833 | BM8: 14.483 | BN8: 5.894 | BP8: Kurtosis | BR8: 5.393 | BS8: 5.161 | BT8: 7.486 | BV8: Kurtosis | BX8: 1.373 | BY8: 0.996 | BZ8: 0.549 | CB8: Kurtosis | CD8: 1.817 | CE8: 1.096 | CF8: 1.234 | CH8: Kurtosis | CJ8: 3.611 | CK8: 4.872 | CL8: 5.435 | CN8: Kurtosis | CP8: 0.371 | CQ8: 0.931 | CR8: 0.954 | CT8: Kurtosis | CV8: 7.506 | CW8: 2.182 | CX8: 2.779 | CZ8: Kurtosis | DB8: 5.76 | DC8: 6.838 | DD8: 3.657 | DF8: Kurtosis | DH8: 0.727 | DI8: 0.39 | DJ8: 0.981 | DL8: Kurtosis | DN8: 16.791 | DO8: 9.337 | DP8: 2.574 | DR8: Kurtosis | DT8: 0.445 | DU8: 0.209 | DV8: 0.458 | DX8: Kurtosis | DZ8: 1.238 | EA8: 1.36 | EB8: 1.364 | ED8: Kurtosis | EF8: 0.488 | EG8: 0.608 | EH8: 0.621
A9: d (0.1) | C9: 10.158 | D9: 11.072 | E9: 9.106 | G9: d (0.1) | I9: 67.969 | J9: 49.855 | K9: 56.567 | M9: d (0.1) | O9: 24.869 | P9: 23.434 | Q9: 25.516 | T9: d (0.1) | V9: 8.852 | W9: 8.218 | X9: 6.86 | Z9: d (0.1) | AB9: 50.13 | AC9: 55.071 | AD9: 55.461 | AF9: d (0.1) | AH9: 12.158 | AI9: 14.906 | AJ9: 13.884 | AL9: d (0.1) | AN9: 40.599 | AO9: 36.868 | AP9: 41.887 | AR9: d (0.1) | AT9: 16.315 | AU9: 17.379 | AV9: 16.919 | AX9: d (0.1) | AZ9: 2.34 | BA9: 1.916 | BB9: 2.316 | BD9: d (0.1) | BF9: 39.877 | BG9: 39.835 | BH9: 43.193 | BJ9: d (0.1) | BL9: 2.397 | BM9: 1.988 | BN9: 2.099 | BP9: d (0.1) | BR9: 36.726 | BS9: 38.157 | BT9: 38.274 | BV9: d (0.1) | BX9: 44.227 | BY9: 84.307 | BZ9: 92.522 | CB9: d (0.1) | CD9: 22.594 | CE9: 24.265 | CF9: 24.973 | CH9: d (0.1) | CJ9: 16.646 | CK9: 17.581 | CL9: 19.606 | CN9: d (0.1) | CP9: 31.757 | CQ9: 38.318 | CR9: 22.944 | CT9: d (0.1) | CV9: 16.531 | CW9: 17.663 | CX9: 13.093 | CZ9: d (0.1) | DB9: 10.798 | DC9: 11.902 | DD9: 14.617 | DF9: d (0.1) | DH9: 47.963 | DI9: 36.265 | DJ9: 37.462 | DL9: d (0.1) | DN9: 13.841 | DO9: 14.569 | DP9: 18.356 | DR9: d (0.1) | DT9: 74.36 | DU9: 78.321 | DV9: 87.334 | DX9: d (0.1) | DZ9: 167.233 | EA9: 172.852 | EB9: 175.241 | ED9: d (0.1) | EF9: 152.751 | EG9: 156.659 | EH9: 143.473
A10: d (0.5) | C10: 104.378 | D10: 113.027 | E10: 93.903 | G10: d (0.5) | I10: 397.907 | J10: 245.315 | K10: 290.866 | M10: d (0.5) | O10: 201.666 | P10: 191.057 | Q10: 241.174 | T10: d (0.5) | V10: 96.151 | W10: 92.781 | X10: 84.94 | Z10: d (0.5) | AB10: 289.694 | AC10: 354.141 | AD10: 353.356 | AF10: d (0.5) | AH10: 98.2 | AI10: 116.696 | AJ10: 106.987 | AL10: d (0.5) | AN10: 142.773 | AO10: 131.093 | AP10: 135.397 | AR10: d (0.5) | AT10: 94.589 | AU10: 98.325 | AV10: 96.775 | AX10: d (0.5) | AZ10: 53.288 | BA10: 40.931 | BB10: 58.824 | BD10: d (0.5) | BF10: 150.195 | BG10: 149.286 | BH10: 149.936 | BJ10: d (0.5) | BL10: 36.199 | BM10: 16.297 | BN10: 17.514 | BP10: d (0.5) | BR10: 128.467 | BS10: 134.056 | BT10: 130.412 | BV10: d (0.5) | BX10: 271.63 | BY10: 383.827 | BZ10: 433.383 | CB10: d (0.5) | CD10: 206.902 | CE10: 215.55 | CF10: 220.562 | CH10: d (0.5) | CJ10: 181.949 | CK10: 188.564 | CL10: 191.207 | CN10: d (0.5) | CP10: 209.684 | CQ10: 223.986 | CR10: 201.807 | CT10: d (0.5) | CV10: 152.196 | CW10: 160.993 | CX10: 125.056 | CZ10: d (0.5) | DB10: 163.291 | DC10: 165.763 | DD10: 178.818 | DF10: d (0.5) | DH10: 226.203 | DI10: 202.435 | DJ10: 205.706 | DL10: d (0.5) | DN10: 126.309 | DO10: 129.8 | DP10: 139.564 | DR10: d (0.5) | DT10: 379.197 | DU10: 421.911 | DV10: 415.063 | DX10: d (0.5) | DZ10: 261.834 | EA10: 263.856 | EB10: 265.41 | ED10: d (0.5) | EF10: 244.013 | EG10: 243.188 | EH10: 233.93
A11: d (0.9) | C11: 467.189 | D11: 501.319 | E11: 383.675 | G11: d (0.9) | I11: 999.563 | J11: 759.274 | K11: 889.836 | M11: d (0.9) | O11: 662.762 | P11: 613.22 | Q11: 712.09 | T11: d (0.9) | V11: 241.833 | W11: 227.874 | X11: 202.198 | Z11: d (0.9) | AB11: 724.378 | AC11: 894.496 | AD11: 773.458 | AF11: d (0.9) | AH11: 478.482 | AI11: 644.425 | AJ11: 519.489 | AL11: d (0.9) | AN11: 315.364 | AO11: 294.243 | AP11: 297.531 | AR11: d (0.9) | AT11: 315.048 | AU11: 391.313 | AV11: 306.899 | AX11: d (0.9) | AZ11: 292.875 | BA11: 172.513 | BB11: 364.895 | BD11: d (0.9) | BF11: 420.368 | BG11: 435.853 | BH11: 542.674 | BJ11: d (0.9) | BL11: 292.165 | BM11: 172.561 | BN11: 202.145 | BP11: d (0.9) | BR11: 758.024 | BS11: 748.071 | BT11: 568.045 | BV11: d (0.9) | BX11: 679.495 | BY11: 932.459 | BZ11: 1091.133 | CB11: d (0.9) | CD11: 904.502 | CE11: 1064.247 | CF11: 1042.265 | CH11: d (0.9) | CJ11: 540.903 | CK11: 693.093 | CL11: 634.306 | CN11: d (0.9) | CP11: 500.116 | CQ11: 562.98 | CR11: 533.395 | CT11: d (0.9) | CV11: 511.486 | CW11: 608.164 | CX11: 435.178 | CZ11: d (0.9) | DB11: 463.616 | DC11: 594 | DD11: 513.591 | DF11: d (0.9) | DH11: 541.294 | DI11: 503.208 | DJ11: 533.109 | DL11: d (0.9) | DN11: 362.26 | DO11: 392.081 | DP11: 381.736 | DR11: d (0.9) | DT11: 1140.361 | DU11: 1152.062 | DV11: 1065.587 | DX11: d (0.9) | DZ11: 369.97 | EA11: 371.498 | EB11: 376.907 | ED11: d (0.9) | EF11: 379.742 | EG11: 369.602 | EH11: 353.707
A12: Specific surface area | C12: 0.318 | D12: 0.299 | E12: 0.343 | G12: Specific surface area | I12: 0.078 | J12: 0.129 | K12: 0.107 | M12: Specific surface area | O12: 0.195 | P12: 0.202 | Q12: 0.186 | T12: Specific surface area | V12: 0.352 | W12: 0.366 | X12: 0.41 | Z12: Specific surface area | AB12: 0.126 | AC12: 0.107 | AD12: 0.109 | AF12: Specific surface area | AH12: 0.319 | AI12: 0.284 | AJ12: 0.298 | AL12: Specific surface area | AN12: 0.155 | AO12: 0.174 | AP12: 0.159 | AR12: Specific surface area | AT12: 0.263 | AU12: 0.252 | AV12: 0.255 | AX12: Specific surface area | AZ12: 0.893 | BA12: 1.06 | BB12: 0.896 | BD12: Specific surface area | BF12: 0.175 | BG12: 0.175 | BH12: 0.161 | BJ12: Specific surface area | BL12: 0.873 | BM12: 1.1 | BN12: 1.04 | BP12: Specific surface area | BR12: 0.157 | BS12: 0.151 | BT12: 0.158 | BV12: Specific surface area | BX12: 0.137 | BY12: 0.0744 | BZ12: 0.0634 | CB12: Specific surface area | CD12: 0.193 | CE12: 0.184 | CF12: 0.189 | CH12: Specific surface area | CJ12: 0.217 | CK12: 0.21 | CL12: 0.195 | CN12: Specific surface area | CP12: 0.191 | CQ12: 0.176 | CR12: 0.216 | CT12: Specific surface area | CV12: 0.221 | CW12: 0.211 | CX12: 0.26 | CZ12: Specific surface area | DB12: 0.272 | DC12: 0.263 | DD12: 0.234 | DF12: Specific surface area | DH12: 0.163 | DI12: 0.187 | DJ12: 0.184 | DL12: Specific surface area | DN12: 0.27 | DO12: 0.263 | DP12: 0.226 | DR12: Specific surface area | DT12: 0.108 | DU12: 0.101 | DV12: 0.0968 | DX12: Specific surface area | DZ12: 0.136 | EA12: 0.129 | EB12: 0.121 | ED12: Specific surface area | EF12: 0.0485 | EG12: 0.0458 | EH12: 0.0727
A13: Result Below 6.000 µm | C13: 6.663 | D13: 6.256 | E13: 7.265 | G13: Result Below 6.000 µm | I13: 1.628 | J13: 2.607 | K13: 2.174 | M13: Result Below 6.000 µm | O13: 3.79 | P13: 3.941 | Q13: 3.696 | T13: Result Below 6.000 µm | V13: 7.784 | W13: 8.139 | X13: 9.131 | Z13: Result Below 6.000 µm | AB13: 2.467 | AC13: 2.115 | AD13: 2.119 | AF13: Result Below 6.000 µm | AH13: 6.387 | AI13: 5.66 | AJ13: 5.902 | AL13: Result Below 6.000 µm | AN13: 2.895 | AO13: 3.147 | AP13: 2.764 | AR13: Result Below 6.000 µm | AT13: 4.825 | AU13: 4.625 | AV13: 4.679 | AX13: Result Below 6.000 µm | AZ13: 20.693 | BA13: 24.113 | BB13: 20.208 | BD13: Result Below 6.000 µm | BF13: 3.349 | BG13: 3.373 | BH13: 2.909 | BJ13: Result Below 6.000 µm | BL13: 23.255 | BM13: 29.697 | BN13: 28.641 | BP13: Result Below 6.000 µm | BR13: 2.589 | BS13: 2.47 | BT13: 2.64 | BV13: Result Below 6.000 µm | BX13: 3.058 | BY13: 1.632 | BZ13: 1.427 | CB13: Result Below 6.000 µm | CD13: 4.256 | CE13: 4.098 | CF13: 4.105 | CH13: Result Below 6.000 µm | CJ13: 4.783 | CK13: 4.62 | CL13: 4.269 | CN13: Result Below 6.000 µm | CP13: 4.229 | CQ13: 3.882 | CR13: 4.832 | CT13: Result Below 6.000 µm | CV13: 4.327 | CW13: 4.112 | CX13: 5.208 | CZ13: Result Below 6.000 µm | DB13: 6.496 | DC13: 6.143 | DD13: 5.427 | DF13: Result Below 6.000 µm | DH13: 3.581 | DI13: 4.023 | DJ13: 3.969 | DL13: Result Below 6.000 µm | DN13: 5.751 | DO13: 5.586 | DP13: 4.848 | DR13: Result Below 6.000 µm | DT13: 2.406 | DU13: 2.26 | DV13: 2.249 | DX13: Result Below 6.000 µm | DZ13: 3.28 | EA13: 2.92 | EB13: 2.75 | ED13: Result Below 6.000 µm | EF13: 1.046 | EG13: 0.942 | EH13: 1.809
A14: Result 6.00µm-63.00µm | C14: 27.31 | D14: 25.826 | E14: 29.237 | G14: Result 6.00µm-63.00µm | I14: 7.43 | J14: 10.579 | K14: 9.242 | M14: Result 6.00µm-63.00µm | O14: 18.534 | P14: 19.028 | Q14: 17.576 | T14: Result 6.00µm-63.00µm | V14: 23.635 | W14: 24.574 | X14: 27.423 | Z14: Result 6.00µm-63.00µm | AB14: 11.236 | AC14: 10.007 | AD14: 9.912 | AF14: Result 6.00µm-63.00µm | AH14: 27.669 | AI14: 24.583 | AJ14: 26.019 | AL14: Result 6.00µm-63.00µm | AN14: 13.798 | AO14: 15.337 | AP14: 14.108 | AR14: Result 6.00µm-63.00µm | AT14: 28.109 | AU14: 27.02 | AV14: 27.484 | AX14: Result 6.00µm-63.00µm | AZ14: 33.647 | BA14: 36.739 | BB14: 31.501 | BD14: Result 6.00µm-63.00µm | BF14: 13.56 | BG14: 13.484 | BH14: 13.54 | BJ14: Result 6.00µm-63.00µm | BL14: 34.726 | BM14: 40.221 | BN14: 39.469 | BP14: Result 6.00µm-63.00µm | BR14: 18.454 | BS14: 17.737 | BT14: 17.274 | BV14: Result 6.00µm-63.00µm | BX14: 9.266 | BY14: 5.969 | BZ14: 5.462 | CB14: Result 6.00µm-63.00µm | CD14: 13.479 | CE14: 13.049 | CF14: 13.011 | CH14: Result 6.00µm-63.00µm | CJ14: 16.121 | CK14: 15.591 | CL14: 15.337 | CN14: Result 6.00µm-63.00µm | CP14: 10.652 | CQ14: 9.758 | CR14: 11.846 | CT14: Result 6.00µm-63.00µm | CV14: 21.17 | CW14: 20.066 | CX14: 24.747 | CZ14: Result 6.00µm-63.00µm | DB14: 16.71 | DC14: 16.341 | DD14: 14.628 | DF14: Result 6.00µm-63.00µm | DH14: 8.495 | DI14: 10.404 | DJ14: 10.155 | DL14: Result 6.00µm-63.00µm | DN14: 18.944 | DO14: 18.34 | DP14: 16.639 | DR14: Result 6.00µm-63.00µm | DT14: 5.9 | DU14: 5.507 | DV14: 4.831 | DX14: Result 6.00µm-63.00µm | DZ14: 3.497 | EA14: 3.077 | EB14: 2.461 | ED14: Result 6.00µm-63.00µm | EF14: 0.649 | EG14: 0.575 | EH14: 2.663
A15: Result 63.00µm-2000.00µm | C15: 66.027 | D15: 67.918 | E15: 63.498 | G15: Result 63.00µm-2000.00µm | I15: 90.941 | J15: 86.813 | K15: 88.584 | M15: Result 63.00µm-2000.00µm | O15: 77.676 | P15: 77.031 | Q15: 78.728 | T15: Result 63.00µm-2000.00µm | V15: 68.581 | W15: 67.287 | X15: 63.446 | Z15: Result 63.00µm-2000.00µm | AB15: 86.296 | AC15: 87.878 | AD15: 87.969 | AF15: Result 63.00µm-2000.00µm | AH15: 65.944 | AI15: 69.757 | AJ15: 68.079 | AL15: Result 63.00µm-2000.00µm | AN15: 83.308 | AO15: 81.516 | AP15: 83.128 | AR15: Result 63.00µm-2000.00µm | AT15: 67.066 | AU15: 68.355 | AV15: 67.837 | AX15: Result 63.00µm-2000.00µm | AZ15: 45.66 | BA15: 39.148 | BB15: 48.29 | BD15: Result 63.00µm-2000.00µm | BF15: 83.091 | BG15: 83.143 | BH15: 83.551 | BJ15: Result 63.00µm-2000.00µm | BL15: 42.019 | BM15: 30.082 | BN15: 31.889 | BP15: Result 63.00µm-2000.00µm | BR15: 78.957 | BS15: 79.793 | BT15: 80.087 | BV15: Result 63.00µm-2000.00µm | BX15: 87.676 | BY15: 92.399 | BZ15: 93.11 | CB15: Result 63.00µm-2000.00µm | CD15: 82.265 | CE15: 82.853 | CF15: 82.884 | CH15: Result 63.00µm-2000.00µm | CJ15: 79.096 | CK15: 79.789 | CL15: 80.394 | CN15: Result 63.00µm-2000.00µm | CP15: 85.119 | CQ15: 86.36 | CR15: 83.321 | CT15: Result 63.00µm-2000.00µm | CV15: 74.503 | CW15: 75.822 | CX15: 70.045 | CZ15: Result 63.00µm-2000.00µm | DB15: 76.794 | DC15: 77.516 | DD15: 79.945 | DF15: Result 63.00µm-2000.00µm | DH15: 87.924 | DI15: 85.573 | DJ15: 85.876 | DL15: Result 63.00µm-2000.00µm | DN15: 75.306 | DO15: 76.075 | DP15: 78.513 | DR15: Result 63.00µm-2000.00µm | DT15: 91.694 | DU15: 92.233 | DV15: 92.919 | DX15: Result 63.00µm-2000.00µm | DZ15: 93.223 | EA15: 94.003 | EB15: 94.789 | ED15: Result 63.00µm-2000.00µm | EF15: 98.305 | EG15: 98.482 | EH15: 95.528
A16: Result 63.00µm-125.00µm | C16: 22.055 | D16: 21.112 | E16: 23.694 | G16: Result 63.00µm-125.00µm | I16: 11.101 | J16: 15.606 | K16: 13.462 | M16: Result 63.00µm-125.00µm | O16: 16.827 | P16: 17.275 | Q16: 15.448 | T16: Result 63.00µm-125.00µm | V16: 32.201 | W16: 32.957 | X16: 33.781 | Z16: Result 63.00µm-125.00µm | AB16: 15.631 | AC16: 14.164 | AD16: 14.09 | AF16: Result 63.00µm-125.00µm | AH16: 24.081 | AI16: 21.744 | AJ16: 22.91 | AL16: Result 63.00µm-125.00µm | AN16: 26.201 | AO16: 28.891 | AP16: 28.629 | AR16: Result 63.00µm-125.00µm | AT16: 29.654 | AU16: 28.967 | AV16: 29.398 | AX16: Result 63.00µm-125.00µm | AZ16: 19.666 | BA16: 21.225 | BB16: 18.314 | BD16: Result 63.00µm-125.00µm | BF16: 24.663 | BG16: 24.91 | BH16: 25.399 | BJ16: Result 63.00µm-125.00µm | BL16: 15.185 | BM16: 14.077 | BN16: 13.482 | BP16: Result 63.00µm-125.00µm | BR16: 27.745 | BS16: 26.807 | BT16: 28.138 | BV16: Result 63.00µm-125.00µm | BX16: 9.967 | BY16: 7.689 | BZ16: 7.131 | CB16: Result 63.00µm-125.00µm | CD16: 16.255 | CE16: 15.727 | CF16: 15.624 | CH16: Result 63.00µm-125.00µm | CJ16: 15.089 | CK16: 14.674 | CL16: 14.92 | CN16: Result 63.00µm-125.00µm | CP16: 14.437 | CQ16: 13.571 | CR16: 15.062 | CT16: Result 63.00µm-125.00µm | CV16: 18.033 | CW16: 17.692 | CX16: 20.03 | CZ16: Result 63.00µm-125.00µm | DB16: 16.284 | DC16: 16.566 | DD16: 15.784 | DF16: Result 63.00µm-125.00µm | DH16: 13.838 | DI16: 16.373 | DJ16: 16.061 | DL16: Result 63.00µm-125.00µm | DN16: 24.825 | DO16: 24.363 | DP16: 23.446 | DR16: Result 63.00µm-125.00µm | DT16: 11.266 | DU16: 10.662 | DV16: 8.809 | DX16: Result 63.00µm-125.00µm | DZ16: 0.042 | EA16: 0.036 | EB16: 0.043 | ED16: Result 63.00µm-125.00µm | EF16: 1.901 | EG16: 1.428 | EH16: 1.685
A17: Result 125.00µm-250.00µm | C17: 20.079 | D17: 19.678 | E17: 20.061 | G17: Result 125.00µm-250.00µm | I17: 14.334 | J17: 21.887 | K17: 19.635 | M17: Result 125.00µm-250.00µm | O17: 16.409 | P17: 16.663 | Q17: 14.16 | T17: Result 125.00µm-250.00µm | V17: 27.194 | W17: 26.578 | X17: 24.587 | Z17: Result 125.00µm-250.00µm | AB17: 15.93 | AC17: 12.982 | AD17: 12.285 | AF17: Result 125.00µm-250.00µm | AH17: 16.669 | AI17: 14.714 | AJ17: 15.89 | AL17: Result 125.00µm-250.00µm | AN17: 37.402 | AO17: 36.467 | AP17: 37.654 | AR17: Result 125.00µm-250.00µm | AT17: 23.051 | AU17: 22.372 | AV17: 24.09 | AX17: Result 125.00µm-250.00µm | AZ17: 13.547 | BA17: 14.55 | BB17: 13.41 | BD17: Result 125.00µm-250.00µm | BF17: 30.845 | BG17: 30.793 | BH17: 28.158 | BJ17: Result 125.00µm-250.00µm | BL17: 13.95 | BM17: 10.594 | BN17: 11.346 | BP17: Result 125.00µm-250.00µm | BR17: 25.051 | BS17: 24.639 | BT17: 26.338 | BV17: Result 125.00µm-250.00µm | BX17: 23.893 | BY17: 17.314 | BZ17: 15.955 | CB17: Result 125.00µm-250.00µm | CD17: 21.473 | CE17: 21.263 | CF17: 20.697 | CH17: Result 125.00µm-250.00µm | CJ17: 27.404 | CK17: 26.442 | CL17: 26.369 | CN17: Result 125.00µm-250.00µm | CP17: 29.239 | CQ17: 27.955 | CR17: 27.662 | CT17: Result 125.00µm-250.00µm | CV17: 23.883 | CW17: 22.303 | CX17: 23.978 | CZ17: Result 125.00µm-250.00µm | DB17: 29.236 | DC17: 27.892 | DD17: 28.936 | DF17: Result 125.00µm-250.00µm | DH17: 28.956 | DI17: 28.859 | DJ17: 28.627 | DL17: Result 125.00µm-250.00µm | DN17: 30.214 | DO17: 29.587 | DP17: 31.279 | DR17: Result 125.00µm-250.00µm | DT17: 18.478 | DU17: 17.073 | DV17: 17.26 | DX17: Result 125.00µm-250.00µm | DZ17: 36.803 | EA17: 36.437 | EB17: 36.565 | ED17: Result 125.00µm-250.00µm | EF17: 49.058 | EG17: 50.275 | EH17: 51.511
A18: Result 250.00µm-500.00µm | C18: 15.084 | D18: 17.075 | E18: 14.653 | G18: Result 250.00µm-500.00µm | I18: 25.78 | J18: 26.451 | K18: 27.265 | M18: Result 250.00µm-500.00µm | O18: 24.974 | P18: 25.777 | Q18: 25.186 | T18: Result 250.00µm-500.00µm | V18: 8.205 | W18: 7.345 | X18: 5.059 | Z18: Result 250.00µm-500.00µm | AB18: 28.829 | AC18: 26.115 | AD18: 29.531 | AF18: Result 250.00µm-500.00µm | AH18: 16.212 | AI18: 16.283 | AJ18: 18.237 | AL18: Result 250.00µm-500.00µm | AN18: 19.493 | AO18: 15.856 | AP18: 16.799 | AR18: Result 250.00µm-500.00µm | AT18: 10.004 | AU18: 9.779 | AV18: 10.81 | AX18: Result 250.00µm-500.00µm | AZ18: 9.905 | BA18: 3.373 | BB18: 11.769 | BD18: Result 250.00µm-500.00µm | BF18: 21.586 | BG18: 20.253 | BH18: 18.315 | BJ18: Result 250.00µm-500.00µm | BL18: 10.811 | BM18: 4.128 | BN18: 6.369 | BP18: Result 250.00µm-500.00µm | BR18: 11.053 | BS18: 12.53 | BT18: 13.655 | BV18: Result 250.00µm-500.00µm | BX18: 32.697 | BY18: 30.225 | BZ18: 26.306 | CB18: Result 250.00µm-500.00µm | CD18: 18.135 | CE18: 15.506 | CF18: 16.577 | CH18: Result 250.00µm-500.00µm | CJ18: 24.626 | CK18: 21.921 | CL18: 23.806 | CN18: Result 250.00µm-500.00µm | CP18: 31.434 | CQ18: 30.919 | CR18: 28.555 | CT18: Result 250.00µm-500.00µm | CV18: 22.041 | CW18: 20.748 | CX18: 19.029 | CZ18: Result 250.00µm-500.00µm | DB18: 22.958 | DC18: 20.087 | DD18: 24.574 | DF18: Result 250.00µm-500.00µm | DH18: 32.363 | DI18: 30.131 | DJ18: 29.163 | DL18: Result 250.00µm-500.00µm | DN18: 14.924 | DO18: 16.123 | DP18: 19.354 | DR18: Result 250.00µm-500.00µm | DT18: 21.201 | DU18: 20.448 | DV18: 24.56 | DX18: Result 250.00µm-500.00µm | DZ18: 55.913 | EA18: 57.063 | EB18: 57.518 | ED18: Result 250.00µm-500.00µm | EF18: 46.468 | EG18: 46.243 | EH18: 42.204
A19: Result 500.00µm-1000.00µm | C19: 7.24 | D19: 8.496 | E19: 5.04 | G19: Result 500.00µm-1000.00µm | I19: 29.74 | J19: 18.263 | K19: 20.583 | M19: Result 500.00µm-1000.00µm | O19: 17.283 | P19: 16.933 | Q19: 21.953 | T19: Result 500.00µm-1000.00µm | V19: 0.899 | W19: 0.407 | X19: 0.019 | Z19: Result 500.00µm-1000.00µm | AB19: 23.918 | AC19: 27.575 | AD19: 29.482 | AF19: Result 500.00µm-1000.00µm | AH19: 8.885 | AI19: 15.292 | AJ19: 10.969 | AL19: Result 500.00µm-1000.00µm | AN19: 0.212 | AO19: 0.301 | AP19: 0.046 | AR19: Result 500.00µm-1000.00µm | AT19: 4.009 | AU19: 5.744 | AV19: 3.168 | AX19: Result 500.00µm-1000.00µm | AZ19: 2.542 | BA19: 0 | BB19: 4.798 | BD19: Result 500.00µm-1000.00µm | BF19: 5.996 | BG19: 6.22 | BH19: 10.303 | BJ19: Result 500.00µm-1000.00µm | BL19: 2.072 | BM19: 1.283 | BN19: 0.692 | BP19: Result 500.00µm-1000.00µm | BR19: 8.95 | BS19: 9.999 | BT19: 8.918 | BV19: Result 500.00µm-1000.00µm | BX19: 18.855 | BY19: 29.235 | BZ19: 30.731 | CB19: Result 500.00µm-1000.00µm | CD19: 18.717 | CE19: 18.676 | CF19: 18.911 | CH19: Result 500.00µm-1000.00µm | CJ19: 10.75 | CK19: 12.409 | CL19: 11.576 | CN19: Result 500.00µm-1000.00µm | CP19: 10.008 | CQ19: 13.654 | CR19: 11.883 | CT19: Result 500.00µm-1000.00µm | CV19: 9.183 | CW19: 13.587 | CX19: 6.852 | CZ19: Result 500.00µm-1000.00µm | DB19: 7.204 | DC19: 9.396 | DD19: 9.615 | DF19: Result 500.00µm-1000.00µm | DH19: 12.642 | DI19: 10.21 | DJ19: 11.883 | DL19: Result 500.00µm-1000.00µm | DN19: 3.16 | DO19: 5.177 | DP19: 4.418 | DR19: Result 500.00µm-1000.00µm | DT19: 26.487 | DU19: 29.027 | DV19: 30.161 | DX19: Result 500.00µm-1000.00µm | DZ19: 0.465 | EA19: 0.467 | EB19: 0.663 | ED19: Result 500.00µm-1000.00µm | EF19: 0.878 | EG19: 0.537 | EH19: 0.128 | EN19: project runing numbers
A20: Result 1000.00µm-2000.00µm | C20: 1.569 | D20: 1.557 | E20: 0.05 | G20: Result 1000.00µm-2000.00µm | I20: 9.987 | J20: 4.606 | K20: 7.64 | M20: Result 1000.00µm-2000.00µm | O20: 2.182 | P20: 0.384 | Q20: 1.981 | T20: Result 1000.00µm-2000.00µm | V20: 0.083 | W20: 0 | X20: 0 | Z20: Result 1000.00µm-2000.00µm | AB20: 1.987 | AC20: 7.042 | AD20: 2.58 | AF20: Result 1000.00µm-2000.00µm | AH20: 0.097 | AI20: 1.724 | AJ20: 0.073 | AL20: Result 1000.00µm-2000.00µm | AN20: 0 | AO20: 0 | AP20: 0 | AR20: Result 1000.00µm-2000.00µm | AT20: 0.349 | AU20: 1.493 | AV20: 0.371 | AX20: Result 1000.00µm-2000.00µm | AZ20: 0 | BA20: 0 | BB20: 0 | BD20: Result 1000.00µm-2000.00µm | BF20: 0 | BG20: 0.968 | BH20: 1.376 | BJ20: Result 1000.00µm-2000.00µm | BL20: 0 | BM20: 0 | BN20: 0 | BP20: Result 1000.00µm-2000.00µm | BR20: 6.158 | BS20: 5.818 | BT20: 3.038 | BV20: Result 1000.00µm-2000.00µm | BX20: 2.264 | BY20: 7.935 | BZ20: 12.988 | CB20: Result 1000.00µm-2000.00µm | CD20: 7.685 | CE20: 11.682 | CF20: 11.076 | CH20: Result 1000.00µm-2000.00µm | CJ20: 1.227 | CK20: 4.343 | CL20: 3.723 | CN20: Result 1000.00µm-2000.00µm | CP20: 0 | CQ20: 0.261 | CR20: 0.16 | CT20: Result 1000.00µm-2000.00µm | CV20: 1.363 | CW20: 1.492 | CX20: 0.156 | CZ20: Result 1000.00µm-2000.00µm | DB20: 1.112 | DC20: 3.575 | DD20: 1.035 | DF20: Result 1000.00µm-2000.00µm | DH20: 0.125 | DI20: 0 | DJ20: 0.142 | DL20: Result 1000.00µm-2000.00µm | DN20: 2.183 | DO20: 0.826 | DP20: 0.016 | DR20: Result 1000.00µm-2000.00µm | DT20: 14.262 | DU20: 15.022 | DV20: 12.129 | DX20: Result 1000.00µm-2000.00µm | DZ20: 0 | EA20: 0 | EB20: 0 | ED20: Result 1000.00µm-2000.00µm | EF20: 0 | EG20: 0 | EH20: 0
A21: Result Between User Sizes (Sizes in um) | B21: 0.01 | G21: Result Between User Sizes (Sizes in um) | H21: 0.01 | M21: Result Between User Sizes (Sizes in um) | N21: 0.01 | T21: Result Between User Sizes (Sizes in um) | U21: 0.01 | Z21: Result Between User Sizes (Sizes in um) | AA21: 0.01 | AF21: Result Between User Sizes (Sizes in um) | AG21: 0.01 | AL21: Result Between User Sizes (Sizes in um) | AM21: 0.01 | AR21: Result Between User Sizes (Sizes in um) | AS21: 0.01 | AX21: Result Between User Sizes (Sizes in um) | AY21: 0.01 | BD21: Result Between User Sizes (Sizes in um) | BE21: 0.01 | BJ21: Result Between User Sizes (Sizes in um) | BK21: 0.01 | BP21: Result Between User Sizes (Sizes in um) | BQ21: 0.01 | BV21: Result Between User Sizes (Sizes in um) | BW21: 0.01 | CB21: Result Between User Sizes (Sizes in um) | CC21: 0.01 | CH21: Result Between User Sizes (Sizes in um) | CI21: 0.01 | CN21: Result Between User Sizes (Sizes in um) | CO21: 0.01 | CT21: Result Between User Sizes (Sizes in um) | CU21: 0.01 | CZ21: Result Between User Sizes (Sizes in um) | DA21: 0.01 | DF21: Result Between User Sizes (Sizes in um) | DG21: 0.01 | DL21: Result Between User Sizes (Sizes in um) | DM21: 0.01 | DR21: Result Between User Sizes (Sizes in um) | DS21: 0.01 | DX21: Result Between User Sizes (Sizes in um) | DY21: 0.01 | ED21: Result Between User Sizes (Sizes in um) | EE21: 0.01 | EK21: Result Between User Sizes (Sizes in um) | EL21: 3746 | EM21: 3747 | EN21: 3747A | EO21: 3748 | EP21: 3749 | EQ21: 3750 | ER21: 3751 | ES21: 3752 | ET21: 3753 | EU21: 3754 | EV21: 3755 | EW21: 3756 | EX21: 3757 | EY21: 3758 | EZ21: 3759 | FA21: 3760 | FB21: 3761 | FC21: 3762 | FD21: 3763 | FE21: 3764 | FF21: 3765 | FG21: 3766 | FH21: 3767
B22: 0.011482 | C22: 0 | D22: 0 | E22: 0 | H22: 0.011482 | I22: 0 | J22: 0 | K22: 0 | N22: 0.011482 | O22: 0 | P22: 0 | Q22: 0 | U22: 0.011482 | V22: 0 | W22: 0 | X22: 0 | AA22: 0.011482 | AB22: 0 | AC22: 0 | AD22: 0 | AG22: 0.011482 | AH22: 0 | AI22: 0 | AJ22: 0 | AM22: 0.011482 | AN22: 0 | AO22: 0 | AP22: 0 | AS22: 0.011482 | AT22: 0 | AU22: 0 | AV22: 0 | AY22: 0.011482 | AZ22: 0 | BA22: 0 | BB22: 0 | BE22: 0.011482 | BF22: 0 | BG22: 0 | BH22: 0 | BK22: 0.011482 | BL22: 0 | BM22: 0 | BN22: 0 | BQ22: 0.011482 | BR22: 0 | BS22: 0 | BT22: 0 | BW22: 0.011482 | BX22: 0 | BY22: 0 | BZ22: 0 | CC22: 0.011482 | CD22: 0 | CE22: 0 | CF22: 0 | CI22: 0.011482 | CJ22: 0 | CK22: 0 | CL22: 0 | CO22: 0.011482 | CP22: 0 | CQ22: 0 | CR22: 0 | CU22: 0.011482 | CV22: 0 | CW22: 0 | CX22: 0 | DA22: 0.011482 | DB22: 0 | DC22: 0 | DD22: 0 | DG22: 0.011482 | DH22: 0 | DI22: 0 | DJ22: 0 | DM22: 0.011482 | DN22: 0 | DO22: 0 | DP22: 0 | DS22: 0.011482 | DT22: 0 | DU22: 0 | DV22: 0 | DY22: 0.011482 | DZ22: 0 | EA22: 0 | EB22: 0 | EE22: 0.011482 | EF22: 0 | EG22: 0 | EH22: 0 | EK22: 0.011482 | EL22: =AVERAGE(C22:E22) -> 0 | EM22: =AVERAGE(I22:K22) -> 0 | EN22: =AVERAGE(O22:Q22) -> 0 | EO22: =AVERAGE(V22:X22) -> 0 | EP22: =AVERAGE(AB22:AD22) -> 0 | EQ22: =AVERAGE(AH22:AJ22) -> 0 | ER22: =AVERAGE(AN22:AP22) -> 0 | ES22: =AVERAGE(AT22:AV22) -> 0 | ET22: =AVERAGE(AZ22:BB22) -> 0 | EU22: =AVERAGE(BF22:BH22) -> 0 | EV22: =AVERAGE(BL22:BN22) -> 0 | EW22: =AVERAGE(BR22:BT22) -> 0 | EX22: =AVERAGE(BX22:BZ22) -> 0 | EY22: =AVERAGE(CD22:CF22) -> 0 | EZ22: =AVERAGE(CJ22:CL22) -> 0 | FA22: =AVERAGE(CP22:CR22) -> 0 | FB22: =AVERAGE(CV22:CX22) -> 0 | FC22: =AVERAGE(DB22:DD22) -> 0 | FD22: =AVERAGE(DH22:DJ22) -> 0 | FE22: =AVERAGE(DN22:DP22) -> 0 | FF22: =AVERAGE(DT22:DV22) -> 0 | FG22: =AVERAGE(DZ22:EB22) -> 0 | FH22: =AVERAGE(EF22:EH22) -> 0
B23: 0.013183 | C23: 0 | D23: 0 | E23: 0 | H23: 0.013183 | I23: 0 | J23: 0 | K23: 0 | N23: 0.013183 | O23: 0 | P23: 0 | Q23: 0 | U23: 0.013183 | V23: 0 | W23: 0 | X23: 0 | AA23: 0.013183 | AB23: 0 | AC23: 0 | AD23: 0 | AG23: 0.013183 | AH23: 0 | AI23: 0 | AJ23: 0 | AM23: 0.013183 | AN23: 0 | AO23: 0 | AP23: 0 | AS23: 0.013183 | AT23: 0 | AU23: 0 | AV23: 0 | AY23: 0.013183 | AZ23: 0 | BA23: 0 | BB23: 0 | BE23: 0.013183 | BF23: 0 | BG23: 0 | BH23: 0 | BK23: 0.013183 | BL23: 0 | BM23: 0 | BN23: 0 | BQ23: 0.013183 | BR23: 0 | BS23: 0 | BT23: 0 | BW23: 0.013183 | BX23: 0 | BY23: 0 | BZ23: 0 | CC23: 0.013183 | CD23: 0 | CE23: 0 | CF23: 0 | CI23: 0.013183 | CJ23: 0 | CK23: 0 | CL23: 0 | CO23: 0.013183 | CP23: 0 | CQ23: 0 | CR23: 0 | CU23: 0.013183 | CV23: 0 | CW23: 0 | CX23: 0 | DA23: 0.013183 | DB23: 0 | DC23: 0 | DD23: 0 | DG23: 0.013183 | DH23: 0 | DI23: 0 | DJ23: 0 | DM23: 0.013183 | DN23: 0 | DO23: 0 | DP23: 0 | DS23: 0.013183 | DT23: 0 | DU23: 0 | DV23: 0 | DY23: 0.013183 | DZ23: 0 | EA23: 0 | EB23: 0 | EE23: 0.013183 | EF23: 0 | EG23: 0 | EH23: 0 | EK23: 0.013183 | EL23: =AVERAGE(C23:E23) -> 0 | EM23: =AVERAGE(I23:K23) -> 0 | EN23: =AVERAGE(O23:Q23) -> 0 | EO23: =AVERAGE(V23:X23) -> 0 | EP23: =AVERAGE(AB23:AD23) -> 0 | EQ23: =AVERAGE(AH23:AJ23) -> 0 | ER23: =AVERAGE(AN23:AP23) -> 0 | ES23: =AVERAGE(AT23:AV23) -> 0 | ET23: =AVERAGE(AZ23:BB23) -> 0 | EU23: =AVERAGE(BF23:BH23) -> 0 | EV23: =AVERAGE(BL23:BN23) -> 0 | EW23: =AVERAGE(BR23:BT23) -> 0 | EX23: =AVERAGE(BX23:BZ23) -> 0 | EY23: =AVERAGE(CD23:CF23) -> 0 | EZ23: =AVERAGE(CJ23:CL23) -> 0 | FA23: =AVERAGE(CP23:CR23) -> 0 | FB23: =AVERAGE(CV23:CX23) -> 0 | FC23: =AVERAGE(DB23:DD23) -> 0 | FD23: =AVERAGE(DH23:DJ23) -> 0 | FE23: =AVERAGE(DN23:DP23) -> 0 | FF23: =AVERAGE(DT23:DV23) -> 0 | FG23: =AVERAGE(DZ23:EB23) -> 0 | FH23: =AVERAGE(EF23:EH23) -> 0
B24: 0.015136 | C24: 0 | D24: 0 | E24: 0 | H24: 0.015136 | I24: 0 | J24: 0 | K24: 0 | N24: 0.015136 | O24: 0 | P24: 0 | Q24: 0 | U24: 0.015136 | V24: 0 | W24: 0 | X24: 0 | AA24: 0.015136 | AB24: 0 | AC24: 0 | AD24: 0 | AG24: 0.015136 | AH24: 0 | AI24: 0 | AJ24: 0 | AM24: 0.015136 | AN24: 0 | AO24: 0 | AP24: 0 | AS24: 0.015136 | AT24: 0 | AU24: 0 | AV24: 0 | AY24: 0.015136 | AZ24: 0 | BA24: 0 | BB24: 0 | BE24: 0.015136 | BF24: 0 | BG24: 0 | BH24: 0 | BK24: 0.015136 | BL24: 0 | BM24: 0 | BN24: 0 | BQ24: 0.015136 | BR24: 0 | BS24: 0 | BT24: 0 | BW24: 0.015136 | BX24: 0 | BY24: 0 | BZ24: 0 | CC24: 0.015136 | CD24: 0 | CE24: 0 | CF24: 0 | CI24: 0.015136 | CJ24: 0 | CK24: 0 | CL24: 0 | CO24: 0.015136 | CP24: 0 | CQ24: 0 | CR24: 0 | CU24: 0.015136 | CV24: 0 | CW24: 0 | CX24: 0 | DA24: 0.015136 | DB24: 0 | DC24: 0 | DD24: 0 | DG24: 0.015136 | DH24: 0 | DI24: 0 | DJ24: 0 | DM24: 0.015136 | DN24: 0 | DO24: 0 | DP24: 0 | DS24: 0.015136 | DT24: 0 | DU24: 0 | DV24: 0 | DY24: 0.015136 | DZ24: 0 | EA24: 0 | EB24: 0 | EE24: 0.015136 | EF24: 0 | EG24: 0 | EH24: 0 | EK24: 0.015136 | EL24: 0 | EM24: 0 | EN24: 0 | EO24: 0 | EP24: 0 | EQ24: 0 | ER24: 0 | ES24: 0 | ET24: 0 | EU24: 0 | EV24: 0 | EW24: 0 | EX24: 0 | EY24: 0 | EZ24: 0 | FA24: 0 | FB24: 0 | FC24: 0 | FD24: 0 | FE24: =AVERAGE(DN24:DP24) -> 0 | FF24: 0 | FG24: 0 | FH24: 0
B25: 0.017378 | C25: 0 | D25: 0 | E25: 0 | H25: 0.017378 | I25: 0 | J25: 0 | K25: 0 | N25: 0.017378 | O25: 0 | P25: 0 | Q25: 0 | U25: 0.017378 | V25: 0 | W25: 0 | X25: 0 | AA25: 0.017378 | AB25: 0 | AC25: 0 | AD25: 0 | AG25: 0.017378 | AH25: 0 | AI25: 0 | AJ25: 0 | AM25: 0.017378 | AN25: 0 | AO25: 0 | AP25: 0 | AS25: 0.017378 | AT25: 0 | AU25: 0 | AV25: 0 | AY25: 0.017378 | AZ25: 0 | BA25: 0 | BB25: 0 | BE25: 0.017378 | BF25: 0 | BG25: 0 | BH25: 0 | BK25: 0.017378 | BL25: 0 | BM25: 0 | BN25: 0 | BQ25: 0.017378 | BR25: 0 | BS25: 0 | BT25: 0 | BW25: 0.017378 | BX25: 0 | BY25: 0 | BZ25: 0 | CC25: 0.017378 | CD25: 0 | CE25: 0 | CF25: 0 | CI25: 0.017378 | CJ25: 0 | CK25: 0 | CL25: 0 | CO25: 0.017378 | CP25: 0 | CQ25: 0 | CR25: 0 | CU25: 0.017378 | CV25: 0 | CW25: 0 | CX25: 0 | DA25: 0.017378 | DB25: 0 | DC25: 0 | DD25: 0 | DG25: 0.017378 | DH25: 0 | DI25: 0 | DJ25: 0 | DM25: 0.017378 | DN25: 0 | DO25: 0 | DP25: 0 | DS25: 0.017378 | DT25: 0 | DU25: 0 | DV25: 0 | DY25: 0.017378 | DZ25: 0 | EA25: 0 | EB25: 0 | EE25: 0.017378 | EF25: 0 | EG25: 0 | EH25: 0 | EK25: 0.017378 | EL25: 0 | EM25: 0 | EN25: 0 | EO25: 0 | EP25: 0 | EQ25: 0 | ER25: 0 | ES25: 0 | ET25: 0 | EU25: 0 | EV25: 0 | EW25: 0 | EX25: 0 | EY25: 0 | EZ25: 0 | FA25: 0 | FB25: 0 | FC25: 0 | FD25: 0 | FE25: 0 | FF25: 0 | FG25: 0 | FH25: 0
B26: 0.019953 | C26: 0 | D26: 0 | E26: 0 | H26: 0.019953 | I26: 0 | J26: 0 | K26: 0 | N26: 0.019953 | O26: 0 | P26: 0 | Q26: 0 | U26: 0.019953 | V26: 0 | W26: 0 | X26: 0 | AA26: 0.019953 | AB26: 0 | AC26: 0 | AD26: 0 | AG26: 0.019953 | AH26: 0 | AI26: 0 | AJ26: 0 | AM26: 0.019953 | AN26: 0 | AO26: 0 | AP26: 0 | AS26: 0.019953 | AT26: 0 | AU26: 0 | AV26: 0 | AY26: 0.019953 | AZ26: 0 | BA26: 0 | BB26: 0 | BE26: 0.019953 | BF26: 0 | BG26: 0 | BH26: 0 | BK26: 0.019953 | BL26: 0 | BM26: 0 | BN26: 0 | BQ26: 0.019953 | BR26: 0 | BS26: 0 | BT26: 0 | BW26: 0.019953 | BX26: 0 | BY26: 0 | BZ26: 0 | CC26: 0.019953 | CD26: 0 | CE26: 0 | CF26: 0 | CI26: 0.019953 | CJ26: 0 | CK26: 0 | CL26: 0 | CO26: 0.019953 | CP26: 0 | CQ26: 0 | CR26: 0 | CU26: 0.019953 | CV26: 0 | CW26: 0 | CX26: 0 | DA26: 0.019953 | DB26: 0 | DC26: 0 | DD26: 0 | DG26: 0.019953 | DH26: 0 | DI26: 0 | DJ26: 0 | DM26: 0.019953 | DN26: 0 | DO26: 0 | DP26: 0 | DS26: 0.019953 | DT26: 0 | DU26: 0 | DV26: 0 | DY26: 0.019953 | DZ26: 0 | EA26: 0 | EB26: 0 | EE26: 0.019953 | EF26: 0 | EG26: 0 | EH26: 0 | EK26: 0.019953 | EL26: 0 | EM26: 0 | EN26: 0 | EO26: 0 | EP26: 0 | EQ26: 0 | ER26: 0 | ES26: 0 | ET26: 0 | EU26: 0 | EV26: 0 | EW26: 0 | EX26: 0 | EY26: 0 | EZ26: 0 | FA26: 0 | FB26: 0 | FC26: 0 | FD26: 0 | FE26: 0 | FF26: 0 | FG26: 0 | FH26: 0
B27: 0.022909 | C27: 0 | D27: 0 | E27: 0 | H27: 0.022909 | I27: 0 | J27: 0 | K27: 0 | N27: 0.022909 | O27: 0 | P27: 0 | Q27: 0 | U27: 0.022909 | V27: 0 | W27: 0 | X27: 0 | AA27: 0.022909 | AB27: 0 | AC27: 0 | AD27: 0 | AG27: 0.022909 | AH27: 0 | AI27: 0 | AJ27: 0 | AM27: 0.022909 | AN27: 0 | AO27: 0 | AP27: 0 | AS27: 0.022909 | AT27: 0 | AU27: 0 | AV27: 0 | AY27: 0.022909 | AZ27: 0 | BA27: 0 | BB27: 0 | BE27: 0.022909 | BF27: 0 | BG27: 0 | BH27: 0 | BK27: 0.022909 | BL27: 0 | BM27: 0 | BN27: 0 | BQ27: 0.022909 | BR27: 0 | BS27: 0 | BT27: 0 | BW27: 0.022909 | BX27: 0 | BY27: 0 | BZ27: 0 | CC27: 0.022909 | CD27: 0 | CE27: 0 | CF27: 0 | CI27: 0.022909 | CJ27: 0 | CK27: 0 | CL27: 0 | CO27: 0.022909 | CP27: 0 | CQ27: 0 | CR27: 0 | CU27: 0.022909 | CV27: 0 | CW27: 0 | CX27: 0 | DA27: 0.022909 | DB27: 0 | DC27: 0 | DD27: 0 | DG27: 0.022909 | DH27: 0 | DI27: 0 | DJ27: 0 | DM27: 0.022909 | DN27: 0 | DO27: 0 | DP27: 0 | DS27: 0.022909 | DT27: 0 | DU27: 0 | DV27: 0 | DY27: 0.022909 | DZ27: 0 | EA27: 0 | EB27: 0 | EE27: 0.022909 | EF27: 0 | EG27: 0 | EH27: 0 | EK27: 0.022909 | EL27: 0 | EM27: 0 | EN27: 0 | EO27: 0 | EP27: 0 | EQ27: 0 | ER27: 0 | ES27: 0 | ET27: 0 | EU27: 0 | EV27: 0 | EW27: 0 | EX27: 0 | EY27: 0 | EZ27: 0 | FA27: 0 | FB27: 0 | FC27: 0 | FD27: 0 | FE27: 0 | FF27: 0 | FG27: 0 | FH27: 0
B28: 0.026303 | C28: 0 | D28: 0 | E28: 0 | H28: 0.026303 | I28: 0 | J28: 0 | K28: 0 | N28: 0.026303 | O28: 0 | P28: 0 | Q28: 0 | U28: 0.026303 | V28: 0 | W28: 0 | X28: 0 | AA28: 0.026303 | AB28: 0 | AC28: 0 | AD28: 0 | AG28: 0.026303 | AH28: 0 | AI28: 0 | AJ28: 0 | AM28: 0.026303 | AN28: 0 | AO28: 0 | AP28: 0 | AS28: 0.026303 | AT28: 0 | AU28: 0 | AV28: 0 | AY28: 0.026303 | AZ28: 0 | BA28: 0 | BB28: 0 | BE28: 0.026303 | BF28: 0 | BG28: 0 | BH28: 0 | BK28: 0.026303 | BL28: 0 | BM28: 0 | BN28: 0 | BQ28: 0.026303 | BR28: 0 | BS28: 0 | BT28: 0 | BW28: 0.026303 | BX28: 0 | BY28: 0 | BZ28: 0 | CC28: 0.026303 | CD28: 0 | CE28: 0 | CF28: 0 | CI28: 0.026303 | CJ28: 0 | CK28: 0 | CL28: 0 | CO28: 0.026303 | CP28: 0 | CQ28: 0 | CR28: 0 | CU28: 0.026303 | CV28: 0 | CW28: 0 | CX28: 0 | DA28: 0.026303 | DB28: 0 | DC28: 0 | DD28: 0 | DG28: 0.026303 | DH28: 0 | DI28: 0 | DJ28: 0 | DM28: 0.026303 | DN28: 0 | DO28: 0 | DP28: 0 | DS28: 0.026303 | DT28: 0 | DU28: 0 | DV28: 0 | DY28: 0.026303 | DZ28: 0 | EA28: 0 | EB28: 0 | EE28: 0.026303 | EF28: 0 | EG28: 0 | EH28: 0 | EK28: 0.026303 | EL28: 0 | EM28: 0 | EN28: 0 | EO28: 0 | EP28: 0 | EQ28: 0 | ER28: 0 | ES28: 0 | ET28: 0 | EU28: 0 | EV28: 0 | EW28: 0 | EX28: 0 | EY28: 0 | EZ28: 0 | FA28: 0 | FB28: 0 | FC28: 0 | FD28: 0 | FE28: 0 | FF28: 0 | FG28: 0 | FH28: 0
B29: 0.0302 | C29: 0 | D29: 0 | E29: 0 | H29: 0.0302 | I29: 0 | J29: 0 | K29: 0 | N29: 0.0302 | O29: 0 | P29: 0 | Q29: 0 | U29: 0.0302 | V29: 0 | W29: 0 | X29: 0 | AA29: 0.0302 | AB29: 0 | AC29: 0 | AD29: 0 | AG29: 0.0302 | AH29: 0 | AI29: 0 | AJ29: 0 | AM29: 0.0302 | AN29: 0 | AO29: 0 | AP29: 0 | AS29: 0.0302 | AT29: 0 | AU29: 0 | AV29: 0 | AY29: 0.0302 | AZ29: 0 | BA29: 0 | BB29: 0 | BE29: 0.0302 | BF29: 0 | BG29: 0 | BH29: 0 | BK29: 0.0302 | BL29: 0 | BM29: 0 | BN29: 0 | BQ29: 0.0302 | BR29: 0 | BS29: 0 | BT29: 0 | BW29: 0.0302 | BX29: 0 | BY29: 0 | BZ29: 0 | CC29: 0.0302 | CD29: 0 | CE29: 0 | CF29: 0 | CI29: 0.0302 | CJ29: 0 | CK29: 0 | CL29: 0 | CO29: 0.0302 | CP29: 0 | CQ29: 0 | CR29: 0 | CU29: 0.0302 | CV29: 0 | CW29: 0 | CX29: 0 | DA29: 0.0302 | DB29: 0 | DC29: 0 | DD29: 0 | DG29: 0.0302 | DH29: 0 | DI29: 0 | DJ29: 0 | DM29: 0.0302 | DN29: 0 | DO29: 0 | DP29: 0 | DS29: 0.0302 | DT29: 0 | DU29: 0 | DV29: 0 | DY29: 0.0302 | DZ29: 0 | EA29: 0 | EB29: 0 | EE29: 0.0302 | EF29: 0 | EG29: 0 | EH29: 0 | EK29: 0.0302 | EL29: 0 | EM29: 0 | EN29: 0 | EO29: 0 | EP29: 0 | EQ29: 0 | ER29: 0 | ES29: 0 | ET29: 0 | EU29: 0 | EV29: 0 | EW29: 0 | EX29: 0 | EY29: 0 | EZ29: 0 | FA29: 0 | FB29: 0 | FC29: 0 | FD29: 0 | FE29: 0 | FF29: 0 | FG29: 0 | FH29: 0
B30: 0.034674 | C30: 0 | D30: 0 | E30: 0 | H30: 0.034674 | I30: 0 | J30: 0 | K30: 0 | N30: 0.034674 | O30: 0 | P30: 0 | Q30: 0 | U30: 0.034674 | V30: 0 | W30: 0 | X30: 0 | AA30: 0.034674 | AB30: 0 | AC30: 0 | AD30: 0 | AG30: 0.034674 | AH30: 0 | AI30: 0 | AJ30: 0 | AM30: 0.034674 | AN30: 0 | AO30: 0 | AP30: 0 | AS30: 0.034674 | AT30: 0 | AU30: 0 | AV30: 0 | AY30: 0.034674 | AZ30: 0 | BA30: 0 | BB30: 0 | BE30: 0.034674 | BF30: 0 | BG30: 0 | BH30: 0 | BK30: 0.034674 | BL30: 0 | BM30: 0 | BN30: 0 | BQ30: 0.034674 | BR30: 0 | BS30: 0 | BT30: 0 | BW30: 0.034674 | BX30: 0 | BY30: 0 | BZ30: 0 | CC30: 0.034674 | CD30: 0 | CE30: 0 | CF30: 0 | CI30: 0.034674 | CJ30: 0 | CK30: 0 | CL30: 0 | CO30: 0.034674 | CP30: 0 | CQ30: 0 | CR30: 0 | CU30: 0.034674 | CV30: 0 | CW30: 0 | CX30: 0 | DA30: 0.034674 | DB30: 0 | DC30: 0 | DD30: 0 | DG30: 0.034674 | DH30: 0 | DI30: 0 | DJ30: 0 | DM30: 0.034674 | DN30: 0 | DO30: 0 | DP30: 0 | DS30: 0.034674 | DT30: 0 | DU30: 0 | DV30: 0 | DY30: 0.034674 | DZ30: 0 | EA30: 0 | EB30: 0 | EE30: 0.034674 | EF30: 0 | EG30: 0 | EH30: 0 | EK30: 0.034674 | EL30: 0 | EM30: 0 | EN30: 0 | EO30: 0 | EP30: 0 | EQ30: 0 | ER30: 0 | ES30: 0 | ET30: 0 | EU30: 0 | EV30: 0 | EW30: 0 | EX30: 0 | EY30: 0 | EZ30: 0 | FA30: 0 | FB30: 0 | FC30: 0 | FD30: 0 | FE30: 0 | FF30: 0 | FG30: 0 | FH30: 0
B31: 0.039811 | C31: 0 | D31: 0 | E31: 0 | H31: 0.039811 | I31: 0 | J31: 0 | K31: 0 | N31: 0.039811 | O31: 0 | P31: 0 | Q31: 0 | U31: 0.039811 | V31: 0 | W31: 0 | X31: 0 | AA31: 0.039811 | AB31: 0 | AC31: 0 | AD31: 0 | AG31: 0.039811 | AH31: 0 | AI31: 0 | AJ31: 0 | AM31: 0.039811 | AN31: 0 | AO31: 0 | AP31: 0 | AS31: 0.039811 | AT31: 0 | AU31: 0 | AV31: 0 | AY31: 0.039811 | AZ31: 0 | BA31: 0 | BB31: 0 | BE31: 0.039811 | BF31: 0 | BG31: 0 | BH31: 0 | BK31: 0.039811 | BL31: 0 | BM31: 0 | BN31: 0 | BQ31: 0.039811 | BR31: 0 | BS31: 0 | BT31: 0 | BW31: 0.039811 | BX31: 0 | BY31: 0 | BZ31: 0 | CC31: 0.039811 | CD31: 0 | CE31: 0 | CF31: 0 | CI31: 0.039811 | CJ31: 0 | CK31: 0 | CL31: 0 | CO31: 0.039811 | CP31: 0 | CQ31: 0 | CR31: 0 | CU31: 0.039811 | CV31: 0 | CW31: 0 | CX31: 0 | DA31: 0.039811 | DB31: 0 | DC31: 0 | DD31: 0 | DG31: 0.039811 | DH31: 0 | DI31: 0 | DJ31: 0 | DM31: 0.039811 | DN31: 0 | DO31: 0 | DP31: 0 | DS31: 0.039811 | DT31: 0 | DU31: 0 | DV31: 0 | DY31: 0.039811 | DZ31: 0 | EA31: 0 | EB31: 0 | EE31: 0.039811 | EF31: 0 | EG31: 0 | EH31: 0 | EK31: 0.039811 | EL31: 0 | EM31: 0 | EN31: 0 | EO31: 0 | EP31: 0 | EQ31: 0 | ER31: 0 | ES31: 0 | ET31: 0 | EU31: 0 | EV31: 0 | EW31: 0 | EX31: 0 | EY31: 0 | EZ31: 0 | FA31: 0 | FB31: 0 | FC31: 0 | FD31: 0 | FE31: 0 | FF31: 0 | FG31: 0 | FH31: 0
B32: 0.045709 | C32: 0 | D32: 0 | E32: 0 | H32: 0.045709 | I32: 0 | J32: 0 | K32: 0 | N32: 0.045709 | O32: 0 | P32: 0 | Q32: 0 | U32: 0.045709 | V32: 0 | W32: 0 | X32: 0 | AA32: 0.045709 | AB32: 0 | AC32: 0 | AD32: 0 | AG32: 0.045709 | AH32: 0 | AI32: 0 | AJ32: 0 | AM32: 0.045709 | AN32: 0 | AO32: 0 | AP32: 0 | AS32: 0.045709 | AT32: 0 | AU32: 0 | AV32: 0 | AY32: 0.045709 | AZ32: 0 | BA32: 0 | BB32: 0 | BE32: 0.045709 | BF32: 0 | BG32: 0 | BH32: 0 | BK32: 0.045709 | BL32: 0 | BM32: 0 | BN32: 0 | BQ32: 0.045709 | BR32: 0 | BS32: 0 | BT32: 0 | BW32: 0.045709 | BX32: 0 | BY32: 0 | BZ32: 0 | CC32: 0.045709 | CD32: 0 | CE32: 0 | CF32: 0 | CI32: 0.045709 | CJ32: 0 | CK32: 0 | CL32: 0 | CO32: 0.045709 | CP32: 0 | CQ32: 0 | CR32: 0 | CU32: 0.045709 | CV32: 0 | CW32: 0 | CX32: 0 | DA32: 0.045709 | DB32: 0 | DC32: 0 | DD32: 0 | DG32: 0.045709 | DH32: 0 | DI32: 0 | DJ32: 0 | DM32: 0.045709 | DN32: 0 | DO32: 0 | DP32: 0 | DS32: 0.045709 | DT32: 0 | DU32: 0 | DV32: 0 | DY32: 0.045709 | DZ32: 0 | EA32: 0 | EB32: 0 | EE32: 0.045709 | EF32: 0 | EG32: 0 | EH32: 0 | EK32: 0.045709 | EL32: 0 | EM32: 0 | EN32: 0 | EO32: 0 | EP32: 0 | EQ32: 0 | ER32: 0 | ES32: 0 | ET32: 0 | EU32: 0 | EV32: 0 | EW32: 0 | EX32: 0 | EY32: 0 | EZ32: 0 | FA32: 0 | FB32: 0 | FC32: 0 | FD32: 0 | FE32: 0 | FF32: 0 | FG32: 0 | FH32: 0
B33: 0.052481 | C33: 0 | D33: 0 | E33: 0 | H33: 0.052481 | I33: 0 | J33: 0 | K33: 0 | N33: 0.052481 | O33: 0 | P33: 0 | Q33: 0 | U33: 0.052481 | V33: 0 | W33: 0 | X33: 0 | AA33: 0.052481 | AB33: 0 | AC33: 0 | AD33: 0 | AG33: 0.052481 | AH33: 0 | AI33: 0 | AJ33: 0 | AM33: 0.052481 | AN33: 0 | AO33: 0 | AP33: 0 | AS33: 0.052481 | AT33: 0 | AU33: 0 | AV33: 0 | AY33: 0.052481 | AZ33: 0 | BA33: 0 | BB33: 0 | BE33: 0.052481 | BF33: 0 | BG33: 0 | BH33: 0 | BK33: 0.052481 | BL33: 0 | BM33: 0 | BN33: 0 | BQ33: 0.052481 | BR33: 0 | BS33: 0 | BT33: 0 | BW33: 0.052481 | BX33: 0 | BY33: 0 | BZ33: 0 | CC33: 0.052481 | CD33: 0 | CE33: 0 | CF33: 0 | CI33: 0.052481 | CJ33: 0 | CK33: 0 | CL33: 0 | CO33: 0.052481 | CP33: 0 | CQ33: 0 | CR33: 0 | CU33: 0.052481 | CV33: 0 | CW33: 0 | CX33: 0 | DA33: 0.052481 | DB33: 0 | DC33: 0 | DD33: 0 | DG33: 0.052481 | DH33: 0 | DI33: 0 | DJ33: 0 | DM33: 0.052481 | DN33: 0 | DO33: 0 | DP33: 0 | DS33: 0.052481 | DT33: 0 | DU33: 0 | DV33: 0 | DY33: 0.052481 | DZ33: 0 | EA33: 0 | EB33: 0 | EE33: 0.052481 | EF33: 0 | EG33: 0 | EH33: 0 | EK33: 0.052481 | EL33: 0 | EM33: 0 | EN33: 0 | EO33: 0 | EP33: 0 | EQ33: 0 | ER33: 0 | ES33: 0 | ET33: 0 | EU33: 0 | EV33: 0 | EW33: 0 | EX33: 0 | EY33: 0 | EZ33: 0 | FA33: 0 | FB33: 0 | FC33: 0 | FD33: 0 | FE33: 0 | FF33: 0 | FG33: 0 | FH33: 0
B34: 0.060256 | C34: 0 | D34: 0 | E34: 0 | H34: 0.060256 | I34: 0 | J34: 0 | K34: 0 | N34: 0.060256 | O34: 0 | P34: 0 | Q34: 0 | U34: 0.060256 | V34: 0 | W34: 0 | X34: 0 | AA34: 0.060256 | AB34: 0 | AC34: 0 | AD34: 0 | AG34: 0.060256 | AH34: 0 | AI34: 0 | AJ34: 0 | AM34: 0.060256 | AN34: 0 | AO34: 0 | AP34: 0 | AS34: 0.060256 | AT34: 0 | AU34: 0 | AV34: 0 | AY34: 0.060256 | AZ34: 0 | BA34: 0 | BB34: 0 | BE34: 0.060256 | BF34: 0 | BG34: 0 | BH34: 0 | BK34: 0.060256 | BL34: 0 | BM34: 0 | BN34: 0 | BQ34: 0.060256 | BR34: 0 | BS34: 0 | BT34: 0 | BW34: 0.060256 | BX34: 0 | BY34: 0 | BZ34: 0 | CC34: 0.060256 | CD34: 0 | CE34: 0 | CF34: 0 | CI34: 0.060256 | CJ34: 0 | CK34: 0 | CL34: 0 | CO34: 0.060256 | CP34: 0 | CQ34: 0 | CR34: 0 | CU34: 0.060256 | CV34: 0 | CW34: 0 | CX34: 0 | DA34: 0.060256 | DB34: 0 | DC34: 0 | DD34: 0 | DG34: 0.060256 | DH34: 0 | DI34: 0 | DJ34: 0 | DM34: 0.060256 | DN34: 0 | DO34: 0 | DP34: 0 | DS34: 0.060256 | DT34: 0 | DU34: 0 | DV34: 0 | DY34: 0.060256 | DZ34: 0 | EA34: 0 | EB34: 0 | EE34: 0.060256 | EF34: 0 | EG34: 0 | EH34: 0 | EK34: 0.060256 | EL34: 0 | EM34: 0 | EN34: 0 | EO34: 0 | EP34: 0 | EQ34: 0 | ER34: 0 | ES34: 0 | ET34: 0 | EU34: 0 | EV34: 0 | EW34: 0 | EX34: 0 | EY34: 0 | EZ34: 0 | FA34: 0 | FB34: 0 | FC34: 0 | FD34: 0 | FE34: 0 | FF34: 0 | FG34: 0 | FH34: 0
B35: 0.069183 | C35: 0 | D35: 0 | E35: 0 | H35: 0.069183 | I35: 0 | J35: 0 | K35: 0 | N35: 0.069183 | O35: 0 | P35: 0 | Q35: 0 | U35: 0.069183 | V35: 0 | W35: 0 | X35: 0 | AA35: 0.069183 | AB35: 0 | AC35: 0 | AD35: 0 | AG35: 0.069183 | AH35: 0 | AI35: 0 | AJ35: 0 | AM35: 0.069183 | AN35: 0 | AO35: 0 | AP35: 0 | AS35: 0.069183 | AT35: 0 | AU35: 0 | AV35: 0 | AY35: 0.069183 | AZ35: 0 | BA35: 0 | BB35: 0 | BE35: 0.069183 | BF35: 0 | BG35: 0 | BH35: 0 | BK35: 0.069183 | BL35: 0 | BM35: 0 | BN35: 0 | BQ35: 0.069183 | BR35: 0 | BS35: 0 | BT35: 0 | BW35: 0.069183 | BX35: 0 | BY35: 0 | BZ35: 0 | CC35: 0.069183 | CD35: 0 | CE35: 0 | CF35: 0 | CI35: 0.069183 | CJ35: 0 | CK35: 0 | CL35: 0 | CO35: 0.069183 | CP35: 0 | CQ35: 0 | CR35: 0 | CU35: 0.069183 | CV35: 0 | CW35: 0 | CX35: 0 | DA35: 0.069183 | DB35: 0 | DC35: 0 | DD35: 0 | DG35: 0.069183 | DH35: 0 | DI35: 0 | DJ35: 0 | DM35: 0.069183 | DN35: 0 | DO35: 0 | DP35: 0 | DS35: 0.069183 | DT35: 0 | DU35: 0 | DV35: 0 | DY35: 0.069183 | DZ35: 0 | EA35: 0 | EB35: 0 | EE35: 0.069183 | EF35: 0 | EG35: 0 | EH35: 0 | EK35: 0.069183 | EL35: 0 | EM35: 0 | EN35: 0 | EO35: 0 | EP35: 0 | EQ35: 0 | ER35: 0 | ES35: 0 | ET35: 0 | EU35: 0 | EV35: 0 | EW35: 0 | EX35: 0 | EY35: 0 | EZ35: 0 | FA35: 0 | FB35: 0 | FC35: 0 | FD35: 0 | FE35: 0 | FF35: 0 | FG35: 0 | FH35: 0
B36: 0.079433 | C36: 0 | D36: 0 | E36: 0 | H36: 0.079433 | I36: 0 | J36: 0 | K36: 0 | N36: 0.079433 | O36: 0 | P36: 0 | Q36: 0 | U36: 0.079433 | V36: 0 | W36: 0 | X36: 0 | AA36: 0.079433 | AB36: 0 | AC36: 0 | AD36: 0 | AG36: 0.079433 | AH36: 0 | AI36: 0 | AJ36: 0 | AM36: 0.079433 | AN36: 0 | AO36: 0 | AP36: 0 | AS36: 0.079433 | AT36: 0 | AU36: 0 | AV36: 0 | AY36: 0.079433 | AZ36: 0 | BA36: 0 | BB36: 0 | BE36: 0.079433 | BF36: 0 | BG36: 0 | BH36: 0 | BK36: 0.079433 | BL36: 0 | BM36: 0 | BN36: 0 | BQ36: 0.079433 | BR36: 0 | BS36: 0 | BT36: 0 | BW36: 0.079433 | BX36: 0 | BY36: 0 | BZ36: 0 | CC36: 0.079433 | CD36: 0 | CE36: 0 | CF36: 0 | CI36: 0.079433 | CJ36: 0 | CK36: 0 | CL36: 0 | CO36: 0.079433 | CP36: 0 | CQ36: 0 | CR36: 0 | CU36: 0.079433 | CV36: 0 | CW36: 0 | CX36: 0 | DA36: 0.079433 | DB36: 0 | DC36: 0 | DD36: 0 | DG36: 0.079433 | DH36: 0 | DI36: 0 | DJ36: 0 | DM36: 0.079433 | DN36: 0 | DO36: 0 | DP36: 0 | DS36: 0.079433 | DT36: 0 | DU36: 0 | DV36: 0 | DY36: 0.079433 | DZ36: 0 | EA36: 0 | EB36: 0 | EE36: 0.079433 | EF36: 0 | EG36: 0 | EH36: 0 | EK36: 0.079433 | EL36: 0 | EM36: 0 | EN36: 0 | EO36: 0 | EP36: 0 | EQ36: 0 | ER36: 0 | ES36: 0 | ET36: 0 | EU36: 0 | EV36: 0 | EW36: 0 | EX36: 0 | EY36: 0 | EZ36: 0 | FA36: 0 | FB36: 0 | FC36: 0 | FD36: 0 | FE36: 0 | FF36: 0 | FG36: 0 | FH36: 0
B37: 0.091201 | C37: 0 | D37: 0 | E37: 0 | H37: 0.091201 | I37: 0 | J37: 0 | K37: 0 | N37: 0.091201 | O37: 0 | P37: 0 | Q37: 0 | U37: 0.091201 | V37: 0 | W37: 0 | X37: 0 | AA37: 0.091201 | AB37: 0 | AC37: 0 | AD37: 0 | AG37: 0.091201 | AH37: 0 | AI37: 0 | AJ37: 0 | AM37: 0.091201 | AN37: 0 | AO37: 0 | AP37: 0 | AS37: 0.091201 | AT37: 0 | AU37: 0 | AV37: 0 | AY37: 0.091201 | AZ37: 0 | BA37: 0 | BB37: 0 | BE37: 0.091201 | BF37: 0 | BG37: 0 | BH37: 0 | BK37: 0.091201 | BL37: 0 | BM37: 0 | BN37: 0 | BQ37: 0.091201 | BR37: 0 | BS37: 0 | BT37: 0 | BW37: 0.091201 | BX37: 0 | BY37: 0 | BZ37: 0 | CC37: 0.091201 | CD37: 0 | CE37: 0 | CF37: 0 | CI37: 0.091201 | CJ37: 0 | CK37: 0 | CL37: 0 | CO37: 0.091201 | CP37: 0 | CQ37: 0 | CR37: 0 | CU37: 0.091201 | CV37: 0 | CW37: 0 | CX37: 0 | DA37: 0.091201 | DB37: 0 | DC37: 0 | DD37: 0 | DG37: 0.091201 | DH37: 0 | DI37: 0 | DJ37: 0 | DM37: 0.091201 | DN37: 0 | DO37: 0 | DP37: 0 | DS37: 0.091201 | DT37: 0 | DU37: 0 | DV37: 0 | DY37: 0.091201 | DZ37: 0 | EA37: 0 | EB37: 0 | EE37: 0.091201 | EF37: 0 | EG37: 0 | EH37: 0 | EK37: 0.091201 | EL37: 0 | EM37: 0 | EN37: 0 | EO37: 0 | EP37: 0 | EQ37: 0 | ER37: 0 | ES37: 0 | ET37: 0 | EU37: 0 | EV37: 0 | EW37: 0 | EX37: 0 | EY37: 0 | EZ37: 0 | FA37: 0 | FB37: 0 | FC37: 0 | FD37: 0 | FE37: 0 | FF37: 0 | FG37: 0 | FH37: 0
B38: 0.104713 | C38: 0 | D38: 0 | E38: 0 | H38: 0.104713 | I38: 0 | J38: 0 | K38: 0 | N38: 0.104713 | O38: 0 | P38: 0 | Q38: 0 | U38: 0.104713 | V38: 0 | W38: 0 | X38: 0 | AA38: 0.104713 | AB38: 0 | AC38: 0 | AD38: 0 | AG38: 0.104713 | AH38: 0 | AI38: 0 | AJ38: 0 | AM38: 0.104713 | AN38: 0 | AO38: 0 | AP38: 0 | AS38: 0.104713 | AT38: 0 | AU38: 0 | AV38: 0 | AY38: 0.104713 | AZ38: 0 | BA38: 0 | BB38: 0 | BE38: 0.104713 | BF38: 0 | BG38: 0 | BH38: 0 | BK38: 0.104713 | BL38: 0 | BM38: 0 | BN38: 0 | BQ38: 0.104713 | BR38: 0 | BS38: 0 | BT38: 0 | BW38: 0.104713 | BX38: 0 | BY38: 0 | BZ38: 0 | CC38: 0.104713 | CD38: 0 | CE38: 0 | CF38: 0 | CI38: 0.104713 | CJ38: 0 | CK38: 0 | CL38: 0 | CO38: 0.104713 | CP38: 0 | CQ38: 0 | CR38: 0 | CU38: 0.104713 | CV38: 0 | CW38: 0 | CX38: 0 | DA38: 0.104713 | DB38: 0 | DC38: 0 | DD38: 0 | DG38: 0.104713 | DH38: 0 | DI38: 0 | DJ38: 0 | DM38: 0.104713 | DN38: 0 | DO38: 0 | DP38: 0 | DS38: 0.104713 | DT38: 0 | DU38: 0 | DV38: 0 | DY38: 0.104713 | DZ38: 0 | EA38: 0 | EB38: 0 | EE38: 0.104713 | EF38: 0 | EG38: 0 | EH38: 0 | EK38: 0.104713 | EL38: 0 | EM38: 0 | EN38: 0 | EO38: 0 | EP38: 0 | EQ38: 0 | ER38: 0 | ES38: 0 | ET38: 0 | EU38: 0 | EV38: 0 | EW38: 0 | EX38: 0 | EY38: 0 | EZ38: 0 | FA38: 0 | FB38: 0 | FC38: 0 | FD38: 0 | FE38: 0 | FF38: 0 | FG38: 0 | FH38: 0
B39: 0.120226 | C39: 0 | D39: 0 | E39: 0 | H39: 0.120226 | I39: 0 | J39: 0 | K39: 0 | N39: 0.120226 | O39: 0 | P39: 0 | Q39: 0 | U39: 0.120226 | V39: 0 | W39: 0 | X39: 0 | AA39: 0.120226 | AB39: 0 | AC39: 0 | AD39: 0 | AG39: 0.120226 | AH39: 0 | AI39: 0 | AJ39: 0 | AM39: 0.120226 | AN39: 0 | AO39: 0 | AP39: 0 | AS39: 0.120226 | AT39: 0 | AU39: 0 | AV39: 0 | AY39: 0.120226 | AZ39: 0 | BA39: 0 | BB39: 0 | BE39: 0.120226 | BF39: 0 | BG39: 0 | BH39: 0 | BK39: 0.120226 | BL39: 0 | BM39: 0 | BN39: 0 | BQ39: 0.120226 | BR39: 0 | BS39: 0 | BT39: 0 | BW39: 0.120226 | BX39: 0 | BY39: 0 | BZ39: 0 | CC39: 0.120226 | CD39: 0 | CE39: 0 | CF39: 0 | CI39: 0.120226 | CJ39: 0 | CK39: 0 | CL39: 0 | CO39: 0.120226 | CP39: 0 | CQ39: 0 | CR39: 0 | CU39: 0.120226 | CV39: 0 | CW39: 0 | CX39: 0 | DA39: 0.120226 | DB39: 0 | DC39: 0 | DD39: 0 | DG39: 0.120226 | DH39: 0 | DI39: 0 | DJ39: 0 | DM39: 0.120226 | DN39: 0 | DO39: 0 | DP39: 0 | DS39: 0.120226 | DT39: 0 | DU39: 0 | DV39: 0 | DY39: 0.120226 | DZ39: 0 | EA39: 0 | EB39: 0 | EE39: 0.120226 | EF39: 0 | EG39: 0 | EH39: 0 | EK39: 0.120226 | EL39: 0 | EM39: 0 | EN39: 0 | EO39: 0 | EP39: 0 | EQ39: 0 | ER39: 0 | ES39: 0 | ET39: 0 | EU39: 0 | EV39: 0 | EW39: 0 | EX39: 0 | EY39: 0 | EZ39: 0 | FA39: 0 | FB39: 0 | FC39: 0 | FD39: 0 | FE39: 0 | FF39: 0 | FG39: 0 | FH39: 0
B40: 0.138038 | C40: 0 | D40: 0 | E40: 0 | H40: 0.138038 | I40: 0 | J40: 0 | K40: 0 | N40: 0.138038 | O40: 0 | P40: 0 | Q40: 0 | U40: 0.138038 | V40: 0 | W40: 0 | X40: 0 | AA40: 0.138038 | AB40: 0 | AC40: 0 | AD40: 0 | AG40: 0.138038 | AH40: 0 | AI40: 0 | AJ40: 0 | AM40: 0.138038 | AN40: 0 | AO40: 0 | AP40: 0 | AS40: 0.138038 | AT40: 0 | AU40: 0 | AV40: 0 | AY40: 0.138038 | AZ40: 0 | BA40: 0 | BB40: 0 | BE40: 0.138038 | BF40: 0 | BG40: 0 | BH40: 0 | BK40: 0.138038 | BL40: 0 | BM40: 0 | BN40: 0 | BQ40: 0.138038 | BR40: 0 | BS40: 0 | BT40: 0 | BW40: 0.138038 | BX40: 0 | BY40: 0 | BZ40: 0 | CC40: 0.138038 | CD40: 0 | CE40: 0 | CF40: 0 | CI40: 0.138038 | CJ40: 0 | CK40: 0 | CL40: 0 | CO40: 0.138038 | CP40: 0 | CQ40: 0 | CR40: 0 | CU40: 0.138038 | CV40: 0 | CW40: 0 | CX40: 0 | DA40: 0.138038 | DB40: 0 | DC40: 0 | DD40: 0 | DG40: 0.138038 | DH40: 0 | DI40: 0 | DJ40: 0 | DM40: 0.138038 | DN40: 0 | DO40: 0 | DP40: 0 | DS40: 0.138038 | DT40: 0 | DU40: 0 | DV40: 0 | DY40: 0.138038 | DZ40: 0 | EA40: 0 | EB40: 0 | EE40: 0.138038 | EF40: 0 | EG40: 0 | EH40: 0 | EK40: 0.138038 | EL40: 0 | EM40: 0 | EN40: 0 | EO40: 0 | EP40: 0 | EQ40: 0 | ER40: 0 | ES40: 0 | ET40: 0 | EU40: 0 | EV40: 0 | EW40: 0 | EX40: 0 | EY40: 0 | EZ40: 0 | FA40: 0 | FB40: 0 | FC40: 0 | FD40: 0 | FE40: 0 | FF40: 0 | FG40: 0 | FH40: 0
B41: 0.158489 | C41: 0 | D41: 0 | E41: 0 | H41: 0.158489 | I41: 0 | J41: 0 | K41: 0 | N41: 0.158489 | O41: 0 | P41: 0 | Q41: 0 | U41: 0.158489 | V41: 0 | W41: 0 | X41: 0 | AA41: 0.158489 | AB41: 0 | AC41: 0 | AD41: 0 | AG41: 0.158489 | AH41: 0 | AI41: 0 | AJ41: 0 | AM41: 0.158489 | AN41: 0 | AO41: 0 | AP41: 0 | AS41: 0.158489 | AT41: 0 | AU41: 0 | AV41: 0 | AY41: 0.158489 | AZ41: 0 | BA41: 0 | BB41: 0 | BE41: 0.158489 | BF41: 0 | BG41: 0 | BH41: 0 | BK41: 0.158489 | BL41: 0 | BM41: 0 | BN41: 0 | BQ41: 0.158489 | BR41: 0 | BS41: 0 | BT41: 0 | BW41: 0.158489 | BX41: 0 | BY41: 0 | BZ41: 0 | CC41: 0.158489 | CD41: 0 | CE41: 0 | CF41: 0 | CI41: 0.158489 | CJ41: 0 | CK41: 0 | CL41: 0 | CO41: 0.158489 | CP41: 0 | CQ41: 0 | CR41: 0 | CU41: 0.158489 | CV41: 0 | CW41: 0 | CX41: 0 | DA41: 0.158489 | DB41: 0 | DC41: 0 | DD41: 0 | DG41: 0.158489 | DH41: 0 | DI41: 0 | DJ41: 0 | DM41: 0.158489 | DN41: 0 | DO41: 0 | DP41: 0 | DS41: 0.158489 | DT41: 0 | DU41: 0 | DV41: 0 | DY41: 0.158489 | DZ41: 0 | EA41: 0 | EB41: 0 | EE41: 0.158489 | EF41: 0 | EG41: 0 | EH41: 0 | EK41: 0.158489 | EL41: 0 | EM41: 0 | EN41: 0 | EO41: 0 | EP41: 0 | EQ41: 0 | ER41: 0 | ES41: 0 | ET41: 0 | EU41: 0 | EV41: 0 | EW41: 0 | EX41: 0 | EY41: 0 | EZ41: 0 | FA41: 0 | FB41: 0 | FC41: 0 | FD41: 0 | FE41: 0 | FF41: 0 | FG41: 0 | FH41: 0
B42: 0.18197 | C42: 0 | D42: 0 | E42: 0 | H42: 0.18197 | I42: 0 | J42: 0 | K42: 0 | N42: 0.18197 | O42: 0 | P42: 0 | Q42: 0 | U42: 0.18197 | V42: 0 | W42: 0 | X42: 0 | AA42: 0.18197 | AB42: 0 | AC42: 0 | AD42: 0 | AG42: 0.18197 | AH42: 0 | AI42: 0 | AJ42: 0 | AM42: 0.18197 | AN42: 0 | AO42: 0 | AP42: 0 | AS42: 0.18197 | AT42: 0 | AU42: 0 | AV42: 0 | AY42: 0.18197 | AZ42: 0 | BA42: 0 | BB42: 0 | BE42: 0.18197 | BF42: 0 | BG42: 0 | BH42: 0 | BK42: 0.18197 | BL42: 0 | BM42: 0 | BN42: 0 | BQ42: 0.18197 | BR42: 0 | BS42: 0 | BT42: 0 | BW42: 0.18197 | BX42: 0 | BY42: 0 | BZ42: 0 | CC42: 0.18197 | CD42: 0 | CE42: 0 | CF42: 0 | CI42: 0.18197 | CJ42: 0 | CK42: 0 | CL42: 0 | CO42: 0.18197 | CP42: 0 | CQ42: 0 | CR42: 0 | CU42: 0.18197 | CV42: 0 | CW42: 0 | CX42: 0 | DA42: 0.18197 | DB42: 0 | DC42: 0 | DD42: 0 | DG42: 0.18197 | DH42: 0 | DI42: 0 | DJ42: 0 | DM42: 0.18197 | DN42: 0 | DO42: 0 | DP42: 0 | DS42: 0.18197 | DT42: 0 | DU42: 0 | DV42: 0 | DY42: 0.18197 | DZ42: 0 | EA42: 0 | EB42: 0 | EE42: 0.18197 | EF42: 0 | EG42: 0 | EH42: 0 | EK42: 0.18197 | EL42: 0 | EM42: 0 | EN42: 0 | EO42: 0 | EP42: 0 | EQ42: 0 | ER42: 0 | ES42: 0 | ET42: 0 | EU42: 0 | EV42: 0 | EW42: 0 | EX42: 0 | EY42: 0 | EZ42: 0 | FA42: 0 | FB42: 0 | FC42: 0 | FD42: 0 | FE42: 0 | FF42: 0 | FG42: 0 | FH42: 0
B43: 0.20893 | C43: 0 | D43: 0 | E43: 0 | H43: 0.20893 | I43: 0 | J43: 0 | K43: 0 | N43: 0.20893 | O43: 0 | P43: 0 | Q43: 0 | U43: 0.20893 | V43: 0 | W43: 0 | X43: 0 | AA43: 0.20893 | AB43: 0 | AC43: 0 | AD43: 0 | AG43: 0.20893 | AH43: 0 | AI43: 0 | AJ43: 0 | AM43: 0.20893 | AN43: 0 | AO43: 0 | AP43: 0 | AS43: 0.20893 | AT43: 0 | AU43: 0 | AV43: 0 | AY43: 0.20893 | AZ43: 0 | BA43: 0 | BB43: 0 | BE43: 0.20893 | BF43: 0 | BG43: 0 | BH43: 0 | BK43: 0.20893 | BL43: 0 | BM43: 0 | BN43: 0 | BQ43: 0.20893 | BR43: 0 | BS43: 0 | BT43: 0 | BW43: 0.20893 | BX43: 0 | BY43: 0 | BZ43: 0 | CC43: 0.20893 | CD43: 0 | CE43: 0 | CF43: 0 | CI43: 0.20893 | CJ43: 0 | CK43: 0 | CL43: 0 | CO43: 0.20893 | CP43: 0 | CQ43: 0 | CR43: 0 | CU43: 0.20893 | CV43: 0 | CW43: 0 | CX43: 0 | DA43: 0.20893 | DB43: 0 | DC43: 0 | DD43: 0 | DG43: 0.20893 | DH43: 0 | DI43: 0 | DJ43: 0 | DM43: 0.20893 | DN43: 0 | DO43: 0 | DP43: 0 | DS43: 0.20893 | DT43: 0 | DU43: 0 | DV43: 0 | DY43: 0.20893 | DZ43: 0 | EA43: 0 | EB43: 0 | EE43: 0.20893 | EF43: 0 | EG43: 0 | EH43: 0 | EK43: 0.20893 | EL43: 0 | EM43: 0 | EN43: 0 | EO43: 0 | EP43: 0 | EQ43: 0 | ER43: 0 | ES43: 0 | ET43: 0 | EU43: 0 | EV43: 0 | EW43: 0 | EX43: 0 | EY43: 0 | EZ43: 0 | FA43: 0 | FB43: 0 | FC43: 0 | FD43: 0 | FE43: 0 | FF43: 0 | FG43: 0 | FH43: 0
B44: 0.239883 | C44: 0 | D44: 0 | E44: 0 | H44: 0.239883 | I44: 0 | J44: 0 | K44: 0 | N44: 0.239883 | O44: 0 | P44: 0 | Q44: 0 | U44: 0.239883 | V44: 0 | W44: 0 | X44: 0 | AA44: 0.239883 | AB44: 0 | AC44: 0 | AD44: 0 | AG44: 0.239883 | AH44: 0 | AI44: 0 | AJ44: 0 | AM44: 0.239883 | AN44: 0 | AO44: 0 | AP44: 0 | AS44: 0.239883 | AT44: 0 | AU44: 0 | AV44: 0 | AY44: 0.239883 | AZ44: 0 | BA44: 0 | BB44: 0 | BE44: 0.239883 | BF44: 0 | BG44: 0 | BH44: 0 | BK44: 0.239883 | BL44: 0 | BM44: 0 | BN44: 0 | BQ44: 0.239883 | BR44: 0 | BS44: 0 | BT44: 0 | BW44: 0.239883 | BX44: 0 | BY44: 0 | BZ44: 0 | CC44: 0.239883 | CD44: 0 | CE44: 0 | CF44: 0 | CI44: 0.239883 | CJ44: 0 | CK44: 0 | CL44: 0 | CO44: 0.239883 | CP44: 0 | CQ44: 0 | CR44: 0 | CU44: 0.239883 | CV44: 0 | CW44: 0 | CX44: 0 | DA44: 0.239883 | DB44: 0 | DC44: 0 | DD44: 0 | DG44: 0.239883 | DH44: 0 | DI44: 0 | DJ44: 0 | DM44: 0.239883 | DN44: 0 | DO44: 0 | DP44: 0 | DS44: 0.239883 | DT44: 0 | DU44: 0 | DV44: 0 | DY44: 0.239883 | DZ44: 0 | EA44: 0 | EB44: 0 | EE44: 0.239883 | EF44: 0 | EG44: 0 | EH44: 0 | EK44: 0.239883 | EL44: 0 | EM44: 0 | EN44: 0 | EO44: 0 | EP44: 0 | EQ44: 0 | ER44: 0 | ES44: 0 | ET44: 0 | EU44: 0 | EV44: 0 | EW44: 0 | EX44: 0 | EY44: 0 | EZ44: 0 | FA44: 0 | FB44: 0 | FC44: 0 | FD44: 0 | FE44: 0 | FF44: 0 | FG44: 0 | FH44: 0
B45: 0.275423 | C45: 0 | D45: 0 | E45: 0 | H45: 0.275423 | I45: 0 | J45: 0 | K45: 0 | N45: 0.275423 | O45: 0 | P45: 0 | Q45: 0 | U45: 0.275423 | V45: 0 | W45: 0 | X45: 0 | AA45: 0.275423 | AB45: 0 | AC45: 0 | AD45: 0 | AG45: 0.275423 | AH45: 0 | AI45: 0 | AJ45: 0 | AM45: 0.275423 | AN45: 0 | AO45: 0 | AP45: 0 | AS45: 0.275423 | AT45: 0 | AU45: 0 | AV45: 0 | AY45: 0.275423 | AZ45: 0 | BA45: 0 | BB45: 0 | BE45: 0.275423 | BF45: 0 | BG45: 0 | BH45: 0 | BK45: 0.275423 | BL45: 0 | BM45: 0 | BN45: 0 | BQ45: 0.275423 | BR45: 0 | BS45: 0 | BT45: 0 | BW45: 0.275423 | BX45: 0 | BY45: 0 | BZ45: 0 | CC45: 0.275423 | CD45: 0 | CE45: 0 | CF45: 0 | CI45: 0.275423 | CJ45: 0 | CK45: 0 | CL45: 0 | CO45: 0.275423 | CP45: 0 | CQ45: 0 | CR45: 0 | CU45: 0.275423 | CV45: 0 | CW45: 0 | CX45: 0 | DA45: 0.275423 | DB45: 0 | DC45: 0 | DD45: 0 | DG45: 0.275423 | DH45: 0 | DI45: 0 | DJ45: 0 | DM45: 0.275423 | DN45: 0 | DO45: 0 | DP45: 0 | DS45: 0.275423 | DT45: 0 | DU45: 0 | DV45: 0 | DY45: 0.275423 | DZ45: 0 | EA45: 0 | EB45: 0 | EE45: 0.275423 | EF45: 0 | EG45: 0 | EH45: 0 | EK45: 0.275423 | EL45: 0 | EM45: 0 | EN45: 0 | EO45: 0 | EP45: 0 | EQ45: 0 | ER45: 0 | ES45: 0 | ET45: 0 | EU45: 0 | EV45: 0 | EW45: 0 | EX45: 0 | EY45: 0 | EZ45: 0 | FA45: 0 | FB45: 0 | FC45: 0 | FD45: 0 | FE45: 0 | FF45: 0 | FG45: 0 | FH45: 0
B46: 0.316228 | C46: 0 | D46: 0 | E46: 0 | H46: 0.316228 | I46: 0 | J46: 0 | K46: 0 | N46: 0.316228 | O46: 0 | P46: 0 | Q46: 0 | U46: 0.316228 | V46: 0 | W46: 0 | X46: 0 | AA46: 0.316228 | AB46: 0 | AC46: 0 | AD46: 0 | AG46: 0.316228 | AH46: 0 | AI46: 0 | AJ46: 0 | AM46: 0.316228 | AN46: 0 | AO46: 0 | AP46: 0 | AS46: 0.316228 | AT46: 0 | AU46: 0 | AV46: 0 | AY46: 0.316228 | AZ46: 0 | BA46: 0 | BB46: 0 | BE46: 0.316228 | BF46: 0 | BG46: 0 | BH46: 0 | BK46: 0.316228 | BL46: 0 | BM46: 0 | BN46: 0 | BQ46: 0.316228 | BR46: 0 | BS46: 0 | BT46: 0 | BW46: 0.316228 | BX46: 0 | BY46: 0 | BZ46: 0 | CC46: 0.316228 | CD46: 0 | CE46: 0 | CF46: 0 | CI46: 0.316228 | CJ46: 0 | CK46: 0 | CL46: 0 | CO46: 0.316228 | CP46: 0 | CQ46: 0 | CR46: 0 | CU46: 0.316228 | CV46: 0 | CW46: 0 | CX46: 0 | DA46: 0.316228 | DB46: 0 | DC46: 0 | DD46: 0 | DG46: 0.316228 | DH46: 0 | DI46: 0 | DJ46: 0 | DM46: 0.316228 | DN46: 0 | DO46: 0 | DP46: 0 | DS46: 0.316228 | DT46: 0 | DU46: 0 | DV46: 0 | DY46: 0.316228 | DZ46: 0 | EA46: 0 | EB46: 0 | EE46: 0.316228 | EF46: 0 | EG46: 0 | EH46: 0 | EK46: 0.316228 | EL46: 0 | EM46: 0 | EN46: 0 | EO46: 0 | EP46: 0 | EQ46: 0 | ER46: 0 | ES46: 0 | ET46: 0 | EU46: 0 | EV46: 0 | EW46: 0 | EX46: 0 | EY46: 0 | EZ46: 0 | FA46: 0 | FB46: 0 | FC46: 0 | FD46: 0 | FE46: 0 | FF46: 0 | FG46: 0 | FH46: 0
B47: 0.363078 | C47: 0 | D47: 0 | E47: 0 | H47: 0.363078 | I47: 0 | J47: 0 | K47: 0 | N47: 0.363078 | O47: 0 | P47: 0 | Q47: 0 | U47: 0.363078 | V47: 0 | W47: 0 | X47: 0 | AA47: 0.363078 | AB47: 0 | AC47: 0 | AD47: 0 | AG47: 0.363078 | AH47: 0 | AI47: 0 | AJ47: 0 | AM47: 0.363078 | AN47: 0 | AO47: 0 | AP47: 0 | AS47: 0.363078 | AT47: 0 | AU47: 0 | AV47: 0 | AY47: 0.363078 | AZ47: 0.007469 | BA47: 0.010792 | BB47: 0.009584 | BE47: 0.363078 | BF47: 0 | BG47: 0 | BH47: 0 | BK47: 0.363078 | BL47: 0 | BM47: 0 | BN47: 0 | BQ47: 0.363078 | BR47: 0 | BS47: 0 | BT47: 0 | BW47: 0.363078 | BX47: 0 | BY47: 0 | BZ47: 0 | CC47: 0.363078 | CD47: 0 | CE47: 0 | CF47: 0 | CI47: 0.363078 | CJ47: 0 | CK47: 0 | CL47: 0 | CO47: 0.363078 | CP47: 0 | CQ47: 0 | CR47: 0 | CU47: 0.363078 | CV47: 0 | CW47: 0 | CX47: 0 | DA47: 0.363078 | DB47: 0 | DC47: 0 | DD47: 0 | DG47: 0.363078 | DH47: 0 | DI47: 0 | DJ47: 0 | DM47: 0.363078 | DN47: 0 | DO47: 0 | DP47: 0 | DS47: 0.363078 | DT47: 0 | DU47: 0 | DV47: 0 | DY47: 0.363078 | DZ47: 0 | EA47: 0 | EB47: 0 | EE47: 0.363078 | EF47: 0 | EG47: 0 | EH47: 0 | EK47: 0.363078 | EL47: 0 | EM47: 0 | EN47: 0 | EO47: 0 | EP47: 0 | EQ47: 0 | ER47: 0 | ES47: 0 | ET47: 0.009281666667 | EU47: 0 | EV47: 0 | EW47: 0 | EX47: 0 | EY47: 0 | EZ47: 0 | FA47: 0 | FB47: 0 | FC47: 0 | FD47: 0 | FE47: 0 | FF47: 0 | FG47: 0 | FH47: 0
B48: 0.416869 | C48: 0 | D48: 0 | E48: 0 | H48: 0.416869 | I48: 0 | J48: 0 | K48: 0 | N48: 0.416869 | O48: 0 | P48: 0 | Q48: 0 | U48: 0.416869 | V48: 0 | W48: 0 | X48: 0 | AA48: 0.416869 | AB48: 0 | AC48: 0 | AD48: 0 | AG48: 0.416869 | AH48: 0 | AI48: 0 | AJ48: 0 | AM48: 0.416869 | AN48: 0 | AO48: 0 | AP48: 0 | AS48: 0.416869 | AT48: 0 | AU48: 0 | AV48: 0 | AY48: 0.416869 | AZ48: 0.120744 | BA48: 0.172233 | BB48: 0.15232 | BE48: 0.416869 | BF48: 0 | BG48: 0 | BH48: 0 | BK48: 0.416869 | BL48: 0 | BM48: 0 | BN48: 0 | BQ48: 0.416869 | BR48: 0 | BS48: 0 | BT48: 0 | BW48: 0.416869 | BX48: 0 | BY48: 0 | BZ48: 0 | CC48: 0.416869 | CD48: 0 | CE48: 0 | CF48: 0 | CI48: 0.416869 | CJ48: 0 | CK48: 0 | CL48: 0 | CO48: 0.416869 | CP48: 0 | CQ48: 0 | CR48: 0 | CU48: 0.416869 | CV48: 0 | CW48: 0 | CX48: 0 | DA48: 0.416869 | DB48: 0 | DC48: 0 | DD48: 0 | DG48: 0.416869 | DH48: 0 | DI48: 0 | DJ48: 0 | DM48: 0.416869 | DN48: 0 | DO48: 0 | DP48: 0 | DS48: 0.416869 | DT48: 0 | DU48: 0 | DV48: 0 | DY48: 0.416869 | DZ48: 0 | EA48: 0 | EB48: 0 | EE48: 0.416869 | EF48: 0 | EG48: 0 | EH48: 0 | EK48: 0.416869 | EL48: 0 | EM48: 0 | EN48: 0 | EO48: 0 | EP48: 0 | EQ48: 0 | ER48: 0 | ES48: 0 | ET48: 0.1484323333 | EU48: 0 | EV48: 0 | EW48: 0 | EX48: 0 | EY48: 0 | EZ48: 0 | FA48: 0 | FB48: 0 | FC48: 0 | FD48: 0 | FE48: 0 | FF48: 0 | FG48: 0 | FH48: 0
B49: 0.47863 | C49: 0.058092 | D49: 0.039315 | E49: 0.063255 | H49: 0.47863 | I49: 0 | J49: 0 | K49: 0 | N49: 0.47863 | O49: 0 | P49: 0 | Q49: 0 | U49: 0.47863 | V49: 0.069889 | W49: 0.07242 | X49: 0.086632 | AA49: 0.47863 | AB49: 0 | AC49: 0 | AD49: 0 | AG49: 0.47863 | AH49: 0.077513 | AI49: 0.068751 | AJ49: 0.072501 | AM49: 0.47863 | AN49: 0 | AO49: 0 | AP49: 0 | AS49: 0.47863 | AT49: 0.056163 | AU49: 0.037077 | AV49: 0.036331 | AY49: 0.47863 | AZ49: 0.285139 | BA49: 0.370426 | BB49: 0.317225 | BE49: 0.47863 | BF49: 0 | BG49: 0 | BH49: 0 | BK49: 0.47863 | BL49: 0.111628 | BM49: 0.146386 | BN49: 0.119967 | BQ49: 0.47863 | BR49: 0 | BS49: 0 | BT49: 0 | BW49: 0.47863 | BX49: 0 | BY49: 0 | BZ49: 0 | CC49: 0.47863 | CD49: 0 | CE49: 0 | CF49: 0 | CI49: 0.47863 | CJ49: 0 | CK49: 0 | CL49: 0 | CO49: 0.47863 | CP49: 0 | CQ49: 0 | CR49: 0.01763 | CU49: 0.47863 | CV49: 0 | CW49: 0 | CX49: 0 | DA49: 0.47863 | DB49: 0 | DC49: 0.017116 | DD49: 0 | DG49: 0.47863 | DH49: 0 | DI49: 0 | DJ49: 0 | DM49: 0.47863 | DN49: 0.05906 | DO49: 0.057049 | DP49: 0 | DS49: 0.47863 | DT49: 0 | DU49: 0 | DV49: 0 | DY49: 0.47863 | DZ49: 0 | EA49: 0 | EB49: 0 | EE49: 0.47863 | EF49: 0 | EG49: 0 | EH49: 0 | EK49: 0.47863 | EL49: 0.053554 | EM49: 0 | EN49: 0 | EO49: 0.07631366667 | EP49: 0 | EQ49: 0.07292166667 | ER49: 0 | ES49: 0.04319033333 | ET49: 0.3242633333 | EU49: 0 | EV49: 0.1259936667 | EW49: 0 | EX49: 0 | EY49: 0 | EZ49: 0 | FA49: 0.005876666667 | FB49: 0 | FC49: 0.005705333333 | FD49: 0 | FE49: 0.038703 | FF49: 0 | FG49: 0 | FH49: 0
B50: 0.549541 | C50: 0.107006 | D50: 0.101202 | E50: 0.112378 | H50: 0.549541 | I50: 0 | J50: 0.014706 | K50: 0 | N50: 0.549541 | O50: 0.067911 | P50: 0.072374 | Q50: 0.061117 | U50: 0.549541 | V50: 0.119136 | W50: 0.123742 | X50: 0.145159 | AA50: 0.549541 | AB50: 0 | AC50: 0 | AD50: 0 | AG50: 0.549541 | AH50: 0.124191 | AI50: 0.110103 | AJ50: 0.115773 | AM50: 0.549541 | AN50: 0 | AO50: 0.052557 | AP50: 0.048964 | AS50: 0.549541 | AT50: 0.095234 | AU50: 0.091733 | AV50: 0.090989 | AY50: 0.549541 | AZ50: 0.42935 | BA50: 0.544818 | BB50: 0.461888 | BE50: 0.549541 | BF50: 0.060087 | BG50: 0.059888 | BH50: 0.057197 | BK50: 0.549541 | BL50: 0.232844 | BM50: 0.296119 | BN50: 0.253872 | BQ50: 0.549541 | BR50: 0.03845 | BS50: 0.035747 | BT50: 0.051273 | BW50: 0.549541 | BX50: 0.016758 | BY50: 0 | BZ50: 0 | CC50: 0.549541 | CD50: 0.057162 | CE50: 0.038743 | CF50: 0.060782 | CI50: 0.549541 | CJ50: 0.062953 | CK50: 0.060461 | CL50: 0.039987 | CO50: 0.549541 | CP50: 0.063865 | CQ50: 0.057929 | CR50: 0.07984 | CU50: 0.549541 | CV50: 0.071451 | CW50: 0.0661 | CX50: 0.084662 | DA50: 0.549541 | DB50: 0.081702 | DC50: 0.084741 | DD50: 0.070476 | DG50: 0.549541 | DH50: 0.053477 | DI50: 0.067751 | DJ50: 0.066944 | DM50: 0.549541 | DN50: 0.097682 | DO50: 0.094881 | DP50: 0.073198 | DS50: 0.549541 | DT50: 0.014719 | DU50: 0 | DV50: 0 | DY50: 0.549541 | DZ50: 0 | EA50: 0.016899 | EB50: 0.016784 | EE50: 0.549541 | EF50: 0 | EG50: 0 | EH50: 0 | EK50: 0.549541 | EL50: 0.106862 | EM50: 0.004902 | EN50: 0.067134 | EO50: 0.1293456667 | EP50: 0 | EQ50: 0.116689 | ER50: 0.03384033333 | ES50: 0.092652 | ET50: 0.4786853333 | EU50: 0.05905733333 | EV50: 0.260945 | EW50: 0.04182333333 | EX50: 0.005586 | EY50: 0.052229 | EZ50: 0.054467 | FA50: 0.06721133333 | FB50: 0.074071 | FC50: 0.078973 | FD50: 0.062724 | FE50: 0.088587 | FF50: 0.004906333333 | FG50: 0.01122766667 | FH50: 0
B51: 0.630957 | C51: 0.143826 | D51: 0.136867 | E51: 0.159118 | H51: 0.630957 | I51: 0 | J51: 0.044058 | K51: 0.032937 | N51: 0.630957 | O51: 0.098568 | P51: 0.101465 | Q51: 0.090314 | U51: 0.630957 | V51: 0.166535 | W51: 0.173235 | X51: 0.201391 | AA51: 0.630957 | AB51: 0.049176 | AC51: 0.013751 | AD51: 0.027268 | AG51: 0.630957 | AH51: 0.16798 | AI51: 0.148866 | AJ51: 0.156285 | AM51: 0.630957 | AN51: 0.054952 | AO51: 0.078001 | AP51: 0.071839 | AS51: 0.630957 | AT51: 0.124249 | AU51: 0.12097 | AV51: 0.120427 | AY51: 0.630957 | AZ51: 0.545383 | BA51: 0.685007 | BB51: 0.577357 | BE51: 0.630957 | BF51: 0.086338 | BG51: 0.08613 | BH51: 0.081202 | BK51: 0.630957 | BL51: 0.369488 | BM51: 0.467653 | BN51: 0.412443 | BQ51: 0.630957 | BR51: 0.073513 | BS51: 0.070147 | BT51: 0.074266 | BW51: 0.630957 | BX51: 0.046335 | BY51: 0 | BZ51: 0 | CC51: 0.630957 | CD51: 0.085906 | CE51: 0.080253 | CF51: 0.089707 | CI51: 0.630957 | CJ51: 0.093717 | CK51: 0.090139 | CL51: 0.080595 | CO51: 0.630957 | CP51: 0.092868 | CQ51: 0.084366 | CR51: 0.106243 | CU51: 0.630957 | CV51: 0.101659 | CW51: 0.097563 | CX51: 0.120833 | DA51: 0.630957 | DB51: 0.117332 | DC51: 0.114974 | DD51: 0.100879 | DG51: 0.630957 | DH51: 0.077359 | DI51: 0.096624 | DJ51: 0.095387 | DM51: 0.630957 | DN51: 0.126641 | DO51: 0.123216 | DP51: 0.103576 | DS51: 0.630957 | DT51: 0.04208 | DU51: 0.010975 | DV51: 0.012818 | DY51: 0.630957 | DZ51: 0.062442 | EA51: 0.07406 | EB51: 0.067281 | EE51: 0.630957 | EF51: 0 | EG51: 0 | EH51: 0 | EK51: 0.630957 | EL51: 0.1466036667 | EM51: 0.025665 | EN51: 0.09678233333 | EO51: 0.180387 | EP51: 0.030065 | EQ51: 0.1577103333 | ER51: 0.068264 | ES51: 0.121882 | ET51: 0.6025823333 | EU51: 0.08455666667 | EV51: 0.416528 | EW51: 0.072642 | EX51: 0.015445 | EY51: 0.08528866667 | EZ51: 0.08815033333 | FA51: 0.09449233333 | FB51: 0.106685 | FC51: 0.1110616667 | FD51: 0.08979 | FE51: 0.117811 | FF51: 0.02195766667 | FG51: 0.06792766667 | FH51: 0
B52: 0.724436 | C52: 0.174254 | D52: 0.165088 | E52: 0.188998 | H52: 0.724436 | I52: 0 | J52: 0.053994 | K52: 0.051571 | N52: 0.724436 | O52: 0.114832 | P52: 0.119004 | Q52: 0.106124 | U52: 0.724436 | V52: 0.198364 | W52: 0.206582 | X52: 0.239236 | AA52: 0.724436 | AB52: 0.07363 | AC52: 0.055259 | AD52: 0.05981 | AG52: 0.724436 | AH52: 0.196299 | AI52: 0.173888 | AJ52: 0.182403 | AM52: 0.724436 | AN52: 0.083002 | AO52: 0.091757 | AP52: 0.083948 | AS52: 0.724436 | AT52: 0.146353 | AU52: 0.142113 | AV52: 0.141795 | AY52: 0.724436 | AZ52: 0.638915 | BA52: 0.797049 | BB52: 0.668633 | BE52: 0.724436 | BF52: 0.100193 | BG52: 0.100047 | BH52: 0.093401 | BK52: 0.724436 | BL52: 0.479666 | BM52: 0.608224 | BN52: 0.545972 | BQ52: 0.724436 | BR52: 0.088032 | BS52: 0.084174 | BT52: 0.085999 | BW52: 0.724436 | BX52: 0.057 | BY52: 0.012149 | BZ52: 0 | CC52: 0.724436 | CD52: 0.10187 | CE52: 0.098624 | CF52: 0.105641 | CI52: 0.724436 | CJ52: 0.110448 | CK52: 0.106324 | CL52: 0.098282 | CO52: 0.724436 | CP52: 0.108813 | CQ52: 0.098928 | CR52: 0.125429 | CU52: 0.724436 | CV52: 0.120187 | CW52: 0.114106 | CX52: 0.143349 | DA52: 0.724436 | DB52: 0.140874 | DC52: 0.137417 | DD52: 0.120691 | DG52: 0.724436 | DH52: 0.090327 | DI52: 0.111911 | DJ52: 0.110455 | DM52: 0.724436 | DN52: 0.148953 | DO52: 0.145072 | DP52: 0.122372 | DS52: 0.724436 | DT52: 0.05318 | DU52: 0.05174 | DV52: 0.038544 | DY52: 0.724436 | DZ52: 0.09225 | EA52: 0.092773 | EB52: 0.0842 | EE52: 0.724436 | EF52: 0 | EG52: 0 | EH52: 0 | EK52: 0.724436 | EL52: 0.1761133333 | EM52: 0.03518833333 | EN52: 0.11332 | EO52: 0.2147273333 | EP52: 0.06289966667 | EQ52: 0.1841966667 | ER52: 0.08623566667 | ES52: 0.1434203333 | ET52: 0.7015323333 | EU52: 0.09788033333 | EV52: 0.5446206667 | EW52: 0.08606833333 | EX52: 0.02304966667 | EY52: 0.102045 | EZ52: 0.105018 | FA52: 0.1110566667 | FB52: 0.1258806667 | FC52: 0.132994 | FD52: 0.104231 | FE52: 0.138799 | FF52: 0.04782133333 | FG52: 0.089741 | FH52: 0
B53: 0.831764 | C53: 0.192843 | D53: 0.182302 | E53: 0.21125 | H53: 0.831764 | I53: 0.009234 | J53: 0.071405 | K53: 0.052241 | N53: 0.831764 | O53: 0.12362 | P53: 0.129204 | Q53: 0.115227 | U53: 0.831764 | V53: 0.223754 | W53: 0.233309 | X53: 0.269283 | AA53: 0.831764 | AB53: 0.080969 | AC53: 0.069669 | AD53: 0.067531 | AG53: 0.831764 | AH53: 0.216913 | AI53: 0.192043 | AJ53: 0.201291 | AM53: 0.831764 | AN53: 0.091632 | AO53: 0.099612 | AP53: 0.090344 | AS53: 0.831764 | AT53: 0.158447 | AU53: 0.153603 | AV53: 0.153269 | AY53: 0.831764 | AZ53: 0.70745 | BA53: 0.877671 | BB53: 0.733226 | BE53: 0.831764 | BF53: 0.107682 | BG53: 0.107684 | BH53: 0.099006 | BK53: 0.831764 | BL53: 0.583479 | BM53: 0.740262 | BN53: 0.673049 | BQ53: 0.831764 | BR53: 0.093265 | BS53: 0.089097 | BT53: 0.091304 | BW53: 0.831764 | BX53: 0.063432 | BY53: 0.021175 | BZ53: 0 | CC53: 0.831764 | CD53: 0.111913 | CE53: 0.108138 | CF53: 0.115534 | CI53: 0.831764 | CJ53: 0.120401 | CK53: 0.116041 | CL53: 0.106765 | CO53: 0.831764 | CP53: 0.11882 | CQ53: 0.108114 | CR53: 0.137961 | CU53: 0.831764 | CV53: 0.129908 | CW53: 0.122542 | CX53: 0.155343 | DA53: 0.831764 | DB53: 0.155496 | DC53: 0.151288 | DD53: 0.132846 | DG53: 0.831764 | DH53: 0.098173 | DI53: 0.120375 | DJ53: 0.118825 | DM53: 0.831764 | DN53: 0.162232 | DO53: 0.158002 | DP53: 0.13327 | DS53: 0.831764 | DT53: 0.055076 | DU53: 0.066692 | DV53: 0.045973 | DY53: 0.831764 | DZ53: 0.101296 | EA53: 0.098166 | EB53: 0.089593 | EE53: 0.831764 | EF53: 0 | EG53: 0 | EH53: 0 | EK53: 0.831764 | EL53: 0.195465 | EM53: 0.04429333333 | EN53: 0.1226836667 | EO53: 0.2421153333 | EP53: 0.072723 | EQ53: 0.2034156667 | ER53: 0.09386266667 | ES53: 0.1551063333 | ET53: 0.7727823333 | EU53: 0.1047906667 | EV53: 0.6655966667 | EW53: 0.091222 | EX53: 0.02820233333 | EY53: 0.1118616667 | EZ53: 0.1144023333 | FA53: 0.1216316667 | FB53: 0.135931 | FC53: 0.1465433333 | FD53: 0.1124576667 | FE53: 0.151168 | FF53: 0.05591366667 | FG53: 0.09635166667 | FH53: 0
B54: 0.954993 | C54: 0.205373 | D54: 0.193862 | E54: 0.224506 | H54: 0.954993 | I54: 0.033392 | J54: 0.086232 | K54: 0.059299 | N54: 0.954993 | O54: 0.129755 | P54: 0.134993 | Q54: 0.121472 | U54: 0.954993 | V54: 0.241491 | W54: 0.252114 | X54: 0.290042 | AA54: 0.954993 | AB54: 0.08312 | AC54: 0.075184 | AD54: 0.074681 | AG54: 0.954993 | AH54: 0.228634 | AI54: 0.20229 | AJ54: 0.211872 | AM54: 0.954993 | AN54: 0.094125 | AO54: 0.104924 | AP54: 0.094474 | AS54: 0.954993 | AT54: 0.1643 | AU54: 0.159076 | AV54: 0.158696 | AY54: 0.954993 | AZ54: 0.758118 | BA54: 0.934824 | BB54: 0.778185 | BE54: 0.954993 | BF54: 0.113398 | BG54: 0.113493 | BH54: 0.102917 | BK54: 0.954993 | BL54: 0.67356 | BM54: 0.853965 | BN54: 0.784042 | BQ54: 0.954993 | BR54: 0.096059 | BS54: 0.091742 | BT54: 0.094327 | BW54: 0.954993 | BX54: 0.076524 | BY54: 0.021518 | BZ54: 0 | CC54: 0.954993 | CD54: 0.11928 | CE54: 0.115268 | CF54: 0.123155 | CI54: 0.954993 | CJ54: 0.127831 | CK54: 0.123323 | CL54: 0.113062 | CO54: 0.954993 | CP54: 0.127129 | CQ54: 0.115729 | CR54: 0.146804 | CU54: 0.954993 | CV54: 0.134702 | CW54: 0.127566 | CX54: 0.161498 | DA54: 0.954993 | DB54: 0.166224 | DC54: 0.161155 | DD54: 0.141556 | DG54: 0.954993 | DH54: 0.104692 | DI54: 0.127246 | DJ54: 0.125662 | DM54: 0.954993 | DN54: 0.170229 | DO54: 0.165732 | DP54: 0.139999 | DS54: 0.954993 | DT54: 0.062067 | DU54: 0.07202 | DV54: 0.059066 | DY54: 0.954993 | DZ54: 0.105396 | EA54: 0.104308 | EB54: 0.095576 | EE54: 0.954993 | EF54: 0 | EG54: 0 | EH54: 0 | EK54: 0.954993 | EL54: 0.2079136667 | EM54: 0.059641 | EN54: 0.12874 | EO54: 0.2612156667 | EP54: 0.07766166667 | EQ54: 0.2142653333 | ER54: 0.097841 | ES54: 0.1606906667 | ET54: 0.823709 | EU54: 0.109936 | EV54: 0.7705223333 | EW54: 0.09404266667 | EX54: 0.03268066667 | EY54: 0.1192343333 | EZ54: 0.1214053333 | FA54: 0.1298873333 | FB54: 0.1412553333 | FC54: 0.1563116667 | FD54: 0.1192 | FE54: 0.1586533333 | FF54: 0.06438433333 | FG54: 0.10176 | FH54: 0
B55: 1.096478 | C55: 0.214903 | D55: 0.202657 | E55: 0.234909 | H55: 1.096478 | I55: 0.041536 | J55: 0.087687 | K55: 0.060012 | N55: 1.096478 | O55: 0.132844 | P55: 0.138415 | Q55: 0.125042 | U55: 1.096478 | V55: 0.257733 | W55: 0.269385 | X55: 0.308646 | AA55: 1.096478 | AB55: 0.087737 | AC55: 0.075268 | AD55: 0.074624 | AG55: 1.096478 | AH55: 0.236809 | AI55: 0.209384 | AJ55: 0.219112 | AM55: 1.096478 | AN55: 0.099067 | AO55: 0.108052 | AP55: 0.096384 | AS55: 1.096478 | AT55: 0.16667 | AU55: 0.161145 | AV55: 0.160713 | AY55: 1.096478 | AZ55: 0.801239 | BA55: 0.980263 | BB55: 0.813787 | BE55: 1.096478 | BF55: 0.116882 | BG55: 0.117009 | BH55: 0.104371 | BK55: 1.096478 | BL55: 0.763959 | BM55: 0.96662 | BN55: 0.894953 | BQ55: 1.096478 | BR55: 0.095995 | BS55: 0.091684 | BT55: 0.094791 | BW55: 1.096478 | BX55: 0.093249 | BY55: 0.021061 | BZ55: 0 | CC55: 1.096478 | CD55: 0.124859 | CE55: 0.120771 | CF55: 0.128857 | CI55: 1.096478 | CJ55: 0.133645 | CK55: 0.129085 | CL55: 0.117989 | CO55: 1.096478 | CP55: 0.133701 | CQ55: 0.121789 | CR55: 0.154338 | CU55: 1.096478 | CV55: 0.136823 | CW55: 0.129424 | CX55: 0.164405 | DA55: 1.096478 | DB55: 0.176026 | DC55: 0.17001 | DD55: 0.149399 | DG55: 1.096478 | DH55: 0.109782 | DI55: 0.131808 | DJ55: 0.130222 | DM55: 1.096478 | DN55: 0.176182 | DO55: 0.1714 | DP55: 0.145038 | DS55: 1.096478 | DT55: 0.059815 | DU55: 0.07285 | DV55: 0.076032 | DY55: 1.096478 | DZ55: 0.113648 | EA55: 0.108975 | EB55: 0.100263 | EE55: 1.096478 | EF55: 0 | EG55: 0 | EH55: 0 | EK55: 1.096478 | EL55: 0.2174896667 | EM55: 0.06307833333 | EN55: 0.1321003333 | EO55: 0.278588 | EP55: 0.07920966667 | EQ55: 0.2217683333 | ER55: 0.1011676667 | ES55: 0.1628426667 | ET55: 0.8650963333 | EU55: 0.112754 | EV55: 0.8751773333 | EW55: 0.09415666667 | EX55: 0.03810333333 | EY55: 0.124829 | EZ55: 0.1269063333 | FA55: 0.1366093333 | FB55: 0.1435506667 | FC55: 0.165145 | FD55: 0.1239373333 | FE55: 0.1642066667 | FF55: 0.06956566667 | FG55: 0.1076286667 | FH55: 0
B56: 1.258925 | C56: 0.226755 | D56: 0.213705 | E56: 0.24736 | H56: 1.258925 | I56: 0.050345 | J56: 0.094143 | K56: 0.062826 | N56: 1.258925 | O56: 0.137264 | P56: 0.14293 | Q56: 0.129958 | U56: 1.258925 | V56: 0.277085 | W56: 0.289868 | X56: 0.330434 | AA56: 1.258925 | AB56: 0.091785 | AC56: 0.080768 | AD56: 0.080133 | AG56: 1.258925 | AH56: 0.245794 | AI56: 0.217225 | AJ56: 0.227096 | AM56: 1.258925 | AN56: 0.103422 | AO56: 0.112607 | AP56: 0.099491 | AS56: 1.258925 | AT56: 0.169991 | AU56: 0.164122 | AV56: 0.163758 | AY56: 1.258925 | AZ56: 0.848299 | BA56: 1.027423 | BB56: 0.851826 | BE56: 1.258925 | BF56: 0.122059 | BG56: 0.12212 | BH56: 0.107292 | BK56: 1.258925 | BL56: 0.862883 | BM56: 1.089224 | BN56: 1.016499 | BQ56: 1.258925 | BR56: 0.096653 | BS56: 0.092351 | BT56: 0.096379 | BW56: 1.258925 | BX56: 0.09703 | BY56: 0.03038 | BZ56: 0.007585 | CC56: 1.258925 | CD56: 0.132623 | CE56: 0.128357 | CF56: 0.136595 | CI56: 1.258925 | CJ56: 0.142512 | CK56: 0.137805 | CL56: 0.125689 | CO56: 1.258925 | CP56: 0.142535 | CQ56: 0.129941 | CR56: 0.164054 | CU56: 1.258925 | CV56: 0.140439 | CW56: 0.132914 | CX56: 0.168986 | DA56: 1.258925 | DB56: 0.189895 | DC56: 0.182604 | DD56: 0.160661 | DG56: 1.258925 | DH56: 0.116936 | DI56: 0.138407 | DJ56: 0.136775 | DM56: 1.258925 | DN56: 0.184747 | DO56: 0.179586 | DP56: 0.152532 | DS56: 1.258925 | DT56: 0.072652 | DU56: 0.078929 | DV56: 0.077154 | DY56: 1.258925 | DZ56: 0.121499 | EA56: 0.115007 | EB56: 0.106185 | EE56: 1.258925 | EF56: 0 | EG56: 0 | EH56: 0 | EK56: 1.258925 | EL56: 0.2292733333 | EM56: 0.06910466667 | EN56: 0.1367173333 | EO56: 0.299129 | EP56: 0.08422866667 | EQ56: 0.2300383333 | ER56: 0.1051733333 | ES56: 0.165957 | ET56: 0.9091826667 | EU56: 0.117157 | EV56: 0.9895353333 | EW56: 0.09512766667 | EX56: 0.04499833333 | EY56: 0.132525 | EZ56: 0.1353353333 | FA56: 0.14551 | FB56: 0.1474463333 | FC56: 0.17772 | FD56: 0.130706 | FE56: 0.1722883333 | FF56: 0.076245 | FG56: 0.1142303333 | FH56: 0
B57: 1.44544 | C57: 0.245735 | D57: 0.231512 | E57: 0.267551 | H57: 1.44544 | I57: 0.071909 | J57: 0.102762 | K57: 0.074528 | N57: 1.44544 | O57: 0.145782 | P57: 0.151721 | Q57: 0.139005 | U57: 1.44544 | V57: 0.304979 | W57: 0.319201 | X57: 0.361732 | AA57: 1.44544 | AB57: 0.099279 | AC57: 0.086862 | AD57: 0.086324 | AG57: 1.44544 | AH57: 0.260569 | AI57: 0.230274 | AJ57: 0.24048 | AM57: 1.44544 | AN57: 0.111919 | AO57: 0.121109 | AP57: 0.106089 | AS57: 1.44544 | AT57: 0.178355 | AU57: 0.171971 | AV57: 0.171882 | AY57: 1.44544 | AZ57: 0.911182 | BA57: 1.090193 | BB57: 0.904288 | BE57: 1.44544 | BF57: 0.131334 | BG57: 0.131276 | BH57: 0.113966 | BK57: 1.44544 | BL57: 0.982633 | BM57: 1.238466 | BN57: 1.165335 | BQ57: 1.44544 | BR57: 0.100342 | BS57: 0.095942 | BT57: 0.101356 | BW57: 1.44544 | BX57: 0.108378 | BY57: 0.048422 | BZ57: 0.047537 | CC57: 1.44544 | CD57: 0.145667 | CE57: 0.141032 | CF57: 0.149159 | CI57: 1.44544 | CJ57: 0.157906 | CK57: 0.15283 | CL57: 0.139381 | CO57: 1.44544 | CP57: 0.156333 | CQ57: 0.142682 | CR57: 0.179338 | CU57: 1.44544 | CV57: 0.1493 | CW57: 0.141358 | CX57: 0.179698 | DA57: 1.44544 | DB57: 0.212558 | DC57: 0.203459 | DD57: 0.179382 | DG57: 1.44544 | DH57: 0.128536 | DI57: 0.149742 | DJ57: 0.147968 | DM57: 1.44544 | DN57: 0.200443 | DO57: 0.194728 | DP57: 0.166369 | DS57: 1.44544 | DT57: 0.094626 | DU57: 0.085968 | DV57: 0.086549 | DY57: 1.44544 | DZ57: 0.133292 | EA57: 0.123737 | EB57: 0.114613 | EE57: 1.44544 | EF57: 0 | EG57: 0 | EH57: 0.04215 | EK57: 1.44544 | EL57: 0.248266 | EM57: 0.08306633333 | EN57: 0.1455026667 | EO57: 0.3286373333 | EP57: 0.09082166667 | EQ57: 0.2437743333 | ER57: 0.113039 | ES57: 0.1740693333 | ET57: 0.9685543333 | EU57: 0.1255253333 | EV57: 1.128811333 | EW57: 0.09921333333 | EX57: 0.06811233333 | EY57: 0.145286 | EZ57: 0.150039 | FA57: 0.159451 | FB57: 0.1567853333 | FC57: 0.1984663333 | FD57: 0.142082 | FE57: 0.18718 | FF57: 0.08904766667 | FG57: 0.1238806667 | FH57: 0.01405
B58: 1.659587 | C58: 0.274408 | D58: 0.258449 | E58: 0.298496 | H58: 1.659587 | I58: 0.078214 | J58: 0.115953 | K58: 0.101931 | N58: 1.659587 | O58: 0.160313 | P58: 0.166706 | Q58: 0.154059 | U58: 1.659587 | V58: 0.343769 | W58: 0.35982 | X58: 0.405341 | AA58: 1.659587 | AB58: 0.110737 | AC58: 0.096966 | AD58: 0.096557 | AG58: 1.659587 | AH58: 0.283799 | AI58: 0.250947 | AJ58: 0.261789 | AM58: 1.659587 | AN58: 0.125416 | AO58: 0.135144 | AP58: 0.117728 | AS58: 1.659587 | AT58: 0.194319 | AU58: 0.187193 | AV58: 0.187642 | AY58: 1.659587 | AZ58: 0.99508 | BA58: 1.175181 | BB58: 0.976805 | BE58: 1.659587 | BF58: 0.146256 | BG58: 0.146157 | BH58: 0.125997 | BK58: 1.659587 | BL58: 1.125908 | BM58: 1.419371 | BN58: 1.346983 | BQ58: 1.659587 | BR58: 0.108732 | BS58: 0.104033 | BT58: 0.111281 | BW58: 1.659587 | BX58: 0.123936 | BY58: 0.055965 | BZ58: 0.065472 | CC58: 1.659587 | CD58: 0.165977 | CE58: 0.160694 | CF58: 0.168261 | CI58: 1.659587 | CJ58: 0.18195 | CK58: 0.176188 | CL58: 0.16101 | CO58: 1.659587 | CP58: 0.176774 | CQ58: 0.161576 | CR58: 0.202024 | CU58: 1.659587 | CV58: 0.165784 | CW58: 0.157115 | CX58: 0.199424 | DA58: 1.659587 | DB58: 0.246703 | DC58: 0.235121 | DD58: 0.20784 | DG58: 1.659587 | DH58: 0.146146 | DI58: 0.167708 | DJ58: 0.165671 | DM58: 1.659587 | DN58: 0.225965 | DO58: 0.219496 | DP58: 0.1889 | DS58: 1.659587 | DT58: 0.104203 | DU58: 0.097345 | DV58: 0.097859 | DY58: 1.659587 | DZ58: 0.149035 | EA58: 0.135986 | EB58: 0.126347 | EE58: 1.659587 | EF58: 0 | EG58: 0 | EH58: 0.086492 | EK58: 1.659587 | EL58: 0.2771176667 | EM58: 0.09869933333 | EN58: 0.1603593333 | EO58: 0.3696433333 | EP58: 0.10142 | EQ58: 0.2655116667 | ER58: 0.126096 | ES58: 0.189718 | ET58: 1.049022 | EU58: 0.13947 | EV58: 1.297420667 | EW58: 0.1080153333 | EX58: 0.081791 | EY58: 0.1649773333 | EZ58: 0.1730493333 | FA58: 0.1801246667 | FB58: 0.1741076667 | FC58: 0.229888 | FD58: 0.1598416667 | FE58: 0.2114536667 | FF58: 0.09980233333 | FG58: 0.1371226667 | FH58: 0.02883066667
B59: 1.905461 | C59: 0.313008 | D59: 0.294677 | E59: 0.340801 | H59: 1.905461 | I59: 0.09133 | J59: 0.133412 | K59: 0.115071 | N59: 1.905461 | O59: 0.181121 | P59: 0.188226 | Q59: 0.175444 | U59: 1.905461 | V59: 0.393423 | W59: 0.411714 | X59: 0.461312 | AA59: 1.905461 | AB59: 0.126364 | AC59: 0.110524 | AD59: 0.110278 | AG59: 1.905461 | AH59: 0.315864 | AI59: 0.279615 | AJ59: 0.291405 | AM59: 1.905461 | AN59: 0.144334 | AO59: 0.154808 | AP59: 0.13458 | AS59: 1.905461 | AT59: 0.21843 | AU59: 0.210338 | AV59: 0.21159 | AY59: 1.905461 | AZ59: 1.099509 | BA59: 1.282307 | BB59: 1.069046 | BE59: 1.905461 | BF59: 0.166845 | BG59: 0.166969 | BH59: 0.143454 | BK59: 1.905461 | BL59: 1.290262 | BM59: 1.630245 | BN59: 1.5604 | BQ59: 1.905461 | BR59: 0.122045 | BS59: 0.116809 | BT59: 0.126213 | BW59: 1.905461 | BX59: 0.145371 | BY59: 0.08548 | BZ59: 0.07699 | CC59: 1.905461 | CD59: 0.194113 | CE59: 0.187885 | CF59: 0.194145 | CI59: 1.905461 | CJ59: 0.215056 | CK59: 0.208257 | CL59: 0.190977 | CO59: 1.905461 | CP59: 0.204128 | CQ59: 0.1869 | CR59: 0.232468 | CU59: 1.905461 | CV59: 0.190473 | CW59: 0.180757 | CX59: 0.22897 | DA59: 1.905461 | DB59: 0.293114 | DC59: 0.278252 | DD59: 0.246614 | DG59: 1.905461 | DH59: 0.170127 | DI59: 0.192691 | DJ59: 0.190281 | DM59: 1.905461 | DN59: 0.262031 | DO59: 0.254611 | DP59: 0.22077 | DS59: 1.905461 | DT59: 0.121062 | DU59: 0.112839 | DV59: 0.113745 | DY59: 1.905461 | DZ59: 0.16883 | EA59: 0.151644 | EB59: 0.141369 | EE59: 1.905461 | EF59: 0.023049 | EG59: 0 | EH59: 0.099085 | EK59: 1.905461 | EL59: 0.316162 | EM59: 0.113271 | EN59: 0.181597 | EO59: 0.4221496667 | EP59: 0.115722 | EQ59: 0.295628 | ER59: 0.144574 | ES59: 0.2134526667 | ET59: 1.150287333 | EU59: 0.1590893333 | EV59: 1.493635667 | EW59: 0.121689 | EX59: 0.1026136667 | EY59: 0.1920476667 | EZ59: 0.2047633333 | FA59: 0.207832 | FB59: 0.2000666667 | FC59: 0.27266 | FD59: 0.1843663333 | FE59: 0.245804 | FF59: 0.115882 | FG59: 0.1539476667 | FH59: 0.04071133333
B60: 2.187762 | C60: 0.358654 | D60: 0.337438 | E60: 0.391498 | H60: 2.187762 | I60: 0.105685 | J60: 0.153772 | K60: 0.133023 | N60: 2.187762 | O60: 0.206458 | P60: 0.214519 | Q60: 0.201489 | U60: 2.187762 | V60: 0.450036 | W60: 0.470846 | X60: 0.525274 | AA60: 2.187762 | AB60: 0.144698 | AC60: 0.126476 | AD60: 0.126378 | AG60: 2.187762 | AH60: 0.354014 | AI60: 0.313817 | AJ60: 0.326767 | AM60: 2.187762 | AN60: 0.167077 | AO60: 0.178289 | AP60: 0.155082 | AS60: 2.187762 | AT60: 0.248779 | AU60: 0.239557 | AV60: 0.241812 | AY60: 2.187762 | AZ60: 1.215427 | BA60: 1.401941 | BB60: 1.17234 | BE60: 2.187762 | BF60: 0.191176 | BG60: 0.191936 | BH60: 0.164554 | BK60: 2.187762 | BL60: 1.462429 | BM60: 1.854846 | BN60: 1.789618 | BQ60: 2.187762 | BR60: 0.138912 | BS60: 0.132932 | BT60: 0.144536 | BW60: 2.187762 | BX60: 0.171232 | BY60: 0.100161 | BZ60: 0.091399 | CC60: 2.187762 | CD60: 0.228466 | CE60: 0.221067 | CF60: 0.225011 | CI60: 2.187762 | CJ60: 0.255149 | CK60: 0.24701 | CL60: 0.227431 | CO60: 2.187762 | CP60: 0.236583 | CQ60: 0.21701 | CR60: 0.268661 | CU60: 2.187762 | CV60: 0.221636 | CW60: 0.210651 | CX60: 0.266398 | DA60: 2.187762 | DB60: 0.349291 | DC60: 0.330377 | DD60: 0.293443 | DG60: 2.187762 | DH60: 0.198977 | DI60: 0.222971 | DJ60: 0.22012 | DM60: 2.187762 | DN60: 0.306354 | DO60: 0.297827 | DP60: 0.260028 | DS60: 2.187762 | DT60: 0.140873 | DU60: 0.131669 | DV60: 0.132906 | DY60: 2.187762 | DZ60: 0.19122 | EA60: 0.169431 | EB60: 0.158552 | EE60: 2.187762 | EF60: 0.067707 | EG60: 0.062767 | EH60: 0.118109 | EK60: 2.187762 | EL60: 0.36253 | EM60: 0.1308266667 | EN60: 0.2074886667 | EO60: 0.482052 | EP60: 0.1325173333 | EQ60: 0.3315326667 | ER60: 0.166816 | ES60: 0.2433826667 | ET60: 1.263236 | EU60: 0.1825553333 | EV60: 1.702297667 | EW60: 0.1387933333 | EX60: 0.1209306667 | EY60: 0.224848 | EZ60: 0.2431966667 | FA60: 0.2407513333 | FB60: 0.232895 | FC60: 0.3243703333 | FD60: 0.2140226667 | FE60: 0.2880696667 | FF60: 0.1351493333 | FG60: 0.1730676667 | FH60: 0.082861
B61: 2.511886 | C61: 0.408244 | D61: 0.383812 | E61: 0.447039 | H61: 2.511886 | I61: 0.121044 | J61: 0.175193 | K61: 0.151598 | N61: 2.511886 | O61: 0.234101 | P61: 0.243304 | Q61: 0.230008 | U61: 2.511886 | V61: 0.509071 | W61: 0.532521 | X61: 0.592165 | AA61: 2.511886 | AB61: 0.163908 | AC61: 0.143191 | AD61: 0.143153 | AG61: 2.511886 | AH61: 0.394862 | AI61: 0.350456 | AJ61: 0.364671 | AM61: 2.511886 | AN61: 0.191503 | AO61: 0.203247 | AP61: 0.177107 | AS61: 2.511886 | AT61: 0.282993 | AU61: 0.272505 | AV61: 0.275889 | AY61: 2.511886 | AZ61: 1.332524 | BA61: 1.522888 | BB61: 1.276635 | BE61: 2.511886 | BF61: 0.216804 | BG61: 0.218616 | BH61: 0.186907 | BK61: 2.511886 | BL61: 1.629012 | BM61: 2.075653 | BN61: 2.016766 | BQ61: 2.511886 | BR61: 0.157512 | BS61: 0.150645 | BT61: 0.164197 | BW61: 2.511886 | BX61: 0.19997 | BY61: 0.118129 | BZ61: 0.108042 | CC61: 2.511886 | CD61: 0.266911 | CE61: 0.258212 | CF61: 0.258706 | CI61: 2.511886 | CJ61: 0.299707 | CK61: 0.289989 | CL61: 0.268108 | CO61: 2.511886 | CP61: 0.271867 | CQ61: 0.249813 | CR61: 0.30809 | CU61: 2.511886 | CV61: 0.257056 | CW61: 0.244657 | CX61: 0.30915 | DA61: 2.511886 | DB61: 0.41202 | DC61: 0.388345 | DD61: 0.345425 | DG61: 2.511886 | DH61: 0.230651 | DI61: 0.256187 | DJ61: 0.252862 | DM61: 2.511886 | DN61: 0.355856 | DO61: 0.346082 | DP61: 0.30404 | DS61: 2.511886 | DT61: 0.162868 | DU61: 0.15237 | DV61: 0.154129 | DY61: 2.511886 | DZ61: 0.214773 | EA61: 0.187961 | EB61: 0.176629 | EE61: 2.511886 | EF61: 0.081371 | EG61: 0.073482 | EH61: 0.139044 | EK61: 2.511886 | EL61: 0.4130316667 | EM61: 0.1492783333 | EN61: 0.2358043333 | EO61: 0.5445856667 | EP61: 0.150084 | EQ61: 0.3699963333 | ER61: 0.190619 | ES61: 0.277129 | ET61: 1.377349 | EU61: 0.2074423333 | EV61: 1.907143667 | EW61: 0.1574513333 | EX61: 0.142047 | EY61: 0.2612763333 | EZ61: 0.2859346667 | FA61: 0.27659 | FB61: 0.2702876667 | FC61: 0.38193 | FD61: 0.2465666667 | FE61: 0.335326 | FF61: 0.1564556667 | FG61: 0.193121 | FH61: 0.09796566667
B62: 2.884031 | C62: 0.459245 | D62: 0.431486 | E62: 0.504129 | H62: 2.884031 | I62: 0.135907 | J62: 0.19584 | K62: 0.169487 | N62: 2.884031 | O62: 0.261951 | P62: 0.272377 | Q62: 0.258851 | U62: 2.884031 | V62: 0.56603 | W62: 0.592069 | X62: 0.657028 | AA62: 2.884031 | AB62: 0.182166 | AC62: 0.159051 | AD62: 0.158905 | AG62: 2.884031 | AH62: 0.435246 | AI62: 0.386585 | AJ62: 0.402091 | AM62: 2.884031 | AN62: 0.215301 | AO62: 0.227332 | AP62: 0.198453 | AS62: 2.884031 | AT62: 0.31901 | AU62: 0.3071 | AV62: 0.311678 | AY62: 2.884031 | AZ62: 1.440813 | BA62: 1.634538 | BB62: 1.372484 | BE62: 2.884031 | BF62: 0.241319 | BG62: 0.244376 | BH62: 0.208103 | BK62: 2.884031 | BL62: 1.778614 | BM62: 2.276716 | BN62: 2.224998 | BQ62: 2.884031 | BR62: 0.176179 | BS62: 0.168355 | BT62: 0.183328 | BW62: 2.884031 | BX62: 0.229674 | BY62: 0.136968 | BZ62: 0.12561 | CC62: 2.884031 | CD62: 0.307051 | CE62: 0.297018 | CF62: 0.293118 | CI62: 2.884031 | CJ62: 0.346119 | CK62: 0.334666 | CL62: 0.310628 | CO62: 2.884031 | CP62: 0.307527 | CQ62: 0.283013 | CR62: 0.348042 | CU62: 2.884031 | CV62: 0.294656 | CW62: 0.280725 | CX62: 0.354745 | DA62: 2.884031 | DB62: 0.477551 | DC62: 0.448595 | DD62: 0.399273 | DG62: 2.884031 | DH62: 0.26277 | DI62: 0.289689 | DJ62: 0.285881 | DM62: 2.884031 | DN62: 0.407092 | DO62: 0.395923 | DP62: 0.3498 | DS62: 2.884031 | DT62: 0.185106 | DU62: 0.173142 | DV62: 0.175637 | DY62: 2.884031 | DZ62: 0.238272 | EA62: 0.2061 | EB62: 0.194515 | EE62: 2.884031 | EF62: 0.097752 | EG62: 0.088578 | EH62: 0.161202 | EK62: 2.884031 | EL62: 0.4649533333 | EM62: 0.167078 | EN62: 0.264393 | EO62: 0.6050423333 | EP62: 0.1667073333 | EQ62: 0.407974 | ER62: 0.2136953333 | ES62: 0.312596 | ET62: 1.482611667 | EU62: 0.231266 | EV62: 2.093442667 | EW62: 0.175954 | EX62: 0.164084 | EY62: 0.2990623333 | EZ62: 0.330471 | FA62: 0.3128606667 | FB62: 0.310042 | FC62: 0.4418063333 | FD62: 0.2794466667 | FE62: 0.3842716667 | FF62: 0.1779616667 | FG62: 0.2129623333 | FH62: 0.115844
B63: 3.311311 | C63: 0.510156 | D63: 0.479146 | E63: 0.560463 | H63: 3.311311 | I63: 0.149136 | J63: 0.214317 | K63: 0.185576 | N63: 3.311311 | O63: 0.288538 | P63: 0.300131 | Q63: 0.286412 | U63: 3.311311 | V63: 0.617296 | W63: 0.645717 | X63: 0.715905 | AA63: 3.311311 | AB63: 0.198157 | AC63: 0.172883 | AD63: 0.172416 | AG63: 3.311311 | AH63: 0.47285 | AI63: 0.420025 | AJ63: 0.436806 | AM63: 3.311311 | AN63: 0.236592 | AO63: 0.248712 | AP63: 0.217356 | AS63: 3.311311 | AT63: 0.355495 | AU63: 0.341962 | AV63: 0.347776 | AY63: 3.311311 | AZ63: 1.53185 | BA63: 1.728134 | BB63: 1.452272 | BE63: 3.311311 | BF63: 0.262894 | BG63: 0.267031 | BH63: 0.226309 | BK63: 3.311311 | BL63: 1.903967 | BM63: 2.446704 | BN63: 2.401909 | BQ63: 3.311311 | BR63: 0.193805 | BS63: 0.185012 | BT63: 0.200686 | BW63: 3.311311 | BX63: 0.258567 | BY63: 0.155085 | BZ63: 0.142599 | CC63: 3.311311 | CD63: 0.346666 | CE63: 0.33533 | CF63: 0.326604 | CI63: 3.311311 | CJ63: 0.392157 | CK63: 0.378916 | CL63: 0.352899 | CO63: 3.311311 | CP63: 0.34136 | CQ63: 0.314516 | CR63: 0.386056 | CU63: 3.311311 | CV63: 0.332976 | CW63: 0.317384 | CX63: 0.40138 | DA63: 3.311311 | DB63: 0.542255 | DC63: 0.50778 | DD63: 0.451937 | DG63: 3.311311 | DH63: 0.2931 | DI63: 0.321079 | DJ63: 0.316792 | DM63: 3.311311 | DN63: 0.456864 | DO63: 0.444167 | DP63: 0.394437 | DS63: 3.311311 | DT63: 0.205723 | DU63: 0.192256 | DV63: 0.195649 | DY63: 3.311311 | DZ63: 0.260965 | EA63: 0.223252 | EB63: 0.211611 | EE63: 3.311311 | EF63: 0.113941 | EG63: 0.103959 | EH63: 0.18361 | EK63: 3.311311 | EL63: 0.5165883333 | EM63: 0.1830096667 | EN63: 0.2916936667 | EO63: 0.6596393333 | EP63: 0.181152 | EQ63: 0.443227 | ER63: 0.23422 | ES63: 0.348411 | ET63: 1.570752 | EU63: 0.252078 | EV63: 2.25086 | EW63: 0.1931676667 | EX63: 0.185417 | EY63: 0.3362 | EZ63: 0.3746573333 | FA63: 0.3473106667 | FB63: 0.35058 | FC63: 0.5006573333 | FD63: 0.3103236667 | FE63: 0.4318226667 | FF63: 0.197876 | FG63: 0.2319426667 | FH63: 0.1338366667
B64: 3.801894 | C64: 0.56044 | D64: 0.526377 | E64: 0.614879 | H64: 3.801894 | I64: 0.160122 | J64: 0.229824 | K64: 0.199132 | N64: 3.801894 | O64: 0.313173 | P64: 0.325751 | Q64: 0.311829 | U64: 3.801894 | V64: 0.660481 | W64: 0.690938 | X64: 0.76614 | AA64: 3.801894 | AB64: 0.211273 | AC64: 0.184156 | AD64: 0.183173 | AG64: 3.801894 | AH64: 0.50639 | AI64: 0.449589 | AJ64: 0.467601 | AM64: 3.801894 | AN64: 0.254227 | AO64: 0.266314 | AP64: 0.232748 | AS64: 3.801894 | AT64: 0.391839 | AU64: 0.37645 | AV64: 0.383544 | AY64: 3.801894 | AZ64: 1.598997 | BA64: 1.796879 | BB64: 1.510363 | BE64: 3.801894 | BF64: 0.280467 | BG64: 0.285158 | BH64: 0.240527 | BK64: 3.801894 | BL64: 2.001651 | BM64: 2.578915 | BN64: 2.539799 | BQ64: 3.801894 | BR64: 0.20995 | BS64: 0.200207 | BT64: 0.215772 | BW64: 3.801894 | BX64: 0.285195 | BY64: 0.171724 | BZ64: 0.158262 | CC64: 3.801894 | CD64: 0.383953 | CE64: 0.371374 | CF64: 0.358056 | CI64: 3.801894 | CJ64: 0.436116 | CK64: 0.421144 | CL64: 0.393261 | CO64: 3.801894 | CP64: 0.371564 | CQ64: 0.342584 | CR64: 0.420092 | CU64: 3.801894 | CV64: 0.371346 | CW64: 0.353932 | CX64: 0.448152 | DA64: 3.801894 | DB64: 0.603019 | DC64: 0.56308 | DD64: 0.500906 | DG64: 3.801894 | DH64: 0.319792 | DI64: 0.348489 | DJ64: 0.34374 | DM64: 3.801894 | DN64: 0.50256 | DO64: 0.488251 | DP64: 0.435487 | DS64: 3.801894 | DT64: 0.223222 | DU64: 0.208331 | DV64: 0.212673 | DY64: 3.801894 | DZ64: 0.282304 | EA64: 0.23913 | EB64: 0.227625 | EE64: 3.801894 | EF64: 0.131602 | EG64: 0.120779 | EH64: 0.204928 | EK64: 3.801894 | EL64: 0.567232 | EM64: 0.1963593333 | EN64: 0.3169176667 | EO64: 0.705853 | EP64: 0.1928673333 | EQ64: 0.4745266667 | ER64: 0.2510963333 | ES64: 0.3839443333 | ET64: 1.635413 | EU64: 0.2687173333 | EV64: 2.373455 | EW64: 0.208643 | EX64: 0.2050603333 | EY64: 0.3711276667 | EZ64: 0.4168403333 | FA64: 0.37808 | FB64: 0.3911433333 | FC64: 0.5556683333 | FD64: 0.3373403333 | FE64: 0.4754326667 | FF64: 0.214742 | FG64: 0.2496863333 | FH64: 0.1524363333
B65: 4.365158 | C65: 0.610013 | D65: 0.573137 | E65: 0.666885 | H65: 4.365158 | I65: 0.168654 | J65: 0.242097 | K65: 0.20998 | N65: 4.365158 | O65: 0.335826 | P65: 0.349126 | Q65: 0.334873 | U65: 4.365158 | V65: 0.694484 | W65: 0.726536 | X65: 0.806428 | AA65: 4.365158 | AB65: 0.221606 | AC65: 0.192977 | AD65: 0.191357 | AG65: 4.365158 | AH65: 0.535598 | AI65: 0.475076 | AJ65: 0.49427 | AM65: 4.365158 | AN65: 0.267822 | AO65: 0.279931 | AP65: 0.244373 | AS65: 4.365158 | AT65: 0.427798 | AU65: 0.410338 | AV65: 0.418747 | AY65: 4.365158 | AZ65: 1.638398 | BA65: 1.836976 | BB65: 1.543908 | BE65: 4.365158 | BF65: 0.293741 | BG65: 0.298199 | BH65: 0.25066 | BK65: 4.365158 | BL65: 2.071798 | BM65: 2.671449 | BN65: 2.636052 | BQ65: 4.365158 | BR65: 0.224771 | BS65: 0.214122 | BT65: 0.228814 | BW65: 4.365158 | BX65: 0.308269 | BY65: 0.185879 | BZ65: 0.171592 | CC65: 4.365158 | CD65: 0.417345 | CE65: 0.403623 | CF65: 0.386627 | CI65: 4.365158 | CJ65: 0.47645 | CK65: 0.459919 | CL65: 0.430226 | CO65: 4.365158 | CP65: 0.396618 | CQ65: 0.365724 | CR65: 0.448402 | CU65: 4.365158 | CV65: 0.409622 | CW65: 0.390166 | CX65: 0.494708 | DA65: 4.365158 | DB65: 0.656921 | DC65: 0.611901 | DD65: 0.543935 | DG65: 4.365158 | DH65: 0.341336 | DI65: 0.370559 | DJ65: 0.36537 | DM65: 4.365158 | DN65: 0.542072 | DO65: 0.526156 | DP65: 0.470846 | DS65: 4.365158 | DT65: 0.236465 | DU65: 0.220373 | DV65: 0.225525 | DY65: 4.365158 | DZ65: 0.30131 | EA65: 0.253183 | EB65: 0.24201 | EE65: 4.365158 | EF65: 0.147752 | EG65: 0.136394 | EH65: 0.223225 | EK65: 4.365158 | EL65: 0.6166783333 | EM65: 0.2069103333 | EN65: 0.3399416667 | EO65: 0.7424826667 | EP65: 0.20198 | EQ65: 0.501648 | ER65: 0.264042 | ES65: 0.418961 | ET65: 1.673094 | EU65: 0.2808666667 | EV65: 2.459766333 | EW65: 0.222569 | EX65: 0.2219133333 | EY65: 0.4025316667 | EZ65: 0.4555316667 | FA65: 0.4035813333 | FB65: 0.4314986667 | FC65: 0.6042523333 | FD65: 0.3590883333 | FE65: 0.5130246667 | FF65: 0.2274543333 | FG65: 0.265501 | FH65: 0.1691236667
B66: 5.011872 | C66: 0.660522 | D66: 0.620973 | E66: 0.718138 | H66: 5.011872 | I66: 0.175276 | J66: 0.251809 | K66: 0.218698 | N66: 5.011872 | O66: 0.35779 | P66: 0.371565 | Q66: 0.356692 | U66: 5.011872 | V66: 0.72075 | W66: 0.754017 | X66: 0.838349 | AA66: 5.011872 | AB66: 0.230246 | AC66: 0.200352 | AD66: 0.198087 | AG66: 5.011872 | AH66: 0.56212 | AI66: 0.49806 | AJ66: 0.518444 | AM66: 5.011872 | AN66: 0.278291 | AO66: 0.290738 | AP66: 0.253266 | AS66: 5.011872 | AT66: 0.464439 | AU66: 0.444713 | AV66: 0.454465 | AY66: 5.011872 | AZ66: 1.651281 | BA66: 1.849907 | BB66: 1.554559 | BE66: 5.011872 | BF66: 0.303654 | BG66: 0.307046 | BH66: 0.257875 | BK66: 5.011872 | BL66: 2.12005 | BM66: 2.7304 | BN66: 2.69665 | BQ66: 5.011872 | BR66: 0.239388 | BS66: 0.227868 | BT66: 0.241101 | BW66: 5.011872 | BX66: 0.32755 | BY66: 0.197457 | BZ66: 0.182426 | CC66: 5.011872 | CD66: 0.446743 | CE66: 0.43199 | CF66: 0.412641 | CI66: 5.011872 | CJ66: 0.513143 | CK66: 0.495261 | CL66: 0.463764 | CO66: 5.011872 | CP66: 0.416222 | CQ66: 0.383591 | CR66: 0.470622 | CU66: 5.011872 | CV66: 0.449311 | CW66: 0.427479 | CX66: 0.542659 | DA66: 5.011872 | DB66: 0.703225 | DC66: 0.653727 | DD66: 0.580642 | DG66: 5.011872 | DH66: 0.357466 | DI66: 0.387351 | DJ66: 0.381713 | DM66: 5.011872 | DN66: 0.575361 | DO66: 0.557901 | DP66: 0.500258 | DS66: 5.011872 | DT66: 0.245383 | DU66: 0.228374 | DV66: 0.234 | DY66: 5.011872 | DZ66: 0.316903 | EA66: 0.264698 | EB66: 0.254092 | EE66: 5.011872 | EF66: 0.161364 | EG66: 0.149712 | EH66: 0.236441 | EK66: 5.011872 | EL66: 0.6665443333 | EM66: 0.215261 | EN66: 0.3620156667 | EO66: 0.7710386667 | EP66: 0.2095616667 | EQ66: 0.526208 | ER66: 0.2740983333 | ES66: 0.454539 | ET66: 1.685249 | EU66: 0.289525 | EV66: 2.5157 | EW66: 0.236119 | EX66: 0.235811 | EY66: 0.430458 | EZ66: 0.4907226667 | FA66: 0.4234783333 | FB66: 0.4731496667 | FC66: 0.6458646667 | FD66: 0.37551 | FE66: 0.5445066667 | FF66: 0.235919 | FG66: 0.2785643333 | FH66: 0.1825056667
B67: 5.754399 | C67: 0.712809 | D67: 0.670658 | E67: 0.769877 | H67: 5.754399 | I67: 0.180801 | J67: 0.259906 | K67: 0.226101 | N67: 5.754399 | O67: 0.380472 | P67: 0.394584 | Q67: 0.378647 | U67: 5.754399 | V67: 0.741615 | W67: 0.775886 | X67: 0.864456 | AA67: 5.754399 | AB67: 0.238563 | AC67: 0.207563 | AD67: 0.204816 | AG67: 5.754399 | AH67: 0.587952 | AI67: 0.520504 | AJ67: 0.542145 | AM67: 5.754399 | AN67: 0.287175 | AO67: 0.300579 | AP67: 0.26116 | AS67: 5.754399 | AT67: 0.502342 | AU67: 0.480272 | AV67: 0.491334 | AY67: 5.754399 | AZ67: 1.64257 | BA67: 1.840905 | BB67: 1.547052 | BE67: 5.754399 | BF67: 0.311708 | BG67: 0.313422 | BH67: 0.264004 | BK67: 5.754399 | BL67: 2.153572 | BM67: 2.764879 | BN67: 2.731075 | BQ67: 5.754399 | BR67: 0.254986 | BS67: 0.242621 | BT67: 0.254174 | BW67: 5.754399 | BX67: 0.343012 | BY67: 0.20649 | BZ67: 0.190733 | CC67: 5.754399 | CD67: 0.472207 | CE67: 0.456562 | CF67: 0.436339 | CI67: 5.754399 | CJ67: 0.546123 | CK67: 0.527101 | CL67: 0.493842 | CO67: 5.754399 | CP67: 0.430339 | CQ67: 0.396132 | CR67: 0.486721 | CU67: 5.754399 | CV67: 0.491701 | CW67: 0.467126 | CX67: 0.593346 | DA67: 5.754399 | DB67: 0.741354 | DC67: 0.68831 | DD67: 0.610899 | DG67: 5.754399 | DH67: 0.368405 | DI67: 0.399491 | DJ67: 0.393358 | DM67: 5.754399 | DN67: 0.602945 | DO67: 0.584099 | DP67: 0.52408 | DS67: 5.754399 | DT67: 0.250532 | DU67: 0.232914 | DV67: 0.238492 | DY67: 5.754399 | DZ67: 0.327026 | EA67: 0.27203 | EB67: 0.262266 | EE67: 5.754399 | EF67: 0.169758 | EG67: 0.158101 | EH67: 0.242016 | EK67: 5.754399 | EL67: 0.7177813333 | EM67: 0.2222693333 | EN67: 0.3845676667 | EO67: 0.7939856667 | EP67: 0.2169806667 | EQ67: 0.5502003333 | ER67: 0.2829713333 | ES67: 0.491316 | ET67: 1.676842333 | EU67: 0.296378 | EV67: 2.549842 | EW67: 0.2505936667 | EX67: 0.246745 | EY67: 0.455036 | EZ67: 0.5223553333 | FA67: 0.4377306667 | FB67: 0.517391 | FC67: 0.6801876667 | FD67: 0.3870846667 | FE67: 0.5703746667 | FF67: 0.240646 | FG67: 0.2871073333 | FH67: 0.1899583333
B68: 6.606934 | C68: 0.769258 | D68: 0.724415 | E68: 0.825226 | H68: 6.606934 | I68: 0.18645 | J68: 0.267856 | K68: 0.233444 | N68: 6.606934 | O68: 0.406256 | P68: 0.420787 | Q68: 0.403204 | U68: 6.606934 | V68: 0.761032 | W68: 0.796372 | X68: 0.889225 | AA68: 6.606934 | AB68: 0.248237 | AC68: 0.216174 | AD68: 0.213274 | AG68: 6.606934 | AH68: 0.616379 | AI68: 0.545533 | AJ68: 0.568585 | AM68: 6.606934 | AN68: 0.296945 | AO68: 0.312239 | AP68: 0.270706 | AS68: 6.606934 | AT68: 0.543372 | AU68: 0.518953 | AV68: 0.531266 | AY68: 6.606934 | AZ68: 1.620371 | BA68: 1.818293 | BB68: 1.528662 | BE68: 6.606934 | BF68: 0.320208 | BG68: 0.320039 | BH68: 0.271609 | BK68: 6.606934 | BL68: 2.181759 | BM68: 2.787552 | BN68: 2.75275 | BQ68: 6.606934 | BR68: 0.273302 | BS68: 0.260077 | BT68: 0.270156 | BW68: 6.606934 | BX68: 0.355818 | BY68: 0.213786 | BZ68: 0.19723 | CC68: 6.606934 | CD68: 0.495449 | CE68: 0.47901 | CF68: 0.459159 | CI68: 6.606934 | CJ68: 0.577255 | CK68: 0.557203 | CL68: 0.522234 | CO68: 6.606934 | CP68: 0.440103 | CQ68: 0.404432 | CR68: 0.498068 | CU68: 6.606934 | CV68: 0.53979 | CW68: 0.512063 | CX68: 0.650216 | DA68: 6.606934 | DB68: 0.7733 | DC68: 0.717826 | DD68: 0.636723 | DG68: 6.606934 | DH68: 0.375593 | DI68: 0.408857 | DJ68: 0.402136 | DM68: 6.606934 | DN68: 0.627482 | DO68: 0.607453 | DP68: 0.544741 | DS68: 6.606934 | DT68: 0.253436 | DU68: 0.235449 | DV68: 0.240347 | DY68: 6.606934 | DZ68: 0.329404 | EA68: 0.273091 | EB68: 0.264493 | EE68: 6.606934 | EF68: 0.170538 | EG68: 0.159062 | EH68: 0.23787 | EK68: 6.606934 | EL68: 0.7729663333 | EM68: 0.22925 | EN68: 0.4100823333 | EO68: 0.815543 | EP68: 0.225895 | EQ68: 0.5768323333 | ER68: 0.2932966667 | ES68: 0.531197 | ET68: 1.655775333 | EU68: 0.303952 | EV68: 2.574020333 | EW68: 0.267845 | EX68: 0.2556113333 | EY68: 0.4778726667 | EZ68: 0.5522306667 | FA68: 0.4475343333 | FB68: 0.5673563333 | FC68: 0.709283 | FD68: 0.3955286667 | FE68: 0.5932253333 | FF68: 0.2430773333 | FG68: 0.288996 | FH68: 0.1891566667
B69: 7.585776 | C69: 0.829291 | D69: 0.781618 | E69: 0.884512 | H69: 7.585776 | I69: 0.193041 | J69: 0.276549 | K69: 0.24145 | N69: 7.585776 | O69: 0.436137 | P69: 0.451415 | Q69: 0.431632 | U69: 7.585776 | V69: 0.781659 | W69: 0.818311 | X69: 0.915552 | AA69: 7.585776 | AB69: 0.259909 | AC69: 0.226822 | AD69: 0.224242 | AG69: 7.585776 | AH69: 0.649064 | AI69: 0.574813 | AJ69: 0.599403 | AM69: 7.585776 | AN69: 0.309691 | AO69: 0.327967 | AP69: 0.284192 | AS69: 7.585776 | AT69: 0.587467 | AU69: 0.560879 | AV69: 0.574325 | AY69: 7.585776 | AZ69: 1.593951 | BA69: 1.791266 | BB69: 1.507344 | BE69: 7.585776 | BF69: 0.331014 | BG69: 0.329332 | BH69: 0.282781 | BK69: 7.585776 | BL69: 2.210472 | BM69: 2.807558 | BN69: 2.771617 | BQ69: 7.585776 | BR69: 0.294901 | BS69: 0.280795 | BT69: 0.290106 | BW69: 7.585776 | BX69: 0.367001 | BY69: 0.220083 | BZ69: 0.202623 | CC69: 7.585776 | CD69: 0.517621 | CE69: 0.50043 | CF69: 0.48172 | CI69: 7.585776 | CJ69: 0.607764 | CK69: 0.586694 | CL69: 0.550139 | CO69: 7.585776 | CP69: 0.446556 | CQ69: 0.409584 | CR69: 0.505988 | CU69: 7.585776 | CV69: 0.594512 | CW69: 0.563413 | CX69: 0.714352 | DA69: 7.585776 | DB69: 0.800535 | DC69: 0.743965 | DD69: 0.659733 | DG69: 7.585776 | DH69: 0.380559 | DI69: 0.417186 | DJ69: 0.409798 | DM69: 7.585776 | DN69: 0.651096 | DO69: 0.63021 | DP69: 0.56443 | DS69: 7.585776 | DT69: 0.255823 | DU69: 0.237617 | DV69: 0.241233 | DY69: 7.585776 | DZ69: 0.321378 | EA69: 0.265311 | EB69: 0.258171 | EE69: 7.585776 | EF69: 0.161939 | EG69: 0.150847 | EH69: 0.222918 | EK69: 7.585776 | EL69: 0.831807 | EM69: 0.2370133333 | EN69: 0.439728 | EO69: 0.8385073333 | EP69: 0.236991 | EQ69: 0.60776 | ER69: 0.3072833333 | ES69: 0.5742236667 | ET69: 1.630853667 | EU69: 0.3143756667 | EV69: 2.596549 | EW69: 0.2886006667 | EX69: 0.2632356667 | EY69: 0.4999236667 | EZ69: 0.5815323333 | FA69: 0.4540426667 | FB69: 0.6240923333 | FC69: 0.7347443333 | FD69: 0.4025143333 | FE69: 0.6152453333 | FF69: 0.244891 | FG69: 0.28162 | FH69: 0.178568
B70: 8.709636 | C70: 0.893563 | D70: 0.842751 | E70: 0.949131 | H70: 8.709636 | I70: 0.201125 | J70: 0.286574 | K70: 0.250571 | N70: 8.709636 | O70: 0.471349 | P70: 0.487956 | Q70: 0.465504 | U70: 8.709636 | V70: 0.805194 | W70: 0.84346 | X70: 0.945358 | AA70: 8.709636 | AB70: 0.273422 | AC70: 0.239407 | AD70: 0.237676 | AG70: 8.709636 | AH70: 0.68772 | AI70: 0.609966 | AJ70: 0.636155 | AM70: 8.709636 | AN70: 0.327409 | AO70: 0.349871 | AP70: 0.303774 | AS70: 8.709636 | AT70: 0.635753 | AU70: 0.607263 | AV70: 0.621768 | AY70: 8.709636 | AZ70: 1.569823 | BA70: 1.765784 | BB70: 1.488405 | BE70: 8.709636 | BF70: 0.345724 | BG70: 0.343353 | BH70: 0.299207 | BK70: 8.709636 | BL70: 2.242108 | BM70: 2.829097 | BN70: 2.792347 | BQ70: 8.709636 | BR70: 0.320328 | BS70: 0.305297 | BT70: 0.314885 | BW70: 8.709636 | BX70: 0.378219 | BY70: 0.226436 | BZ70: 0.207948 | CC70: 8.709636 | CD70: 0.540708 | CE70: 0.522693 | CF70: 0.505394 | CI70: 8.709636 | CJ70: 0.640511 | CK70: 0.618315 | CL70: 0.580258 | CO70: 8.709636 | CP70: 0.451145 | CQ70: 0.413076 | CR70: 0.512319 | CU70: 8.709636 | CV70: 0.6582 | CW70: 0.623681 | CX70: 0.788562 | DA70: 8.709636 | DB70: 0.826021 | DC70: 0.76974 | DD70: 0.682711 | DG70: 8.709636 | DH70: 0.385079 | DI70: 0.426293 | DJ70: 0.418212 | DM70: 8.709636 | DN70: 0.676634 | DO70: 0.655326 | DP70: 0.586052 | DS70: 8.709636 | DT70: 0.259413 | DU70: 0.24103 | DV70: 0.242893 | DY70: 8.709636 | DZ70: 0.300596 | EA70: 0.246212 | EB70: 0.240717 | EE70: 8.709636 | EF70: 0.142389 | EG70: 0.131492 | EH70: 0.197364 | EK70: 8.709636 | EL70: 0.8951483333 | EM70: 0.24609 | EN70: 0.4749363333 | EO70: 0.8646706667 | EP70: 0.2501683333 | EQ70: 0.6446136667 | ER70: 0.327018 | ES70: 0.6215946667 | ET70: 1.608004 | EU70: 0.329428 | EV70: 2.621184 | EW70: 0.3135033333 | EX70: 0.2708676667 | EY70: 0.5229316667 | EZ70: 0.613028 | FA70: 0.4588466667 | FB70: 0.6901476667 | FC70: 0.7594906667 | FD70: 0.4098613333 | FE70: 0.6393373333 | FF70: 0.2477786667 | FG70: 0.2625083333 | FH70: 0.1570816667
B71: 10 | C71: 0.958188 | D71: 0.903926 | E71: 1.015537 | H71: 10 | I71: 0.210092 | J71: 0.297136 | K71: 0.260007 | N71: 10 | O71: 0.510103 | P71: 0.52871 | Q71: 0.503477 | U71: 10 | V71: 0.829366 | W71: 0.869289 | X71: 0.975925 | AA71: 10 | AB71: 0.286475 | AC71: 0.251828 | AD71: 0.251349 | AG71: 10 | AH71: 0.730568 | AI71: 0.649337 | AJ71: 0.676949 | AM71: 10 | AN71: 0.350073 | AO71: 0.377596 | AP71: 0.329351 | AS71: 10 | AT71: 0.686287 | AU71: 0.656308 | AV71: 0.671853 | AY71: 10 | AZ71: 1.552211 | BA71: 1.745126 | BB71: 1.47477 | BE71: 10 | BF71: 0.363976 | BG71: 0.362043 | BH71: 0.32036 | BK71: 10 | BL71: 2.271451 | BM71: 2.847367 | BN71: 2.810146 | BQ71: 10 | BR71: 0.347855 | BS71: 0.331901 | BT71: 0.342849 | BW71: 10 | BX71: 0.390319 | BY71: 0.233351 | BZ71: 0.213814 | CC71: 10 | CD71: 0.564783 | CE71: 0.545841 | CF71: 0.529816 | CI71: 10 | CJ71: 0.6765 | CK71: 0.653072 | CL71: 0.613601 | CO71: 10 | CP71: 0.454815 | CQ71: 0.415985 | CR71: 0.518247 | CU71: 10 | CV71: 0.728701 | CW71: 0.691136 | CX71: 0.870477 | DA71: 10 | DB71: 0.850821 | DC71: 0.796183 | DD71: 0.706646 | DG71: 10 | DH71: 0.390164 | DI71: 0.436608 | DJ71: 0.427967 | DM71: 10 | DN71: 0.704473 | DO71: 0.683311 | DP71: 0.610395 | DS71: 10 | DT71: 0.265052 | DU71: 0.246464 | DV71: 0.246471 | DY71: 10 | DZ71: 0.26721 | EA71: 0.215577 | EB71: 0.211693 | EE71: 10 | EF71: 0.115168 | EG71: 0.104592 | EH71: 0.164999 | EK71: 10 | EL71: 0.959217 | EM71: 0.255745 | EN71: 0.5140966667 | EO71: 0.8915266667 | EP71: 0.2632173333 | EQ71: 0.685618 | ER71: 0.35234 | ES71: 0.6714826667 | ET71: 1.590702333 | EU71: 0.348793 | EV71: 2.642988 | EW71: 0.3408683333 | EX71: 0.2791613333 | EY71: 0.5468133333 | EZ71: 0.6477243333 | FA71: 0.4630156667 | FB71: 0.763438 | FC71: 0.78455 | FD71: 0.4182463333 | FE71: 0.6660596667 | FF71: 0.2526623333 | FG71: 0.2314933333 | FH71: 0.128253
B72: 11.481536 | C72: 1.02205 | D72: 0.963856 | E72: 1.082564 | H72: 11.481536 | I72: 0.21907 | J72: 0.307256 | K72: 0.268794 | N72: 11.481536 | O72: 0.551657 | P72: 0.572949 | Q72: 0.545092 | U72: 11.481536 | V72: 0.850464 | W72: 0.891693 | X72: 1.003161 | AA72: 11.481536 | AB72: 0.296328 | AC72: 0.261531 | AD72: 0.262457 | AG72: 11.481536 | AH72: 0.777153 | AI72: 0.692347 | AJ72: 0.721041 | AM72: 11.481536 | AN72: 0.37739 | AO72: 0.410465 | AP72: 0.360414 | AS72: 11.481536 | AT72: 0.739755 | AU72: 0.708661 | AV72: 0.725407 | AY72: 11.481536 | AZ72: 1.540892 | BA72: 1.727737 | BB72: 1.465403 | BE72: 11.481536 | BF72: 0.384856 | BG72: 0.384513 | BH72: 0.345097 | BK72: 11.481536 | BL72: 2.28953 | BM72: 2.851483 | BN72: 2.81362 | BQ72: 11.481536 | BR72: 0.376587 | BS72: 0.359701 | BT72: 0.372692 | BW72: 11.481536 | BX72: 0.404448 | BY72: 0.241398 | BZ72: 0.220916 | CC72: 11.481536 | CD72: 0.59021 | CE72: 0.570258 | CF72: 0.55527 | CI72: 11.481536 | CJ72: 0.718062 | CK72: 0.693347 | CL72: 0.652453 | CO72: 11.481536 | CP72: 0.458437 | CQ72: 0.419259 | CR72: 0.524831 | CU72: 11.481536 | CV72: 0.806177 | CW72: 0.766168 | CX72: 0.960444 | DA72: 11.481536 | DB72: 0.876398 | DC72: 0.824692 | DD72: 0.732807 | DG72: 11.481536 | DH72: 0.396296 | DI72: 0.447909 | DJ72: 0.439026 | DM72: 11.481536 | DN72: 0.734947 | DO72: 0.714551 | DP72: 0.638102 | DS72: 11.481536 | DT72: 0.272778 | DU72: 0.253933 | DV72: 0.252381 | DY72: 11.481536 | DZ72: 0.222589 | EA72: 0.174408 | EB72: 0.171854 | EE72: 11.481536 | EF72: 0.084262 | EG72: 0.074055 | EH72: 0.130909 | EK72: 11.481536 | EL72: 1.022823333 | EM72: 0.26504 | EN72: 0.556566 | EO72: 0.915106 | EP72: 0.2734386667 | EQ72: 0.7301803333 | ER72: 0.3827563333 | ES72: 0.7246076667 | ET72: 1.578010667 | EU72: 0.3714886667 | EV72: 2.651544333 | EW72: 0.36966 | EX72: 0.2889206667 | EY72: 0.5719126667 | EZ72: 0.687954 | FA72: 0.467509 | FB72: 0.844263 | FC72: 0.811299 | FD72: 0.4277436667 | FE72: 0.6958666667 | FF72: 0.2596973333 | FG72: 0.189617 | FH72: 0.09640866667
B73: 13.182567 | C73: 1.080428 | D73: 1.017904 | E73: 1.144971 | H73: 13.182567 | I73: 0.226326 | J73: 0.31522 | K73: 0.27533 | N73: 13.182567 | O73: 0.592729 | P73: 0.61707 | Q73: 0.58706 | U73: 13.182567 | V73: 0.862245 | W73: 0.903863 | X73: 1.02003 | AA73: 13.182567 | AB73: 0.299617 | AC73: 0.265243 | AD73: 0.267227 | AG73: 13.182567 | AH73: 0.824906 | AI73: 0.736286 | AJ73: 0.765664 | AM73: 13.182567 | AN73: 0.406309 | AO73: 0.444421 | AP73: 0.393143 | AS73: 13.182567 | AT73: 0.794559 | AU73: 0.762597 | AV73: 0.780837 | AY73: 13.182567 | AZ73: 1.534968 | BA73: 1.712021 | BB73: 1.458809 | BE73: 13.182567 | BF73: 0.405061 | BG73: 0.407128 | BH73: 0.369544 | BK73: 13.182567 | BL73: 2.283744 | BM73: 2.826972 | BN73: 2.787631 | BQ73: 13.182567 | BR73: 0.404276 | BS73: 0.386432 | BT73: 0.401066 | BW73: 13.182567 | BX73: 0.420521 | BY73: 0.250367 | BZ73: 0.229271 | CC73: 13.182567 | CD73: 0.614822 | CE73: 0.593986 | CF73: 0.579791 | CI73: 13.182567 | CJ73: 0.763972 | CK73: 0.738153 | CL73: 0.695859 | CO73: 13.182567 | CP73: 0.462351 | CQ73: 0.423299 | CR73: 0.532195 | CU73: 13.182567 | CV73: 0.885067 | CW73: 0.84344 | CX73: 1.052148 | DA73: 13.182567 | DB73: 0.901375 | DC73: 0.853576 | DD73: 0.759601 | DG73: 13.182567 | DH73: 0.402706 | DI73: 0.458222 | DJ73: 0.449606 | DM73: 13.182567 | DN73: 0.76521 | DO73: 0.746044 | DP73: 0.666759 | DS73: 13.182567 | DT73: 0.280988 | DU73: 0.261881 | DV73: 0.259602 | DY73: 13.182567 | DZ73: 0.174066 | EA73: 0.129495 | EB73: 0.127225 | EE73: 13.182567 | EF73: 0.02567 | EG73: 0.003884 | EH73: 0.104525 | EK73: 13.182567 | EL73: 1.081101 | EM73: 0.272292 | EN73: 0.598953 | EO73: 0.9287126667 | EP73: 0.2773623333 | EQ73: 0.7756186667 | ER73: 0.4146243333 | ES73: 0.779331 | ET73: 1.568599333 | EU73: 0.393911 | EV73: 2.632782333 | EW73: 0.397258 | EX73: 0.300053 | EY73: 0.5961996667 | EZ73: 0.7326613333 | FA73: 0.472615 | FB73: 0.926885 | FC73: 0.838184 | FD73: 0.4368446667 | FE73: 0.7260043333 | FF73: 0.2674903333 | FG73: 0.1435953333 | FH73: 0.044693
B74: 15.135612 | C74: 1.134273 | D74: 1.066868 | E74: 1.203325 | H74: 15.135612 | I74: 0.231032 | J74: 0.320746 | K74: 0.279304 | N74: 15.135612 | O74: 0.633973 | P74: 0.661408 | Q74: 0.629535 | U74: 15.135612 | V74: 0.860853 | W74: 0.901537 | X74: 1.022552 | AA74: 15.135612 | AB74: 0.295158 | AC74: 0.261583 | AD74: 0.263746 | AG74: 15.135612 | AH74: 0.876978 | AI74: 0.783503 | AJ74: 0.813544 | AM74: 15.135612 | AN74: 0.43503 | AO74: 0.476863 | AP74: 0.424925 | AS74: 15.135612 | AT74: 0.854897 | AU74: 0.821892 | AV74: 0.84211 | AY74: 15.135612 | AZ74: 1.533969 | BA74: 1.697275 | BB74: 1.45439 | BE74: 15.135612 | BF74: 0.42227 | BG74: 0.427067 | BH74: 0.391047 | BK74: 15.135612 | BL74: 2.24347 | BM74: 2.760587 | BN74: 2.718392 | BQ74: 15.135612 | BR74: 0.43233 | BS74: 0.413322 | BT74: 0.427634 | BW74: 15.135612 | BX74: 0.439035 | BY74: 0.260367 | BZ74: 0.239148 | CC74: 15.135612 | CD74: 0.637323 | CE74: 0.615997 | CF74: 0.602478 | CI74: 15.135612 | CJ74: 0.814274 | CK74: 0.787751 | CL74: 0.744158 | CO74: 15.135612 | CP74: 0.467017 | CQ74: 0.4285 | CR74: 0.540476 | CU74: 15.135612 | CV74: 0.964196 | CW74: 0.921536 | CX74: 1.144283 | DA74: 15.135612 | DB74: 0.924648 | DC74: 0.881555 | DD74: 0.78575 | DG74: 15.135612 | DH74: 0.408237 | DI74: 0.465633 | DJ74: 0.457899 | DM74: 15.135612 | DN74: 0.793629 | DO74: 0.775809 | DP74: 0.694736 | DS74: 15.135612 | DT74: 0.287481 | DU74: 0.268183 | DV74: 0.266348 | DY74: 15.135612 | DZ74: 0.129702 | EA74: 0.088733 | EB74: 0.088548 | EE74: 15.135612 | EF74: 0.000629 | EG74: 0 | EH74: 0.094356 | EK74: 15.135612 | EL74: 1.134822 | EM74: 0.2770273333 | EN74: 0.6416386667 | EO74: 0.928314 | EP74: 0.2734956667 | EQ74: 0.824675 | ER74: 0.445606 | ES74: 0.839633 | ET74: 1.561878 | EU74: 0.4134613333 | EV74: 2.574149667 | EW74: 0.4244286667 | EX74: 0.31285 | EY74: 0.6185993333 | EZ74: 0.782061 | FA74: 0.4786643333 | FB74: 1.010005 | FC74: 0.8639843333 | FD74: 0.443923 | FE74: 0.7547246667 | FF74: 0.274004 | FG74: 0.1023276667 | FH74: 0.03166166667
B75: 17.378008 | C75: 1.184826 | D75: 1.112068 | E75: 1.25838 | H75: 17.378008 | I75: 0.233404 | J75: 0.32521 | K75: 0.281993 | N75: 17.378008 | O75: 0.676625 | P75: 0.706607 | Q75: 0.672588 | U75: 17.378008 | V75: 0.846672 | W75: 0.885041 | X75: 1.01139 | AA75: 17.378008 | AB75: 0.28552 | AC75: 0.252471 | AD75: 0.253396 | AG75: 17.378008 | AH75: 0.938283 | AI75: 0.837848 | AJ75: 0.869369 | AM75: 17.378008 | AN75: 0.461069 | AO75: 0.504552 | AP75: 0.452272 | AS75: 17.378008 | AT75: 0.925497 | AU75: 0.890671 | AV75: 0.913361 | AY75: 17.378008 | AZ75: 1.540438 | BA75: 1.687739 | BB75: 1.454982 | BE75: 17.378008 | BF75: 0.434557 | BG75: 0.441528 | BH75: 0.407264 | BK75: 17.378008 | BL75: 2.164696 | BM75: 2.64752 | BN75: 2.601195 | BQ75: 17.378008 | BR75: 0.464197 | BS75: 0.443588 | BT75: 0.453673 | BW75: 17.378008 | BX75: 0.459186 | BY75: 0.270921 | BZ75: 0.250138 | CC75: 17.378008 | CD75: 0.655065 | CE75: 0.633989 | CF75: 0.621199 | CI75: 17.378008 | CJ75: 0.864916 | CK75: 0.838305 | CL75: 0.793872 | CO75: 17.378008 | CP75: 0.472768 | CQ75: 0.434954 | CR75: 0.549225 | CU75: 17.378008 | CV75: 1.038609 | CW75: 0.994907 | CX75: 1.230961 | DA75: 17.378008 | DB75: 0.942719 | DC75: 0.904722 | DD75: 0.807491 | DG75: 17.378008 | DH75: 0.411026 | DI75: 0.467989 | DJ75: 0.461666 | DM75: 17.378008 | DN75: 0.81753 | DO75: 0.800513 | DP75: 0.718946 | DS75: 17.378008 | DT75: 0.289172 | DU75: 0.269858 | DV75: 0.269615 | DY75: 17.378008 | DZ75: 0.101998 | EA75: 0.064549 | EB75: 0.049505 | EE75: 17.378008 | EF75: 0 | EG75: 0 | EH75: 0.107926 | EK75: 17.378008 | EL75: 1.185091333 | EM75: 0.2802023333 | EN75: 0.6852733333 | EO75: 0.9143676667 | EP75: 0.2637956667 | EQ75: 0.8818333333 | ER75: 0.472631 | ES75: 0.909843 | ET75: 1.561053 | EU75: 0.427783 | EV75: 2.471137 | EW75: 0.4538193333 | EX75: 0.3267483333 | EY75: 0.636751 | EZ75: 0.8323643333 | FA75: 0.485649 | FB75: 1.088159 | FC75: 0.8849773333 | FD75: 0.4468936667 | FE75: 0.7789963333 | FF75: 0.276215 | FG75: 0.07201733333 | FH75: 0.03597533333
B76: 19.952623 | C76: 1.240948 | D76: 1.16216 | E76: 1.319096 | H76: 19.952623 | I76: 0.236341 | J76: 0.333551 | K76: 0.28789 | N76: 19.952623 | O76: 0.728374 | P76: 0.759923 | Q76: 0.722168 | U76: 19.952623 | V76: 0.8279 | W76: 0.862988 | X76: 0.996179 | AA76: 19.952623 | AB76: 0.278651 | AC76: 0.244745 | AD76: 0.242654 | AG76: 19.952623 | AH76: 1.022649 | AI76: 0.911261 | AJ76: 0.946531 | AM76: 19.952623 | AN76: 0.486156 | AO76: 0.529401 | AP76: 0.476418 | AS76: 19.952623 | AT76: 1.019489 | AU76: 0.981177 | AV76: 1.006822 | AY76: 19.952623 | AZ76: 1.561339 | BA76: 1.692746 | BB76: 1.467715 | BE76: 19.952623 | BF76: 0.444458 | BG76: 0.452157 | BH76: 0.420837 | BK76: 19.952623 | BL76: 2.049065 | BM76: 2.487647 | BN76: 2.436588 | BQ76: 19.952623 | BR76: 0.51028 | BS76: 0.487236 | BT76: 0.487213 | BW76: 19.952623 | BX76: 0.480958 | BY76: 0.282281 | BZ76: 0.262356 | CC76: 19.952623 | CD76: 0.66747 | CE76: 0.647606 | CF76: 0.635912 | CI76: 19.952623 | CJ76: 0.913384 | CK76: 0.887318 | CL76: 0.843111 | CO76: 19.952623 | CP76: 0.480752 | CQ76: 0.443406 | CR76: 0.558833 | CU76: 19.952623 | CV76: 1.109152 | CW76: 1.063312 | CX76: 1.312815 | DA76: 19.952623 | DB76: 0.952864 | DC76: 0.920273 | DD76: 0.822064 | DG76: 19.952623 | DH76: 0.409811 | DI76: 0.46492 | DJ76: 0.460283 | DM76: 19.952623 | DN76: 0.838021 | DO76: 0.820486 | DP76: 0.739429 | DS76: 19.952623 | DT76: 0.283724 | DU76: 0.264629 | DV76: 0.266507 | DY76: 19.952623 | DZ76: 0.100832 | EA76: 0.067284 | EB76: 0.04336 | EE76: 19.952623 | EF76: 0 | EG76: 0 | EH76: 0.147483 | EK76: 19.952623 | EL76: 1.240734667 | EM76: 0.2859273333 | EN76: 0.7368216667 | EO76: 0.895689 | EP76: 0.25535 | EQ76: 0.960147 | ER76: 0.497325 | ES76: 1.002496 | ET76: 1.573933333 | EU76: 0.4391506667 | EV76: 2.324433333 | EW76: 0.4949096667 | EX76: 0.341865 | EY76: 0.6503293333 | EZ76: 0.881271 | FA76: 0.4943303333 | FB76: 1.161759667 | FC76: 0.8984003333 | FD76: 0.4450046667 | FE76: 0.799312 | FF76: 0.27162 | FG76: 0.070492 | FH76: 0.049161
B77: 22.908677 | C77: 1.314323 | D77: 1.228894 | E77: 1.397696 | H77: 22.908677 | I77: 0.245878 | J77: 0.354373 | K77: 0.304908 | N77: 22.908677 | O77: 0.799516 | P77: 0.831329 | Q77: 0.786534 | U77: 22.908677 | V77: 0.824047 | W77: 0.856078 | X77: 0.998758 | AA77: 22.908677 | AB77: 0.289228 | AC77: 0.251601 | AD77: 0.244855 | AG77: 22.908677 | AH77: 1.146473 | AI77: 1.018317 | AJ77: 1.061344 | AM77: 22.908677 | AN77: 0.51579 | AO77: 0.558323 | AP77: 0.503265 | AS77: 22.908677 | AT77: 1.151559 | AU77: 1.107249 | AV77: 1.136081 | AY77: 22.908677 | AZ77: 1.607865 | BA77: 1.727637 | BB77: 1.50412 | BE77: 22.908677 | BF77: 0.459973 | BG77: 0.466117 | BH77: 0.440155 | BK77: 22.908677 | BL77: 1.91212 | BM77: 2.296815 | BN77: 2.241913 | BQ77: 22.908677 | BR77: 0.585446 | BS77: 0.558761 | BT77: 0.541851 | BW77: 22.908677 | BX77: 0.503638 | BY77: 0.294848 | BZ77: 0.275742 | CC77: 22.908677 | CD77: 0.675838 | CE77: 0.658036 | CF77: 0.648148 | CI77: 22.908677 | CJ77: 0.955206 | CK77: 0.930028 | CL77: 0.888061 | CO77: 22.908677 | CP77: 0.492965 | CQ77: 0.455255 | CR77: 0.570585 | CU77: 22.908677 | CV77: 1.176656 | CW77: 1.126354 | CX77: 1.390247 | DA77: 22.908677 | DB77: 0.953001 | DC77: 0.92598 | DD77: 0.827244 | DG77: 22.908677 | DH77: 0.404928 | DI77: 0.459141 | DJ77: 0.455906 | DM77: 22.908677 | DN77: 0.859846 | DO77: 0.839681 | DP77: 0.759208 | DS77: 22.908677 | DT77: 0.27098 | DU77: 0.252297 | DV77: 0.255286 | DY77: 22.908677 | DZ77: 0.131936 | EA77: 0.103203 | EB77: 0.069402 | EE77: 22.908677 | EF77: 0 | EG77: 0 | EH77: 0.205666 | EK77: 22.908677 | EL77: 1.313637667 | EM77: 0.3017196667 | EN77: 0.805793 | EO77: 0.892961 | EP77: 0.2618946667 | EQ77: 1.075378 | ER77: 0.5257926667 | ES77: 1.131629667 | ET77: 1.613207333 | EU77: 0.455415 | EV77: 2.150282667 | EW77: 0.5620193333 | EX77: 0.358076 | EY77: 0.660674 | EZ77: 0.9244316667 | FA77: 0.5062683333 | FB77: 1.231085667 | FC77: 0.902075 | FD77: 0.4399916667 | FE77: 0.8195783333 | FF77: 0.259521 | FG77: 0.1015136667 | FH77: 0.06855533333
B78: 26.30268 | C78: 1.423571 | D78: 1.33081 | E78: 1.514404 | H78: 26.30268 | I78: 0.27195 | J78: 0.400913 | K78: 0.345079 | N78: 26.30268 | O78: 0.906663 | P78: 0.937526 | Q78: 0.880169 | U78: 26.30268 | V78: 0.866128 | W78: 0.897043 | X78: 1.053517 | AA78: 26.30268 | AB78: 0.338025 | AC78: 0.292073 | AD78: 0.279623 | AG78: 26.30268 | AH78: 1.334013 | AI78: 1.18095 | AJ78: 1.237816 | AM78: 26.30268 | AN78: 0.563379 | AO78: 0.607763 | AP78: 0.547965 | AS78: 26.30268 | AT78: 1.344944 | AU78: 1.291211 | AV78: 1.323223 | AY78: 26.30268 | AZ78: 1.696389 | BA78: 1.812839 | BB78: 1.580301 | BE78: 26.30268 | BF78: 0.497512 | BG78: 0.499374 | BH78: 0.482714 | BK78: 26.30268 | BL78: 1.774038 | BM78: 2.093912 | BN78: 2.037556 | BQ78: 26.30268 | BR78: 0.712955 | BS78: 0.680889 | BT78: 0.640486 | BW78: 26.30268 | BX78: 0.528082 | BY78: 0.310561 | BZ78: 0.291477 | CC78: 26.30268 | CD78: 0.686091 | CE78: 0.670644 | CF78: 0.663754 | CI78: 26.30268 | CJ78: 0.989432 | CK78: 0.964874 | CL78: 0.928426 | CO78: 26.30268 | CP78: 0.513681 | CQ78: 0.47403 | CR78: 0.588513 | CU78: 26.30268 | CV78: 1.248704 | CW78: 1.190407 | CX78: 1.47136 | DA78: 26.30268 | DB78: 0.944484 | DC78: 0.923477 | DD78: 0.824438 | DG78: 26.30268 | DH78: 0.399708 | DI78: 0.457887 | DJ78: 0.45502 | DM78: 26.30268 | DN78: 0.895242 | DO78: 0.86971 | DP78: 0.78827 | DS78: 26.30268 | DT78: 0.254312 | DU78: 0.236036 | DV78: 0.236695 | DY78: 26.30268 | DZ78: 0.192393 | EA78: 0.170153 | EB78: 0.112807 | EE78: 26.30268 | EF78: 0 | EG78: 0 | EH78: 0.267341 | EK78: 26.30268 | EL78: 1.422928333 | EM78: 0.339314 | EN78: 0.9081193333 | EO78: 0.938896 | EP78: 0.3032403333 | EQ78: 1.250926333 | ER78: 0.5730356667 | ES78: 1.319792667 | ET78: 1.696509667 | EU78: 0.4932 | EV78: 1.968502 | EW78: 0.67811 | EX78: 0.3767066667 | EY78: 0.6734963333 | EZ78: 0.9609106667 | FA78: 0.525408 | FB78: 1.303490333 | FC78: 0.8974663333 | FD78: 0.4375383333 | FE78: 0.851074 | FF78: 0.2423476667 | FG78: 0.158451 | FH78: 0.08911366667
B79: 30.199517 | C79: 1.586134 | D79: 1.485586 | E79: 1.68891 | H79: 30.199517 | I79: 0.326738 | J79: 0.488042 | K79: 0.421874 | N79: 30.199517 | O79: 1.064921 | P79: 1.094213 | Q79: 1.017069 | U79: 30.199517 | V79: 0.993621 | W79: 1.027531 | X79: 1.203173 | AA79: 30.199517 | AB79: 0.447802 | AC79: 0.387581 | AD79: 0.369728 | AG79: 30.199517 | AH79: 1.604297 | AI79: 1.41704 | AJ79: 1.495205 | AM79: 30.199517 | AN79: 0.648477 | AO79: 0.701812 | AP79: 0.633531 | AS79: 30.199517 | AT79: 1.619237 | AU79: 1.552358 | AV79: 1.587186 | AY79: 30.199517 | AZ79: 1.842221 | BA79: 1.967125 | BB79: 1.711318 | BE79: 30.199517 | BF79: 0.580429 | BG79: 0.575613 | BH79: 0.573385 | BK79: 30.199517 | BL79: 1.664647 | BM79: 1.909636 | BN79: 1.855177 | BQ79: 30.199517 | BR79: 0.916659 | BS79: 0.877036 | BT79: 0.809492 | BW79: 30.199517 | BX79: 0.555809 | BY79: 0.332387 | BZ79: 0.311505 | CC79: 30.199517 | CD79: 0.709122 | CE79: 0.69512 | CF79: 0.692842 | CI79: 30.199517 | CJ79: 1.017689 | CK79: 0.992591 | CL79: 0.966123 | CO79: 30.199517 | CP79: 0.549173 | CQ79: 0.505243 | CR79: 0.619435 | CU79: 30.199517 | CV79: 1.334777 | CW79: 1.264572 | CX79: 1.566532 | DA79: 30.199517 | DB79: 0.933911 | DC79: 0.919705 | DD79: 0.820098 | DG79: 30.199517 | DH79: 0.401937 | DI79: 0.473869 | DJ79: 0.469412 | DM79: 30.199517 | DN79: 0.962893 | DO79: 0.929187 | DP79: 0.843124 | DS79: 30.199517 | DT79: 0.242664 | DU79: 0.22438 | DV79: 0.216132 | DY79: 30.199517 | DZ79: 0.266773 | EA79: 0.252916 | EB79: 0.167738 | EE79: 30.199517 | EF79: 0 | EG79: 0 | EH79: 0.305174 | EK79: 30.199517 | EL79: 1.586876667 | EM79: 0.412218 | EN79: 1.058734333 | EO79: 1.074775 | EP79: 0.4017036667 | EQ79: 1.505514 | ER79: 0.6612733333 | ES79: 1.586260333 | ET79: 1.840221333 | EU79: 0.5764756667 | EV79: 1.80982 | EW79: 0.867729 | EX79: 0.3999003333 | EY79: 0.699028 | EZ79: 0.9921343333 | FA79: 0.5579503333 | FB79: 1.388627 | FC79: 0.891238 | FD79: 0.448406 | FE79: 0.9117346667 | FF79: 0.2277253333 | FG79: 0.2291423333 | FH79: 0.1017246667
B80: 34.673685 | C80: 1.820309 | D80: 1.711623 | E80: 1.942473 | H80: 34.673685 | I80: 0.424358 | J80: 0.63242 | K80: 0.550123 | N80: 34.673685 | O80: 1.289675 | P80: 1.317862 | Q80: 1.212433 | U80: 34.673685 | V80: 1.251362 | W80: 1.294548 | X80: 1.495374 | AA80: 34.673685 | AB80: 0.641183 | AC80: 0.559808 | AD80: 0.538516 | AG80: 34.673685 | AH80: 1.975264 | AI80: 1.743832 | AJ80: 1.851564 | AM80: 34.673685 | AN80: 0.798727 | AO80: 0.873799 | AP80: 0.792616 | AS80: 34.673685 | AT80: 1.996456 | AU80: 1.912808 | AV80: 1.949874 | AY80: 34.673685 | AZ80: 2.060126 | BA80: 2.206686 | BB80: 1.91114 | BE80: 34.673685 | BF80: 0.73935 | BG80: 0.726541 | BH80: 0.744923 | BK80: 34.673685 | BL80: 1.611876 | BM80: 1.771935 | BN80: 1.722415 | BQ80: 34.673685 | BR80: 1.223926 | BS80: 1.173955 | BT80: 1.080512 | BW80: 34.673685 | BX80: 0.591098 | BY80: 0.365475 | BZ80: 0.339862 | CC80: 34.673685 | CD80: 0.76191 | CE80: 0.746793 | CF80: 0.75108 | CI80: 34.673685 | CJ80: 1.048087 | CK80: 1.02032 | CL80: 1.009285 | CO80: 34.673685 | CP80: 0.609336 | CQ80: 0.558024 | CR80: 0.674631 | CU80: 34.673685 | CV80: 1.449511 | CW80: 1.364022 | CX80: 1.692229 | DA80: 34.673685 | DB80: 0.934515 | DC80: 0.928569 | DD80: 0.827341 | DG80: 34.673685 | DH80: 0.424547 | DI80: 0.525333 | DJ80: 0.516412 | DM80: 34.673685 | DN80: 1.089429 | DO80: 1.045138 | DP80: 0.948528 | DS80: 34.673685 | DT80: 0.250486 | DU80: 0.23115 | DV80: 0.203913 | DY80: 34.673685 | DZ80: 0.32783 | EA80: 0.324499 | EB80: 0.215098 | EE80: 34.673685 | EF80: 0 | EG80: 0 | EH80: 0.295658 | EK80: 34.673685 | EL80: 1.824801667 | EM80: 0.5356336667 | EN80: 1.273323333 | EO80: 1.347094667 | EP80: 0.5798356667 | EQ80: 1.856886667 | ER80: 0.821714 | ES80: 1.953046 | ET80: 2.059317333 | EU80: 0.736938 | EV80: 1.702075333 | EW80: 1.159464333 | EX80: 0.432145 | EY80: 0.753261 | EZ80: 1.025897333 | FA80: 0.613997 | FB80: 1.501920667 | FC80: 0.8968083333 | FD80: 0.488764 | FE80: 1.027698333 | FF80: 0.2285163333 | FG80: 0.2891423333 | FH80: 0.09855266667
B81: 39.810717 | C81: 2.133565 | D81: 2.016554 | E81: 2.284813 | H81: 39.810717 | I81: 0.575522 | J81: 0.845293 | K81: 0.739478 | N81: 39.810717 | O81: 1.584992 | P81: 1.613987 | Q81: 1.472263 | U81: 39.810717 | V81: 1.674683 | W81: 1.734864 | X81: 1.965676 | AA81: 39.810717 | AB81: 0.929661 | AC81: 0.820678 | AD81: 0.799657 | AG81: 39.810717 | AH81: 2.445924 | AI81: 2.162017 | AJ81: 2.306394 | AM81: 39.810717 | AN81: 1.042762 | AO81: 1.157618 | AP81: 1.059677 | AS81: 39.810717 | AT81: 2.484017 | AU81: 2.381192 | AV81: 2.41982 | AY81: 39.810717 | AZ81: 2.353099 | BA81: 2.532812 | BB81: 2.18237 | BE81: 39.810717 | BF81: 1.003711 | BG81: 0.983615 | BH81: 1.02874 | BK81: 39.810717 | BL81: 1.640879 | BM81: 1.708787 | BN81: 1.665479 | BQ81: 39.810717 | BR81: 1.65131 | BS81: 1.587752 | BT81: 1.477191 | BW81: 39.810717 | BX81: 0.640227 | BY81: 0.416054 | BZ81: 0.381957 | CC81: 39.810717 | CD81: 0.864981 | CE81: 0.844415 | CF81: 0.856996 | CI81: 39.810717 | CJ81: 1.094722 | CK81: 1.061419 | CL81: 1.071164 | CO81: 39.810717 | CP81: 0.705947 | CQ81: 0.643704 | CR81: 0.768164 | CU81: 39.810717 | CV81: 1.606607 | CW81: 1.504642 | CX81: 1.864194 | DA81: 39.810717 | DB81: 0.966564 | DC81: 0.970869 | DD81: 0.866013 | DG81: 39.810717 | DH81: 0.485 | DI81: 0.633424 | DJ81: 0.6166 | DM81: 39.810717 | DN81: 1.303123 | DO81: 1.247038 | DP81: 1.132379 | DS81: 39.810717 | DT81: 0.297061 | DU81: 0.274846 | DV81: 0.215838 | DY81: 39.810717 | DZ81: 0.343193 | EA81: 0.350871 | EB81: 0.232678 | EE81: 39.810717 | EF81: 0 | EG81: 0 | EH81: 0.204287 | EK81: 39.810717 | EL81: 2.144977333 | EM81: 0.7200976667 | EN81: 1.557080667 | EO81: 1.791741 | EP81: 0.8499986667 | EQ81: 2.304778333 | ER81: 1.086685667 | ES81: 2.428343 | ET81: 2.356093667 | EU81: 1.005355333 | EV81: 1.671715 | EW81: 1.572084333 | EX81: 0.4794126667 | EY81: 0.855464 | EZ81: 1.075768333 | FA81: 0.7059383333 | FB81: 1.658481 | FC81: 0.934482 | FD81: 0.5783413333 | FE81: 1.227513333 | FF81: 0.2625816667 | FG81: 0.308914 | FH81: 0.06809566667
B82: 45.708819 | C82: 2.523919 | D82: 2.398234 | E82: 2.71479 | H82: 45.708819 | I82: 0.786332 | J82: 1.132197 | K82: 0.993989 | N82: 45.708819 | O82: 1.944678 | P82: 1.977829 | Q82: 1.793584 | U82: 45.708819 | V82: 2.284341 | W82: 2.369397 | X82: 2.632061 | AA82: 45.708819 | AB82: 1.311756 | AC82: 1.170205 | AD82: 1.154259 | AG82: 45.708819 | AH82: 3.000082 | AI82: 2.658646 | AJ82: 2.843888 | AM82: 45.708819 | AN82: 1.408757 | AO82: 1.585132 | AP82: 1.468483 | AS82: 45.708819 | AT82: 3.078733 | AU82: 2.95624 | AV82: 2.995915 | AY82: 45.708819 | AZ82: 2.712662 | BA82: 2.932534 | BB82: 2.516563 | BE82: 45.708819 | BF82: 1.398778 | BG82: 1.374593 | BH82: 1.451549 | BK82: 45.708819 | BL82: 1.766583 | BM82: 1.739316 | BN82: 1.700735 | BQ82: 45.708819 | BR82: 2.205815 | BS82: 2.125036 | BT82: 2.014477 | BW82: 45.708819 | BX82: 0.712539 | BY82: 0.49174 | BZ82: 0.445147 | CC82: 45.708819 | CD82: 1.040552 | CE82: 1.008858 | CF82: 1.030567 | CI82: 45.708819 | CJ82: 1.17812 | CK82: 1.136169 | CL82: 1.170729 | CO82: 45.708819 | CP82: 0.85329 | CQ82: 0.776405 | CR82: 0.916942 | CU82: 45.708819 | CV82: 1.818732 | CW82: 1.702421 | CX82: 2.097105 | DA82: 45.708819 | DB82: 1.055799 | DC82: 1.072735 | DD82: 0.961295 | DG82: 45.708819 | DH82: 0.604158 | DI82: 0.820067 | DJ82: 0.791922 | DM82: 45.708819 | DN82: 1.631575 | DO82: 1.56405 | DP82: 1.423509 | DS82: 45.708819 | DT82: 0.40398 | DU82: 0.376215 | DV82: 0.27126 | DY82: 45.708819 | DZ82: 0.274733 | EA82: 0.293666 | EB82: 0.195 | EE82: 45.708819 | EF82: 0 | EG82: 0 | EH82: 0.049381 | EK82: 45.708819 | EL82: 2.545647667 | EM82: 0.9708393333 | EN82: 1.905363667 | EO82: 2.428599667 | EP82: 1.212073333 | EQ82: 2.834205333 | ER82: 1.487457333 | ES82: 3.010296 | ET82: 2.720586333 | EU82: 1.408306667 | EV82: 1.735544667 | EW82: 2.115109333 | EX82: 0.5498086667 | EY82: 1.026659 | EZ82: 1.161672667 | FA82: 0.848879 | FB82: 1.872752667 | FC82: 1.029943 | FD82: 0.7387156667 | FE82: 1.539711333 | FF82: 0.350485 | FG82: 0.2544663333 | FH82: 0.01646033333
B83: 52.480746 | C83: 2.972237 | D83: 2.83712 | E83: 3.211196 | H83: 52.480746 | I83: 1.052841 | J83: 1.486819 | K83: 1.306612 | N83: 52.480746 | O83: 2.345131 | P83: 2.38671 | Q83: 2.157136 | U83: 52.480746 | V83: 3.070159 | W83: 3.185943 | X83: 3.477023 | AA83: 52.480746 | AB83: 1.764481 | AC83: 1.588221 | AD83: 1.581933 | AG83: 52.480746 | AH83: 3.596454 | AI83: 3.197973 | AJ83: 3.423219 | AM83: 52.480746 | AN83: 1.914441 | AO83: 2.173731 | AP83: 2.040063 | AS83: 52.480746 | AT83: 3.755032 | AU83: 3.615057 | AV83: 3.655717 | AY83: 52.480746 | AZ83: 3.111278 | BA83: 3.371562 | BB83: 2.887562 | BE83: 52.480746 | BF83: 1.934091 | BG83: 1.911534 | BH83: 2.022561 | BK83: 52.480746 | BL83: 1.988196 | BM83: 1.870791 | BN83: 1.832246 | BQ83: 52.480746 | BR83: 2.872947 | BS83: 2.771382 | BT83: 2.685518 | BW83: 52.480746 | BX83: 0.819109 | BY83: 0.59976 | BZ83: 0.537384 | CC83: 52.480746 | CD83: 1.306144 | CE83: 1.257439 | CF83: 1.287276 | CI83: 52.480746 | CJ83: 1.32186 | CK83: 1.268733 | CL83: 1.32904 | CO83: 52.480746 | CP83: 1.064952 | CQ83: 0.970134 | CR83: 1.136792 | CU83: 52.480746 | CV83: 2.09144 | CW83: 1.96695 | CX83: 2.397414 | DA83: 52.480746 | DB83: 1.229216 | DC83: 1.260966 | DD83: 1.139413 | DG83: 52.480746 | DH83: 0.802345 | DI83: 1.101923 | DJ83: 1.060017 | DM83: 52.480746 | DN83: 2.091459 | DO83: 2.014559 | DP83: 1.842277 | DS83: 52.480746 | DT83: 0.590232 | DU83: 0.553538 | DV83: 0.389687 | DY83: 52.480746 | DZ83: 0.109968 | EA83: 0.136241 | EB83: 0.090976 | EE83: 52.480746 | EF83: 0 | EG83: 0 | EH83: 0 | EK83: 52.480746 | EL83: 3.006851 | EM83: 1.282090667 | EN83: 2.296325667 | EO83: 3.244375 | EP83: 1.644878333 | EQ83: 3.405882 | ER83: 2.042745 | ES83: 3.675268667 | ET83: 3.123467333 | EU83: 1.956062 | EV83: 1.897077667 | EW83: 2.776615667 | EX83: 0.6520843333 | EY83: 1.283619667 | EZ83: 1.306544333 | FA83: 1.057292667 | FB83: 2.151934667 | FC83: 1.209865 | FD83: 0.988095 | FE83: 1.982765 | FF83: 0.5111523333 | FG83: 0.112395 | FH83: 0
B84: 60.255959 | C84: 3.442892 | D84: 3.297001 | E84: 3.732807 | H84: 60.255959 | I84: 1.359277 | J84: 1.890126 | K84: 1.658619 | N84: 60.255959 | O84: 2.74689 | P84: 2.801052 | Q84: 2.527597 | U84: 60.255959 | V84: 3.984476 | W84: 4.13226 | X84: 4.441084 | AA84: 60.255959 | AB84: 2.243448 | AC84: 2.033787 | AD84: 2.039595 | AG84: 60.255959 | AH84: 4.172271 | AI84: 3.724238 | AJ84: 3.982032 | AM84: 60.255959 | AN84: 2.560551 | AO84: 2.918045 | AP84: 2.774059 | AS84: 60.255959 | AT84: 4.464781 | AU84: 4.31233 | AV84: 4.354766 | AY84: 60.255959 | AZ84: 3.504016 | BA84: 3.797782 | BB84: 3.253253 | BE84: 60.255959 | BF84: 2.596426 | BG84: 2.582929 | BH84: 2.725393 | BK84: 60.255959 | BL84: 2.283509 | BM84: 2.092424 | BN84: 2.046162 | BQ84: 60.255959 | BR84: 3.614302 | BS84: 3.489146 | BT84: 3.45683 | BW84: 60.255959 | BX84: 0.971636 | BY84: 0.745608 | BZ84: 0.666001 | CC84: 60.255959 | CD84: 1.66839 | CE84: 1.598312 | CF84: 1.632619 | CI84: 60.255959 | CJ84: 1.547912 | CK84: 1.482619 | CL84: 1.56484 | CO84: 60.255959 | CP84: 1.351301 | CQ84: 1.236332 | CR84: 1.438852 | CU84: 60.255959 | CV84: 2.420234 | CW84: 2.297214 | CX84: 2.759512 | DA84: 60.255959 | DB84: 1.50907 | DC84: 1.556761 | DD84: 1.421804 | DG84: 60.255959 | DH84: 1.094821 | DI84: 1.48518 | DJ84: 1.429113 | DM84: 60.255959 | DN84: 2.680898 | DO84: 2.597876 | DP84: 2.392826 | DS84: 60.255959 | DT84: 0.866407 | DU84: 0.816992 | DV84: 0.585762 | DY84: 60.255959 | DZ84: 0.002319 | EA84: 0.00324 | EB84: 0.002172 | EE84: 60.255959 | EF84: 0 | EG84: 0 | EH84: 0 | EK84: 60.255959 | EL84: 3.4909 | EM84: 1.636007333 | EN84: 2.691846333 | EO84: 4.18594 | EP84: 2.10561 | EQ84: 3.959513667 | ER84: 2.750885 | ES84: 4.377292333 | ET84: 3.518350333 | EU84: 2.634916 | EV84: 2.140698333 | EW84: 3.520092667 | EX84: 0.794415 | EY84: 1.633107 | EZ84: 1.531790333 | FA84: 1.342161667 | FB84: 2.49232 | FC84: 1.495878333 | FD84: 1.336371333 | FE84: 2.5572 | FF84: 0.756387 | FG84: 0.002577 | FH84: 0
B85: 69.183097 | C85: 3.892242 | D85: 3.733624 | E85: 4.227485 | H85: 69.183097 | I85: 1.681647 | J85: 2.316118 | K85: 2.025131 | N85: 69.183097 | O85: 3.103806 | P85: 3.173301 | Q85: 2.861103 | U85: 69.183097 | V85: 4.951298 | W85: 5.12581 | X85: 5.433579 | AA85: 69.183097 | AB85: 2.692842 | AC85: 2.453764 | AD85: 2.46996 | AG85: 69.183097 | AH85: 4.656963 | AI85: 4.173647 | AJ85: 4.450038 | AM85: 69.183097 | AN85: 3.33275 | AO85: 3.791954 | AP85: 3.649835 | AS85: 69.183097 | AT85: 5.147032 | AU85: 4.989284 | AV85: 5.035705 | AY85: 69.183097 | AZ85: 3.838723 | BA85: 4.153708 | BB85: 3.565042 | BE85: 69.183097 | BF85: 3.3528 | BG85: 3.355968 | BH85: 3.520618 | BK85: 69.183097 | BL85: 2.611435 | BM85: 2.374351 | BN85: 2.31045 | BQ85: 69.183097 | BR85: 4.37579 | BS85: 4.225703 | BT85: 4.274803 | BW85: 69.183097 | BX85: 1.182659 | BY85: 0.933346 | BZ85: 0.837602 | CC85: 69.183097 | CD85: 2.121326 | CE85: 2.028791 | CF85: 2.060819 | CI85: 69.183097 | CJ85: 1.87353 | CK85: 1.797261 | CL85: 1.89197 | CO85: 69.183097 | CP85: 1.719994 | CQ85: 1.58413 | CR85: 1.829201 | CU85: 69.183097 | CV85: 2.792542 | CW85: 2.682138 | CX85: 3.167382 | DA85: 69.183097 | DB85: 1.909788 | DC85: 1.972524 | DD85: 1.822221 | DG85: 69.183097 | DH85: 1.490574 | DI85: 1.965728 | DJ85: 1.897889 | DM85: 69.183097 | DN85: 3.379885 | DO85: 3.293988 | DP85: 3.062506 | DS85: 69.183097 | DT85: 1.232455 | DU85: 1.166338 | DV85: 0.866385 | DY85: 69.183097 | DZ85: 0 | EA85: 0 | EB85: 0 | EE85: 69.183097 | EF85: 0 | EG85: 0 | EH85: 0 | EK85: 69.183097 | EL85: 3.951117 | EM85: 2.007632 | EN85: 3.04607 | EO85: 5.170229 | EP85: 2.538855333 | EQ85: 4.426882667 | ER85: 3.591513 | ES85: 5.057340333 | ET85: 3.852491 | EU85: 3.409795333 | EV85: 2.432078667 | EW85: 4.292098667 | EX85: 0.9845356667 | EY85: 2.070312 | EZ85: 1.854253667 | FA85: 1.711108333 | FB85: 2.880687333 | FC85: 1.901511 | FD85: 1.784730333 | FE85: 3.245459667 | FF85: 1.088392667 | FG85: 0 | FH85: 0
B86: 79.432823 | C86: 4.267384 | D86: 4.09413 | E86: 4.63146 | H86: 79.432823 | I86: 1.985345 | J86: 2.728582 | K86: 2.373261 | N86: 79.432823 | O86: 3.36568 | P86: 3.450276 | Q86: 3.107286 | U86: 79.432823 | V86: 5.856702 | W86: 6.04476 | X86: 6.325092 | AA86: 79.432823 | AB86: 3.047953 | AC86: 2.784657 | AD86: 2.803698 | AG86: 79.432823 | AH86: 4.976122 | AI86: 4.477424 | AJ86: 4.753506 | AM86: 79.432823 | AN86: 4.185894 | AO86: 4.731542 | AP86: 4.608192 | AS86: 79.432823 | AT86: 5.722509 | AU86: 5.567558 | AV86: 5.622186 | AY86: 79.432823 | AZ86: 4.059982 | BA86: 4.382045 | BB86: 3.77179 | BE86: 79.432823 | BF86: 4.138079 | BG86: 4.163317 | BH86: 4.332492 | BK86: 79.432823 | BL86: 2.912734 | BM86: 2.663679 | BN86: 2.572838 | BQ86: 79.432823 | BR86: 5.078985 | BS86: 4.905288 | BT86: 5.054833 | BW86: 79.432823 | BX86: 1.460036 | BY86: 1.16137 | BZ86: 1.053434 | CC86: 79.432823 | CD86: 2.634832 | CE86: 2.523858 | CF86: 2.544064 | CI86: 79.432823 | CJ86: 2.299886 | CK86: 2.216211 | CL86: 2.308644 | CO86: 79.432823 | CP86: 2.167112 | CQ86: 2.011566 | CR86: 2.29877 | CU86: 79.432823 | CV86: 3.181939 | CW86: 3.093232 | CX86: 3.587991 | DA86: 79.432823 | DB86: 2.425374 | DC86: 2.498763 | DD86: 2.334324 | DG86: 79.432823 | DH86: 1.981893 | DI86: 2.519072 | DJ86: 2.444997 | DM86: 79.432823 | DN86: 4.135637 | DO86: 4.048746 | DP86: 3.80668 | DS86: 79.432823 | DT86: 1.667764 | DU86: 1.581272 | DV86: 1.221778 | DY86: 79.432823 | DZ86: 0 | EA86: 0 | EB86: 0 | EE86: 79.432823 | EF86: 0 | EG86: 0 | EH86: 0 | EK86: 79.432823 | EL86: 4.330991333 | EM86: 2.362396 | EN86: 3.307747333 | EO86: 6.075518 | EP86: 2.878769333 | EQ86: 4.735684 | ER86: 4.508542667 | ES86: 5.637417667 | ET86: 4.071272333 | EU86: 4.211296 | EV86: 2.716417 | EW86: 5.013035333 | EX86: 1.224946667 | EY86: 2.567584667 | EZ86: 2.274913667 | FA86: 2.159149333 | FB86: 3.287720667 | FC86: 2.419487 | FD86: 2.315320667 | FE86: 3.997021 | FF86: 1.490271333 | FG86: 0 | FH86: 0
B87: 91.201084 | C87: 4.530203 | D87: 4.341235 | E87: 4.897049 | H87: 91.201084 | I87: 2.242599 | J87: 3.102808 | K87: 2.681944 | N87: 91.201084 | O87: 3.501464 | P87: 3.597374 | Q87: 3.231288 | U87: 91.201084 | V87: 6.597511 | W87: 6.779179 | X87: 6.999969 | AA87: 91.201084 | AB87: 3.264492 | AC87: 2.979863 | AD87: 2.98819 | AG87: 91.201084 | AH87: 5.082145 | AI87: 4.589726 | AJ87: 4.845609 | AM87: 91.201084 | AN87: 5.074738 | AO87: 5.67125 | AP87: 5.586425 | AS87: 91.201084 | AT87: 6.12709 | AU87: 5.982125 | AV87: 6.051974 | AY87: 91.201084 | AZ87: 4.131013 | BA87: 4.449179 | BB87: 3.840538 | BE87: 91.201084 | BF87: 4.889366 | BG87: 4.938169 | BH87: 5.085288 | BK87: 91.201084 | BL87: 3.134378 | BM87: 2.902119 | BN87: 2.779801 | BQ87: 91.201084 | BR87: 5.656783 | BS87: 5.463659 | BT87: 5.719401 | BW87: 91.201084 | BX87: 1.814014 | BY87: 1.429804 | BZ87: 1.31516 | CC87: 91.201084 | CD87: 3.171636 | CE87: 3.051538 | CF87: 3.048604 | CI87: 91.201084 | CJ87: 2.821171 | CK87: 2.73487 | CL87: 2.807277 | CO87: 91.201084 | CP87: 2.690373 | CQ87: 2.517579 | CR87: 2.837008 | CU87: 91.201084 | CV87: 3.565245 | CW87: 3.50133 | CX87: 3.990021 | DA87: 91.201084 | DB87: 3.042002 | DC87: 3.117063 | DD87: 2.944509 | DG87: 91.201084 | DH87: 2.558789 | DI87: 3.12034 | DJ87: 3.047831 | DM87: 91.201084 | DN87: 4.891103 | DO87: 4.802587 | DP87: 4.575117 | DS87: 91.201084 | DT87: 2.144941 | DU87: 2.034393 | DV87: 1.635046 | DY87: 91.201084 | DZ87: 0 | EA87: 0 | EB87: 0 | EE87: 91.201084 | EF87: 0 | EG87: 0 | EH87: 0 | EK87: 91.201084 | EL87: =AVERAGE(C87:E87) -> 4.589495667 | EM87: =AVERAGE(I87:K87) -> 2.675783667 | EN87: =AVERAGE(O87:Q87) -> 3.443375333 | EO87: =AVERAGE(V87:X87) -> 6.792219667 | EP87: =AVERAGE(AB87:AD87) -> 3.077515 | EQ87: =AVERAGE(AH87:AJ87) -> 4.83916 | ER87: =AVERAGE(AN87:AP87) -> 5.444137667 | ES87: =AVERAGE(AT87:AV87) -> 6.053729667 | ET87: =AVERAGE(AZ87:BB87) -> 4.140243333 | EU87: =AVERAGE(BF87:BH87) -> 4.970941 | EV87: =AVERAGE(BL87:BN87) -> 2.938766 | EW87: =AVERAGE(BR87:BT87) -> 5.613281 | EX87: =AVERAGE(BX87:BZ87) -> 1.519659333 | EY87: =AVERAGE(CD87:CF87) -> 3.090592667 | EZ87: =AVERAGE(CJ87:CL87) -> 2.787772667 | FA87: =AVERAGE(CP87:CR87) -> 2.681653333 | FB87: =AVERAGE(CV87:CX87) -> 3.685532 | FC87: =AVERAGE(DB87:DD87) -> 3.034524667 | FD87: =AVERAGE(DH87:DJ87) -> 2.908986667 | FE87: =AVERAGE(DN87:DP87) -> 4.756269 | FF87: =AVERAGE(DT87:DV87) -> 1.938126667 | FG87: =AVERAGE(DZ87:EB87) -> 0 | FH87: =AVERAGE(EF87:EH87) -> 0
B88: 104.712855 | C88: 4.652167 | D88: 4.449325 | E88: 4.989698 | H88: 104.712855 | I88: 2.428194 | J88: 3.415205 | K88: 2.934567 | N88: 104.712855 | O88: 3.501559 | P88: 3.601337 | Q88: 3.217496 | U88: 104.712855 | V88: 7.065984 | W88: 7.217652 | X88: 7.346693 | AA88: 104.712855 | AB88: 3.320932 | AC88: 3.012853 | AD88: 2.993033 | AG88: 104.712855 | AH88: 4.958776 | AI88: 4.491163 | AJ88: 4.711851 | AM88: 104.712855 | AN88: 5.921642 | AO88: 6.512534 | AP88: 6.484553 | AS88: 104.712855 | AT88: 6.302953 | AU88: 6.172059 | AV88: 6.266918 | AY88: 104.712855 | AZ88: 4.037127 | BA88: 4.347536 | BB88: 3.759758 | BE88: 104.712855 | BF88: 5.525108 | BG88: 5.593211 | BH88: 5.683998 | BK88: 104.712855 | BL88: 3.235236 | BM88: 3.02974 | BN88: 2.882659 | BQ88: 104.712855 | BR88: 6.037311 | BS88: 5.832624 | BT88: 6.180863 | BW88: 104.712855 | BX88: 2.241843 | BY88: 1.730623 | BZ88: 1.614107 | CC88: 104.712855 | CD88: 3.669605 | CE88: 3.554219 | CF88: 3.517948 | CI88: 104.712855 | CJ88: 3.40293 | CK88: 3.317947 | CL88: 3.354274 | CO88: 104.712855 | CP88: 3.267899 | CQ88: 3.081048 | CR88: 3.410662 | CU88: 104.712855 | CV88: 3.911183 | CW88: 3.864539 | CX88: 4.332764 | DA88: 104.712855 | DB88: 3.713408 | DC88: 3.775594 | DD88: 3.607821 | DG88: 104.712855 | DH88: 3.187431 | DI88: 3.724404 | DJ88: 3.66172 | DM88: 104.712855 | DN88: 5.560634 | DO88: 5.467221 | DP88: 5.286348 | DS88: 104.712855 | DT88: 2.614222 | DU88: 2.47642 | DV88: 2.06789 | DY88: 104.712855 | DZ88: 0 | EA88: 0 | EB88: 0 | EE88: 104.712855 | EF88: 0.160935 | EG88: 0.091975 | EH88: 0.176005 | EK88: 104.712855 | EL88: 4.697063333 | EM88: 2.925988667 | EN88: 3.440130667 | EO88: 7.210109667 | EP88: 3.108939333 | EQ88: 4.720596667 | ER88: 6.306243 | ES88: 6.24731 | ET88: 4.048140333 | EU88: 5.600772333 | EV88: 3.049211667 | EW88: 6.016932667 | EX88: 1.862191 | EY88: 3.580590667 | EZ88: 3.358383667 | FA88: 3.253203 | FB88: 4.036162 | FC88: 3.698941 | FD88: 3.524518333 | FE88: 5.438067667 | FF88: 2.386177333 | FG88: 0 | FH88: 0.1429716667
B89: 120.226443 | C89: 4.634166 | D89: 4.423809 | E89: 4.909682 | H89: 120.226443 | I89: 2.541297 | J89: 3.66979 | K89: 3.141709 | N89: 120.226443 | O89: 3.391439 | P89: 3.485636 | Q89: 3.08415 | U89: 120.226443 | V89: 7.208244 | W89: 7.306551 | X89: 7.314499 | AA89: 120.226443 | AB89: 3.239842 | AC89: 2.897995 | AD89: 2.832424 | AG89: 120.226443 | AH89: 4.632516 | AI89: 4.200453 | AJ89: 4.380843 | AM89: 120.226443 | AN89: 6.67545 | AO89: 7.189332 | AP89: 7.232717 | AS89: 120.226443 | AT89: 6.230263 | AU89: 6.113102 | AV89: 6.246202 | AY89: 120.226443 | AZ89: 3.793218 | BA89: 4.099624 | BB89: 3.54647 | BE89: 120.226443 | BF89: 6.001576 | BG89: 6.079574 | BH89: 6.07314 | BK89: 120.226443 | BL89: 3.210504 | BM89: 3.013124 | BN89: 2.862995 | BQ89: 120.226443 | BR89: 6.186026 | BS89: 5.980807 | BT89: 6.392374 | BW89: 120.226443 | BX89: 2.749367 | BY89: 2.066289 | BZ89: 1.948414 | CC89: 120.226443 | CD89: 4.081606 | CE89: 3.986315 | CF89: 3.90993 | CI89: 120.226443 | CJ89: 4.016131 | CK89: 3.932655 | CL89: 3.923086 | CO89: 120.226443 | CP89: 3.891576 | CQ89: 3.6927 | CR89: 3.9993 | CU89: 120.226443 | CV89: 4.208326 | CW89: 4.158831 | CX89: 4.596453 | DA89: 120.226443 | DB89: 4.401441 | DC89: 4.430237 | DD89: 4.288385 | DG89: 120.226443 | DH89: 3.849314 | DI89: 4.308733 | DJ89: 4.262111 | DM89: 120.226443 | DN89: 6.084623 | DO89: 5.981273 | DP89: 5.882647 | DS89: 120.226443 | DT89: 3.038952 | DU89: 2.870133 | DV89: 2.491166 | DY89: 120.226443 | DZ89: 0.018975 | EA89: 0.01667 | EB89: 0.018554 | EE89: 120.226443 | EF89: 1.126021 | EG89: 0.835631 | EH89: 0.952684 | EK89: 120.226443 | EL89: 4.655885667 | EM89: 3.117598667 | EN89: 3.320408333 | EO89: 7.276431333 | EP89: 2.990087 | EQ89: 4.404604 | ER89: 7.032499667 | ES89: 6.196522333 | ET89: 3.813104 | EU89: 6.05143 | EV89: 3.028874333 | EW89: 6.186402333 | EX89: 2.25469 | EY89: 3.992617 | EZ89: 3.957290667 | FA89: 3.861192 | FB89: 4.321203333 | FC89: 4.373354333 | FD89: 4.140052667 | FE89: 5.982847667 | FF89: 2.800083667 | FG89: 0.01806633333 | FH89: 0.9714453333
B90: 138.038426 | C90: 4.500435 | D90: 4.295451 | E90: 4.689499 | H90: 138.038426 | I90: 2.597453 | J90: 3.876709 | K90: 3.323063 | N90: 138.038426 | O90: 3.231159 | P90: 3.311023 | Q90: 2.887072 | U90: 138.038426 | V90: 7.009891 | W90: 7.038592 | X90: 6.909132 | AA90: 138.038426 | AB90: 3.085661 | AC90: 2.692882 | AD90: 2.571917 | AG90: 138.038426 | AH90: 4.180671 | AI90: 3.782402 | AJ90: 3.933008 | AM90: 138.038426 | AN90: 7.260511 | AO90: 7.623804 | AP90: 7.743184 | AS90: 138.038426 | AT90: 5.924867 | AU90: 5.81551 | AV90: 6.001172 | AY90: 138.038426 | AZ90: 3.450174 | BA90: 3.759419 | BB90: 3.251043 | BE90: 138.038426 | BF90: 6.282095 | BG90: 6.35623 | BH90: 6.213572 | BK90: 138.038426 | BL90: 3.089574 | BM90: 2.850795 | BN90: 2.734563 | BQ90: 138.038426 | BR90: 6.090133 | BS90: 5.898251 | BT90: 6.331885 | BW90: 138.038426 | BX90: 3.317736 | BY90: 2.429247 | BZ90: 2.302559 | CC90: 138.038426 | CD90: 4.354299 | CE90: 4.290641 | CF90: 4.175623 | CI90: 138.038426 | CJ90: 4.601151 | CK90: 4.512891 | CL90: 4.460666 | CO90: 138.038426 | CP90: 4.526364 | CQ90: 4.315421 | CR90: 4.5588 | CU90: 138.038426 | CV90: 4.444696 | CW90: 4.360344 | CX90: 4.764832 | DA90: 138.038426 | DB90: 5.035147 | DC90: 5.006414 | DD90: 4.919019 | DG90: 138.038426 | DH90: 4.500896 | DI90: 4.837387 | DJ90: 4.807659 | DM90: 138.038426 | DN90: 6.39807 | DO90: 6.280473 | DP90: 6.294852 | DS90: 138.038426 | DT90: 3.373532 | DU90: 3.170617 | DV90: 2.863536 | DY90: 138.038426 | DZ90: 0.169283 | EA90: 0.141607 | EB90: 0.193472 | EE90: 138.038426 | EF90: 3.031063 | EG90: 2.606629 | EH90: 3.037766 | EK90: 138.038426 | EL90: 4.495128333 | EM90: 3.265741667 | EN90: 3.143084667 | EO90: 6.985871667 | EP90: 2.783486667 | EQ90: 3.965360333 | ER90: 7.542499667 | ES90: 5.913849667 | ET90: 3.486878667 | EU90: 6.283965667 | EV90: 2.891644 | EW90: 6.106756333 | EX90: 2.683180667 | EY90: 4.273521 | EZ90: 4.524902667 | FA90: 4.466861667 | FB90: 4.523290667 | FC90: 4.98686 | FD90: 4.715314 | FE90: 6.324465 | FF90: 3.135895 | FG90: 0.1681206667 | FH90: 2.891819333
B91: 158.489319 | C91: 4.289904 | D91: 4.11059 | E91: 4.379292 | H91: 158.489319 | I91: 2.637605 | J91: 4.068844 | K91: 3.519732 | N91: 158.489319 | O91: 3.097465 | P91: 3.157683 | Q91: 2.70235 | U91: 158.489319 | V91: 6.502775 | W91: 6.454011 | X91: 6.182653 | AA91: 158.489319 | AB91: 2.948922 | AC91: 2.482452 | AD91: 2.309995 | AG91: 158.489319 | AH91: 3.690144 | AI91: 3.31275 | AJ91: 3.459497 | AM91: 158.489319 | AN91: 7.638982 | AO91: 7.783914 | AP91: 7.975235 | AS91: 158.489319 | AT91: 5.426348 | AU91: 5.314647 | AV91: 5.56797 | AY91: 158.489319 | AZ91: 3.064286 | BA91: 3.375664 | BB91: 2.929393 | BE91: 158.489319 | BF91: 6.376478 | BG91: 6.430499 | BH91: 6.11696 | BK91: 158.489319 | BL91: 2.923078 | BM91: 2.568574 | BN91: 2.5334 | BQ91: 158.489319 | BR91: 5.767137 | BS91: 5.605004 | BT91: 6.019023 | BW91: 158.489319 | BX91: 3.945918 | BY91: 2.831875 | BZ91: 2.677604 | CC91: 158.489319 | CD91: 4.469435 | CE91: 4.440263 | CF91: 4.297432 | CI91: 158.489319 | CJ91: 5.123544 | CK91: 5.015842 | CL91: 4.938884 | CO91: 158.489319 | CP91: 5.162782 | CQ91: 4.936316 | CR91: 5.073396 | CU91: 158.489319 | CV91: 4.630649 | CW91: 4.471411 | CX91: 4.84585 | DA91: 158.489319 | DB91: 5.572653 | DC91: 5.459048 | DD91: 5.462629 | DG91: 158.489319 | DH91: 5.131624 | DI91: 5.311486 | DJ91: 5.292547 | DM91: 158.489319 | DN91: 6.477805 | DO91: 6.344797 | DP91: 6.497157 | DS91: 158.489319 | DT91: 3.605359 | DU91: 3.3652 | DV91: 3.17408 | DY91: 158.489319 | DZ91: 1.639221 | EA91: 1.549455 | EB91: 1.702695 | EE91: 158.489319 | EF91: 5.888149 | EG91: 5.566377 | EH91: 5.658072 | EK91: 158.489319 | EL91: 4.259928667 | EM91: 3.408727 | EN91: 2.985832667 | EO91: 6.379813 | EP91: 2.580456333 | EQ91: 3.487463667 | ER91: 7.799377 | ES91: 5.436321667 | ET91: 3.123114333 | EU91: 6.307979 | EV91: 2.675017333 | EW91: 5.797054667 | EX91: 3.151799 | EY91: 4.402376667 | EZ91: 5.02609 | FA91: 5.057498 | FB91: 4.649303333 | FC91: 5.49811 | FD91: 5.245219 | FE91: 6.439919667 | FF91: 3.381546333 | FG91: 1.630457 | FH91: 5.704199333
B92: 181.970086 | C92: 4.055573 | D92: 3.927454 | E92: 4.051714 | H92: 181.970086 | I92: 2.713589 | J92: 4.269666 | K92: 3.761853 | N92: 181.970086 | O92: 3.074881 | P92: 3.117341 | Q92: 2.623681 | U92: 181.970086 | V92: 5.775646 | W92: 5.655164 | X92: 5.258072 | AA92: 181.970086 | AB92: 2.933652 | AC92: 2.375536 | AD92: 2.178248 | AG92: 181.970086 | AH92: 3.272741 | AI92: 2.896227 | AJ92: 3.076836 | AM92: 181.970086 | AN92: 7.760225 | AO92: 7.648476 | AP92: 7.895742 | AS92: 181.970086 | AT92: 4.8166 | AU92: 4.691393 | AV92: 5.020305 | AY92: 181.970086 | AZ92: 2.711211 | BA92: 3.001807 | BB92: 2.652264 | BE92: 181.970086 | BF92: 6.309339 | BG92: 6.327148 | BH92: 5.830567 | BK92: 181.970086 | BL92: 2.771142 | BM92: 2.223446 | BN92: 2.311592 | BQ92: 181.970086 | BR92: 5.270144 | BS92: 5.154453 | BT92: 5.518033 | BW92: 181.970086 | BX92: 4.592317 | BY92: 3.268463 | BZ92: 3.057565 | CC92: 181.970086 | CD92: 4.427134 | CE92: 4.419519 | CF92: 4.271241 | CI92: 181.970086 | CJ92: 5.52545 | CK92: 5.376661 | CL92: 5.308558 | CO92: 181.970086 | CP92: 5.753723 | CQ92: 5.506593 | CR92: 5.504625 | CU92: 181.970086 | CV92: 4.769797 | CW92: 4.500906 | CX92: 4.850601 | DA92: 181.970086 | DB92: 5.949519 | DC92: 5.728609 | DD92: 5.859912 | DG92: 181.970086 | DH92: 5.701047 | DI92: 5.715191 | DJ92: 5.693078 | DM92: 181.970086 | DN92: 6.319214 | DO92: 6.176612 | DP92: 6.476091 | DS92: 181.970086 | DT92: 3.729867 | DU92: 3.452829 | DV92: 3.413775 | DY92: 181.970086 | DZ92: 4.252368 | EA92: 4.105635 | EB92: 4.313254 | EE92: 181.970086 | EF92: 9.238431 | EG92: 9.293732 | EH92: 9.811473 | EK92: 181.970086 | EL92: 4.011580333 | EM92: 3.581702667 | EN92: 2.938634333 | EO92: 5.562960667 | EP92: 2.495812 | EQ92: 3.081934667 | ER92: 7.768147667 | ES92: 4.842766 | ET92: 2.788427333 | EU92: 6.155684667 | EV92: 2.435393333 | EW92: 5.31421 | EX92: 3.639448333 | EY92: 4.372631333 | EZ92: 5.403556333 | FA92: 5.588313667 | FB92: 4.707101333 | FC92: 5.846013333 | FD92: 5.703105333 | FE92: 6.323972333 | FF92: 3.532157 | FG92: 4.223752333 | FH92: 9.447878667
B93: 208.929613 | C93: 3.829424 | D93: 3.782327 | E93: 3.752776 | H93: 208.929613 | I93: 2.884715 | J93: 4.504014 | K93: 4.078595 | N93: 208.929613 | O93: 3.223586 | P93: 3.258064 | Q93: 2.726289 | U93: 208.929613 | V93: 4.900878 | W93: 4.722656 | X93: 4.227687 | AA93: 208.929613 | AB93: 3.122665 | AC93: 2.464307 | AD93: 2.293288 | AG93: 208.929613 | AH93: 2.992652 | AI93: 2.600901 | AJ93: 2.856487 | AM93: 208.929613 | AN93: 7.596982 | AO93: 7.217428 | AP93: 7.498734 | AS93: 208.929613 | AT93: 4.151022 | AU93: 4.004622 | AV93: 4.407204 | AY93: 208.929613 | AZ93: 2.430316 | BA93: 2.638474 | BB93: 2.457141 | BE93: 208.929613 | BF93: 6.116054 | BG93: 6.08162 | BH93: 5.412843 | BK93: 208.929613 | BL93: 2.665927 | BM93: 1.857672 | BN93: 2.098971 | BQ93: 208.929613 | BR93: 4.642802 | BS93: 4.591509 | BT93: 4.891228 | BW93: 208.929613 | BX93: 5.240655 | BY93: 3.757071 | BZ93: 3.451127 | CC93: 208.929613 | CD93: 4.257356 | CE93: 4.240542 | CF93: 4.117934 | CI93: 208.929613 | CJ93: 5.782916 | CK93: 5.565561 | CL93: 5.550378 | CO93: 208.929613 | CP93: 6.278932 | CQ93: 6.006529 | CR93: 5.84506 | CU93: 208.929613 | CV93: 4.870736 | CW93: 4.471285 | CX93: 4.793289 | DA93: 208.929613 | DB93: 6.137697 | DC93: 5.791724 | DD93: 6.088411 | DG93: 208.929613 | DH93: 6.20234 | DI93: 6.05842 | DJ93: 6.013318 | DM93: 208.929613 | DN93: 5.938022 | DO93: 5.800761 | DP93: 6.247454 | DS93: 208.929613 | DT93: 3.775197 | DU93: 3.465602 | DV93: 3.610289 | DY93: 208.929613 | DZ93: 9.895459 | EA93: 9.758588 | EB93: 9.816343 | EE93: 208.929613 | EF93: 12.4418 | EG93: 13.011384 | EH93: 13.264692 | EK93: 208.929613 | EL93: 3.788175667 | EM93: 3.822441333 | EN93: 3.069313 | EO93: 4.617073667 | EP93: 2.626753333 | EQ93: 2.81668 | ER93: 7.437714667 | ES93: 4.187616 | ET93: 2.508643667 | EU93: 5.870172333 | EV93: 2.207523333 | EW93: 4.708513 | EX93: 4.149617667 | EY93: 4.205277333 | EZ93: 5.632951667 | FA93: 6.043507 | FB93: 4.71177 | FC93: 6.005944 | FD93: 6.091359333 | FE93: 5.995412333 | FF93: 3.617029333 | FG93: 9.823463333 | FH93: 12.90595867
B94: 239.883292 | C94: 3.636594 | D94: 3.694973 | E94: 3.52095 | H94: 239.883292 | I94: 3.189781 | J94: 4.763041 | K94: 4.45564 | N94: 239.883292 | O94: 3.55514 | P94: 3.598848 | Q94: 3.046977 | U94: 239.883292 | V94: 3.996764 | W94: 3.783213 | X94: 3.232001 | AA94: 239.883292 | AB94: 3.546401 | AC94: 2.802933 | AD94: 2.729597 | AG94: 239.883292 | AH94: 2.891362 | AI94: 2.485561 | AJ94: 2.843395 | AM94: 239.883292 | AN94: 7.140587 | AO94: 6.529226 | AP94: 6.818453 | AS94: 239.883292 | AT94: 3.511721 | AU94: 3.345976 | AV94: 3.80004 | AY94: 239.883292 | AZ94: 2.250408 | BA94: 2.272775 | BB94: 2.365705 | BE94: 239.883292 | BF94: 5.834511 | BG94: 5.736285 | BH94: 4.946376 | BK94: 239.883292 | BL94: 2.612424 | BM94: 1.523482 | BN94: 1.916 | BQ94: 239.883292 | BR94: 3.966943 | BS94: 3.994095 | BT94: 4.239138 | BW94: 239.883292 | BX94: 5.825775 | BY94: 4.28234 | BZ94: 3.846658 | CC94: 239.883292 | CD94: 4.01885 | CE94: 3.946128 | CF94: 3.882571 | CI94: 239.883292 | CJ94: 5.866069 | CK94: 5.55623 | CL94: 5.636242 | CO94: 239.883292 | CP94: 6.676608 | CQ94: 6.381773 | CR94: 6.068276 | CU94: 239.883292 | CV94: 4.924192 | CW94: 4.407996 | CX94: 4.683068 | DA94: 239.883292 | DB94: 6.110068 | DC94: 5.638618 | DD94: 6.122536 | DG94: 239.883292 | DH94: 6.592601 | DI94: 6.320053 | DJ94: 6.231957 | DM94: 239.883292 | DN94: 5.383871 | DO94: 5.276698 | DP94: 5.853139 | DS94: 239.883292 | DT94: 3.781914 | DU94: 3.452531 | DV94: 3.794381 | DY94: 239.883292 | DZ94: 15.405352 | EA94: 15.399162 | EB94: 15.176171 | EE94: 239.883292 | EF94: 14.552005 | EG94: 15.482359 | EH94: 15.52979 | EK94: 239.883292 | EL94: 3.617505667 | EM94: 4.136154 | EN94: 3.400321667 | EO94: 3.670659333 | EP94: 3.026310333 | EQ94: 2.740106 | ER94: 6.829422 | ES94: 3.552579 | ET94: 2.296296 | EU94: 5.505724 | EV94: 2.017302 | EW94: 4.066725333 | EX94: 4.651591 | EY94: 3.949183 | EZ94: 5.686180333 | FA94: 6.375552333 | FB94: 4.671752 | FC94: 5.957074 | FD94: 6.381537 | FE94: 5.504569333 | FF94: 3.676275333 | FG94: 15.326895 | FH94: 15.18805133
B95: 275.42287 | C95: 3.466878 | D95: 3.648404 | E95: 3.346653 | H95: 275.42287 | I95: 3.65707 | J95: 5.029528 | K95: 4.869195 | N95: 275.42287 | O95: 4.040518 | P95: 4.113731 | Q95: 3.583487 | U95: 275.42287 | V95: 3.115806 | W95: 2.890714 | X95: 2.327868 | AA95: 275.42287 | AB95: 4.192338 | AC95: 3.402665 | AD95: 3.510358 | AG95: 275.42287 | AH95: 2.950409 | AI95: 2.559902 | AJ95: 3.023432 | AM95: 275.42287 | AN95: 6.390518 | AO95: 5.613524 | AP95: 5.88618 | AS95: 275.42287 | AT95: 2.92422 | AU95: 2.752882 | AV95: 3.216931 | AY95: 275.42287 | AZ95: 2.155014 | BA95: 1.846094 | BB95: 2.359236 | BE95: 275.42287 | BF95: 5.475104 | BG95: 5.30525 | BH95: 4.477852 | BK95: 275.42287 | BL95: 2.575732 | BM95: 1.236936 | BN95: 1.749424 | BQ95: 275.42287 | BR95: 3.286752 | BS95: 3.404287 | BT95: 3.617801 | BW95: 275.42287 | BX95: 6.312459 | BY95: 4.849729 | BZ95: 4.258996 | CC95: 275.42287 | CD95: 3.772414 | CE95: 3.587865 | CF95: 3.61289 | CI95: 275.42287 | CJ95: 5.77307 | CK95: 5.354044 | CL95: 5.560427 | CO95: 275.42287 | CP95: 6.906603 | CQ95: 6.604911 | CR95: 6.168114 | CU95: 275.42287 | CV95: 4.914239 | CW95: 4.331967 | CX95: 4.515615 | DA95: 275.42287 | DB95: 5.866676 | DC95: 5.284721 | DD95: 5.963181 | DG95: 275.42287 | DH95: 6.849244 | DI95: 6.482447 | DJ95: 6.336573 | DM95: 275.42287 | DN95: 4.691928 | DO95: 4.648553 | DP95: 5.327277 | DS95: 275.42287 | DT95: 3.802681 | DU95: 3.475005 | DV95: 4.016766 | DY95: 275.42287 | DZ95: 18.933911 | EA95: 19.127185 | EB95: 18.724671 | EE95: 275.42287 | EF95: 14.973539 | EG95: 15.88828 | EH95: 15.56187 | EK95: 275.42287 | EL95: 3.487311667 | EM95: 4.518597667 | EN95: 3.912578667 | EO95: 2.778129333 | EP95: 3.701787 | EQ95: 2.844581 | ER95: 5.963407333 | ES95: 2.964677667 | ET95: 2.120114667 | EU95: 5.086068667 | EV95: 1.854030667 | EW95: 3.43628 | EX95: 5.140394667 | EY95: 3.657723 | EZ95: 5.562513667 | FA95: 6.559876 | FB95: 4.587273667 | FC95: 5.704859333 | FD95: 6.556088 | FE95: 4.889252667 | FF95: 3.764817333 | FG95: 18.928589 | FH95: 15.474563
B96: 316.227766 | C96: 3.303762 | D96: 3.607615 | E96: 3.204793 | H96: 316.227766 | I96: 4.259941 | J96: 5.254607 | K96: 5.251 | N96: 316.227766 | O96: 4.580516 | P96: 4.698371 | Q96: 4.256742 | U96: 316.227766 | V96: 2.336451 | W96: 2.122295 | X96: 1.590292 | AA96: 316.227766 | AB96: 4.959792 | AC96: 4.188818 | AD96: 4.545276 | AG96: 316.227766 | AH96: 3.111475 | AI96: 2.79797 | AJ96: 3.330168 | AM96: 316.227766 | AN96: 5.410708 | AO96: 4.565966 | AP96: 4.802645 | AS96: 316.227766 | AT96: 2.428935 | AU96: 2.277876 | AV96: 2.69348 | AY96: 316.227766 | AZ96: 2.110949 | BA96: 1.324122 | BB96: 2.397545 | BE96: 316.227766 | BF96: 5.050505 | BG96: 4.812434 | BH96: 4.059522 | BK96: 316.227766 | BL96: 2.503181 | BM96: 1.01045 | BN96: 1.581316 | BQ96: 316.227766 | BR96: 2.678489 | BS96: 2.888629 | BT96: 3.098954 | BW96: 316.227766 | BX96: 6.636372 | BY96: 5.422125 | BZ96: 4.681006 | CC96: 316.227766 | CD96: 3.588565 | CE96: 3.247191 | CF96: 3.374057 | CI96: 316.227766 | CJ96: 5.520288 | CK96: 4.997084 | CL96: 5.331125 | CO96: 316.227766 | CP96: 6.913093 | CQ96: 6.63828 | CR96: 6.130483 | CU96: 316.227766 | CV96: 4.816825 | CW96: 4.258819 | CX96: 4.286927 | DA96: 316.227766 | DB96: 5.436191 | DC96: 4.783459 | DD96: 5.631353 | DG96: 316.227766 | DH96: 6.926386 | DI96: 6.50173 | DJ96: 6.299314 | DM96: 316.227766 | DN96: 3.935929 | DO96: 3.991337 | DP96: 4.726423 | DS96: 316.227766 | DT96: 3.885476 | DU96: 3.59056 | DV96: 4.310667 | DY96: 316.227766 | DZ96: 18.130917 | EA96: 18.466023 | EB96: 18.204128 | EE96: 316.227766 | EF96: 13.534761 | EG96: 14.044194 | EH96: 13.282458 | EK96: 316.227766 | EL96: 3.372056667 | EM96: 4.921849333 | EN96: 4.511876333 | EO96: 2.016346 | EP96: 4.564628667 | EQ96: 3.079871 | ER96: 4.926439667 | ES96: 2.466763667 | ET96: 1.944205333 | EU96: 4.640820333 | EV96: 1.698315667 | EW96: 2.888690667 | EX96: 5.579834333 | EY96: 3.403271 | EZ96: 5.282832333 | FA96: 6.560618667 | FB96: 4.454190333 | FC96: 5.283667667 | FD96: 6.57581 | FE96: 4.217896333 | FF96: 3.928901 | FG96: 18.26702267 | FH96: 13.620471
B97: 363.078055 | C97: 3.116787 | D97: 3.526348 | E97: 3.046805 | H97: 363.078055 | I97: 4.957701 | J97: 5.393772 | K97: 5.541223 | N97: 363.078055 | O97: 5.067393 | P97: 5.233719 | Q97: 4.968008 | U97: 363.078055 | V97: 1.67458 | W97: 1.487588 | X97: 1.027752 | AA97: 363.078055 | AB97: 5.73249 | AC97: 5.062441 | AD97: 5.704465 | AG97: 363.078055 | AH97: 3.290079 | AI97: 3.144098 | AJ97: 3.667849 | AM97: 363.078055 | AN97: 4.270666 | AO97: 3.454134 | AP97: 3.647757 | AS97: 363.078055 | AT97: 2.021645 | AU97: 1.924659 | AV97: 2.225918 | AY97: 363.078055 | AZ97: 2.065157 | BA97: 0.705921 | BB97: 2.425702 | BE97: 363.078055 | BF97: 4.546201 | BG97: 4.255488 | BH97: 3.699225 | BK97: 363.078055 | BL97: 2.339689 | BM97: 0.833608 | BN97: 1.381182 | BQ97: 363.078055 | BR97: 2.177733 | BS97: 2.473889 | BT97: 2.700399 | BW97: 363.078055 | BX97: 6.759992 | BY97: 5.97346 | BZ97: 5.120531 | CC97: 363.078055 | CD97: 3.508554 | CE97: 2.990369 | CF97: 3.213758 | CI97: 363.078055 | CJ97: 5.132209 | CK97: 4.534906 | CL97: 4.96519 | CO97: 363.078055 | CP97: 6.659177 | CQ97: 6.463285 | CR97: 5.943069 | CU97: 363.078055 | CV97: 4.605874 | CW97: 4.186119 | CX97: 3.980931 | DA97: 363.078055 | DB97: 4.851741 | DC97: 4.188374 | DD97: 5.152638 | DG97: 363.078055 | DH97: 6.786697 | DI97: 6.33178 | DJ97: 6.094064 | DM97: 363.078055 | DN97: 3.16175 | DO97: 3.342563 | DP97: 4.072799 | DS97: 363.078055 | DT97: 4.064176 | DU97: 3.841933 | DV97: 4.701014 | DY97: 363.078055 | DZ97: 13.38477 | EA97: 13.719631 | EB97: 13.824095 | EE97: 363.078055 | EF97: 10.642225 | EG97: 10.574574 | EH97: 9.744984 | EK97: 363.078055 | EL97: 3.22998 | EM97: 5.297565333 | EN97: 5.089706667 | EO97: 1.39664 | EP97: 5.499798667 | EQ97: 3.367342 | ER97: 3.790852333 | ES97: 2.057407333 | ET97: 1.73226 | EU97: 4.166971333 | EV97: 1.518159667 | EW97: 2.450673667 | EX97: 5.951327667 | EY97: 3.237560333 | EZ97: 4.877435 | FA97: 6.355177 | FB97: 4.257641333 | FC97: 4.730917667 | FD97: 6.404180333 | FE97: 3.525704 | FF97: 4.202374333 | FG97: 13.642832 | FH97: 10.32059433
B98: 416.869383 | C98: 2.887872 | D98: 3.367158 | E98: 2.830428 | H98: 416.869383 | I98: 5.649376 | J98: 5.40058 | K98: 5.673835 | N98: 416.869383 | O98: 5.370815 | P98: 5.571396 | Q98: 5.566088 | U98: 416.869383 | V98: 1.151978 | W98: 1.003282 | X98: 0.591118 | AA98: 416.869383 | AB98: 6.344172 | AC98: 5.85936 | AD98: 6.760554 | AG98: 416.869383 | AH98: 3.388666 | AI98: 3.506179 | AJ98: 3.91212 | AM98: 416.869383 | AN98: 3.067655 | AO98: 2.396026 | AP98: 2.534192 | AS98: 416.869383 | AT98: 1.701761 | AU98: 1.691123 | AV98: 1.82209 | AY98: 416.869383 | AZ98: 1.965044 | BA98: 0.096311 | BB98: 2.388052 | BE98: 416.869383 | BF98: 3.968002 | BG98: 3.656734 | BH98: 3.39848 | BK98: 416.869383 | BL98: 2.059947 | BM98: 0.69812 | BN98: 1.139061 | BQ98: 416.869383 | BR98: 1.827166 | BS98: 2.188155 | BT98: 2.430288 | BW98: 416.869383 | BX98: 6.650566 | BY98: 6.438893 | BZ98: 5.55583 | CC98: 416.869383 | CD98: 3.546254 | CE98: 2.880276 | CF98: 3.17042 | CI98: 416.869383 | CJ98: 4.652414 | CK98: 4.043198 | CL98: 4.502791 | CO98: 416.869383 | CP98: 6.137226 | CQ98: 6.079999 | CR98: 5.597564 | CU98: 416.869383 | CV98: 4.271279 | CW98: 4.098226 | CX98: 3.596856 | DA98: 416.869383 | DB98: 4.178589 | DC98: 3.581406 | DD98: 4.577794 | DG98: 416.869383 | DH98: 6.403938 | DI98: 5.937109 | DJ98: 5.70762 | DM98: 416.869383 | DN98: 2.429402 | DO98: 2.752563 | DP98: 3.406368 | DS98: 416.869383 | DT98: 4.339345 | DU98: 4.232308 | DV98: 5.165715 | DY98: 416.869383 | DZ98: 7.723693 | EA98: 7.954235 | EB98: 8.354421 | EE98: 416.869383 | EF98: 7.147575 | EG98: 6.65608 | EH98: 5.350904 | EK98: 416.869383 | EL98: 3.028486 | EM98: 5.574597 | EN98: 5.502766333 | EO98: 0.9154593333 | EP98: 6.321362 | EQ98: 3.602321667 | ER98: 2.665957667 | ES98: 1.738324667 | ET98: 1.483135667 | EU98: 3.674405333 | EV98: 1.299042667 | EW98: 2.148536333 | EX98: 6.215096333 | EY98: 3.198983333 | EZ98: 4.399467667 | FA98: 5.938263 | FB98: 3.988787 | FC98: 4.112596333 | FD98: 6.016222333 | FE98: 2.862777667 | FF98: 4.579122667 | FG98: 8.010783 | FH98: 6.384853
B99: 478.630092 | C99: 2.604068 | D99: 3.106821 | E99: 2.521917 | H99: 478.630092 | I99: 6.235486 | J99: 5.247755 | K99: 5.612865 | N99: 478.630092 | O99: 5.403138 | P99: 5.606875 | Q99: 5.925336 | U99: 478.630092 | V99: 0.766418 | W99: 0.64327 | X99: 0.252673 | AA99: 478.630092 | AB99: 6.666154 | AC99: 6.442417 | AD99: 7.511775 | AG99: 478.630092 | AH99: 3.330659 | AI99: 3.792064 | AJ99: 3.960644 | AM99: 478.630092 | AN99: 2.008492 | AO99: 1.366515 | AP99: 1.561033 | AS99: 478.630092 | AT99: 1.445578 | AU99: 1.544647 | AV99: 1.469766 | AY99: 478.630092 | AZ99: 1.762152 | BA99: 0 | BB99: 2.242238 | BE99: 478.630092 | BF99: 3.315817 | BG99: 3.027336 | BH99: 3.129498 | BK99: 478.630092 | BL99: 1.67007 | BM99: 0.582194 | BN99: 0.848539 | BQ99: 478.630092 | BR99: 1.632986 | BS99: 2.026152 | BT99: 2.259565 | BW99: 478.630092 | BX99: 6.298024 | BY99: 6.76052 | BZ99: 5.963135 | CC99: 478.630092 | CD99: 3.675515 | CE99: 2.94192 | CF99: 3.251585 | CI99: 478.630092 | CJ99: 4.108783 | CK99: 3.575766 | CL99: 3.977635 | CO99: 478.630092 | CP99: 5.363039 | CQ99: 5.499187 | CR99: 5.080885 | CU99: 478.630092 | CV99: 3.81171 | CW99: 3.963089 | CX99: 3.132883 | DA99: 478.630092 | DB99: 3.462756 | DC99: 3.019697 | DD99: 3.943201 | DG99: 478.630092 | DH99: 5.767791 | DI99: 5.296586 | DJ99: 5.134902 | DM99: 478.630092 | DN99: 1.756574 | DO99: 2.232321 | DP99: 2.738436 | DS99: 478.630092 | DT99: 4.685907 | DU99: 4.734636 | DV99: 5.658709 | DY99: 478.630092 | DZ99: 2.720914 | EA99: 2.801866 | EB99: 3.198772 | EE99: 478.630092 | EF99: 3.978219 | EG99: 3.355139 | EH99: 2.733523 | EK99: 478.630092 | EL99: 2.744268667 | EM99: 5.698702 | EN99: 5.645116333 | EO99: 0.5541203333 | EP99: 6.873448667 | EQ99: 3.694455667 | ER99: 1.645346667 | ES99: 1.486663667 | ET99: 1.334796667 | EU99: 3.157550333 | EV99: 1.033601 | EW99: 1.972901 | EX99: 6.340559667 | EY99: 3.289673333 | EZ99: 3.887394667 | FA99: 5.314370333 | FB99: 3.635894 | FC99: 3.475218 | FD99: 5.399759667 | FE99: 2.242443667 | FF99: 5.026417333 | FG99: 2.907184 | FH99: 3.355627
B100: 549.540874 | C100: 2.275651 | D100: 2.750482 | E100: 2.117915 | H100: 549.540874 | I100: 6.598415 | J100: 4.931776 | K100: 5.353344 | N100: 549.540874 | O100: 5.125259 | P100: 5.290055 | Q100: 5.94184 | U100: 549.540874 | V100: 0.459636 | W100: 0.396293 | X100: 0.069928 | AA100: 549.540874 | AB100: 6.602003 | AC100: 6.687161 | AD100: 7.772115 | AG100: 549.540874 | AH100: 3.075149 | AI100: 3.907124 | AJ100: 3.742436 | AM100: 549.540874 | AN100: 0.523218 | AO100: 0.497036 | AP100: 0.276883 | AS100: 549.540874 | AT100: 1.233759 | AU100: 1.446861 | AV100: 1.167967 | AY100: 549.540874 | AZ100: 1.442899 | BA100: 0 | BB100: 1.972538 | BE100: 549.540874 | BF100: 2.624546 | BG100: 2.408882 | BH100: 2.863961 | BK100: 549.540874 | BL100: 1.220878 | BM100: 0.483731 | BN100: 0.56663 | BQ100: 549.540874 | BR100: 1.585702 | BS100: 1.969793 | BT100: 2.145825 | BW100: 549.540874 | BX100: 5.725644 | BY100: 6.868295 | BZ100: 6.287718 | CC100: 549.540874 | CD100: 3.834979 | CE100: 3.158696 | CF100: 3.432317 | CI100: 549.540874 | CJ100: 3.534638 | CK100: 3.176618 | CL100: 3.438218 | CO100: 549.540874 | CP100: 4.406811 | CQ100: 4.761546 | CR100: 4.404409 | CU100: 549.540874 | CV100: 3.25648 | CW100: 3.746254 | CX100: 2.612288 | DA100: 549.540874 | DB100: 2.764198 | DC100: 2.549972 | DD100: 3.297406 | DG100: 549.540874 | DH100: 4.915198 | DI100: 4.442475 | DJ100: 4.404656 | DM100: 549.540874 | DN100: 1.137777 | DO100: 1.790308 | DP100: 2.105051 | DS100: 549.540874 | DT100: 5.040864 | DU100: 5.269539 | DV100: 6.08817 | DY100: 549.540874 | DZ100: 0.932239 | EA100: 0.954183 | EB100: 1.206825 | EE100: 549.540874 | EF100: 1.46799 | EG100: 1.034159 | EH100: 0.42362 | EK100: 549.540874 | EL100: 2.381349333 | EM100: 5.627845 | EN100: 5.452384667 | EO100: 0.308619 | EP100: 7.020426333 | EQ100: 3.574903 | ER100: 0.432379 | ES100: 1.282862333 | ET100: 1.138479 | EU100: 2.632463 | EV100: 0.7570796667 | EW100: 1.90044 | EX100: 6.293885667 | EY100: 3.475330667 | EZ100: 3.383158 | FA100: 4.524255333 | FB100: 3.205007333 | FC100: 2.870525333 | FD100: 4.587443 | FE100: 1.677712 | FF100: 5.466191 | FG100: 1.031082333 | FH100: 0.9752563333
B101: 630.957344 | C101: 1.917495 | D101: 2.324015 | E101: 1.642475 | H101: 630.957344 | I101: 6.65665 | J101: 4.468142 | K101: 4.915911 | N101: 630.957344 | O101: 4.560791 | P101: 4.641363 | Q101: 5.576649 | U101: 630.957344 | V101: 0.253423 | W101: 0.135616 | X101: 0 | AA101: 630.957344 | AB101: 6.12707 | AC101: 6.538434 | AD101: 7.456498 | AG101: 630.957344 | AH101: 2.62204 | AI101: 3.787894 | AJ101: 3.256302 | AM101: 630.957344 | AN101: 0.032172 | AO101: 0.044032 | AP101: 0 | AS101: 630.957344 | AT101: 1.04207 | AU101: 1.353681 | AV101: 0.903103 | AY101: 630.957344 | AZ101: 0.978629 | BA101: 0 | BB101: 1.584843 | BE101: 630.957344 | BF101: 1.934642 | BG101: 1.823436 | BH101: 2.567176 | BK101: 630.957344 | BL101: 0.771624 | BM101: 0.386575 | BN101: 0.253317 | BQ101: 630.957344 | BR101: 1.648681 | BS101: 1.981895 | BT101: 2.038094 | BW101: 630.957344 | BX101: 4.966038 | BY101: 6.711739 | BZ101: 6.469182 | CC101: 630.957344 | CD101: 3.947567 | CE101: 3.470355 | CF101: 3.659077 | CI101: 630.957344 | CJ101: 2.941709 | CK101: 2.84696 | CL101: 2.907148 | CO101: 630.957344 | CP101: 3.35051 | CQ101: 3.909918 | CR101: 3.58276 | CU101: 630.957344 | CV101: 2.642069 | CW101: 3.415937 | CX101: 2.057954 | DA101: 630.957344 | DB101: 2.033156 | DC101: 2.199821 | DD101: 2.668434 | DG101: 630.957344 | DH101: 3.905941 | DI101: 3.418274 | DJ101: 3.557705 | DM101: 630.957344 | DN101: 0.661463 | DO101: 1.38307 | DP101: 1.502017 | DS101: 630.957344 | DT101: 5.330591 | DU101: 5.738677 | DV101: 6.356501 | DY101: 630.957344 | DZ101: 0.01552 | EA101: 0.008971 | EB101: 0.055651 | EE101: 630.957344 | EF101: 0.122397 | EG101: 0.041784 | EH101: 0 | EK101: 630.957344 | EL101: 1.961328333 | EM101: 5.346901 | EN101: 4.926267667 | EO101: 0.1296796667 | EP101: 6.707334 | EQ101: 3.222078667 | ER101: 0.02540133333 | ES101: 1.099618 | ET101: 0.8544906667 | EU101: 2.108418 | EV101: 0.4705053333 | EW101: 1.889556667 | EX101: 6.048986333 | EY101: 3.692333 | EZ101: 2.898605667 | FA101: 3.614396 | FB101: 2.70532 | FC101: 2.300470333 | FD101: 3.627306667 | FE101: 1.182183333 | FF101: 5.808589667 | FG101: 0.026714 | FH101: 0.054727
B102: 724.43596 | C102: 1.554811 | D102: 1.866369 | E102: 1.11712 | H102: 724.43596 | I102: 6.373544 | J102: 3.892607 | K102: 4.362094 | N102: 724.43596 | O102: 3.788928 | P102: 3.754646 | Q102: 4.865302 | U102: 724.43596 | V102: 0.169278 | W102: 0.023211 | X102: 0 | AA102: 724.43596 | AB102: 5.293087 | AC102: 6.006395 | AD102: 6.593211 | AG102: 724.43596 | AH102: 2.029118 | AI102: 3.416369 | AJ102: 2.532464 | AM102: 724.43596 | AN102: 0 | AO102: 0 | AP102: 0 | AS102: 724.43596 | AT102: 0.857321 | AU102: 1.235647 | AV102: 0.653668 | AY102: 724.43596 | AZ102: 0.49524 | BA102: 0 | BB102: 1.122675 | BE102: 724.43596 | BF102: 1.29443 | BG102: 1.330934 | BH102: 2.220089 | BK102: 724.43596 | BL102: 0.379677 | BM102: 0.290356 | BN102: 0.080912 | BQ102: 724.43596 | BR102: 1.767678 | BS102: 2.017536 | BT102: 1.89799 | BW102: 724.43596 | BX102: 4.103486 | BY102: 6.269825 | BZ102: 6.442096 | CC102: 724.43596 | CD102: 3.938079 | CE102: 3.778379 | CF102: 3.854628 | CI102: 724.43596 | CJ102: 2.344959 | CK102: 2.564839 | CL102: 2.337498 | CO102: 724.43596 | CP102: 2.2986 | CQ102: 3.004245 | CR102: 2.636024 | CU102: 724.43596 | CV102: 2.019881 | CW102: 2.964503 | CX102: 1.512542 | DA102: 724.43596 | DB102: 1.355969 | DC102: 1.898811 | DD102: 2.077436 | DG102: 724.43596 | DH102: 2.834485 | DI102: 2.34956 | DJ102: 2.661291 | DM102: 724.43596 | DN102: 0.478392 | DO102: 1.028488 | DP102: 0.920431 | DS102: 724.43596 | DT102: 5.477007 | DU102: 6.027856 | DV102: 6.370824 | DY102: 724.43596 | DZ102: 0 | EA102: 0 | EB102: 0 | EE102: 724.43596 | EF102: 0 | EG102: 0 | EH102: 0 | EK102: 724.43596 | EL102: 1.512766667 | EM102: 4.876081667 | EN102: 4.136292 | EO102: 0.064163 | EP102: 5.964231 | EQ102: 2.659317 | ER102: 0 | ES102: 0.9155453333 | ET102: 0.539305 | EU102: 1.615151 | EV102: 0.250315 | EW102: 1.894401333 | EX102: 5.605135667 | EY102: 3.857028667 | EZ102: 2.415765333 | FA102: 2.646289667 | FB102: 2.165642 | FC102: 1.777405333 | FD102: 2.615112 | FE102: 0.8091036667 | FF102: 5.958562333 | FG102: 0 | FH102: 0
B103: 831.763771 | C103: 1.185865 | D103: 1.348339 | E103: 0.606778 | H103: 831.763771 | I103: 5.777465 | J103: 3.26011 | K103: 3.738644 | N103: 831.763771 | O103: 2.927252 | P103: 2.753013 | Q103: 3.904224 | U103: 831.763771 | V103: 0.108804 | W103: 0 | X103: 0 | AA103: 831.763771 | AB103: 4.213228 | AC103: 5.171008 | AD103: 5.316558 | AG103: 831.763771 | AH103: 1.352325 | AI103: 2.822064 | AJ103: 1.750687 | AM103: 831.763771 | AN103: 0 | AO103: 0 | AP103: 0 | AS103: 831.763771 | AT103: 0.669694 | AU103: 1.071948 | AV103: 0.441999 | AY103: 831.763771 | AZ103: 0.123108 | BA103: 0 | BB103: 0.622516 | BE103: 831.763771 | BF103: 0.770616 | BG103: 0.878538 | BH103: 1.821458 | BK103: 831.763771 | BL103: 0.109624 | BM103: 0.179286 | BN103: 0 | BQ103: 831.763771 | BR103: 1.880978 | BS103: 2.0307 | BT103: 1.689278 | BW103: 831.763771 | BX103: 3.158877 | BY103: 5.564246 | BZ103: 6.160795 | CC103: 831.763771 | CD103: 3.759057 | CE103: 3.976204 | CF103: 3.940181 | CI103: 831.763771 | CJ103: 1.704356 | CK103: 2.287416 | CL103: 1.871411 | CO103: 831.763771 | CP103: 1.214689 | CQ103: 2.116632 | CR103: 1.661146 | CU103: 831.763771 | CV103: 1.375422 | CW103: 2.408787 | CX103: 0.956605 | DA103: 831.763771 | DB103: 0.965137 | DC103: 1.63912 | DD103: 1.482335 | DG103: 831.763771 | DH103: 1.725378 | DI103: 1.251431 | DJ103: 1.717094 | DM103: 831.763771 | DN103: 0.520352 | DO103: 0.794406 | DP103: 0.448499 | DS103: 831.763771 | DT103: 5.424922 | DU103: 6.047405 | DV103: 6.080122 | DY103: 831.763771 | DZ103: 0 | EA103: 0 | EB103: 0 | EE103: 831.763771 | EF103: 0 | EG103: 0 | EH103: 0 | EK103: 831.763771 | EL103: 1.046994 | EM103: 4.258739667 | EN103: 3.194829667 | EO103: 0.036268 | EP103: 4.900264667 | EQ103: 1.975025333 | ER103: 0 | ES103: 0.7278803333 | ET103: 0.2485413333 | EU103: 1.156870667 | EV103: 0.09630333333 | EW103: 1.866985333 | EX103: 4.961306 | EY103: 3.891814 | EZ103: 1.954394333 | FA103: 1.664155667 | FB103: 1.580271333 | FC103: 1.362197333 | FD103: 1.564634333 | FE103: 0.5877523333 | FF103: 5.850816333 | FG103: 0 | FH103: 0
B104: 954.992586 | C104: 0.839625 | D104: 0.874509 | E104: 0.237325 | H104: 954.992586 | I104: 4.950649 | J104: 2.600849 | K104: 3.065297 | N104: 954.992586 | O104: 2.056972 | P104: 1.807374 | Q104: 2.843732 | U104: 954.992586 | V104: 0.067291 | W104: 0 | X104: 0 | AA104: 954.992586 | AB104: 3.043319 | AC104: 4.144059 | AD104: 3.843811 | AG104: 954.992586 | AH104: 0.696527 | AI104: 2.073582 | AJ104: 0.842332 | AM104: 954.992586 | AN104: 0 | AO104: 0 | AP104: 0 | AS104: 954.992586 | AT104: 0.490766 | AU104: 0.863202 | AV104: 0.316207 | AY104: 954.992586 | AZ104: 0 | BA104: 0 | BB104: 0.154623 | BE104: 954.992586 | BF104: 0.279503 | BG104: 0.475739 | BH104: 1.395696 | BK104: 954.992586 | BL104: 0.027602 | BM104: 0.094821 | BN104: 0 | BQ104: 954.992586 | BR104: 1.930865 | BS104: 1.985248 | BT104: 1.420283 | BW104: 954.992586 | BX104: 2.210298 | BY104: 4.662563 | BZ104: 5.617387 | CC104: 954.992586 | CD104: 3.403715 | CE104: 3.976685 | CF104: 3.854667 | CI104: 954.992586 | CJ104: 1.112421 | CK104: 1.987352 | CL104: 1.669537 | CO104: 954.992586 | CP104: 0.243252 | CQ104: 1.245263 | CR104: 0.893457 | CU104: 954.992586 | CV104: 0.792256 | CW104: 1.80081 | CX104: 0.484062 | DA104: 954.992586 | DB104: 0.807926 | DC104: 1.501979 | DD104: 0.952234 | DG104: 954.992586 | DH104: 0.775705 | DI104: 0.257277 | DJ104: 0.85922 | DM104: 954.992586 | DN104: 0.584501 | DO104: 0.628141 | DP104: 0.161028 | DS104: 954.992586 | DT104: 5.150931 | DU104: 5.752668 | DV104: 5.491499 | DY104: 954.992586 | DZ104: 0 | EA104: 0 | EB104: 0 | EE104: 954.992586 | EF104: 0 | EG104: 0 | EH104: 0 | EK104: 954.992586 | EL104: 0.6504863333 | EM104: 3.538931667 | EN104: 2.236026 | EO104: 0.02243033333 | EP104: 3.677063 | EQ104: 1.204147 | ER104: 0 | ES104: 0.556725 | ET104: 0.051541 | EU104: 0.7169793333 | EV104: 0.04080766667 | EW104: 1.778798667 | EX104: 4.163416 | EY104: 3.745022333 | EZ104: 1.58977 | FA104: 0.7939906667 | FB104: 1.025709333 | FC104: 1.087379667 | FD104: 0.630734 | FE104: 0.45789 | FF104: 5.465032667 | FG104: 0 | FH104: 0
B105: 1096.478196 | C105: 0.613465 | D105: 0.687718 | E105: 0.086823 | H105: 1096.478196 | I105: 4.018969 | J105: 1.92994 | K105: 2.480623 | N105: 1096.478196 | O105: 1.217432 | P105: 0.794847 | Q105: 1.793152 | U105: 1096.478196 | V105: 0.047439 | W105: 0 | X105: 0 | AA105: 1096.478196 | AB105: 1.835171 | AC105: 3.043787 | AD105: 2.410238 | AG105: 1096.478196 | AH105: 0.217587 | AI105: 1.355372 | AJ105: 0.13899 | AM105: 1096.478196 | AN105: 0 | AO105: 0 | AP105: 0 | AS105: 1096.478196 | AT105: 0.306569 | AU105: 0.647986 | AV105: 0.232694 | AY105: 1096.478196 | AZ105: 0 | BA105: 0 | BB105: 0 | BE105: 1096.478196 | BF105: 0 | BG105: 0.370489 | BH105: 0.964782 | BK105: 1096.478196 | BL105: 0 | BM105: 0.011443 | BN105: 0 | BQ105: 1096.478196 | BR105: 1.87006 | BS105: 1.857049 | BT105: 1.167979 | BW105: 1096.478196 | BX105: 1.524365 | BY105: 3.612104 | BZ105: 4.852915 | CC105: 1096.478196 | CD105: 2.912301 | CE105: 3.741206 | CF105: 3.574877 | CI105: 1096.478196 | CJ105: 0.774504 | CK105: 1.646092 | CL105: 1.404231 | CO105: 1096.478196 | CP105: 0 | CQ105: 0.403941 | CR105: 0.340079 | CU105: 1096.478196 | CV105: 0.518023 | CW105: 1.168133 | CX105: 0.244837 | DA105: 1096.478196 | DB105: 0.61617 | DC105: 1.28642 | DD105: 0.683521 | DG105: 1096.478196 | DH105: 0.267758 | DI105: 0 | DJ105: 0.305435 | DM105: 1096.478196 | DN105: 0.612816 | DO105: 0.435268 | DP105: 0.030967 | DS105: 1096.478196 | DT105: 4.668153 | DU105: 5.162468 | DV105: 4.676165 | DY105: 1096.478196 | DZ105: 0 | EA105: 0 | EB105: 0 | EE105: 1096.478196 | EF105: 0 | EG105: 0 | EH105: 0 | EK105: 1096.478196 | EL105: 0.4626686667 | EM105: 2.809844 | EN105: 1.268477 | EO105: 0.015813 | EP105: 2.429732 | EQ105: 0.5706496667 | ER105: 0 | ES105: 0.3957496667 | ET105: 0 | EU105: 0.4450903333 | EV105: 0.003814333333 | EW105: 1.631696 | EX105: 3.329794667 | EY105: 3.409461333 | EZ105: 1.274942333 | FA105: 0.2480066667 | FB105: 0.6436643333 | FC105: 0.862037 | FD105: 0.1910643333 | FE105: 0.3596836667 | FF105: 4.835595333 | FG105: 0 | FH105: 0
B106: 1258.925412 | C106: 0.466111 | D106: 0.524232 | E106: 0 | H106: 1258.925412 | I106: 3.087263 | J106: 1.379941 | K106: 2.124796 | N106: 1258.925412 | O106: 0.628382 | P106: 0 | Q106: 0.737942 | U106: 1258.925412 | V106: 0.031394 | W106: 0 | X106: 0 | AA106: 1258.925412 | AB106: 0.658713 | AC106: 2.060461 | AD106: 1.04601 | AG106: 1258.925412 | AH106: 0 | AI106: 0.758668 | AJ106: 0 | AM106: 1258.925412 | AN106: 0 | AO106: 0 | AP106: 0 | AS106: 1258.925412 | AT106: 0.137195 | AU106: 0.45187 | AV106: 0.149953 | AY106: 1258.925412 | AZ106: 0 | BA106: 0 | BB106: 0 | BE106: 1258.925412 | BF106: 0 | BG106: 0.282444 | BH106: 0.542982 | BK106: 1258.925412 | BL106: 0 | BM106: 0 | BN106: 0 | BQ106: 1258.925412 | BR106: 1.680629 | BS106: 1.626252 | BT106: 0.93421 | BW106: 1258.925412 | BX106: 0.948992 | BY106: 2.497443 | BZ106: 3.929153 | CC106: 1258.925412 | CD106: 2.34913 | CE106: 3.282845 | CF106: 3.113568 | CI106: 1258.925412 | CJ106: 0.447786 | CK106: 1.244272 | CL106: 1.126922 | CO106: 1258.925412 | CP106: 0 | CQ106: 0.06718 | CR106: 0 | CU106: 1258.925412 | CV106: 0.401212 | CW106: 0.541717 | CX106: 0.025693 | DA106: 1258.925412 | DB106: 0.430585 | DC106: 0.986326 | DD106: 0.428875 | DG106: 1258.925412 | DH106: 0 | DI106: 0 | DJ106: 0 | DM106: 1258.925412 | DN106: 0.589911 | DO106: 0.299024 | DP106: 0 | DS106: 1258.925412 | DT106: 4.008076 | DU106: 4.342338 | DV106: 3.734516 | DY106: 1258.925412 | DZ106: 0 | EA106: 0 | EB106: 0 | EE106: 1258.925412 | EF106: 0 | EG106: 0 | EH106: 0 | EK106: 1258.925412 | EL106: 0.3301143333 | EM106: 2.197333333 | EN106: 0.4554413333 | EO106: 0.01046466667 | EP106: 1.255061333 | EQ106: 0.2528893333 | ER106: 0 | ES106: 0.2463393333 | ET106: 0 | EU106: 0.275142 | EV106: 0 | EW106: 1.413697 | EX106: 2.458529333 | EY106: 2.915181 | EZ106: 0.93966 | FA106: 0.02239333333 | FB106: 0.322874 | FC106: 0.615262 | FD106: 0 | FE106: 0.2963116667 | FF106: 4.02831 | FG106: 0 | FH106: 0
B107: 1445.439771 | C107: 0.33625 | D107: 0.368947 | E107: 0 | H107: 1445.439771 | I107: 2.135735 | J107: 0.918883 | K107: 1.723653 | N107: 1445.439771 | O107: 0.392569 | P107: 0 | Q107: 0.155349 | U107: 1445.439771 | V107: 0.021682 | W107: 0 | X107: 0 | AA107: 1445.439771 | AB107: 0.238076 | AC107: 1.381368 | AD107: 0.079104 | AG107: 1445.439771 | AH107: 0 | AI107: 0.120014 | AJ107: 0 | AM107: 1445.439771 | AN107: 0 | AO107: 0 | AP107: 0 | AS107: 1445.439771 | AT107: 0.033042 | AU107: 0.318034 | AV107: 0.067815 | AY107: 1445.439771 | AZ107: 0 | BA107: 0 | BB107: 0 | BE107: 1445.439771 | BF107: 0 | BG107: 0.207435 | BH107: 0.231186 | BK107: 1445.439771 | BL107: 0 | BM107: 0 | BN107: 0 | BQ107: 1445.439771 | BR107: 1.409593 | BS107: 1.321925 | BT107: 0.692511 | BW107: 1445.439771 | BX107: 0.3563 | BY107: 1.764539 | BZ107: 2.915385 | CC107: 1445.439771 | CD107: 1.755125 | CE107: 2.657625 | CF107: 2.513901 | CI107: 1445.439771 | CJ107: 0.25408 | CK107: 0.944199 | CL107: 0.83597 | CO107: 1445.439771 | CP107: 0 | CQ107: 0 | CR107: 0 | CU107: 1445.439771 | CV107: 0.296023 | CW107: 0.237304 | CX107: 0 | DA107: 1445.439771 | DB107: 0.254446 | DC107: 0.795059 | DD107: 0.160088 | DG107: 1445.439771 | DH107: 0 | DI107: 0 | DJ107: 0 | DM107: 1445.439771 | DN107: 0.512267 | DO107: 0.189824 | DP107: 0 | DS107: 1445.439771 | DT107: 3.217965 | DU107: 3.391937 | DV107: 2.762553 | DY107: 1445.439771 | DZ107: 0 | EA107: 0 | EB107: 0 | EE107: 1445.439771 | EF107: 0 | EG107: 0 | EH107: 0 | EK107: 1445.439771 | EL107: 0.2350656667 | EM107: 1.592757 | EN107: 0.1826393333 | EO107: 0.007227333333 | EP107: 0.5661826667 | EQ107: 0.04000466667 | ER107: 0 | ES107: 0.1396303333 | ET107: 0 | EU107: 0.146207 | EV107: 0 | EW107: 1.141343 | EX107: 1.678741333 | EY107: 2.308883667 | EZ107: 0.678083 | FA107: 0 | FB107: 0.1777756667 | FC107: 0.4031976667 | FD107: 0 | FE107: 0.2340303333 | FF107: 3.124151667 | FG107: 0 | FH107: 0
B108: 1659.586907 | C108: 0.22987 | D108: 0.191899 | E108: 0 | H108: 1659.586907 | I108: 1.313666 | J108: 0.643157 | K108: 1.281339 | N108: 1659.586907 | O108: 0.265326 | P108: 0 | Q108: 0.010847 | U108: 1659.586907 | V108: 0 | W108: 0 | X108: 0 | AA108: 1659.586907 | AB108: 0.008714 | AC108: 0.993138 | AD108: 0 | AG108: 1659.586907 | AH108: 0 | AI108: 0.00704 | AJ108: 0 | AM108: 1659.586907 | AN108: 0 | AO108: 0 | AP108: 0 | AS108: 1659.586907 | AT108: 0 | AU108: 0.213793 | AV108: 0.006067 | AY108: 1659.586907 | AZ108: 0 | BA108: 0 | BB108: 0 | BE108: 1659.586907 | BF108: 0 | BG108: 0.144846 | BH108: 0.007336 | BK108: 1659.586907 | BL108: 0 | BM108: 0 | BN108: 0 | BQ108: 1659.586907 | BR108: 1.0711 | BS108: 0.983329 | BT108: 0.447145 | BW108: 1659.586907 | BX108: 0.00914 | BY108: 1.093113 | BZ108: 1.839991 | CC108: 1659.586907 | CD108: 1.144959 | CE108: 1.940445 | CF108: 1.834473 | CI108: 1659.586907 | CJ108: 0.044953 | CK108: 0.66305 | CL108: 0.531447 | CO108: 1659.586907 | CP108: 0 | CQ108: 0 | CR108: 0 | CU108: 1659.586907 | CV108: 0.205769 | CW108: 0.00852 | CX108: 0 | DA108: 1659.586907 | DB108: 0.03856 | DC108: 0.5763 | DD108: 0.01376 | DG108: 1659.586907 | DH108: 0 | DI108: 0 | DJ108: 0 | DM108: 1659.586907 | DN108: 0.392265 | DO108: 0.058108 | DP108: 0 | DS108: 1659.586907 | DT108: 2.350897 | DU108: 2.390733 | DV108: 1.79159 | DY108: 1659.586907 | DZ108: 0 | EA108: 0 | EB108: 0 | EE108: 1659.586907 | EF108: 0 | EG108: 0 | EH108: 0 | EK108: 1659.586907 | EL108: 0.1405896667 | EM108: 1.079387333 | EN108: 0.09205766667 | EO108: 0 | EP108: 0.3339506667 | EQ108: 0.002346666667 | ER108: 0 | ES108: 0.07328666667 | ET108: 0 | EU108: 0.05072733333 | EV108: 0 | EW108: 0.833858 | EX108: 0.980748 | EY108: 1.639959 | EZ108: 0.41315 | FA108: 0 | FB108: 0.07142966667 | FC108: 0.20954 | FD108: 0 | FE108: 0.1501243333 | FF108: 2.17774 | FG108: 0 | FH108: 0
B109: 1905.460718 | C109: 0.115944 | D109: 0.030173 | E109: 0 | H109: 1905.460718 | I109: 0.701227 | J109: 0.362464 | K109: 0.732531 | N109: 1905.460718 | O109: 0.13266 | P109: 0 | Q109: 0 | U109: 1905.460718 | V109: 0 | W109: 0 | X109: 0 | AA109: 1905.460718 | AB109: 0 | AC109: 0.565351 | AD109: 0 | AG109: 1905.460718 | AH109: 0 | AI109: 0 | AJ109: 0 | AM109: 1905.460718 | AN109: 0 | AO109: 0 | AP109: 0 | AS109: 1905.460718 | AT109: 0 | AU109: 0.081092 | AV109: 0 | AY109: 1905.460718 | AZ109: 0 | BA109: 0 | BB109: 0 | BE109: 1905.460718 | BF109: 0 | BG109: 0.073883 | BH109: 0 | BK109: 1905.460718 | BL109: 0 | BM109: 0 | BN109: 0 | BQ109: 1905.460718 | BR109: 0.61632 | BS109: 0.543883 | BT109: 0.170494 | BW109: 1905.460718 | BX109: 0 | BY109: 0.255786 | BZ109: 0.941167 | CC109: 1905.460718 | CD109: 0.479257 | CE109: 1.087301 | CF109: 1.027978 | CI109: 1905.460718 | CJ109: 0 | CK109: 0.355579 | CL109: 0.264392 | CO109: 1905.460718 | CP109: 0 | CQ109: 0 | CR109: 0 | CU109: 1905.460718 | CV109: 0.105022 | CW109: 0 | CX109: 0 | DA109: 1905.460718 | DB109: 0 | DC109: 0.316042 | DD109: 0 | DG109: 1905.460718 | DH109: 0 | DI109: 0 | DJ109: 0 | DM109: 1905.460718 | DN109: 0.225335 | DO109: 0.007748 | DP109: 0 | DS109: 1905.460718 | DT109: 1.322299 | DU109: 1.256631 | DV109: 0.721004 | DY109: 1905.460718 | DZ109: 0 | EA109: 0 | EB109: 0 | EE109: 1905.460718 | EF109: 0 | EG109: 0 | EH109: 0 | EK109: 1905.460718 | EL109: 0.04870566667 | EM109: 0.5987406667 | EN109: 0.04422 | EO109: 0 | EP109: 0.1884503333 | EQ109: 0 | ER109: 0 | ES109: 0.02703066667 | ET109: 0 | EU109: 0.02462766667 | EV109: 0 | EW109: 0.4435656667 | EX109: 0.3989843333 | EY109: 0.8648453333 | EZ109: 0.206657 | FA109: 0 | FB109: 0.03500733333 | FC109: 0.1053473333 | FD109: 0 | FE109: 0.07769433333 | FF109: 1.099978 | FG109: 0 | FH109: 0
B110: 2187.761624 | C110: 0.031396 | D110: 0 | E110: 0 | H110: 2187.761624 | I110: 0.172256 | J110: 0.083722 | K110: 0.174678 | N110: 2187.761624 | O110: 0.035876 | P110: 0 | Q110: 0 | U110: 2187.761624 | V110: 0 | W110: 0 | X110: 0 | AA110: 2187.761624 | AB110: 0 | AC110: 0.131236 | AD110: 0 | AG110: 2187.761624 | AH110: 0 | AI110: 0 | AJ110: 0 | AM110: 2187.761624 | AN110: 0 | AO110: 0 | AP110: 0 | AS110: 2187.761624 | AT110: 0 | AU110: 0.019342 | AV110: 0 | AY110: 2187.761624 | AZ110: 0 | BA110: 0 | BB110: 0 | BE110: 2187.761624 | BF110: 0 | BG110: 0.020077 | BH110: 0 | BK110: 2187.761624 | BL110: 0 | BM110: 0 | BN110: 0 | BQ110: 2187.761624 | BR110: 0.147209 | BS110: 0.124092 | BT110: 0.041173 | BW110: 2187.761624 | BX110: 0 | BY110: 0.041725 | BZ110: 0.219713 | CC110: 2187.761624 | CD110: 0.073259 | CE110: 0.25646 | CF110: 0.242498 | CI110: 2187.761624 | CJ110: 0 | CK110: 0.081125 | CL110: 0.058825 | CO110: 2187.761624 | CP110: 0 | CQ110: 0 | CR110: 0 | CU110: 2187.761624 | CV110: 0.028517 | CW110: 0 | CX110: 0 | DA110: 2187.761624 | DB110: 0 | DC110: 0.074053 | DD110: 0 | DG110: 2187.761624 | DH110: 0 | DI110: 0 | DJ110: 0 | DM110: 2187.761624 | DN110: 0.053717 | DO110: 0 | DP110: 0 | DS110: 2187.761624 | DT110: 0.312869 | DU110: 0.276684 | DV110: 0.099136 | DY110: 2187.761624 | DZ110: 0 | EA110: 0 | EB110: 0 | EE110: 2187.761624 | EF110: 0 | EG110: 0 | EH110: 0 | EK110: 2187.761624 | EL110: 0.01046533333 | EM110: 0.143552 | EN110: 0.01195866667 | EO110: 0 | EP110: 0.04374533333 | EQ110: 0 | ER110: 0 | ES110: 0.006447333333 | ET110: 0 | EU110: 0.006692333333 | EV110: 0 | EW110: 0.104158 | EX110: 0.087146 | EY110: 0.190739 | EZ110: 0.04665 | FA110: 0 | FB110: 0.009505666667 | FC110: 0.02468433333 | FD110: 0 | FE110: 0.01790566667 | FF110: 0.229563 | FG110: 0 | FH110: 0
B111: 2511.886432 | C111: 0 | D111: 0 | E111: 0 | H111: 2511.886432 | I111: 0 | J111: 0 | K111: 0 | N111: 2511.886432 | O111: 0 | P111: 0 | Q111: 0 | U111: 2511.886432 | V111: 0 | W111: 0 | X111: 0 | AA111: 2511.886432 | AB111: 0 | AC111: 0 | AD111: 0 | AG111: 2511.886432 | AH111: 0 | AI111: 0 | AJ111: 0 | AM111: 2511.886432 | AN111: 0 | AO111: 0 | AP111: 0 | AS111: 2511.886432 | AT111: 0 | AU111: 0 | AV111: 0 | AY111: 2511.886432 | AZ111: 0 | BA111: 0 | BB111: 0 | BE111: 2511.886432 | BF111: 0 | BG111: 0 | BH111: 0 | BK111: 2511.886432 | BL111: 0 | BM111: 0 | BN111: 0 | BQ111: 2511.886432 | BR111: 0 | BS111: 0 | BT111: 0 | BW111: 2511.886432 | BX111: 0 | BY111: 0 | BZ111: 0 | CC111: 2511.886432 | CD111: 0 | CE111: 0 | CF111: 0 | CI111: 2511.886432 | CJ111: 0 | CK111: 0 | CL111: 0 | CO111: 2511.886432 | CP111: 0 | CQ111: 0 | CR111: 0 | CU111: 2511.886432 | CV111: 0 | CW111: 0 | CX111: 0 | DA111: 2511.886432 | DB111: 0 | DC111: 0 | DD111: 0 | DG111: 2511.886432 | DH111: 0 | DI111: 0 | DJ111: 0 | DM111: 2511.886432 | DN111: 0 | DO111: 0 | DP111: 0 | DS111: 2511.886432 | DT111: 0 | DU111: 0 | DV111: 0 | DY111: 2511.886432 | DZ111: 0 | EA111: 0 | EB111: 0 | EE111: 2511.886432 | EF111: 0 | EG111: 0 | EH111: 0 | EK111: 2511.886432 | EL111: 0 | EM111: 0 | EN111: 0 | EO111: 0 | EP111: 0 | EQ111: 0 | ER111: 0 | ES111: 0 | ET111: 0 | EU111: 0 | EV111: 0 | EW111: 0 | EX111: 0 | EY111: 0 | EZ111: 0 | FA111: 0 | FB111: 0 | FC111: 0 | FD111: 0 | FE111: 0 | FF111: 0 | FG111: 0 | FH111: 0
B112: 2884.031503 | C112: 0 | D112: 0 | E112: 0 | H112: 2884.031503 | I112: 0 | J112: 0 | K112: 0 | N112: 2884.031503 | O112: 0 | P112: 0 | Q112: 0 | U112: 2884.031503 | V112: 0 | W112: 0 | X112: 0 | AA112: 2884.031503 | AB112: 0 | AC112: 0 | AD112: 0 | AG112: 2884.031503 | AH112: 0 | AI112: 0 | AJ112: 0 | AM112: 2884.031503 | AN112: 0 | AO112: 0 | AP112: 0 | AS112: 2884.031503 | AT112: 0 | AU112: 0 | AV112: 0 | AY112: 2884.031503 | AZ112: 0 | BA112: 0 | BB112: 0 | BE112: 2884.031503 | BF112: 0 | BG112: 0 | BH112: 0 | BK112: 2884.031503 | BL112: 0 | BM112: 0 | BN112: 0 | BQ112: 2884.031503 | BR112: 0 | BS112: 0 | BT112: 0 | BW112: 2884.031503 | BX112: 0 | BY112: 0 | BZ112: 0 | CC112: 2884.031503 | CD112: 0 | CE112: 0 | CF112: 0 | CI112: 2884.031503 | CJ112: 0 | CK112: 0 | CL112: 0 | CO112: 2884.031503 | CP112: 0 | CQ112: 0 | CR112: 0 | CU112: 2884.031503 | CV112: 0 | CW112: 0 | CX112: 0 | DA112: 2884.031503 | DB112: 0 | DC112: 0 | DD112: 0 | DG112: 2884.031503 | DH112: 0 | DI112: 0 | DJ112: 0 | DM112: 2884.031503 | DN112: 0 | DO112: 0 | DP112: 0 | DS112: 2884.031503 | DT112: 0 | DU112: 0 | DV112: 0 | DY112: 2884.031503 | DZ112: 0 | EA112: 0 | EB112: 0 | EE112: 2884.031503 | EF112: 0 | EG112: 0 | EH112: 0 | EK112: 2884.031503 | EL112: 0 | EM112: 0 | EN112: 0 | EO112: 0 | EP112: 0 | EQ112: 0 | ER112: 0 | ES112: 0 | ET112: 0 | EU112: 0 | EV112: 0 | EW112: 0 | EX112: 0 | EY112: 0 | EZ112: 0 | FA112: 0 | FB112: 0 | FC112: 0 | FD112: 0 | FE112: 0 | FF112: 0 | FG112: 0 | FH112: 0
B113: 3311.311215 | C113: 0 | D113: 0 | E113: 0 | H113: 3311.311215 | I113: 0 | J113: 0 | K113: 0 | N113: 3311.311215 | O113: 0 | P113: 0 | Q113: 0 | U113: 3311.311215 | V113: 0 | W113: 0 | X113: 0 | AA113: 3311.311215 | AB113: 0 | AC113: 0 | AD113: 0 | AG113: 3311.311215 | AH113: 0 | AI113: 0 | AJ113: 0 | AM113: 3311.311215 | AN113: 0 | AO113: 0 | AP113: 0 | AS113: 3311.311215 | AT113: 0 | AU113: 0 | AV113: 0 | AY113: 3311.311215 | AZ113: 0 | BA113: 0 | BB113: 0 | BE113: 3311.311215 | BF113: 0 | BG113: 0 | BH113: 0 | BK113: 3311.311215 | BL113: 0 | BM113: 0 | BN113: 0 | BQ113: 3311.311215 | BR113: 0 | BS113: 0 | BT113: 0 | BW113: 3311.311215 | BX113: 0 | BY113: 0 | BZ113: 0 | CC113: 3311.311215 | CD113: 0 | CE113: 0 | CF113: 0 | CI113: 3311.311215 | CJ113: 0 | CK113: 0 | CL113: 0 | CO113: 3311.311215 | CP113: 0 | CQ113: 0 | CR113: 0 | CU113: 3311.311215 | CV113: 0 | CW113: 0 | CX113: 0 | DA113: 3311.311215 | DB113: 0 | DC113: 0 | DD113: 0 | DG113: 3311.311215 | DH113: 0 | DI113: 0 | DJ113: 0 | DM113: 3311.311215 | DN113: 0 | DO113: 0 | DP113: 0 | DS113: 3311.311215 | DT113: 0 | DU113: 0 | DV113: 0 | DY113: 3311.311215 | DZ113: 0 | EA113: 0 | EB113: 0 | EE113: 3311.311215 | EF113: 0 | EG113: 0 | EH113: 0 | EK113: 3311.311215 | EL113: 0 | EM113: 0 | EN113: 0 | EO113: 0 | EP113: 0 | EQ113: 0 | ER113: 0 | ES113: 0 | ET113: 0 | EU113: 0 | EV113: 0 | EW113: 0 | EX113: 0 | EY113: 0 | EZ113: 0 | FA113: 0 | FB113: 0 | FC113: 0 | FD113: 0 | FE113: 0 | FF113: 0 | FG113: 0 | FH113: 0
B114: 3801.893963 | C114: 0 | D114: 0 | E114: 0 | H114: 3801.893963 | I114: 0 | J114: 0 | K114: 0 | N114: 3801.893963 | O114: 0 | P114: 0 | Q114: 0 | U114: 3801.893963 | V114: 0 | W114: 0 | X114: 0 | AA114: 3801.893963 | AB114: 0 | AC114: 0 | AD114: 0 | AG114: 3801.893963 | AH114: 0 | AI114: 0 | AJ114: 0 | AM114: 3801.893963 | AN114: 0 | AO114: 0 | AP114: 0 | AS114: 3801.893963 | AT114: 0 | AU114: 0 | AV114: 0 | AY114: 3801.893963 | AZ114: 0 | BA114: 0 | BB114: 0 | BE114: 3801.893963 | BF114: 0 | BG114: 0 | BH114: 0 | BK114: 3801.893963 | BL114: 0 | BM114: 0 | BN114: 0 | BQ114: 3801.893963 | BR114: 0 | BS114: 0 | BT114: 0 | BW114: 3801.893963 | BX114: 0 | BY114: 0 | BZ114: 0 | CC114: 3801.893963 | CD114: 0 | CE114: 0 | CF114: 0 | CI114: 3801.893963 | CJ114: 0 | CK114: 0 | CL114: 0 | CO114: 3801.893963 | CP114: 0 | CQ114: 0 | CR114: 0 | CU114: 3801.893963 | CV114: 0 | CW114: 0 | CX114: 0 | DA114: 3801.893963 | DB114: 0 | DC114: 0 | DD114: 0 | DG114: 3801.893963 | DH114: 0 | DI114: 0 | DJ114: 0 | DM114: 3801.893963 | DN114: 0 | DO114: 0 | DP114: 0 | DS114: 3801.893963 | DT114: 0 | DU114: 0 | DV114: 0 | DY114: 3801.893963 | DZ114: 0 | EA114: 0 | EB114: 0 | EE114: 3801.893963 | EF114: 0 | EG114: 0 | EH114: 0 | EK114: 3801.893963 | EL114: 0 | EM114: 0 | EN114: 0 | EO114: 0 | EP114: 0 | EQ114: 0 | ER114: 0 | ES114: 0 | ET114: 0 | EU114: 0 | EV114: 0 | EW114: 0 | EX114: 0 | EY114: 0 | EZ114: 0 | FA114: 0 | FB114: 0 | FC114: 0 | FD114: 0 | FE114: 0 | FF114: 0 | FG114: 0 | FH114: 0
B115: 4365.158322 | C115: 0 | D115: 0 | E115: 0 | H115: 4365.158322 | I115: 0 | J115: 0 | K115: 0 | N115: 4365.158322 | O115: 0 | P115: 0 | Q115: 0 | U115: 4365.158322 | V115: 0 | W115: 0 | X115: 0 | AA115: 4365.158322 | AB115: 0 | AC115: 0 | AD115: 0 | AG115: 4365.158322 | AH115: 0 | AI115: 0 | AJ115: 0 | AM115: 4365.158322 | AN115: 0 | AO115: 0 | AP115: 0 | AS115: 4365.158322 | AT115: 0 | AU115: 0 | AV115: 0 | AY115: 4365.158322 | AZ115: 0 | BA115: 0 | BB115: 0 | BE115: 4365.158322 | BF115: 0 | BG115: 0 | BH115: 0 | BK115: 4365.158322 | BL115: 0 | BM115: 0 | BN115: 0 | BQ115: 4365.158322 | BR115: 0 | BS115: 0 | BT115: 0 | BW115: 4365.158322 | BX115: 0 | BY115: 0 | BZ115: 0 | CC115: 4365.158322 | CD115: 0 | CE115: 0 | CF115: 0 | CI115: 4365.158322 | CJ115: 0 | CK115: 0 | CL115: 0 | CO115: 4365.158322 | CP115: 0 | CQ115: 0 | CR115: 0 | CU115: 4365.158322 | CV115: 0 | CW115: 0 | CX115: 0 | DA115: 4365.158322 | DB115: 0 | DC115: 0 | DD115: 0 | DG115: 4365.158322 | DH115: 0 | DI115: 0 | DJ115: 0 | DM115: 4365.158322 | DN115: 0 | DO115: 0 | DP115: 0 | DS115: 4365.158322 | DT115: 0 | DU115: 0 | DV115: 0 | DY115: 4365.158322 | DZ115: 0 | EA115: 0 | EB115: 0 | EE115: 4365.158322 | EF115: 0 | EG115: 0 | EH115: 0 | EK115: 4365.158322 | EL115: 0 | EM115: 0 | EN115: 0 | EO115: 0 | EP115: 0 | EQ115: 0 | ER115: 0 | ES115: 0 | ET115: 0 | EU115: 0 | EV115: 0 | EW115: 0 | EX115: 0 | EY115: 0 | EZ115: 0 | FA115: 0 | FB115: 0 | FC115: 0 | FD115: 0 | FE115: 0 | FF115: 0 | FG115: 0 | FH115: 0
B116: 5011.872336 | C116: 0 | D116: 0 | E116: 0 | H116: 5011.872336 | I116: 0 | J116: 0 | K116: 0 | N116: 5011.872336 | O116: 0 | P116: 0 | Q116: 0 | U116: 5011.872336 | V116: 0 | W116: 0 | X116: 0 | AA116: 5011.872336 | AB116: 0 | AC116: 0 | AD116: 0 | AG116: 5011.872336 | AH116: 0 | AI116: 0 | AJ116: 0 | AM116: 5011.872336 | AN116: 0 | AO116: 0 | AP116: 0 | AS116: 5011.872336 | AT116: 0 | AU116: 0 | AV116: 0 | AY116: 5011.872336 | AZ116: 0 | BA116: 0 | BB116: 0 | BE116: 5011.872336 | BF116: 0 | BG116: 0 | BH116: 0 | BK116: 5011.872336 | BL116: 0 | BM116: 0 | BN116: 0 | BQ116: 5011.872336 | BR116: 0 | BS116: 0 | BT116: 0 | BW116: 5011.872336 | BX116: 0 | BY116: 0 | BZ116: 0 | CC116: 5011.872336 | CD116: 0 | CE116: 0 | CF116: 0 | CI116: 5011.872336 | CJ116: 0 | CK116: 0 | CL116: 0 | CO116: 5011.872336 | CP116: 0 | CQ116: 0 | CR116: 0 | CU116: 5011.872336 | CV116: 0 | CW116: 0 | CX116: 0 | DA116: 5011.872336 | DB116: 0 | DC116: 0 | DD116: 0 | DG116: 5011.872336 | DH116: 0 | DI116: 0 | DJ116: 0 | DM116: 5011.872336 | DN116: 0 | DO116: 0 | DP116: 0 | DS116: 5011.872336 | DT116: 0 | DU116: 0 | DV116: 0 | DY116: 5011.872336 | DZ116: 0 | EA116: 0 | EB116: 0 | EE116: 5011.872336 | EF116: 0 | EG116: 0 | EH116: 0 | EK116: 5011.872336 | EL116: 0 | EM116: 0 | EN116: 0 | EO116: 0 | EP116: 0 | EQ116: 0 | ER116: 0 | ES116: 0 | ET116: 0 | EU116: 0 | EV116: 0 | EW116: 0 | EX116: 0 | EY116: 0 | EZ116: 0 | FA116: 0 | FB116: 0 | FC116: 0 | FD116: 0 | FE116: 0 | FF116: 0 | FG116: 0 | FH116: 0
B117: 5754.399373 | C117: 0 | D117: 0 | E117: 0 | H117: 5754.399373 | I117: 0 | J117: 0 | K117: 0 | N117: 5754.399373 | O117: 0 | P117: 0 | Q117: 0 | U117: 5754.399373 | V117: 0 | W117: 0 | X117: 0 | AA117: 5754.399373 | AB117: 0 | AC117: 0 | AD117: 0 | AG117: 5754.399373 | AH117: 0 | AI117: 0 | AJ117: 0 | AM117: 5754.399373 | AN117: 0 | AO117: 0 | AP117: 0 | AS117: 5754.399373 | AT117: 0 | AU117: 0 | AV117: 0 | AY117: 5754.399373 | AZ117: 0 | BA117: 0 | BB117: 0 | BE117: 5754.399373 | BF117: 0 | BG117: 0 | BH117: 0 | BK117: 5754.399373 | BL117: 0 | BM117: 0 | BN117: 0 | BQ117: 5754.399373 | BR117: 0 | BS117: 0 | BT117: 0 | BW117: 5754.399373 | BX117: 0 | BY117: 0 | BZ117: 0 | CC117: 5754.399373 | CD117: 0 | CE117: 0 | CF117: 0 | CI117: 5754.399373 | CJ117: 0 | CK117: 0 | CL117: 0 | CO117: 5754.399373 | CP117: 0 | CQ117: 0 | CR117: 0 | CU117: 5754.399373 | CV117: 0 | CW117: 0 | CX117: 0 | DA117: 5754.399373 | DB117: 0 | DC117: 0 | DD117: 0 | DG117: 5754.399373 | DH117: 0 | DI117: 0 | DJ117: 0 | DM117: 5754.399373 | DN117: 0 | DO117: 0 | DP117: 0 | DS117: 5754.399373 | DT117: 0 | DU117: 0 | DV117: 0 | DY117: 5754.399373 | DZ117: 0 | EA117: 0 | EB117: 0 | EE117: 5754.399373 | EF117: 0 | EG117: 0 | EH117: 0 | EK117: 5754.399373 | EL117: 0 | EM117: 0 | EN117: 0 | EO117: 0 | EP117: 0 | EQ117: 0 | ER117: 0 | ES117: 0 | ET117: 0 | EU117: 0 | EV117: 0 | EW117: 0 | EX117: 0 | EY117: 0 | EZ117: 0 | FA117: 0 | FB117: 0 | FC117: 0 | FD117: 0 | FE117: 0 | FF117: 0 | FG117: 0 | FH117: 0
B118: 6606.93448 | C118: 0 | D118: 0 | E118: 0 | H118: 6606.93448 | I118: 0 | J118: 0 | K118: 0 | N118: 6606.93448 | O118: 0 | P118: 0 | Q118: 0 | U118: 6606.93448 | V118: 0 | W118: 0 | X118: 0 | AA118: 6606.93448 | AB118: 0 | AC118: 0 | AD118: 0 | AG118: 6606.93448 | AH118: 0 | AI118: 0 | AJ118: 0 | AM118: 6606.93448 | AN118: 0 | AO118: 0 | AP118: 0 | AS118: 6606.93448 | AT118: 0 | AU118: 0 | AV118: 0 | AY118: 6606.93448 | AZ118: 0 | BA118: 0 | BB118: 0 | BE118: 6606.93448 | BF118: 0 | BG118: 0 | BH118: 0 | BK118: 6606.93448 | BL118: 0 | BM118: 0 | BN118: 0 | BQ118: 6606.93448 | BR118: 0 | BS118: 0 | BT118: 0 | BW118: 6606.93448 | BX118: 0 | BY118: 0 | BZ118: 0 | CC118: 6606.93448 | CD118: 0 | CE118: 0 | CF118: 0 | CI118: 6606.93448 | CJ118: 0 | CK118: 0 | CL118: 0 | CO118: 6606.93448 | CP118: 0 | CQ118: 0 | CR118: 0 | CU118: 6606.93448 | CV118: 0 | CW118: 0 | CX118: 0 | DA118: 6606.93448 | DB118: 0 | DC118: 0 | DD118: 0 | DG118: 6606.93448 | DH118: 0 | DI118: 0 | DJ118: 0 | DM118: 6606.93448 | DN118: 0 | DO118: 0 | DP118: 0 | DS118: 6606.93448 | DT118: 0 | DU118: 0 | DV118: 0 | DY118: 6606.93448 | DZ118: 0 | EA118: 0 | EB118: 0 | EE118: 6606.93448 | EF118: 0 | EG118: 0 | EH118: 0 | EK118: 6606.93448 | EL118: 0 | EM118: 0 | EN118: 0 | EO118: 0 | EP118: 0 | EQ118: 0 | ER118: 0 | ES118: 0 | ET118: 0 | EU118: 0 | EV118: 0 | EW118: 0 | EX118: 0 | EY118: 0 | EZ118: 0 | FA118: 0 | FB118: 0 | FC118: 0 | FD118: 0 | FE118: 0 | FF118: 0 | FG118: 0 | FH118: 0
B119: 7585.77575 | C119: 0 | D119: 0 | E119: 0 | H119: 7585.77575 | I119: 0 | J119: 0 | K119: 0 | N119: 7585.77575 | O119: 0 | P119: 0 | Q119: 0 | U119: 7585.77575 | V119: 0 | W119: 0 | X119: 0 | AA119: 7585.77575 | AB119: 0 | AC119: 0 | AD119: 0 | AG119: 7585.77575 | AH119: 0 | AI119: 0 | AJ119: 0 | AM119: 7585.77575 | AN119: 0 | AO119: 0 | AP119: 0 | AS119: 7585.77575 | AT119: 0 | AU119: 0 | AV119: 0 | AY119: 7585.77575 | AZ119: 0 | BA119: 0 | BB119: 0 | BE119: 7585.77575 | BF119: 0 | BG119: 0 | BH119: 0 | BK119: 7585.77575 | BL119: 0 | BM119: 0 | BN119: 0 | BQ119: 7585.77575 | BR119: 0 | BS119: 0 | BT119: 0 | BW119: 7585.77575 | BX119: 0 | BY119: 0 | BZ119: 0 | CC119: 7585.77575 | CD119: 0 | CE119: 0 | CF119: 0 | CI119: 7585.77575 | CJ119: 0 | CK119: 0 | CL119: 0 | CO119: 7585.77575 | CP119: 0 | CQ119: 0 | CR119: 0 | CU119: 7585.77575 | CV119: 0 | CW119: 0 | CX119: 0 | DA119: 7585.77575 | DB119: 0 | DC119: 0 | DD119: 0 | DG119: 7585.77575 | DH119: 0 | DI119: 0 | DJ119: 0 | DM119: 7585.77575 | DN119: 0 | DO119: 0 | DP119: 0 | DS119: 7585.77575 | DT119: 0 | DU119: 0 | DV119: 0 | DY119: 7585.77575 | DZ119: 0 | EA119: 0 | EB119: 0 | EE119: 7585.77575 | EF119: 0 | EG119: 0 | EH119: 0 | EK119: 7585.77575 | EL119: 0 | EM119: 0 | EN119: 0 | EO119: 0 | EP119: 0 | EQ119: 0 | ER119: 0 | ES119: 0 | ET119: 0 | EU119: 0 | EV119: 0 | EW119: 0 | EX119: 0 | EY119: 0 | EZ119: 0 | FA119: 0 | FB119: 0 | FC119: 0 | FD119: 0 | FE119: 0 | FF119: 0 | FG119: 0 | FH119: 0
B120: 8709.6359 | C120: 0 | D120: 0 | E120: 0 | H120: 8709.6359 | I120: 0 | J120: 0 | K120: 0 | N120: 8709.6359 | O120: 0 | P120: 0 | Q120: 0 | U120: 8709.6359 | V120: 0 | W120: 0 | X120: 0 | AA120: 8709.6359 | AB120: 0 | AC120: 0 | AD120: 0 | AG120: 8709.6359 | AH120: 0 | AI120: 0 | AJ120: 0 | AM120: 8709.6359 | AN120: 0 | AO120: 0 | AP120: 0 | AS120: 8709.6359 | AT120: 0 | AU120: 0 | AV120: 0 | AY120: 8709.6359 | AZ120: 0 | BA120: 0 | BB120: 0 | BE120: 8709.6359 | BF120: 0 | BG120: 0 | BH120: 0 | BK120: 8709.6359 | BL120: 0 | BM120: 0 | BN120: 0 | BQ120: 8709.6359 | BR120: 0 | BS120: 0 | BT120: 0 | BW120: 8709.6359 | BX120: 0 | BY120: 0 | BZ120: 0 | CC120: 8709.6359 | CD120: 0 | CE120: 0 | CF120: 0 | CI120: 8709.6359 | CJ120: 0 | CK120: 0 | CL120: 0 | CO120: 8709.6359 | CP120: 0 | CQ120: 0 | CR120: 0 | CU120: 8709.6359 | CV120: 0 | CW120: 0 | CX120: 0 | DA120: 8709.6359 | DB120: 0 | DC120: 0 | DD120: 0 | DG120: 8709.6359 | DH120: 0 | DI120: 0 | DJ120: 0 | DM120: 8709.6359 | DN120: 0 | DO120: 0 | DP120: 0 | DS120: 8709.6359 | DT120: 0 | DU120: 0 | DV120: 0 | DY120: 8709.6359 | DZ120: 0 | EA120: 0 | EB120: 0 | EE120: 8709.6359 | EF120: 0 | EG120: 0 | EH120: 0 | EK120: 8709.6359 | EL120: 0 | EM120: 0 | EN120: 0 | EO120: 0 | EP120: 0 | EQ120: 0 | ER120: 0 | ES120: 0 | ET120: 0 | EU120: 0 | EV120: 0 | EW120: 0 | EX120: 0 | EY120: 0 | EZ120: 0 | FA120: 0 | FB120: 0 | FC120: 0 | FD120: 0 | FE120: 0 | FF120: 0 | FG120: 0 | FH120: 0
B121: 10000 | C121: 0 | D121: 0 | E121: 0 | H121: 10000 | I121: 0 | J121: 0 | K121: 0 | N121: 10000 | O121: 0 | P121: 0 | Q121: 0 | U121: 10000 | V121: 0 | W121: 0 | X121: 0 | AA121: 10000 | AB121: 0 | AC121: 0 | AD121: 0 | AG121: 10000 | AH121: 0 | AI121: 0 | AJ121: 0 | AM121: 10000 | AN121: 0 | AO121: 0 | AP121: 0 | AS121: 10000 | AT121: 0 | AU121: 0 | AV121: 0 | AY121: 10000 | AZ121: 0 | BA121: 0 | BB121: 0 | BE121: 10000 | BF121: 0 | BG121: 0 | BH121: 0 | BK121: 10000 | BL121: 0 | BM121: 0 | BN121: 0 | BQ121: 10000 | BR121: 0 | BS121: 0 | BT121: 0 | BW121: 10000 | BX121: 0 | BY121: 0 | BZ121: 0 | CC121: 10000 | CD121: 0 | CE121: 0 | CF121: 0 | CI121: 10000 | CJ121: 0 | CK121: 0 | CL121: 0 | CO121: 10000 | CP121: 0 | CQ121: 0 | CR121: 0 | CU121: 10000 | CV121: 0 | CW121: 0 | CX121: 0 | DA121: 10000 | DB121: 0 | DC121: 0 | DD121: 0 | DG121: 10000 | DH121: 0 | DI121: 0 | DJ121: 0 | DM121: 10000 | DN121: 0 | DO121: 0 | DP121: 0 | DS121: 10000 | DT121: 0 | DU121: 0 | DV121: 0 | DY121: 10000 | DZ121: 0 | EA121: 0 | EB121: 0 | EE121: 10000 | EF121: 0 | EG121: 0 | EH121: 0 | EK121: 10000 | EL121: 0 | EM121: 0 | EN121: 0 | EO121: 0 | EP121: 0 | EQ121: 0 | ER121: 0 | ES121: 0 | ET121: 0 | EU121: 0 | EV121: 0 | EW121: 0 | EX121: 0 | EY121: 0 | EZ121: 0 | FA121: 0 | FB121: 0 | FC121: 0 | FD121: 0 | FE121: 0 | FF121: 0 | FG121: 0 | FH121: 0

Sheet Calculations (hidden)
A1: Basics | D1: Basics | G1: Basics | J1: Basics
A2: =IF('Texture Calculator'!$G$4+1.5*'Texture Calculator'!$E$4<0.15,1,0) -> 0 | B2: ((silt + 1.5*clay) < 15) | C2: SAND | D2: =IF('Texture Calculator'!$G$5+1.5*'Texture Calculator'!$E$5<0.15,1,0) -> 1 | E2: ((silt + 1.5*clay) < 15) | F2: SAND | G2: =IF('Texture Calculator'!$G$6+1.5*'Texture Calculator'!$E$6<0.15,1,0) -> 0 | H2: ((silt + 1.5*clay) < 15) | I2: SAND | J2: =IF('Texture Calculator'!$G$7+1.5*'Texture Calculator'!$E$7<0.15,1,0) -> 0 | K2: ((silt + 1.5*clay) < 15) | L2: SAND
A3: =IF(AND('Texture Calculator'!$G$4+1.5*'Texture Calculator'!$E$4>=0.15, 'Texture Calculator'!$G$4+2*'Texture Calculator'!$E$4<0.3), 2, 0) -> 0 | B3: ((silt + 1.5*clay >= 15) && (silt + 2*clay < 30)) | C3: LOAMY SAND | D3: =IF(AND('Texture Calculator'!$G$5+1.5*'Texture Calculator'!$E$5>=0.15, 'Texture Calculator'!$G$5+2*'Texture Calculator'!$E$5<0.3), 2, 0) -> 0 | E3: ((silt + 1.5*clay >= 15) && (silt + 2*clay < 30)) | F3: LOAMY SAND | G3: =IF(AND('Texture Calculator'!$G$6+1.5*'Texture Calculator'!$E$6>=0.15, 'Texture Calculator'!$G$6+2*'Texture Calculator'!$E$6<0.3), 2, 0) -> 2 | H3: ((silt + 1.5*clay >= 15) && (silt + 2*clay < 30)) | I3: LOAMY SAND | J3: =IF(AND('Texture Calculator'!$G$7+1.5*'Texture Calculator'!$E$7>=0.15, 'Texture Calculator'!$G$7+2*'Texture Calculator'!$E$7<0.3), 2, 0) -> 0 | K3: ((silt + 1.5*clay >= 15) && (silt + 2*clay < 30)) | L3: LOAMY SAND
A4: =IF(OR(AND('Texture Calculator'!$E$4>=0.07, 'Texture Calculator'!$E$4<0.2,'Texture Calculator'!$C$4>0.52,'Texture Calculator'!$G$4+2*'Texture Calculator'!$E$4>=0.3), AND('Texture Calculator'!$E$4<0.07, 'Texture Calculator'!$G$4<0.5, 'Texture Calculator'!$G$4+2*'Texture Calculator'!$E$4>=0.3)), 3,0) -> 3 | B4: ((clay >= 7 && clay < 20) && (sand > 52) && ((silt + 2*clay) >= 30) || (clay < 7 && silt < 50 && (silt+2*clay)>=30)) | C4: SANDY LOAM | D4: =IF(OR(AND('Texture Calculator'!$E$5>=0.07, 'Texture Calculator'!$E$5<0.2,'Texture Calculator'!$C$5>0.52,'Texture Calculator'!$G$5+2*'Texture Calculator'!$E$5>=0.3), AND('Texture Calculator'!$E$5<0.07, 'Texture Calculator'!$G$5<0.5, 'Texture Calculator'!$G$5+2*'Texture Calculator'!$E$5>=0.3)), 3,0) -> 0 | E4: ((clay >= 7 && clay < 20) && (sand > 52) && ((silt + 2*clay) >= 30) || (clay < 7 && silt < 50 && (silt+2*clay)>=30)) | F4: SANDY LOAM | G4: =IF(OR(AND('Texture Calculator'!$E$6>=0.07, 'Texture Calculator'!$E$6<0.2,'Texture Calculator'!$C$6>0.52,'Texture Calculator'!$G$6+2*'Texture Calculator'!$E$6>=0.3), AND('Texture Calculator'!$E$6<0.07, 'Texture Calculator'!$G$6<0.5, 'Texture Calculator'!$G$6+2*'Texture Calculator'!$E$6>=0.3)), 3,0) -> 0 | H4: ((clay >= 7 && clay < 20) && (sand > 52) && ((silt + 2*clay) >= 30) || (clay < 7 && silt < 50 && (silt+2*clay)>=30)) | I4: SANDY LOAM | J4: =IF(OR(AND('Texture Calculator'!$E$7>=0.07, 'Texture Calculator'!$E$7<0.2,'Texture Calculator'!$C$7>0.52,'Texture Calculator'!$G$7+2*'Texture Calculator'!$E$7>=0.3), AND('Texture Calculator'!$E$7<0.07, 'Texture Calculator'!$G$7<0.5, 'Texture Calculator'!$G$7+2*'Texture Calculator'!$E$7>=0.3)), 3,0) -> 3 | K4: ((clay >= 7 && clay < 20) && (sand > 52) && ((silt + 2*clay) >= 30) || (clay < 7 && silt < 50 && (silt+2*clay)>=30)) | L4: SANDY LOAM
A5: =IF(AND('Texture Calculator'!$E$4>=0.07, 'Texture Calculator'!$E$4<0.27, 'Texture Calculator'!$G$4>=0.28, 'Texture Calculator'!$G$4<0.5, 'Texture Calculator'!$C$4<=0.52), 4, 0) -> 0 | B5: ((clay >= 7 && clay < 27) && (silt >= 28 && silt < 50) && (sand <= 52)) | C5: LOAM | D5: =IF(AND('Texture Calculator'!$E$5>=0.07, 'Texture Calculator'!$E$5<0.27, 'Texture Calculator'!$G$5>=0.28, 'Texture Calculator'!$G$5<0.5, 'Texture Calculator'!$C$5<=0.52), 4, 0) -> 0 | E5: ((clay >= 7 && clay < 27) && (silt >= 28 && silt < 50) && (sand <= 52)) | F5: LOAM | G5: =IF(AND('Texture Calculator'!$E$6>=0.07, 'Texture Calculator'!$E$6<0.27, 'Texture Calculator'!$G$6>=0.28, 'Texture Calculator'!$G$6<0.5, 'Texture Calculator'!$C$6<=0.52), 4, 0) -> 0 | H5: ((clay >= 7 && clay < 27) && (silt >= 28 && silt < 50) && (sand <= 52)) | I5: LOAM | J5: =IF(AND('Texture Calculator'!$E$7>=0.07, 'Texture Calculator'!$E$7<0.27, 'Texture Calculator'!$G$7>=0.28, 'Texture Calculator'!$G$7<0.5, 'Texture Calculator'!$C$7<=0.52), 4, 0) -> 0 | K5: ((clay >= 7 && clay < 27) && (silt >= 28 && silt < 50) && (sand <= 52)) | L5: LOAM
A6: =IF(OR(AND('Texture Calculator'!$G$4>=0.5, 'Texture Calculator'!$E$4>=0.12,'Texture Calculator'!$E$4<0.27), AND('Texture Calculator'!$G$4>=0.5,'Texture Calculator'!$G$4<0.8,'Texture Calculator'!$E$4<0.12)), 5,0) -> 0 | B6: ((silt >= 50 && (clay >= 12 && clay < 27)) || ((silt >= 50 && silt < 80) && clay < 12)) | C6: SILT LOAM | D6: =IF(OR(AND('Texture Calculator'!$G$5>=0.5, 'Texture Calculator'!$E$5>=0.12,'Texture Calculator'!$E$5<0.27), AND('Texture Calculator'!$G$5>=0.5,'Texture Calculator'!$G$5<0.8,'Texture Calculator'!$E$5<0.12)), 5,0) -> 0 | E6: ((silt >= 50 && (clay >= 12 && clay < 27)) || ((silt >= 50 && silt < 80) && clay < 12)) | F6: SILT LOAM | G6: =IF(OR(AND('Texture Calculator'!$G$6>=0.5, 'Texture Calculator'!$E$6>=0.12,'Texture Calculator'!$E$6<0.27), AND('Texture Calculator'!$G$6>=0.5,'Texture Calculator'!$G$6<0.8,'Texture Calculator'!$E$6<0.12)), 5,0) -> 0 | H6: ((silt >= 50 && (clay >= 12 && clay < 27)) || ((silt >= 50 && silt < 80) && clay < 12)) | I6: SILT LOAM | J6: =IF(OR(AND('Texture Calculator'!$G$7>=0.5, 'Texture Calculator'!$E$7>=0.12,'Texture Calculator'!$E$7<0.27), AND('Texture Calculator'!$G$7>=0.5,'Texture Calculator'!$G$7<0.8,'Texture Calculator'!$E$7<0.12)), 5,0) -> 0 | K6: ((silt >= 50 && (clay >= 12 && clay < 27)) || ((silt >= 50 && silt < 80) && clay < 12)) | L6: SILT LOAM
A7: =IF(AND('Texture Calculator'!$G$4>=0.8, 'Texture Calculator'!$E$4<0.12), 6, 0) -> 0 | B7: (silt >= 80 && clay < 12) | C7: SILT | D7: =IF(AND('Texture Calculator'!$G$5>=0.8, 'Texture Calculator'!$E$5<0.12), 6, 0) -> 0 | E7: (silt >= 80 && clay < 12) | F7: SILT | G7: =IF(AND('Texture Calculator'!$G$6>=0.8, 'Texture Calculator'!$E$6<0.12), 6, 0) -> 0 | H7: (silt >= 80 && clay < 12) | I7: SILT | J7: =IF(AND('Texture Calculator'!$G$7>=0.8, 'Texture Calculator'!$E$7<0.12), 6, 0) -> 0 | K7: (silt >= 80 && clay < 12) | L7: SILT
A8: =IF(AND('Texture Calculator'!$E$4>=0.2, 'Texture Calculator'!$E$4<0.35, 'Texture Calculator'!$G$4<0.28, 'Texture Calculator'!$C$4>0.45), 7, 0) -> 0 | B8: ((clay >= 20 && clay < 35) && (silt < 28) && (sand > 45)) | C8: SANDY CLAY LOAM | D8: =IF(AND('Texture Calculator'!$E$5>=0.2, 'Texture Calculator'!$E$5<0.35, 'Texture Calculator'!$G$5<0.28, 'Texture Calculator'!$C$5>0.45), 7, 0) -> 0 | E8: ((clay >= 20 && clay < 35) && (silt < 28) && (sand > 45)) | F8: SANDY CLAY LOAM | G8: =IF(AND('Texture Calculator'!$E$6>=0.2, 'Texture Calculator'!$E$6<0.35, 'Texture Calculator'!$G$6<0.28, 'Texture Calculator'!$C$6>0.45), 7, 0) -> 0 | H8: ((clay >= 20 && clay < 35) && (silt < 28) && (sand > 45)) | I8: SANDY CLAY LOAM | J8: =IF(AND('Texture Calculator'!$E$7>=0.2, 'Texture Calculator'!$E$7<0.35, 'Texture Calculator'!$G$7<0.28, 'Texture Calculator'!$C$7>0.45), 7, 0) -> 0 | K8: ((clay >= 20 && clay < 35) && (silt < 28) && (sand > 45)) | L8: SANDY CLAY LOAM
A9: =IF(AND('Texture Calculator'!$E$4>=0.27, 'Texture Calculator'!$E$4<0.4, 'Texture Calculator'!$C$4>0.2, 'Texture Calculator'!$C$4<=0.45), 8, 0) -> 0 | B9: ((clay >= 27 && clay < 40) && (sand > 20 && sand <= 45)) | C9: CLAY LOAM | D9: =IF(AND('Texture Calculator'!$E$5>=0.27, 'Texture Calculator'!$E$5<0.4, 'Texture Calculator'!$C$5>0.2, 'Texture Calculator'!$C$5<=0.45), 8, 0) -> 0 | E9: ((clay >= 27 && clay < 40) && (sand > 20 && sand <= 45)) | F9: CLAY LOAM | G9: =IF(AND('Texture Calculator'!$E$6>=0.27, 'Texture Calculator'!$E$6<0.4, 'Texture Calculator'!$C$6>0.2, 'Texture Calculator'!$C$6<=0.45), 8, 0) -> 0 | H9: ((clay >= 27 && clay < 40) && (sand > 20 && sand <= 45)) | I9: CLAY LOAM | J9: =IF(AND('Texture Calculator'!$E$7>=0.27, 'Texture Calculator'!$E$7<0.4, 'Texture Calculator'!$C$7>0.2, 'Texture Calculator'!$C$7<=0.45), 8, 0) -> 0 | K9: ((clay >= 27 && clay < 40) && (sand > 20 && sand <= 45)) | L9: CLAY LOAM
A10: =IF(AND('Texture Calculator'!$E$4>=0.27, 'Texture Calculator'!$E$4<0.4, 'Texture Calculator'!$C$4<=0.2), 9, 0) -> 0 | B10: ((clay >= 27 && clay < 40) && (sand <= 20)) | C10: SILTY CLAY LOAM | D10: =IF(AND('Texture Calculator'!$E$5>=0.27, 'Texture Calculator'!$E$5<0.4, 'Texture Calculator'!$C$5<=0.2), 9, 0) -> 0 | E10: ((clay >= 27 && clay < 40) && (sand <= 20)) | F10: SILTY CLAY LOAM | G10: =IF(AND('Texture Calculator'!$E$6>=0.27, 'Texture Calculator'!$E$6<0.4, 'Texture Calculator'!$C$6<=0.2), 9, 0) -> 0 | H10: ((clay >= 27 && clay < 40) && (sand <= 20)) | I10: SILTY CLAY LOAM | J10: =IF(AND('Texture Calculator'!$E$7>=0.27, 'Texture Calculator'!$E$7<0.4, 'Texture Calculator'!$C$7<=0.2), 9, 0) -> 0 | K10: ((clay >= 27 && clay < 40) && (sand <= 20)) | L10: SILTY CLAY LOAM
A11: =IF(AND('Texture Calculator'!$E$4>=0.35, 'Texture Calculator'!$C$4>0.45), 10, 0) -> 0 | B11: (clay >= 35 && sand > 45) | C11: SANDY CLAY | D11: =IF(AND('Texture Calculator'!$E$5>=0.35, 'Texture Calculator'!$C$5>0.45), 10, 0) -> 0 | E11: (clay >= 35 && sand > 45) | F11: SANDY CLAY | G11: =IF(AND('Texture Calculator'!$E$6>=0.35, 'Texture Calculator'!$C$6>0.45), 10, 0) -> 0 | H11: (clay >= 35 && sand > 45) | I11: SANDY CLAY | J11: =IF(AND('Texture Calculator'!$E$7>=0.35, 'Texture Calculator'!$C$7>0.45), 10, 0) -> 0 | K11: (clay >= 35 && sand > 45) | L11: SANDY CLAY
A12: =IF(AND('Texture Calculator'!$E$4>=0.4, 'Texture Calculator'!$G$4>=0.4), 11, 0) -> 0 | B12: (clay >= 40 && silt >= 40) | C12: SILTY CLAY | D12: =IF(AND('Texture Calculator'!$E$5>=0.4, 'Texture Calculator'!$G$5>=0.4), 11, 0) -> 0 | E12: (clay >= 40 && silt >= 40) | F12: SILTY CLAY | G12: =IF(AND('Texture Calculator'!$E$6>=0.4, 'Texture Calculator'!$G$6>=0.4), 11, 0) -> 0 | H12: (clay >= 40 && silt >= 40) | I12: SILTY CLAY | J12: =IF(AND('Texture Calculator'!$E$7>=0.4, 'Texture Calculator'!$G$7>=0.4), 11, 0) -> 0 | K12: (clay >= 40 && silt >= 40) | L12: SILTY CLAY
A13: =IF(AND('Texture Calculator'!$E$4>=0.4, 'Texture Calculator'!$C$4<=0.45,'Texture Calculator'!$G$4<0.4), 12, 0) -> 0 | B13: (clay >= 40 && sand <= 45 && silt < 40) | C13: CLAY | D13: =IF(AND('Texture Calculator'!$E$5>=0.4, 'Texture Calculator'!$C$5<=0.45,'Texture Calculator'!$G$5<0.4), 12, 0) -> 0 | E13: (clay >= 40 && sand <= 45 && silt < 40) | F13: CLAY | G13: =IF(AND('Texture Calculator'!$E$6>=0.4, 'Texture Calculator'!$C$6<=0.45,'Texture Calculator'!$G$6<0.4), 12, 0) -> 0 | H13: (clay >= 40 && sand <= 45 && silt < 40) | I13: CLAY | J13: =IF(AND('Texture Calculator'!$E$7>=0.4, 'Texture Calculator'!$C$7<=0.45,'Texture Calculator'!$G$7<0.4), 12, 0) -> 0 | K13: (clay >= 40 && sand <= 45 && silt < 40) | L13: CLAY
A14: =SUM(A2:A13) -> 3 | D14: =SUM(D2:D13) -> 1 | G14: =SUM(G2:G13) -> 2 | J14: =SUM(J2:J13) -> 3
A17: Sand | D17: Sand | G17: Sand | J17: Sand
A18: =IF(AND(SUM('Texture Calculator'!$C$13:$C$17)='Texture Calculator'!$C$4, 'Texture Calculator'!$C$13+'Texture Calculator'!$C$14>=0.25, 'Texture Calculator'!$C$15<0.5, 'Texture Calculator'!$C$16<0.5, 'Texture Calculator'!$C$17<0.5), 1, 0) -> 0 | B18: vcscs >= 25 && ms < 50 && fs < 50 && vfs < 50 | C18: COARSE SAND | D18: =IF(AND(SUM('Texture Calculator'!$C$26:$C$39)='Texture Calculator'!$C$5, 'Texture Calculator'!$C$26+'Texture Calculator'!#REF!>=0.25, 'Texture Calculator'!#REF!<0.5, 'Texture Calculator'!#REF!<0.5, 'Texture Calculator'!$C$39<0.5), 1, 0) ->  | E18: vcscs >= 25 && ms < 50 && fs < 50 && vfs < 50 | F18: COARSE SAND | G18: =IF(AND(SUM('Texture Calculator'!$C$44:$C$48)='Texture Calculator'!$C$6, 'Texture Calculator'!#REF!+'Texture Calculator'!$C$45>=0.25, 'Texture Calculator'!$C$46<0.5, 'Texture Calculator'!$C$47<0.5, 'Texture Calculator'!$C$48<0.5), 1, 0) ->  | H18: vcscs >= 25 && ms < 50 && fs < 50 && vfs < 50 | I18: COARSE SAND | J18: =IF(AND(SUM('Texture Calculator'!$C$53:$C$57)='Texture Calculator'!$C$7, 'Texture Calculator'!$C$53+'Texture Calculator'!$C$54>=0.25, 'Texture Calculator'!$C$55<0.5, 'Texture Calculator'!$C$56<0.5, 'Texture Calculator'!$C$57<0.5), 1, 0) -> 0 | K18: vcscs >= 25 && ms < 50 && fs < 50 && vfs < 50 | L18: COARSE SAND
A19: =IF(AND(SUM('Texture Calculator'!$C$13:$C$17)='Texture Calculator'!$C$4,SUM($A$18) = 0, 'Texture Calculator'!$C$13+'Texture Calculator'!$C$14+'Texture Calculator'!$C$15>=0.25, 'Texture Calculator'!$C$13+'Texture Calculator'!$C$14<0.25, 'Texture Calculator'!$C$16<0.5,'Texture Calculator'!$C$17<0.5), 2, 0) -> 0 | B19: vcscsms >= 25 && vcscs < 25 && fs < 50 && vfs < 50 | C19: SAND | D19: =IF(AND(SUM('Texture Calculator'!$C$26:$C$39)='Texture Calculator'!$C$5,SUM($D$18) = 0, 'Texture Calculator'!$C$26+'Texture Calculator'!#REF!+'Texture Calculator'!#REF!>=0.25, 'Texture Calculator'!$C$26+'Texture Calculator'!#REF!<0.25, 'Texture Calculator'!#REF!<0.5,'Texture Calculator'!$C$39<0.5), 2, 0) ->  | E19: vcscsms >= 25 && vcscs < 25 && fs < 50 && vfs < 50 | F19: SAND | G19: =IF(AND(SUM('Texture Calculator'!$C$44:$C$48)='Texture Calculator'!$C$6,SUM($G$18) = 0, 'Texture Calculator'!#REF!+'Texture Calculator'!$C$45+'Texture Calculator'!$C$46>=0.25, 'Texture Calculator'!#REF!+'Texture Calculator'!$C$45<0.25, 'Texture Calculator'!$C$47<0.5,'Texture Calculator'!$C$48<0.5), 2, 0) ->  | H19: vcscsms >= 25 && vcscs < 25 && fs < 50 && vfs < 50 | I19: SAND | J19: =IF(AND(SUM('Texture Calculator'!$C$53:$C$57)='Texture Calculator'!$C$7,SUM($J$18) = 0, 'Texture Calculator'!$C$53+'Texture Calculator'!$C$54+'Texture Calculator'!$C$55>=0.25, 'Texture Calculator'!$C$53+'Texture Calculator'!$C$54<0.25, 'Texture Calculator'!$C$56<0.5,'Texture Calculator'!$C$57<0.5), 2, 0) -> 0 | K19: vcscsms >= 25 && vcscs < 25 && fs < 50 && vfs < 50 | L19: SAND
A20: =IF(AND(SUM('Texture Calculator'!$C$13:$C$17)='Texture Calculator'!$C$4,SUM($A$18:$A$19) = 0, 'Texture Calculator'!$C$15>=0.5, 'Texture Calculator'!$C$13+'Texture Calculator'!$C$14>=0.25), 3, 0) -> 0 | B20: ms >= 50 && vcscs >= 25 | C20: SAND | D20: =IF(AND(SUM('Texture Calculator'!$C$26:$C$39)='Texture Calculator'!$C$5,SUM($D$18:$D$19) = 0, 'Texture Calculator'!#REF!>=0.5, 'Texture Calculator'!$C$26+'Texture Calculator'!#REF!>=0.25), 3, 0) ->  | E20: ms >= 50 && vcscs >= 25 | F20: SAND | G20: =IF(AND(SUM('Texture Calculator'!$C$44:$C$48)='Texture Calculator'!$C$6,SUM($G$18:$G$19) = 0, 'Texture Calculator'!$C$46>=0.5, 'Texture Calculator'!#REF!+'Texture Calculator'!$C$45>=0.25), 3, 0) ->  | H20: ms >= 50 && vcscs >= 25 | I20: SAND | J20: =IF(AND(SUM('Texture Calculator'!$C$53:$C$57)='Texture Calculator'!$C$7,SUM($J$18:$J$19) = 0, 'Texture Calculator'!$C$55>=0.5, 'Texture Calculator'!$C$53+'Texture Calculator'!$C$54>=0.25), 3, 0) -> 0 | K20: ms >= 50 && vcscs >= 25 | L20: SAND
A21: =IF(AND(SUM('Texture Calculator'!$C$13:$C$17)='Texture Calculator'!$C$4,SUM($A$18:$A$20) = 0, 'Texture Calculator'!$C$16>=0.5, 'Texture Calculator'!$C$16>'Texture Calculator'!$C$17), 4, 0) -> 0 | B21: fs >= 50 && fs > vfs | C21: FINE SAND | D21: =IF(AND(SUM('Texture Calculator'!$C$26:$C$39)='Texture Calculator'!$C$5,SUM($D$18:$D$20) = 0, 'Texture Calculator'!#REF!>=0.5, 'Texture Calculator'!#REF!>'Texture Calculator'!$C$39), 4, 0) ->  | E21: fs >= 50 && fs > vfs | F21: FINE SAND | G21: =IF(AND(SUM('Texture Calculator'!$C$44:$C$48)='Texture Calculator'!$C$6,SUM($G$18:$G$20) = 0, 'Texture Calculator'!$C$47>=0.5, 'Texture Calculator'!$C$47>'Texture Calculator'!$C$48), 4, 0) ->  | H21: fs >= 50 && fs > vfs | I21: FINE SAND | J21: =IF(AND(SUM('Texture Calculator'!$C$53:$C$57)='Texture Calculator'!$C$7,SUM($J$18:$J$20) = 0, 'Texture Calculator'!$C$56>=0.5, 'Texture Calculator'!$C$56>'Texture Calculator'!$C$57), 4, 0) -> 0 | K21: fs >= 50 && fs > vfs | L21: FINE SAND
A22: =IF(AND(SUM('Texture Calculator'!$C$13:$C$17)='Texture Calculator'!$C$4,SUM($A$18:$A$21) = 0, 'Texture Calculator'!$C$13+'Texture Calculator'!$C$14+'Texture Calculator'!$C$15<0.25, 'Texture Calculator'!$C$17<0.5), 5, 0) -> 0 | B22: vcscsms < 25 && vfs < 50 | C22: FINE SAND | D22: =IF(AND(SUM('Texture Calculator'!$C$26:$C$39)='Texture Calculator'!$C$5,SUM($D$18:$D$21) = 0, 'Texture Calculator'!$C$26+'Texture Calculator'!#REF!+'Texture Calculator'!#REF!<0.25, 'Texture Calculator'!$C$39<0.5), 5, 0) ->  | E22: vcscsms < 25 && vfs < 50 | F22: FINE SAND | G22: =IF(AND(SUM('Texture Calculator'!$C$44:$C$48)='Texture Calculator'!$C$6,SUM($G$18:$G$21) = 0, 'Texture Calculator'!#REF!+'Texture Calculator'!$C$45+'Texture Calculator'!$C$46<0.25, 'Texture Calculator'!$C$48<0.5), 5, 0) ->  | H22: vcscsms < 25 && vfs < 50 | I22: FINE SAND | J22: =IF(AND(SUM('Texture Calculator'!$C$53:$C$57)='Texture Calculator'!$C$7,SUM($J$18:$J$21) = 0, 'Texture Calculator'!$C$53+'Texture Calculator'!$C$54+'Texture Calculator'!$C$55<0.25, 'Texture Calculator'!$C$57<0.5), 5, 0) -> 0 | K22: vcscsms < 25 && vfs < 50 | L22: FINE SAND
A23: =IF(AND(SUM('Texture Calculator'!$C$13:$C$17)='Texture Calculator'!$C$4,SUM($A$18:$A$22) = 0, 'Texture Calculator'!$C$17>=0.5), 6, 0) -> 0 | B23: vfs >= 50 | C23: VERY FINE SAND | D23: =IF(AND(SUM('Texture Calculator'!$C$26:$C$39)='Texture Calculator'!$C$5,SUM($D$18:$D$22) = 0, 'Texture Calculator'!$C$39>=0.5), 6, 0) ->  | E23: vfs >= 50 | F23: VERY FINE SAND | G23: =IF(AND(SUM('Texture Calculator'!$C$44:$C$48)='Texture Calculator'!$C$6,SUM($G$18:$G$22) = 0, 'Texture Calculator'!$C$48>=0.5), 6, 0) ->  | H23: vfs >= 50 | I23: VERY FINE SAND | J23: =IF(AND(SUM('Texture Calculator'!$C$53:$C$57)='Texture Calculator'!$C$7,SUM($J$18:$J$22) = 0, 'Texture Calculator'!$C$57>=0.5), 6, 0) -> 0 | K23: vfs >= 50 | L23: VERY FINE SAND
A24: =SUM(A18:A23)+1 -> 1 | D24: =SUM(D18:D23)+1 ->  | G24: =SUM(G18:G23)+1 ->  | J24: =SUM(J18:J23)+1 -> 1
A27: Loam Sand | D27: Loam Sand | G27: Loam Sand | J27: Loam Sand
A28: =IF(AND(SUM('Texture Calculator'!$C$13:$C$17)='Texture Calculator'!$C$4, 'Texture Calculator'!$C$13+'Texture Calculator'!$C$14>=0.25, 'Texture Calculator'!$C$15<0.5, 'Texture Calculator'!$C$16<0.5, 'Texture Calculator'!$C$17<0.5), 1, 0) -> 0 | B28: vcscs >= 25 && ms < 50 && fs < 50 && vfs < 50 | C28: LOAMY COARSE SAND | D28: =IF(AND(SUM('Texture Calculator'!$C$26:$C$39)='Texture Calculator'!$C$5, 'Texture Calculator'!$C$26+'Texture Calculator'!#REF!>=0.25, 'Texture Calculator'!#REF!<0.5, 'Texture Calculator'!#REF!<0.5, 'Texture Calculator'!$C$39<0.5), 1, 0) ->  | E28: vcscs >= 25 && ms < 50 && fs < 50 && vfs < 50 | F28: LOAMY COARSE SAND | G28: =IF(AND(SUM('Texture Calculator'!$C$44:$C$48)='Texture Calculator'!$C$6, 'Texture Calculator'!#REF!+'Texture Calculator'!$C$45>=0.25, 'Texture Calculator'!$C$46<0.5, 'Texture Calculator'!$C$47<0.5, 'Texture Calculator'!$C$48<0.5), 1, 0) ->  | H28: vcscs >= 25 && ms < 50 && fs < 50 && vfs < 50 | I28: LOAMY COARSE SAND | J28: =IF(AND(SUM('Texture Calculator'!$C$53:$C$57)='Texture Calculator'!$C$7, 'Texture Calculator'!$C$53+'Texture Calculator'!$C$54>=0.25, 'Texture Calculator'!$C$55<0.5, 'Texture Calculator'!$C$56<0.5, 'Texture Calculator'!$C$57<0.5), 1, 0) -> 0 | K28: vcscs >= 25 && ms < 50 && fs < 50 && vfs < 50 | L28: LOAMY COARSE SAND
A29: =IF(AND(SUM('Texture Calculator'!$C$13:$C$17)='Texture Calculator'!$C$4,SUM($A$28) = 0, 'Texture Calculator'!$C$13+'Texture Calculator'!$C$14+'Texture Calculator'!$C$15>=0.25, 'Texture Calculator'!$C$13+'Texture Calculator'!$C$14<0.25, 'Texture Calculator'!$C$16<0.5,'Texture Calculator'!$C$17<0.5), 2, 0) -> 0 | B29: vcscsms >= 25 && vcscs < 25 && fs < 50 && vfs < 50 | C29: LOAMY SAND | D29: =IF(AND(SUM('Texture Calculator'!$C$26:$C$39)='Texture Calculator'!$C$5,SUM($D$28) = 0, 'Texture Calculator'!$C$26+'Texture Calculator'!#REF!+'Texture Calculator'!#REF!>=0.25, 'Texture Calculator'!$C$26+'Texture Calculator'!#REF!<0.25, 'Texture Calculator'!#REF!<0.5,'Texture Calculator'!$C$39<0.5), 2, 0) ->  | E29: vcscsms >= 25 && vcscs < 25 && fs < 50 && vfs < 50 | F29: LOAMY SAND | G29: =IF(AND(SUM('Texture Calculator'!$C$44:$C$48)='Texture Calculator'!$C$6,SUM($A$28) = 0, 'Texture Calculator'!$C$13+'Texture Calculator'!$C$14+'Texture Calculator'!$C$15>=0.25, 'Texture Calculator'!$C$13+'Texture Calculator'!$C$14<0.25, 'Texture Calculator'!$C$16<0.5,'Texture Calculator'!$C$17<0.5), 2, 0) -> 0 | H29: vcscsms >= 25 && vcscs < 25 && fs < 50 && vfs < 50 | I29: LOAMY SAND | J29: =IF(AND(SUM('Texture Calculator'!$C$53:$C$57)='Texture Calculator'!$C$7,SUM($J$28) = 0, 'Texture Calculator'!$C$53+'Texture Calculator'!$C$54+'Texture Calculator'!$C$55>=0.25, 'Texture Calculator'!$C$53+'Texture Calculator'!$C$54<0.25, 'Texture Calculator'!$C$56<0.5,'Texture Calculator'!$C$57<0.5), 2, 0) -> 0 | K29: vcscsms >= 25 && vcscs < 25 && fs < 50 && vfs < 50 | L29: LOAMY SAND
A30: =IF(AND(SUM('Texture Calculator'!$C$13:$C$17)='Texture Calculator'!$C$4,SUM($A$28:$A$29) = 0, 'Texture Calculator'!$C$15>=0.5, 'Texture Calculator'!$C$13+'Texture Calculator'!$C$14>=0.25),3, 0) -> 0 | B30: ms >= 50 && vcscs >= 25 | C30: LOAMY SAND | D30: =IF(AND(SUM('Texture Calculator'!$C$26:$C$39)='Texture Calculator'!$C$5,SUM($D$28:$D$29) = 0, 'Texture Calculator'!#REF!>=0.5, 'Texture Calculator'!$C$26+'Texture Calculator'!#REF!>=0.25),3, 0) ->  | E30: ms >= 50 && vcscs >= 25 | F30: LOAMY SAND | G30: =IF(AND(SUM('Texture Calculator'!$C$44:$C$48)='Texture Calculator'!$C$6,SUM($G$28:$G$29) = 0, 'Texture Calculator'!$C$46>=0.5, 'Texture Calculator'!#REF!+'Texture Calculator'!$C$45>=0.25),3, 0) ->  | H30: ms >= 50 && vcscs >= 25 | I30: LOAMY SAND | J30: =IF(AND(SUM('Texture Calculator'!$C$53:$C$57)='Texture Calculator'!$C$7,SUM($J$28:$J$29) = 0, 'Texture Calculator'!$C$55>=0.5, 'Texture Calculator'!$C$53+'Texture Calculator'!$C$54>=0.25),3, 0) -> 0 | K30: ms >= 50 && vcscs >= 25 | L30: LOAMY SAND
A31: =IF(AND(SUM('Texture Calculator'!$C$13:$C$17)='Texture Calculator'!$C$4,SUM($A$28:$A$30) = 0, 'Texture Calculator'!$C$16>=0.5), 4, 0) -> 0 | B31: fs >= 50 | C31: LOAMY FINE SAND | D31: =IF(AND(SUM('Texture Calculator'!$C$26:$C$39)='Texture Calculator'!$C$5,SUM($D$28:$D$30) = 0, 'Texture Calculator'!#REF!>=0.5), 4, 0) ->  | E31: fs >= 50 | F31: LOAMY FINE SAND | G31: =IF(AND(SUM('Texture Calculator'!$C$44:$C$48)='Texture Calculator'!$C$6,SUM($G$28:$G$30) = 0, 'Texture Calculator'!$C$47>=0.5), 4, 0) ->  | H31: fs >= 50 | I31: LOAMY FINE SAND | J31: =IF(AND(SUM('Texture Calculator'!$C$53:$C$57)='Texture Calculator'!$C$7,SUM($J$28:$J$30) = 0, 'Texture Calculator'!$C$56>=0.5), 4, 0) -> 0 | K31: fs >= 50 | L31: LOAMY FINE SAND
A32: =IF(AND(SUM('Texture Calculator'!$C$13:$C$17)='Texture Calculator'!$C$4,SUM($A$28:$A$31) = 0, 'Texture Calculator'!$C$13+'Texture Calculator'!$C$14+'Texture Calculator'!$C$15<0.25, 'Texture Calculator'!$C$17<0.5), 5, 0) -> 0 | B32: vcscsms < 25 && vfs < 50 | C32: LOAMY FINE SAND | D32: =IF(AND(SUM('Texture Calculator'!$C$26:$C$39)='Texture Calculator'!$C$5,SUM($D$28:$D$31) = 0, 'Texture Calculator'!$C$26+'Texture Calculator'!#REF!+'Texture Calculator'!#REF!<0.25, 'Texture Calculator'!$C$39<0.5), 5, 0) ->  | E32: vcscsms < 25 && vfs < 50 | F32: LOAMY FINE SAND | G32: =IF(AND(SUM('Texture Calculator'!$C$44:$C$48)='Texture Calculator'!$C$6,SUM($G$28:$G$31) = 0, 'Texture Calculator'!#REF!+'Texture Calculator'!$C$45+'Texture Calculator'!$C$46<0.25, 'Texture Calculator'!$C$48<0.5), 5, 0) ->  | H32: vcscsms < 25 && vfs < 50 | I32: LOAMY FINE SAND | J32: =IF(AND(SUM('Texture Calculator'!$C$53:$C$57)='Texture Calculator'!$C$7,SUM($J$28:$J$31) = 0, 'Texture Calculator'!$C$53+'Texture Calculator'!$C$54+'Texture Calculator'!$C$55<0.25, 'Texture Calculator'!$C$57<0.5), 5, 0) -> 0 | K32: vcscsms < 25 && vfs < 50 | L32: LOAMY FINE SAND
A33: =IF(AND(SUM('Texture Calculator'!$C$13:$C$17)='Texture Calculator'!$C$4,SUM($A$28:$A$32) = 0, 'Texture Calculator'!$C$17>=0.5), 6, 0) -> 0 | B33: vfs >= 50 | C33: LOAMY VERY FINE SAND | D33: =IF(AND(SUM('Texture Calculator'!$C$26:$C$39)='Texture Calculator'!$C$5,SUM($D$28:$D$32) = 0, 'Texture Calculator'!$C$39>=0.5), 6, 0) ->  | E33: vfs >= 50 | F33: LOAMY VERY FINE SAND | G33: =IF(AND(SUM('Texture Calculator'!$C$44:$C$48)='Texture Calculator'!$C$6,SUM($G$28:$G$32) = 0, 'Texture Calculator'!$C$48>=0.5), 6, 0) ->  | H33: vfs >= 50 | I33: LOAMY VERY FINE SAND | J33: =IF(AND(SUM('Texture Calculator'!$C$53:$C$57)='Texture Calculator'!$C$7,SUM($J$28:$J$32) = 0, 'Texture Calculator'!$C$57>=0.5), 6, 0) -> 0 | K33: vfs >= 50 | L33: LOAMY VERY FINE SAND
A34: =SUM(A28:A33)+1 -> 1 | D34: =SUM(D28:D33)+1 ->  | G34: =SUM(G28:G33)+1 ->  | J34: =SUM(J28:J33)+1 -> 1
A36: Sand Loam | D36: Sand Loam | G36: Sand Loam | J36: Sand Loam
A37: =IF(AND(SUM('Texture Calculator'!$C$13:$C$17)='Texture Calculator'!$C$4, 'Texture Calculator'!$C$13+'Texture Calculator'!$C$14>=0.25, 'Texture Calculator'!$C$15<0.5, 'Texture Calculator'!$C$16<0.5, 'Texture Calculator'!$C$17<0.5), 1, 0) -> 0 | B37: vcscs >= 25 && ms < 50 && fs < 50 && vfs < 50 | C37: COARSE SANDY LOAM | D37: =IF(AND(SUM('Texture Calculator'!$C$26:$C$39)='Texture Calculator'!$C$5, 'Texture Calculator'!$C$26+'Texture Calculator'!#REF!>=0.25, 'Texture Calculator'!#REF!<0.5, 'Texture Calculator'!#REF!<0.5, 'Texture Calculator'!$C$39<0.5), 1, 0) ->  | E37: vcscs >= 25 && ms < 50 && fs < 50 && vfs < 50 | F37: COARSE SANDY LOAM | G37: =IF(AND(SUM('Texture Calculator'!$C$44:$C$48)='Texture Calculator'!$C$6, 'Texture Calculator'!#REF!+'Texture Calculator'!$C$45>=0.25, 'Texture Calculator'!$C$46<0.5, 'Texture Calculator'!$C$47<0.5, 'Texture Calculator'!$C$48<0.5), 1, 0) ->  | H37: vcscs >= 25 && ms < 50 && fs < 50 && vfs < 50 | I37: COARSE SANDY LOAM | J37: =IF(AND(SUM('Texture Calculator'!$C$53:$C$57)='Texture Calculator'!$C$7, 'Texture Calculator'!$C$53+'Texture Calculator'!$C$54>=0.25, 'Texture Calculator'!$C$55<0.5, 'Texture Calculator'!$C$56<0.5, 'Texture Calculator'!$C$57<0.5), 1, 0) -> 0 | K37: vcscs >= 25 && ms < 50 && fs < 50 && vfs < 50 | L37: COARSE SANDY LOAM
A38: =IF(AND(SUM('Texture Calculator'!$C$13:$C$17)='Texture Calculator'!$C$4,SUM($A$37) = 0,'Texture Calculator'!$C$13+'Texture Calculator'!$C$14+'Texture Calculator'!$C$15>=0.3, 'Texture Calculator'!$C$17>=0.3, 'Texture Calculator'!$C$17<0.5), 2,0) -> 0 | B38: vcscsms >= 30 && vfs >= 30 && vfs < 50 | C38: COARSE SANDY LOAM | D38: =IF(AND(SUM('Texture Calculator'!$C$26:$C$39)='Texture Calculator'!$C$5,SUM($D$37) = 0,'Texture Calculator'!$C$26+'Texture Calculator'!#REF!+'Texture Calculator'!#REF!>=0.3, 'Texture Calculator'!$C$39>=0.3, 'Texture Calculator'!$C$39<0.5), 2,0) ->  | E38: vcscsms >= 30 && vfs >= 30 && vfs < 50 | F38: COARSE SANDY LOAM | G38: =IF(AND(SUM('Texture Calculator'!$C$44:$C$48)='Texture Calculator'!$C$6,SUM($G$37) = 0,'Texture Calculator'!#REF!+'Texture Calculator'!$C$45+'Texture Calculator'!$C$46>=0.3, 'Texture Calculator'!$C$48>=0.3, 'Texture Calculator'!$C$48<0.5), 2,0) ->  | H38: vcscsms >= 30 && vfs >= 30 && vfs < 50 | I38: COARSE SANDY LOAM | J38: =IF(AND(SUM('Texture Calculator'!$C$53:$C$57)='Texture Calculator'!$C$7,SUM($J$37) = 0,'Texture Calculator'!$C$53+'Texture Calculator'!$C$54+'Texture Calculator'!$C$55>=0.3, 'Texture Calculator'!$C$57>=0.3, 'Texture Calculator'!$C$57<0.5), 2,0) -> 0 | K38: vcscsms >= 30 && vfs >= 30 && vfs < 50 | L38: COARSE SANDY LOAM
A39: =IF(AND(SUM('Texture Calculator'!$C$13:$C$17)='Texture Calculator'!$C$4,SUM($A$37:$A$38) = 0, 'Texture Calculator'!$C$13+'Texture Calculator'!$C$14+'Texture Calculator'!$C$15>=0.3, 'Texture Calculator'!$C$13+'Texture Calculator'!$C$14<0.25, 'Texture Calculator'!$C$16<0.3,'Texture Calculator'!$C$17<0.3), 3, 0) -> 0 | B39: vcscsms >= 30 && vcscs < 25 && fs < 30 && vfs < 30 | C39: SANDY LOAM | D39: =IF(AND(SUM('Texture Calculator'!$C$26:$C$39)='Texture Calculator'!$C$5,SUM($D$37:$D$38) = 0, 'Texture Calculator'!$C$26+'Texture Calculator'!#REF!+'Texture Calculator'!#REF!>=0.3, 'Texture Calculator'!$C$26+'Texture Calculator'!#REF!<0.25, 'Texture Calculator'!#REF!<0.3,'Texture Calculator'!$C$39<0.3), 3, 0) ->  | E39: vcscsms >= 30 && vcscs < 25 && fs < 30 && vfs < 30 | F39: SANDY LOAM | G39: =IF(AND(SUM('Texture Calculator'!$C$44:$C$48)='Texture Calculator'!$C$6,SUM($G$37:$G$38) = 0, 'Texture Calculator'!#REF!+'Texture Calculator'!$C$45+'Texture Calculator'!$C$46>=0.3, 'Texture Calculator'!#REF!+'Texture Calculator'!$C$45<0.25, 'Texture Calculator'!$C$47<0.3,'Texture Calculator'!$C$48<0.3), 3, 0) ->  | H39: vcscsms >= 30 && vcscs < 25 && fs < 30 && vfs < 30 | I39: SANDY LOAM | J39: =IF(AND(SUM('Texture Calculator'!$C$53:$C$57)='Texture Calculator'!$C$7,SUM($J$37:$J$38) = 0, 'Texture Calculator'!$C$53+'Texture Calculator'!$C$54+'Texture Calculator'!$C$55>=0.3, 'Texture Calculator'!$C$53+'Texture Calculator'!$C$54<0.25, 'Texture Calculator'!$C$56<0.3,'Texture Calculator'!$C$57<0.3), 3, 0) -> 0 | K39: vcscsms >= 30 && vcscs < 25 && fs < 30 && vfs < 30 | L39: SANDY LOAM
A40: =IF(AND(SUM('Texture Calculator'!$C$13:$C$17)='Texture Calculator'!$C$4,SUM($A$37:$A$39) = 0,'Texture Calculator'!$C$13+'Texture Calculator'!$C$14+'Texture Calculator'!$C$15<=0.15,'Texture Calculator'!$C$16<0.3,'Texture Calculator'!$C$17<0.3,'Texture Calculator'!$C$16+'Texture Calculator'!$C$17<0.4), 4, 0) -> 0 | B40: vcscsms <= 15 && fs < 30 && vfs < 30 && fsvfs < 40 | C40: SANDY LOAM | D40: =IF(AND(SUM('Texture Calculator'!$C$26:$C$39)='Texture Calculator'!$C$5,SUM($D$37:$D$39) = 0,'Texture Calculator'!$C$26+'Texture Calculator'!#REF!+'Texture Calculator'!#REF!<=0.15,'Texture Calculator'!#REF!<0.3,'Texture Calculator'!$C$39<0.3,'Texture Calculator'!#REF!+'Texture Calculator'!$C$39<0.4), 4, 0) ->  | E40: vcscsms <= 15 && fs < 30 && vfs < 30 && fsvfs < 40 | F40: SANDY LOAM | G40: =IF(AND(SUM('Texture Calculator'!$C$44:$C$48)='Texture Calculator'!$C$6,SUM($G$37:$G$39) = 0,'Texture Calculator'!#REF!+'Texture Calculator'!$C$45+'Texture Calculator'!$C$46<=0.15,'Texture Calculator'!$C$47<0.3,'Texture Calculator'!$C$48<0.3,'Texture Calculator'!$C$47+'Texture Calculator'!$C$48<0.4), 4, 0) ->  | H40: vcscsms <= 15 && fs < 30 && vfs < 30 && fsvfs < 40 | I40: SANDY LOAM | J40: =IF(AND(SUM('Texture Calculator'!$C$53:$C$57)='Texture Calculator'!$C$7,SUM($J$37:$J$39) = 0,'Texture Calculator'!$C$53+'Texture Calculator'!$C$54+'Texture Calculator'!$C$55<=0.15,'Texture Calculator'!$C$56<0.3,'Texture Calculator'!$C$57<0.3,'Texture Calculator'!$C$56+'Texture Calculator'!$C$57<0.4), 4, 0) -> 0 | K40: vcscsms <= 15 && fs < 30 && vfs < 30 && fsvfs < 40 | L40: SANDY LOAM
A41: =IF(AND(SUM('Texture Calculator'!$C$13:$C$17)='Texture Calculator'!$C$4,SUM($A$37:$A$40) = 0,'Texture Calculator'!$C$13+'Texture Calculator'!$C$14>=0.25, 'Texture Calculator'!$C$15>=0.5), 5, 0) -> 0 | B41: vcscs >= 25 && ms >= 50 | C41: SANDY LOAM | D41: =IF(AND(SUM('Texture Calculator'!$C$26:$C$39)='Texture Calculator'!$C$5,SUM($D$37:$D$40) = 0,'Texture Calculator'!$C$26+'Texture Calculator'!#REF!>=0.25, 'Texture Calculator'!#REF!>=0.5), 5, 0) ->  | E41: vcscs >= 25 && ms >= 50 | F41: SANDY LOAM | G41: =IF(AND(SUM('Texture Calculator'!$C$44:$C$48)='Texture Calculator'!$C$6,SUM($G$37:$G$40) = 0,'Texture Calculator'!#REF!+'Texture Calculator'!$C$45>=0.25, 'Texture Calculator'!$C$46>=0.5), 5, 0) ->  | H41: vcscs >= 25 && ms >= 50 | I41: SANDY LOAM | J41: =IF(AND(SUM('Texture Calculator'!$C$53:$C$57)='Texture Calculator'!$C$7,SUM($J$37:$J$40) = 0,'Texture Calculator'!$C$53+'Texture Calculator'!$C$54>=0.25, 'Texture Calculator'!$C$55>=0.5), 5, 0) -> 0 | K41: vcscs >= 25 && ms >= 50 | L41: SANDY LOAM
A42: =IF(AND(SUM('Texture Calculator'!$C$13:$C$17)='Texture Calculator'!$C$4,SUM($A$37:$A$41) = 0,'Texture Calculator'!$C$16>=0.3,'Texture Calculator'!$C$17<0.3, 'Texture Calculator'!$C$13+'Texture Calculator'!$C$14<0.25), 6, 0) -> 0 | B42: fs >= 30 && vfs < 30 && vcscs < 25 | C42: FINE SANDY LOAM | D42: =IF(AND(SUM('Texture Calculator'!$C$26:$C$39)='Texture Calculator'!$C$5,SUM($D$37:$D$41) = 0,'Texture Calculator'!#REF!>=0.3,'Texture Calculator'!$C$39<0.3, 'Texture Calculator'!$C$26+'Texture Calculator'!#REF!<0.25), 6, 0) ->  | E42: fs >= 30 && vfs < 30 && vcscs < 25 | F42: FINE SANDY LOAM | G42: =IF(AND(SUM('Texture Calculator'!$C$44:$C$48)='Texture Calculator'!$C$6,SUM($G$37:$G$41) = 0,'Texture Calculator'!$C$47>=0.3,'Texture Calculator'!$C$48<0.3, 'Texture Calculator'!#REF!+'Texture Calculator'!$C$45<0.25), 6, 0) ->  | H42: fs >= 30 && vfs < 30 && vcscs < 25 | I42: FINE SANDY LOAM | J42: =IF(AND(SUM('Texture Calculator'!$C$53:$C$57)='Texture Calculator'!$C$7,SUM($J$37:$J$41) = 0,'Texture Calculator'!$C$56>=0.3,'Texture Calculator'!$C$57<0.3, 'Texture Calculator'!$C$53+'Texture Calculator'!$C$54<0.25), 6, 0) -> 0 | K42: fs >= 30 && vfs < 30 && vcscs < 25 | L42: FINE SANDY LOAM
A43: =IF(AND(SUM('Texture Calculator'!$C$13:$C$17)='Texture Calculator'!$C$4,SUM($A$37:$A$42) = 0,'Texture Calculator'!$C$13+'Texture Calculator'!$C$14+'Texture Calculator'!$C$15>=0.15, 'Texture Calculator'!$C$13+'Texture Calculator'!$C$14+'Texture Calculator'!$C$15<0.3, 'Texture Calculator'!$C$13+'Texture Calculator'!$C$14<0.25), 7, 0) -> 0 | B43: vcscsms >= 15 && vcscsms < 30 && vcscs < 25 | C43: FINE SANDY LOAM | D43: =IF(AND(SUM('Texture Calculator'!$C$26:$C$39)='Texture Calculator'!$C$5,SUM($D$37:$D$42) = 0,'Texture Calculator'!$C$26+'Texture Calculator'!#REF!+'Texture Calculator'!#REF!>=0.15, 'Texture Calculator'!$C$26+'Texture Calculator'!#REF!+'Texture Calculator'!#REF!<0.3, 'Texture Calculator'!$C$26+'Texture Calculator'!#REF!<0.25), 7, 0) ->  | E43: vcscsms >= 15 && vcscsms < 30 && vcscs < 25 | F43: FINE SANDY LOAM | G43: =IF(AND(SUM('Texture Calculator'!$C$44:$C$48)='Texture Calculator'!$C$6,SUM($G$37:$G$42) = 0,'Texture Calculator'!#REF!+'Texture Calculator'!$C$45+'Texture Calculator'!$C$46>=0.15, 'Texture Calculator'!#REF!+'Texture Calculator'!$C$45+'Texture Calculator'!$C$46<0.3, 'Texture Calculator'!#REF!+'Texture Calculator'!$C$45<0.25), 7, 0) ->  | H43: vcscsms >= 15 && vcscsms < 30 && vcscs < 25 | I43: FINE SANDY LOAM | J43: =IF(AND(SUM('Texture Calculator'!$C$53:$C$57)='Texture Calculator'!$C$7,SUM($J$37:$J$42) = 0,'Texture Calculator'!$C$53+'Texture Calculator'!$C$54+'Texture Calculator'!$C$55>=0.15, 'Texture Calculator'!$C$53+'Texture Calculator'!$C$54+'Texture Calculator'!$C$55<0.3, 'Texture Calculator'!$C$53+'Texture Calculator'!$C$54<0.25), 7, 0) -> 0 | K43: vcscsms >= 15 && vcscsms < 30 && vcscs < 25 | L43: FINE SANDY LOAM
A44: =IF(AND(SUM('Texture Calculator'!$C$13:$C$17)='Texture Calculator'!$C$4,SUM($A$37:$A$43) = 0,'Texture Calculator'!$C$16+'Texture Calculator'!$C$17>=0.4, 'Texture Calculator'!$C$16>='Texture Calculator'!$C$17, 'Texture Calculator'!$C$13+'Texture Calculator'!$C$14+'Texture Calculator'!$C$15<=0.15), 8, 0) -> 0 | B44: fsvfs >= 40 && fs >= vfs && vcscsms <= 15 | C44: FINE SANDY LOAM | D44: =IF(AND(SUM('Texture Calculator'!$C$26:$C$39)='Texture Calculator'!$C$5,SUM($D$37:$D$43) = 0,'Texture Calculator'!#REF!+'Texture Calculator'!$C$39>=0.4, 'Texture Calculator'!#REF!>='Texture Calculator'!$C$39, 'Texture Calculator'!$C$26+'Texture Calculator'!#REF!+'Texture Calculator'!#REF!<=0.15), 8, 0) ->  | E44: fsvfs >= 40 && fs >= vfs && vcscsms <= 15 | F44: FINE SANDY LOAM | G44: =IF(AND(SUM('Texture Calculator'!$C$44:$C$48)='Texture Calculator'!$C$6,SUM($G$37:$G$43) = 0,'Texture Calculator'!$C$47+'Texture Calculator'!$C$48>=0.4, 'Texture Calculator'!$C$47>='Texture Calculator'!$C$48, 'Texture Calculator'!#REF!+'Texture Calculator'!$C$45+'Texture Calculator'!$C$46<=0.15), 8, 0) ->  | H44: fsvfs >= 40 && fs >= vfs && vcscsms <= 15 | I44: FINE SANDY LOAM | J44: =IF(AND(SUM('Texture Calculator'!$C$53:$C$57)='Texture Calculator'!$C$7,SUM($J$37:$J$43) = 0,'Texture Calculator'!$C$56+'Texture Calculator'!$C$57>=0.4, 'Texture Calculator'!$C$56>='Texture Calculator'!$C$57, 'Texture Calculator'!$C$53+'Texture Calculator'!$C$54+'Texture Calculator'!$C$55<=0.15), 8, 0) -> 0 | K44: fsvfs >= 40 && fs >= vfs && vcscsms <= 15 | L44: FINE SANDY LOAM
A45: =IF(AND(SUM('Texture Calculator'!$C$13:$C$17)='Texture Calculator'!$C$4,SUM($A$37:$A$44) = 0,'Texture Calculator'!$C$13+'Texture Calculator'!$C$14>=0.25, 'Texture Calculator'!$C$16>=0.5), 9, 0) -> 0 | B45: vcscs >= 25 && fs >= 50 | C45: FINE SANDY LOAM | D45: =IF(AND(SUM('Texture Calculator'!$C$26:$C$39)='Texture Calculator'!$C$5,SUM($D$37:$D$44) = 0,'Texture Calculator'!$C$26+'Texture Calculator'!#REF!>=0.25, 'Texture Calculator'!#REF!>=0.5), 9, 0) ->  | E45: vcscs >= 25 && fs >= 50 | F45: FINE SANDY LOAM | G45: =IF(AND(SUM('Texture Calculator'!$C$44:$C$48)='Texture Calculator'!$C$6,SUM($G$37:$G$44) = 0,'Texture Calculator'!#REF!+'Texture Calculator'!$C$45>=0.25, 'Texture Calculator'!$C$47>=0.5), 9, 0) ->  | H45: vcscs >= 25 && fs >= 50 | I45: FINE SANDY LOAM | J45: =IF(AND(SUM('Texture Calculator'!$C$53:$C$57)='Texture Calculator'!$C$7,SUM($J$37:$J$44) = 0,'Texture Calculator'!$C$53+'Texture Calculator'!$C$54>=0.25, 'Texture Calculator'!$C$56>=0.5), 9, 0) -> 0 | K45: vcscs >= 25 && fs >= 50 | L45: FINE SANDY LOAM
